{"text_format":"1","workbook":"xlsx","n_sheets":8,"sheets":["DESCRIZIONE","TFR","TCM","M&R","CALCOLI1","CALCOLI","CALCOLO PENSIONE","RENDITE VITALIZIE"],"not_rendered":{"charts":4,"images":2,"macros":1,"external_links":0,"defined_names":4,"comments":0,"pivot_tables":0},"unopened":[],"bounds":{"document_bytes":16777216,"sheet_cells":100000,"rows_first":2000,"rows_last":500,"rows_between":2000,"halvings":0,"cell_chars":16384,"cell_head_chars":4096},"cells_cut":0,"cells_raw":0,"read":"whole","date_system":"1900"}

{"sheet":"DESCRIZIONE","index":0,"n_rows":31,"n_cols":16369,"rows_kept":31,"cut":false,"hidden":false,"merged":[[4,0,4,19],[29,4,29,17],[30,4,30,17],[28,7,28,10],[18,32,18,47],[18,48,18,63],[18,304,18,319],[18,320,18,335],[18,336,18,351],[18,352,18,367],[18,368,18,383],[18,224,18,239],[18,240,18,255],[18,256,18,271],[18,272,18,287],[18,288,18,303],[18,144,18,159],[18,160,18,175],[18,176,18,191],[18,192,18,207],[18,208,18,223],[18,64,18,79],[18,80,18,95],[18,96,18,111],[18,112,18,127],[18,128,18,143],[25,7,25,10],[18,624,18,639],[18,640,18,655],[18,656,18,671],[18,672,18,687],[18,688,18,703],[18,544,18,559],[18,560,18,575],[18,576,18,591],[18,592,18,607],[18,608,18,623],[18,464,18,479],[18,480,18,495],[18,496,18,511],[18,512,18,527],[18,528,18,543],[18,384,18,399],[18,400,18,415],[18,416,18,431],[18,432,18,447],[18,448,18,463],[18,944,18,959],[18,960,18,975],[18,976,18,991],[18,992,18,1007],[18,1008,18,1023],[18,864,18,879],[18,880,18,895],[18,896,18,911],[18,912,18,927],[18,928,18,943],[18,784,18,799],[18,800,18,815],[18,816,18,831],[18,832,18,847],[18,848,18,863],[18,704,18,719],[18,720,18,735],[18,736,18,751],[18,752,18,767],[18,768,18,783],[18,1264,18,1279],[18,1280,18,1295],[18,1296,18,1311],[18,1312,18,1327],[18,1328,18,1343],[18,1184,18,1199],[18,1200,18,1215],[18,1216,18,1231],[18,1232,18,1247],[18,1248,18,1263],[18,1104,18,1119],[18,1120,18,1135],[18,1136,18,1151],[18,1152,18,1167],[18,1168,18,1183],[18,1024,18,1039],[18,1040,18,1055],[18,1056,18,1071],[18,1072,18,1087],[18,1088,18,1103],[18,1584,18,1599],[18,1600,18,1615],[18,1616,18,1631],[18,1632,18,1647],[18,1648,18,1663],[18,1504,18,1519],[18,1520,18,1535],[18,1536,18,1551],[18,1552,18,1567],[18,1568,18,1583],[18,1424,18,1439],[18,1440,18,1455],[18,1456,18,1471],[18,1472,18,1487],[18,1488,18,1503],[18,1344,18,1359],[18,1360,18,1375],[18,1376,18,1391],[18,1392,18,1407],[18,1408,18,1423],[18,1904,18,1919],[18,1920,18,1935],[18,1936,18,1951],[18,1952,18,1967],[18,1968,18,1983],[18,1824,18,1839],[18,1840,18,1855],[18,1856,18,1871],[18,1872,18,1887],[18,1888,18,1903],[18,1744,18,1759],[18,1760,18,1775],[18,1776,18,1791],[18,1792,18,1807],[18,1808,18,1823],[18,1664,18,1679],[18,1680,18,1695],[18,1696,18,1711],[18,1712,18,1727],[18,1728,18,1743],[18,2224,18,2239],[18,2240,18,2255],[18,2256,18,2271],[18,2272,18,2287],[18,2288,18,2303],[18,2144,18,2159],[18,2160,18,2175],[18,2176,18,2191],[18,2192,18,2207],[18,2208,18,2223],[18,2064,18,2079],[18,2080,18,2095],[18,2096,18,2111],[18,2112,18,2127],[18,2128,18,2143],[18,1984,18,1999],[18,2000,18,2015],[18,2016,18,2031],[18,2032,18,2047],[18,2048,18,2063],[18,2544,18,2559],[18,2560,18,2575],[18,2576,18,2591],[18,2592,18,2607],[18,2608,18,2623],[18,2464,18,2479],[18,2480,18,2495],[18,2496,18,2511],[18,2512,18,2527],[18,2528,18,2543],[18,2384,18,2399],[18,2400,18,2415],[18,2416,18,2431],[18,2432,18,2447],[18,2448,18,2463],[18,2304,18,2319],[18,2320,18,2335],[18,2336,18,2351],[18,2352,18,2367],[18,2368,18,2383],[18,2864,18,2879],[18,2880,18,2895],[18,2896,18,2911],[18,2912,18,2927],[18,2928,18,2943],[18,2784,18,2799],[18,2800,18,2815],[18,2816,18,2831],[18,2832,18,2847],[18,2848,18,2863],[18,2704,18,2719],[18,2720,18,2735],[18,2736,18,2751],[18,2752,18,2767],[18,2768,18,2783],[18,2624,18,2639],[18,2640,18,2655],[18,2656,18,2671],[18,2672,18,2687],[18,2688,18,2703],[18,3184,18,3199],[18,3200,18,3215],[18,3216,18,3231],[18,3232,18,3247],[18,3248,18,3263],[18,3104,18,3119],[18,3120,18,3135],[18,3136,18,3151],[18,3152,18,3167],[18,3168,18,3183],[18,3024,18,3039],[18,3040,18,3055],[18,3056,18,3071],[18,3072,18,3087],[18,3088,18,3103],[18,2944,18,2959],[18,2960,18,2975],[18,2976,18,2991],[18,2992,18,3007],[18,3008,18,3023],[18,3504,18,3519],[18,3520,18,3535],[18,3536,18,3551],[18,3552,18,3567],[18,3568,18,3583],[18,3424,18,3439],[18,3440,18,3455],[18,3456,18,3471],[18,3472,18,3487],[18,3488,18,3503],[18,3344,18,3359],[18,3360,18,3375],[18,3376,18,3391],[18,3392,18,3407],[18,3408,18,3423],[18,3264,18,3279],[18,3280,18,3295],[18,3296,18,3311],[18,3312,18,3327],[18,3328,18,3343],[18,3824,18,3839],[18,3840,18,3855],[18,3856,18,3871],[18,3872,18,3887],[18,3888,18,3903],[18,3744,18,3759],[18,3760,18,3775],[18,3776,18,3791],[18,3792,18,3807],[18,3808,18,3823],[18,3664,18,3679],[18,3680,18,3695],[18,3696,18,3711],[18,3712,18,3727],[18,3728,18,3743],[18,3584,18,3599],[18,3600,18,3615],[18,3616,18,3631],[18,3632,18,3647],[18,3648,18,3663],[18,4144,18,4159],[18,4160,18,4175],[18,4176,18,4191],[18,4192,18,4207],[18,4208,18,4223],[18,4064,18,4079],[18,4080,18,4095],[18,4096,18,4111],[18,4112,18,4127],[18,4128,18,4143],[18,3984,18,3999],[18,4000,18,4015],[18,4016,18,4031],[18,4032,18,4047],[18,4048,18,4063],[18,3904,18,3919],[18,3920,18,3935],[18,3936,18,3951],[18,3952,18,3967],[18,3968,18,3983],[18,4464,18,4479],[18,4480,18,4495],[18,4496,18,4511],[18,4512,18,4527],[18,4528,18,4543],[18,4384,18,4399],[18,4400,18,4415],[18,4416,18,4431],[18,4432,18,4447],[18,4448,18,4463],[18,4304,18,4319],[18,4320,18,4335],[18,4336,18,4351],[18,4352,18,4367],[18,4368,18,4383],[18,4224,18,4239],[18,4240,18,4255],[18,4256,18,4271],[18,4272,18,4287],[18,4288,18,4303],[18,4784,18,4799],[18,4800,18,4815],[18,4816,18,4831],[18,4832,18,4847],[18,4848,18,4863],[18,4704,18,4719],[18,4720,18,4735],[18,4736,18,4751],[18,4752,18,4767],[18,4768,18,4783],[18,4624,18,4639],[18,4640,18,4655],[18,4656,18,4671],[18,4672,18,4687],[18,4688,18,4703],[18,4544,18,4559],[18,4560,18,4575],[18,4576,18,4591],[18,4592,18,4607],[18,4608,18,4623],[18,5104,18,5119],[18,5120,18,5135],[18,5136,18,5151],[18,5152,18,5167],[18,5168,18,5183],[18,5024,18,5039],[18,5040,18,5055],[18,5056,18,5071],[18,5072,18,5087],[18,5088,18,5103],[18,4944,18,4959],[18,4960,18,4975],[18,4976,18,4991],[18,4992,18,5007],[18,5008,18,5023],[18,4864,18,4879],[18,4880,18,4895],[18,4896,18,4911],[18,4912,18,4927],[18,4928,18,4943],[18,5424,18,5439],[18,5440,18,5455],[18,5456,18,5471],[18,5472,18,5487],[18,5488,18,5503],[18,5344,18,5359],[18,5360,18,5375],[18,5376,18,5391],[18,5392,18,5407],[18,5408,18,5423],[18,5264,18,5279],[18,5280,18,5295],[18,5296,18,5311],[18,5312,18,5327],[18,5328,18,5343],[18,5184,18,5199],[18,5200,18,5215],[18,5216,18,5231],[18,5232,18,5247],[18,5248,18,5263],[18,5744,18,5759],[18,5760,18,5775],[18,5776,18,5791],[18,5792,18,5807],[18,5808,18,5823],[18,5664,18,5679],[18,5680,18,5695],[18,5696,18,5711],[18,5712,18,5727],[18,5728,18,5743],[18,5584,18,5599],[18,5600,18,5615],[18,5616,18,5631],[18,5632,18,5647],[18,5648,18,5663],[18,5504,18,5519],[18,5520,18,5535],[18,5536,18,5551],[18,5552,18,5567],[18,5568,18,5583],[18,6064,18,6079],[18,6080,18,6095],[18,6096,18,6111],[18,6112,18,6127],[18,6128,18,6143],[18,5984,18,5999],[18,6000,18,6015],[18,6016,18,6031],[18,6032,18,6047],[18,6048,18,6063],[18,5904,18,5919],[18,5920,18,5935],[18,5936,18,5951],[18,5952,18,5967],[18,5968,18,5983],[18,5824,18,5839],[18,5840,18,5855],[18,5856,18,5871],[18,5872,18,5887],[18,5888,18,5903],[18,6384,18,6399],[18,6400,18,6415],[18,6416,18,6431],[18,6432,18,6447],[18,6448,18,6463],[18,6304,18,6319],[18,6320,18,6335],[18,6336,18,6351],[18,6352,18,6367],[18,6368,18,6383],[18,6224,18,6239],[18,6240,18,6255],[18,6256,18,6271],[18,6272,18,6287],[18,6288,18,6303],[18,6144,18,6159],[18,6160,18,6175],[18,6176,18,6191],[18,6192,18,6207],[18,6208,18,6223],[18,6704,18,6719],[18,6720,18,6735],[18,6736,18,6751],[18,6752,18,6767],[18,6768,18,6783],[18,6624,18,6639],[18,6640,18,6655],[18,6656,18,6671],[18,6672,18,6687],[18,6688,18,6703],[18,6544,18,6559],[18,6560,18,6575],[18,6576,18,6591],[18,6592,18,6607],[18,6608,18,6623],[18,6464,18,6479],[18,6480,18,6495],[18,6496,18,6511],[18,6512,18,6527],[18,6528,18,6543],[18,7024,18,7039],[18,7040,18,7055],[18,7056,18,7071],[18,7072,18,7087],[18,7088,18,7103],[18,6944,18,6959],[18,6960,18,6975],[18,6976,18,6991],[18,6992,18,7007],[18,7008,18,7023],[18,6864,18,6879],[18,6880,18,6895],[18,6896,18,6911],[18,6912,18,6927],[18,6928,18,6943],[18,6784,18,6799],[18,6800,18,6815],[18,6816,18,6831],[18,6832,18,6847],[18,6848,18,6863],[18,7344,18,7359],[18,7360,18,7375],[18,7376,18,7391],[18,7392,18,7407],[18,7408,18,7423],[18,7264,18,7279],[18,7280,18,7295],[18,7296,18,7311],[18,7312,18,7327],[18,7328,18,7343],[18,7184,18,7199],[18,7200,18,7215],[18,7216,18,7231],[18,7232,18,7247],[18,7248,18,7263],[18,7104,18,7119],[18,7120,18,7135],[18,7136,18,7151],[18,7152,18,7167],[18,7168,18,7183],[18,7664,18,7679],[18,7680,18,7695],[18,7696,18,7711],[18,7712,18,7727],[18,7728,18,7743],[18,7584,18,7599],[18,7600,18,7615],[18,7616,18,7631],[18,7632,18,7647],[18,7648,18,7663],[18,7504,18,7519],[18,7520,18,7535],[18,7536,18,7551],[18,7552,18,7567],[18,7568,18,7583],[18,7424,18,7439],[18,7440,18,7455],[18,7456,18,7471],[18,7472,18,7487],[18,7488,18,7503],[18,7984,18,7999],[18,8000,18,8015],[18,8016,18,8031],[18,8032,18,8047],[18,8048,18,8063],[18,7904,18,7919],[18,7920,18,7935],[18,7936,18,7951],[18,7952,18,7967],[18,7968,18,7983],[18,7824,18,7839],[18,7840,18,7855],[18,7856,18,7871],[18,7872,18,7887],[18,7888,18,7903],[18,7744,18,7759],[18,7760,18,7775],[18,7776,18,7791],[18,7792,18,7807],[18,7808,18,7823],[18,8304,18,8319],[18,8320,18,8335],[18,8336,18,8351],[18,8352,18,8367],[18,8368,18,8383],[18,8224,18,8239],[18,8240,18,8255],[18,8256,18,8271],[18,8272,18,8287],[18,8288,18,8303],[18,8144,18,8159],[18,8160,18,8175],[18,8176,18,8191],[18,8192,18,8207],[18,8208,18,8223],[18,8064,18,8079],[18,8080,18,8095],[18,8096,18,8111],[18,8112,18,8127],[18,8128,18,8143],[18,8624,18,8639],[18,8640,18,8655],[18,8656,18,8671],[18,8672,18,8687],[18,8688,18,8703],[18,8544,18,8559],[18,8560,18,8575],[18,8576,18,8591],[18,8592,18,8607],[18,8608,18,8623],[18,8464,18,8479],[18,8480,18,8495],[18,8496,18,8511],[18,8512,18,8527],[18,8528,18,8543],[18,8384,18,8399],[18,8400,18,8415],[18,8416,18,8431],[18,8432,18,8447],[18,8448,18,8463],[18,8944,18,8959],[18,8960,18,8975],[18,8976,18,8991],[18,8992,18,9007],[18,9008,18,9023],[18,8864,18,8879],[18,8880,18,8895],[18,8896,18,8911],[18,8912,18,8927],[18,8928,18,8943],[18,8784,18,8799],[18,8800,18,8815],[18,8816,18,8831],[18,8832,18,8847],[18,8848,18,8863],[18,8704,18,8719],[18,8720,18,8735],[18,8736,18,8751],[18,8752,18,8767],[18,8768,18,8783],[18,9264,18,9279],[18,9280,18,9295],[18,9296,18,9311],[18,9312,18,9327],[18,9328,18,9343],[18,9184,18,9199],[18,9200,18,9215],[18,9216,18,9231],[18,9232,18,9247],[18,9248,18,9263],[18,9104,18,9119],[18,9120,18,9135],[18,9136,18,9151],[18,9152,18,9167],[18,9168,18,9183],[18,9024,18,9039],[18,9040,18,9055],[18,9056,18,9071],[18,9072,18,9087],[18,9088,18,9103],[18,9584,18,9599],[18,9600,18,9615],[18,9616,18,9631],[18,9632,18,9647],[18,9648,18,9663],[18,9504,18,9519],[18,9520,18,9535],[18,9536,18,9551],[18,9552,18,9567],[18,9568,18,9583],[18,9424,18,9439],[18,9440,18,9455],[18,9456,18,9471],[18,9472,18,9487],[18,9488,18,9503],[18,9344,18,9359],[18,9360,18,9375],[18,9376,18,9391],[18,9392,18,9407],[18,9408,18,9423],[18,9904,18,9919],[18,9920,18,9935],[18,9936,18,9951],[18,9952,18,9967],[18,9968,18,9983],[18,9824,18,9839],[18,9840,18,9855],[18,9856,18,9871],[18,9872,18,9887],[18,9888,18,9903],[18,9744,18,9759],[18,9760,18,9775],[18,9776,18,9791],[18,9792,18,9807],[18,9808,18,9823],[18,9664,18,9679],[18,9680,18,9695],[18,9696,18,9711],[18,9712,18,9727],[18,9728,18,9743],[18,10224,18,10239],[18,10240,18,10255],[18,10256,18,10271],[18,10272,18,10287],[18,10288,18,10303],[18,10144,18,10159],[18,10160,18,10175],[18,10176,18,10191],[18,10192,18,10207],[18,10208,18,10223],[18,10064,18,10079],[18,10080,18,10095],[18,10096,18,10111],[18,10112,18,10127],[18,10128,18,10143],[18,9984,18,9999],[18,10000,18,10015],[18,10016,18,10031],[18,10032,18,10047],[18,10048,18,10063],[18,10544,18,10559],[18,10560,18,10575],[18,10576,18,10591],[18,10592,18,10607],[18,10608,18,10623],[18,10464,18,10479],[18,10480,18,10495],[18,10496,18,10511],[18,10512,18,10527],[18,10528,18,10543],[18,10384,18,10399],[18,10400,18,10415],[18,10416,18,10431],[18,10432,18,10447],[18,10448,18,10463],[18,10304,18,10319],[18,10320,18,10335],[18,10336,18,10351],[18,10352,18,10367],[18,10368,18,10383],[18,10864,18,10879],[18,10880,18,10895],[18,10896,18,10911],[18,10912,18,10927],[18,10928,18,10943],[18,10784,18,10799],[18,10800,18,10815],[18,10816,18,10831],[18,10832,18,10847],[18,10848,18,10863],[18,10704,18,10719],[18,10720,18,10735],[18,10736,18,10751],[18,10752,18,10767],[18,10768,18,10783],[18,10624,18,10639],[18,10640,18,10655],[18,10656,18,10671],[18,10672,18,10687],[18,10688,18,10703],[18,11184,18,11199],[18,11200,18,11215],[18,11216,18,11231],[18,11232,18,11247],[18,11248,18,11263],[18,11104,18,11119],[18,11120,18,11135],[18,11136,18,11151],[18,11152,18,11167],[18,11168,18,11183],[18,11024,18,11039],[18,11040,18,11055],[18,11056,18,11071],[18,11072,18,11087],[18,11088,18,11103],[18,10944,18,10959],[18,10960,18,10975],[18,10976,18,10991],[18,10992,18,11007],[18,11008,18,11023],[18,11504,18,11519],[18,11520,18,11535],[18,11536,18,11551],[18,11552,18,11567],[18,11568,18,11583],[18,11424,18,11439],[18,11440,18,11455],[18,11456,18,11471],[18,11472,18,11487],[18,11488,18,11503],[18,11344,18,11359],[18,11360,18,11375],[18,11376,18,11391],[18,11392,18,11407],[18,11408,18,11423],[18,11264,18,11279],[18,11280,18,11295],[18,11296,18,11311],[18,11312,18,11327],[18,11328,18,11343],[18,11824,18,11839],[18,11840,18,11855],[18,11856,18,11871],[18,11872,18,11887],[18,11888,18,11903],[18,11744,18,11759],[18,11760,18,11775],[18,11776,18,11791],[18,11792,18,11807],[18,11808,18,11823],[18,11664,18,11679],[18,11680,18,11695],[18,11696,18,11711],[18,11712,18,11727],[18,11728,18,11743],[18,11584,18,11599],[18,11600,18,11615],[18,11616,18,11631],[18,11632,18,11647],[18,11648,18,11663],[18,12144,18,12159],[18,12160,18,12175],[18,12176,18,12191],[18,12192,18,12207],[18,12208,18,12223],[18,12064,18,12079],[18,12080,18,12095],[18,12096,18,12111],[18,12112,18,12127],[18,12128,18,12143],[18,11984,18,11999],[18,12000,18,12015],[18,12016,18,12031],[18,12032,18,12047],[18,12048,18,12063],[18,11904,18,11919],[18,11920,18,11935],[18,11936,18,11951],[18,11952,18,11967],[18,11968,18,11983],[18,12464,18,12479],[18,12480,18,12495],[18,12496,18,12511],[18,12512,18,12527],[18,12528,18,12543],[18,12384,18,12399],[18,12400,18,12415],[18,12416,18,12431],[18,12432,18,12447],[18,12448,18,12463],[18,12304,18,12319],[18,12320,18,12335],[18,12336,18,12351],[18,12352,18,12367],[18,12368,18,12383],[18,12224,18,12239],[18,12240,18,12255],[18,12256,18,12271],[18,12272,18,12287],[18,12288,18,12303],[18,12784,18,12799],[18,12800,18,12815],[18,12816,18,12831],[18,12832,18,12847],[18,12848,18,12863],[18,12704,18,12719],[18,12720,18,12735],[18,12736,18,12751],[18,12752,18,12767],[18,12768,18,12783],[18,12624,18,12639],[18,12640,18,12655],[18,12656,18,12671],[18,12672,18,12687],[18,12688,18,12703],[18,12544,18,12559],[18,12560,18,12575],[18,12576,18,12591],[18,12592,18,12607],[18,12608,18,12623],[18,13104,18,13119],[18,13120,18,13135],[18,13136,18,13151],[18,13152,18,13167],[18,13168,18,13183],[18,13024,18,13039],[18,13040,18,13055],[18,13056,18,13071],[18,13072,18,13087],[18,13088,18,13103],[18,12944,18,12959],[18,12960,18,12975],[18,12976,18,12991],[18,12992,18,13007],[18,13008,18,13023],[18,12864,18,12879],[18,12880,18,12895],[18,12896,18,12911],[18,12912,18,12927],[18,12928,18,12943],[18,13424,18,13439],[18,13440,18,13455],[18,13456,18,13471],[18,13472,18,13487],[18,13488,18,13503],[18,13344,18,13359],[18,13360,18,13375],[18,13376,18,13391],[18,13392,18,13407],[18,13408,18,13423],[18,13264,18,13279],[18,13280,18,13295],[18,13296,18,13311],[18,13312,18,13327],[18,13328,18,13343],[18,13184,18,13199],[18,13200,18,13215],[18,13216,18,13231],[18,13232,18,13247],[18,13248,18,13263],[18,13744,18,13759],[18,13760,18,13775],[18,13776,18,13791],[18,13792,18,13807],[18,13808,18,13823],[18,13664,18,13679],[18,13680,18,13695],[18,13696,18,13711],[18,13712,18,13727],[18,13728,18,13743],[18,13584,18,13599],[18,13600,18,13615],[18,13616,18,13631],[18,13632,18,13647],[18,13648,18,13663],[18,13504,18,13519],[18,13520,18,13535],[18,13536,18,13551],[18,13552,18,13567],[18,13568,18,13583],[18,14064,18,14079],[18,14080,18,14095],[18,14096,18,14111],[18,14112,18,14127],[18,14128,18,14143],[18,13984,18,13999],[18,14000,18,14015],[18,14016,18,14031],[18,14032,18,14047],[18,14048,18,14063],[18,13904,18,13919],[18,13920,18,13935],[18,13936,18,13951],[18,13952,18,13967],[18,13968,18,13983],[18,13824,18,13839],[18,13840,18,13855],[18,13856,18,13871],[18,13872,18,13887],[18,13888,18,13903],[18,14384,18,14399],[18,14400,18,14415],[18,14416,18,14431],[18,14432,18,14447],[18,14448,18,14463],[18,14304,18,14319],[18,14320,18,14335],[18,14336,18,14351],[18,14352,18,14367],[18,14368,18,14383],[18,14224,18,14239],[18,14240,18,14255],[18,14256,18,14271],[18,14272,18,14287],[18,14288,18,14303],[18,14144,18,14159],[18,14160,18,14175],[18,14176,18,14191],[18,14192,18,14207],[18,14208,18,14223],[18,14704,18,14719],[18,14720,18,14735],[18,14736,18,14751],[18,14752,18,14767],[18,14768,18,14783],[18,14624,18,14639],[18,14640,18,14655],[18,14656,18,14671],[18,14672,18,14687],[18,14688,18,14703],[18,14544,18,14559],[18,14560,18,14575],[18,14576,18,14591],[18,14592,18,14607],[18,14608,18,14623],[18,14464,18,14479],[18,14480,18,14495],[18,14496,18,14511],[18,14512,18,14527],[18,14528,18,14543],[18,15024,18,15039],[18,15040,18,15055],[18,15056,18,15071],[18,15072,18,15087],[18,15088,18,15103],[18,14944,18,14959],[18,14960,18,14975],[18,14976,18,14991],[18,14992,18,15007],[18,15008,18,15023],[18,14864,18,14879],[18,14880,18,14895],[18,14896,18,14911],[18,14912,18,14927],[18,14928,18,14943],[18,14784,18,14799],[18,14800,18,14815],[18,14816,18,14831],[18,14832,18,14847],[18,14848,18,14863],[18,15344,18,15359],[18,15360,18,15375],[18,15376,18,15391],[18,15392,18,15407],[18,15408,18,15423],[18,15264,18,15279],[18,15280,18,15295],[18,15296,18,15311],[18,15312,18,15327],[18,15328,18,15343],[18,15184,18,15199],[18,15200,18,15215],[18,15216,18,15231],[18,15232,18,15247],[18,15248,18,15263],[18,15104,18,15119],[18,15120,18,15135],[18,15136,18,15151],[18,15152,18,15167],[18,15168,18,15183],[18,15664,18,15679],[18,15680,18,15695],[18,15696,18,15711],[18,15712,18,15727],[18,15728,18,15743],[18,15584,18,15599],[18,15600,18,15615],[18,15616,18,15631],[18,15632,18,15647],[18,15648,18,15663],[18,15504,18,15519],[18,15520,18,15535],[18,15536,18,15551],[18,15552,18,15567],[18,15568,18,15583],[18,15424,18,15439],[18,15440,18,15455],[18,15456,18,15471],[18,15472,18,15487],[18,15488,18,15503],[18,15984,18,15999],[18,16000,18,16015],[18,16016,18,16031],[18,16032,18,16047],[18,16048,18,16063],[18,15904,18,15919],[18,15920,18,15935],[18,15936,18,15951],[18,15952,18,15967],[18,15968,18,15983],[18,15824,18,15839],[18,15840,18,15855],[18,15856,18,15871]],"merged_total":1027,"flags":["merged_cut"]}
[]
[]
["RISERVATO AGLI ADERENTI CON QUALIFICA DI DIRIGENTE"]
["Il progetto esemplificativo individuale è dedicato, in modo specifico, ai nuovi iscritti (anche per i fiscalmente a carico) dal 2007 in poi. Vuole essere d'aiuto per valutare l'investimento nel Fondo Pensione. "]
["I risultati prodotti dai motori di calcolo non impegnano in alcun modo il Fondo Pensione"]
[]
[]
[]
[]
[]
[]
[]
[null,null,"TRA QUANTO TEMPO INVESTENDO UN CAPITALE NOTO A UN TASSO ANNUO DI RENDIMENTO NOTO POTRO' AVERE IL MONTANTE CHE MI SERVE?"]
[]
[]
[null,null,null,null,"QUANTO CAPITALE DEVO INVESTIRE PER OTTENERE TRA X ANNI UN MONTANTE DESIDERATO?"]
[]
[]
[null,"INVESTENDO UN CAPITALE ANNUALE CONOSCIUTO, CON O SENZA CAPITALE INIZIALE A UN TASSO ANNUO DI REND. CONOSCIUTO CHE MONTANTE AVRO' TRA X ANNI?",null,null,null,null,null,null,null,null,null,null,null,null,null,null,null,null,null,null,null,null,null,null,null,null,null,null,null,null,null,null,"INVESTENDO UN CAPITALE ANNUALE CONOSCIUTO, CON O SENZA CAPITALE INIZIALE A UN TASSO DI RIV CONOSCIUTO CHE MONTANTE AVRO' TRA X ANNI?",null,null,null,null,null,null,null,null,null,null,null,null,null,null,null,"INVESTENDO UN CAPITALE ANNUALE CONOSCIUTO, CON O SENZA CAPITALE INIZIALE A UN TASSO DI RIV CONOSCIUTO CHE MONTANTE AVRO' TRA X ANNI?",null,null,null,null,null,null,null,null,null,null,null,null,null,null,null,"INVESTENDO UN CAPITALE ANNUALE CONOSCIUTO, CON O SENZA CAPITALE INIZIALE A UN TASSO DI RIV CONOSCIUTO CHE MONTANTE AVRO' TRA X ANNI?",null,null,null,null,null,null,null,null,null,null,null,null,null,null,null,"INVESTENDO UN CAPITALE ANNUALE CONOSCIUTO, CON O SENZA CAPITALE INIZIALE A UN TASSO DI RIV CONOSCIUTO CHE MONTANTE AVRO' TRA X ANNI?",null,null,null,null,null,null,null,null,null,null,null,null,null,null,null,"INVESTENDO UN CAPITALE ANNUALE CONOSCIUTO, CON O SENZA CAPITALE INIZIALE A UN TASSO DI RIV CONOSCIUTO CHE MONTANTE AVRO' TRA X ANNI?",null,null,null,null,null,null,null,null,null,null,null,null,null,null,null,"INVESTENDO UN CAPITALE ANNUALE CONOSCIUTO, CON O SENZA CAPITALE INIZIALE A UN TASSO DI RIV CONOSCIUTO CHE MONTANTE AVRO' TRA X ANNI?",null,null,null,null,null,null,null,null,null,null,null,null,null,null,null,"INVESTENDO UN CAPITALE ANNUALE CONOSCIUTO, CON O SENZA CAPITALE INIZIALE A UN TASSO DI RIV CONOSCIUTO CHE MONTANTE AVRO' TRA X ANNI?",null,null,null,null,null,null,null,null,null,null,null,null,null,null,null,"INVESTENDO UN CAPITALE ANNUALE CONOSCIUTO, CON O SENZA CAPITALE INIZIALE A UN TASSO DI RIV CONOSCIUTO CHE MONTANTE AVRO' TRA X ANNI?",null,null,null,null,null,null,null,null,null,null,null,null,null,null,null,"INVESTENDO UN CAPITALE ANNUALE CONOSCIUTO, CON O SENZA CAPITALE INIZIALE A UN TASSO DI RIV CONOSCIUTO CHE MONTANTE AVRO' TRA X ANNI?",null,null,null,null,null,null,null,null,null,null,null,null,null,null,null,"INVESTENDO UN CAPITALE ANNUALE CONOSCIUTO, CON O SENZA CAPITALE INIZIALE A UN TASSO DI RIV CONOSCIUTO CHE MONTANTE AVRO' TRA X ANNI?",null,null,null,null,null,null,null,null,null,null,null,null,null,null,null,"INVESTENDO UN CAPITALE ANNUALE CONOSCIUTO, CON O SENZA CAPITALE INIZIALE A UN TASSO DI RIV CONOSCIUTO CHE MONTANTE AVRO' TRA X ANNI?",null,null,null,null,null,null,null,null,null,null,null,null,null,null,null,"INVESTENDO UN CAPITALE ANNUALE CONOSCIUTO, CON O SENZA CAPITALE INIZIALE A UN TASSO DI RIV CONOSCIUTO CHE MONTANTE AVRO' TRA X ANNI?",null,null,null,null,null,null,null,null,null,null,null,null,null,null,null,"INVESTENDO UN CAPITALE ANNUALE CONOSCIUTO, CON O SENZA CAPITALE INIZIALE A UN TASSO DI RIV CONOSCIUTO CHE MONTANTE AVRO' TRA X ANNI?",null,null,null,null,null,null,null,null,null,null,null,null,null,null,null,"INVESTENDO UN CAPITALE ANNUALE CONOSCIUTO, CON O SENZA CAPITALE INIZIALE A UN TASSO DI RIV CONOSCIUTO CHE MONTANTE AVRO' TRA X ANNI?",null,null,null,null,null,null,null,null,null,null,null,null,null,null,null,"INVESTENDO UN CAPITALE ANNUALE CONOSCIUTO, CON O SENZA CAPITALE INIZIALE A UN TASSO DI RIV CONOSCIUTO CHE MONTANTE AVRO' TRA X ANNI?",null,null,null,null,null,null,null,null,null,null,null,null,null,null,null,"INVESTENDO UN CAPITALE ANNUALE CONOSCIUTO, CON O SENZA CAPITALE INIZIALE A UN TASSO DI RIV CONOSCIUTO CHE MONTANTE AVRO' TRA X ANNI?",null,null,null,null,null,null,null,null,null,null,null,null,null,null,null,"INVESTENDO UN CAPITALE ANNUALE CONOSCIUTO, CON O SENZA CAPITALE INIZIALE A UN TASSO DI RIV CONOSCIUTO CHE MONTANTE AVRO' TRA X ANNI?",null,null,null,null,null,null,null,null,null,null,null,null,null,null,null,"INVESTENDO UN CAPITALE ANNUALE CONOSCIUTO, CON O SENZA CAPITALE INIZIALE A UN TASSO DI RIV CONOSCIUTO CHE MONTANTE AVRO' TRA X ANNI?",null,null,null,null,null,null,null,null,null,null,null,null,null,null,null,"INVESTENDO UN CAPITALE ANNUALE CONOSCIUTO, CON O SENZA CAPITALE INIZIALE A UN TASSO DI RIV CONOSCIUTO CHE MONTANTE AVRO' TRA X ANNI?",null,null,null,null,null,null,null,null,null,null,null,null,null,null,null,"INVESTENDO UN CAPITALE ANNUALE CONOSCIUTO, CON O SENZA CAPITALE INIZIALE A UN TASSO DI RIV CONOSCIUTO CHE MONTANTE AVRO' TRA X ANNI?",null,null,null,null,null,null,null,null,null,null,null,null,null,null,null,"INVESTENDO UN CAPITALE ANNUALE CONOSCIUTO, CON O SENZA CAPITALE INIZIALE A UN TASSO DI RIV CONOSCIUTO CHE MONTANTE AVRO' TRA X ANNI?",null,null,null,null,null,null,null,null,null,null,null,null,null,null,null,"INVESTENDO UN CAPITALE ANNUALE CONOSCIUTO, CON O SENZA CAPITALE INIZIALE A UN TASSO DI RIV CONOSCIUTO CHE MONTANTE AVRO' TRA X ANNI?",null,null,null,null,null,null,null,null,null,null,null,null,null,null,null,"INVESTENDO UN CAPITALE ANNUALE CONOSCIUTO, CON O SENZA CAPITALE INIZIALE A UN TASSO DI RIV CONOSCIUTO CHE MONTANTE AVRO' TRA X ANNI?",null,null,null,null,null,null,null,null,null,null,null,null,null,null,null,"INVESTENDO UN CAPITALE ANNUALE CONOSCIUTO, CON O SENZA CAPITALE INIZIALE A UN TASSO DI RIV CONOSCIUTO CHE MONTANTE AVRO' TRA X ANNI?",null,null,null,null,null,null,null,null,null,null,null,null,null,null,null,"INVESTENDO UN CAPITALE ANNUALE CONOSCIUTO, CON O SENZA CAPITALE INIZIALE A UN TASSO DI RIV CONOSCIUTO CHE MONTANTE AVRO' TRA X ANNI?",null,null,null,null,null,null,null,null,null,null,null,null,null,null,null,"INVESTENDO UN CAPITALE ANNUALE CONOSCIUTO, CON O SENZA CAPITALE INIZIALE A UN TASSO DI RIV CONOSCIUTO CHE MONTANTE AVRO' TRA X ANNI?",null,null,null,null,null,null,null,null,null,null,null,null,null,null,null,"INVESTENDO UN CAPITALE ANNUALE CONOSCIUTO, CON O SENZA CAPITALE INIZIALE A UN TASSO DI RIV CONOSCIUTO CHE MONTANTE AVRO' TRA X ANNI?",null,null,null,null,null,null,null,null,null,null,null,null,null,null,null,"INVESTENDO UN CAPITALE ANNUALE CONOSCIUTO, CON O SENZA CAPITALE INIZIALE A UN TASSO DI RIV CONOSCIUTO CHE MONTANTE AVRO' TRA X ANNI?",null,null,null,null,null,null,null,null,null,null,null,null,null,null,null,"INVESTENDO UN CAPITALE ANNUALE CONOSCIUTO, CON O SENZA CAPITALE INIZIALE A UN TASSO DI RIV CONOSCIUTO CHE MONTANTE AVRO' TRA X ANNI?",null,null,null,null,null,null,null,null,null,null,null,null,null,null,null,"INVESTENDO UN CAPITALE ANNUALE CONOSCIUTO, CON O SENZA CAPITALE INIZIALE A UN TASSO DI RIV CONOSCIUTO CHE MONTANTE AVRO' TRA X ANNI?",null,null,null,null,null,null,null,null,null,null,null,null,null,null,null,"INVESTENDO UN CAPITALE ANNUALE CONOSCIUTO, CON O SENZA CAPITALE INIZIALE A UN TASSO DI RIV CONOSCIUTO CHE MONTANTE AVRO' TRA X ANNI?",null,null,null,null,null,null,null,null,null,null,null,null,null,null,null,"INVESTENDO UN CAPITALE ANNUALE CONOSCIUTO, CON O SENZA CAPITALE INIZIALE A UN TASSO DI RIV CONOSCIUTO CHE MONTANTE AVRO' TRA X ANNI?",null,null,null,null,null,null,null,null,null,null,null,null,null,null,null,"INVESTENDO UN CAPITALE ANNUALE CONOSCIUTO, CON O SENZA CAPITALE INIZIALE A UN TASSO DI RIV CONOSCIUTO CHE MONTANTE AVRO' TRA X ANNI?",null,null,null,null,null,null,null,null,null,null,null,null,null,null,null,"INVESTENDO UN CAPITALE ANNUALE CONOSCIUTO, CON O SENZA CAPITALE INIZIALE A UN TASSO DI RIV CONOSCIUTO CHE MONTANTE AVRO' TRA X ANNI?",null,null,null,null,null,null,null,null,null,null,null,null,null,null,null,"INVESTENDO UN CAPITALE ANNUALE CONOSCIUTO, CON O SENZA CAPITALE INIZIALE A UN TASSO DI RIV CONOSCIUTO CHE MONTANTE AVRO' TRA X ANNI?",null,null,null,null,null,null,null,null,null,null,null,null,null,null,null,"INVESTENDO UN CAPITALE ANNUALE CONOSCIUTO, CON O SENZA CAPITALE INIZIALE A UN TASSO DI RIV CONOSCIUTO CHE MONTANTE AVRO' TRA X ANNI?",null,null,null,null,null,null,null,null,null,null,null,null,null,null,null,"INVESTENDO UN CAPITALE ANNUALE CONOSCIUTO, CON O SENZA CAPITALE INIZIALE A UN TASSO DI RIV CONOSCIUTO CHE MONTANTE AVRO' TRA X ANNI?",null,null,null,null,null,null,null,null,null,null,null,null,null,null,null,"INVESTENDO UN CAPITALE ANNUALE CONOSCIUTO, CON O SENZA CAPITALE INIZIALE A UN TASSO DI RIV CONOSCIUTO CHE MONTANTE AVRO' TRA X ANNI?",null,null,null,null,null,null,null,null,null,null,null,null,null,null,null,"INVESTENDO UN CAPITALE ANNUALE CONOSCIUTO, CON O SENZA CAPITALE INIZIALE A UN TASSO DI RIV CONOSCIUTO CHE MONTANTE AVRO' TRA X ANNI?",null,null,null,null,null,null,null,null,null,null,null,null,null,null,null,"INVESTENDO UN CAPITALE ANNUALE CONOSCIUTO, CON O SENZA CAPITALE INIZIALE A UN TASSO DI RIV CONOSCIUTO CHE MONTANTE AVRO' TRA X ANNI?",null,null,null,null,null,null,null,null,null,null,null,null,null,null,null,"INVESTENDO UN CAPITALE ANNUALE CONOSCIUTO, CON O SENZA CAPITALE INIZIALE A UN TASSO DI RIV CONOSCIUTO CHE MONTANTE AVRO' TRA X ANNI?",null,null,null,null,null,null,null,null,null,null,null,null,null,null,null,"INVESTENDO UN CAPITALE ANNUALE CONOSCIUTO, CON O SENZA CAPITALE INIZIALE A UN TASSO DI RIV CONOSCIUTO CHE MONTANTE AVRO' TRA X ANNI?",null,null,null,null,null,null,null,null,null,null,null,null,null,null,null,"INVESTENDO UN CAPITALE ANNUALE CONOSCIUTO, CON O SENZA CAPITALE INIZIALE A UN TASSO DI RIV CONOSCIUTO CHE MONTANTE AVRO' TRA X ANNI?",null,null,null,null,null,null,null,null,null,null,null,null,null,null,null,"INVESTENDO UN CAPITALE ANNUALE CONOSCIUTO, CON O SENZA CAPITALE INIZIALE A UN TASSO DI RIV CONOSCIUTO CHE MONTANTE AVRO' TRA X ANNI?",null,null,null,null,null,null,null,null,null,null,null,null,null,null,null,"INVESTENDO UN CAPITALE ANNUALE CONOSCIUTO, CON O SENZA CAPITALE INIZIALE A UN TASSO DI RIV CONOSCIUTO CHE MONTANTE AVRO' TRA X ANNI?",null,null,null,null,null,null,null,null,null,null,null,null,null,null,null,"INVESTENDO UN CAPITALE ANNUALE CONOSCIUTO, CON O SENZA CAPITALE INIZIALE A UN TASSO DI RIV CONOSCIUTO CHE MONTANTE AVRO' TRA X ANNI?",null,null,null,null,null,null,null,null,null,null,null,null,null,null,null,"INVESTENDO UN CAPITALE ANNUALE CONOSCIUTO, CON O SENZA CAPITALE INIZIALE A UN TASSO DI RIV CONOSCIUTO CHE MONTANTE AVRO' TRA X ANNI?",null,null,null,null,null,null,null,null,null,null,null,null,null,null,null,"INVESTENDO UN CAPITALE ANNUALE CONOSCIUTO, CON O SENZA CAPITALE INIZIALE A UN TASSO DI RIV CONOSCIUTO CHE MONTANTE AVRO' TRA X ANNI?",null,null,null,null,null,null,null,null,null,null,null,null,null,null,null,"INVESTENDO UN CAPITALE ANNUALE CONOSCIUTO, CON O SENZA CAPITALE INIZIALE A UN TASSO DI RIV CONOSCIUTO CHE MONTANTE AVRO' TRA X ANNI?",null,null,null,null,null,null,null,null,null,null,null,null,null,null,null,"INVESTENDO UN CAPITALE ANNUALE CONOSCIUTO, CON O SENZA CAPITALE INIZIALE A UN TASSO DI RIV CONOSCIUTO CHE MONTANTE AVRO' TRA X ANNI?",null,null,null,null,null,null,null,null,null,null,null,null,null,null,null,"INVESTENDO UN CAPITALE ANNUALE CONOSCIUTO, CON O SENZA CAPITALE INIZIALE A UN TASSO DI RIV CONOSCIUTO CHE MONTANTE AVRO' TRA X ANNI?",null,null,null,null,null,null,null,null,null,null,null,null,null,null,null,"INVESTENDO UN CAPITALE ANNUALE CONOSCIUTO, CON O SENZA CAPITALE INIZIALE A UN TASSO DI RIV CONOSCIUTO CHE MONTANTE AVRO' TRA X ANNI?",null,null,null,null,null,null,null,null,null,null,null,null,null,null,null,"INVESTENDO UN CAPITALE ANNUALE CONOSCIUTO, CON O SENZA CAPITALE INIZIALE A UN TASSO DI RIV CONOSCIUTO CHE MONTANTE AVRO' TRA X ANNI?",null,null,null,null,null,null,null,null,null,null,null,null,null,null,null,"INVESTENDO UN CAPITALE ANNUALE CONOSCIUTO, CON O SENZA CAPITALE INIZIALE A UN TASSO DI RIV CONOSCIUTO CHE MONTANTE AVRO' TRA X ANNI?",null,null,null,null,null,null,null,null,null,null,null,null,null,null,null,"INVESTENDO UN CAPITALE ANNUALE CONOSCIUTO, CON O SENZA CAPITALE INIZIALE A UN TASSO DI RIV CONOSCIUTO CHE MONTANTE AVRO' TRA X ANNI?",null,null,null,null,null,null,null,null,null,null,null,null,null,null,null,"INVESTENDO UN CAPITALE ANNUALE CONOSCIUTO, CON O SENZA CAPITALE INIZIALE A UN TASSO DI RIV CONOSCIUTO CHE MONTANTE AVRO' TRA X ANNI?",null,null,null,null,null,null,null,null,null,null,null,null,null,null,null,"INVESTENDO UN CAPITALE ANNUALE CONOSCIUTO, CON O SENZA CAPITALE INIZIALE A UN TASSO DI RIV CONOSCIUTO CHE MONTANTE AVRO' TRA X ANNI?",null,null,null,null,null,null,null,null,null,null,null,null,null,null,null,"INVESTENDO UN CAPITALE ANNUALE CONOSCIUTO, CON O SENZA CAPITALE INIZIALE A UN TASSO DI RIV CONOSCIUTO CHE MONTANTE AVRO' TRA X ANNI?",null,null,null,null,null,null,null,null,null,null,null,null,null,null,null,"INVESTENDO UN CAPITALE ANNUALE CONOSCIUTO, CON O SENZA CAPITALE INIZIALE A UN TASSO DI RIV CONOSCIUTO CHE MONTANTE AVRO' TRA X ANNI?",null,null,null,null,null,null,null,null,null,null,null,null,null,null,null,"INVESTENDO UN CAPITALE ANNUALE CONOSCIUTO, CON O SENZA CAPITALE INIZIALE A UN TASSO DI RIV CONOSCIUTO CHE MONTANTE AVRO' TRA X ANNI?",null,null,null,null,null,null,null,null,null,null,null,null,null,null,null,"INVESTENDO UN CAPITALE ANNUALE CONOSCIUTO, CON O SENZA CAPITALE INIZIALE A UN TASSO DI RIV CONOSCIUTO CHE MONTANTE AVRO' TRA X ANNI?",null,null,null,null,null,null,null,null,null,null,null,null,null,null,null,"INVESTENDO UN CAPITALE ANNUALE CONOSCIUTO, CON O SENZA CAPITALE INIZIALE A UN TASSO DI RIV CONOSCIUTO CHE MONTANTE AVRO' TRA X ANNI?",null,null,null,null,null,null,null,null,null,null,null,null,null,null,null,"INVESTENDO UN CAPITALE ANNUALE CONOSCIUTO, CON O SENZA CAPITALE INIZIALE A UN TASSO DI RIV CONOSCIUTO CHE MONTANTE AVRO' TRA X ANNI?",null,null,null,null,null,null,null,null,null,null,null,null,null,null,null,"INVESTENDO UN CAPITALE ANNUALE CONOSCIUTO, CON O SENZA CAPITALE INIZIALE A UN TASSO DI RIV CONOSCIUTO CHE MONTANTE AVRO' TRA X ANNI?",null,null,null,null,null,null,null,null,null,null,null,null,null,null,null,"INVESTENDO UN CAPITALE ANNUALE CONOSCIUTO, CON O SENZA CAPITALE INIZIALE A UN TASSO DI RIV CONOSCIUTO CHE MONTANTE AVRO' TRA X ANNI?",null,null,null,null,null,null,null,null,null,null,null,null,null,null,null,"INVESTENDO UN CAPITALE ANNUALE CONOSCIUTO, CON O SENZA CAPITALE INIZIALE A UN TASSO DI RIV CONOSCIUTO CHE MONTANTE AVRO' TRA X ANNI?",null,null,null,null,null,null,null,null,null,null,null,null,null,null,null,"INVESTENDO UN CAPITALE ANNUALE CONOSCIUTO, CON O SENZA CAPITALE INIZIALE A UN TASSO DI RIV CONOSCIUTO CHE MONTANTE AVRO' TRA X ANNI?",null,null,null,null,null,null,null,null,null,null,null,null,null,null,null,"INVESTENDO UN CAPITALE ANNUALE CONOSCIUTO, CON O SENZA CAPITALE INIZIALE A UN TASSO DI RIV CONOSCIUTO CHE MONTANTE AVRO' TRA X ANNI?",null,null,null,null,null,null,null,null,null,null,null,null,null,null,null,"INVESTENDO UN CAPITALE ANNUALE CONOSCIUTO, CON O SENZA CAPITALE INIZIALE A UN TASSO DI RIV CONOSCIUTO CHE MONTANTE AVRO' TRA X ANNI?",null,null,null,null,null,null,null,null,null,null,null,null,null,null,null,"INVESTENDO UN CAPITALE ANNUALE CONOSCIUTO, CON O SENZA CAPITALE INIZIALE A UN TASSO DI RIV CONOSCIUTO CHE MONTANTE AVRO' TRA X ANNI?",null,null,null,null,null,null,null,null,null,null,null,null,null,null,null,"INVESTENDO UN CAPITALE ANNUALE CONOSCIUTO, CON O SENZA CAPITALE INIZIALE A UN TASSO DI RIV CONOSCIUTO CHE MONTANTE AVRO' TRA X ANNI?",null,null,null,null,null,null,null,null,null,null,null,null,null,null,null,"INVESTENDO UN CAPITALE ANNUALE CONOSCIUTO, CON O SENZA CAPITALE INIZIALE A UN TASSO DI RIV CONOSCIUTO CHE MONTANTE AVRO' TRA X ANNI?",null,null,null,null,null,null,null,null,null,null,null,null,null,null,null,"INVESTENDO UN CAPITALE ANNUALE CONOSCIUTO, CON O SENZA CAPITALE INIZIALE A UN TASSO DI RIV CONOSCIUTO CHE MONTANTE AVRO' TRA X ANNI?",null,null,null,null,null,null,null,null,null,null,null,null,null,null,null,"INVESTENDO UN CAPITALE ANNUALE CONOSCIUTO, CON O SENZA CAPITALE INIZIALE A UN TASSO DI RIV CONOSCIUTO CHE MONTANTE AVRO' TRA X ANNI?",null,null,null,null,null,null,null,null,null,null,null,null,null,null,null,"INVESTENDO UN CAPITALE ANNUALE CONOSCIUTO, CON O SENZA CAPITALE INIZIALE A UN TASSO DI RIV CONOSCIUTO CHE MONTANTE AVRO' TRA X ANNI?",null,null,null,null,null,null,null,null,null,null,null,null,null,null,null,"INVESTENDO UN CAPITALE ANNUALE CONOSCIUTO, CON O SENZA CAPITALE INIZIALE A UN TASSO DI RIV CONOSCIUTO CHE MONTANTE AVRO' TRA X ANNI?",null,null,null,null,null,null,null,null,null,null,null,null,null,null,null,"INVESTENDO UN CAPITALE ANNUALE CONOSCIUTO, CON O SENZA CAPITALE INIZIALE A UN TASSO DI RIV CONOSCIUTO CHE MONTANTE AVRO' TRA X ANNI?",null,null,null,null,null,null,null,null,null,null,null,null,null,null,null,"INVESTENDO UN CAPITALE ANNUALE CONOSCIUTO, CON O SENZA CAPITALE INIZIALE A UN TASSO DI RIV CONOSCIUTO CHE MONTANTE AVRO' TRA X ANNI?",null,null,null,null,null,null,null,null,null,null,null,null,null,null,null,"INVESTENDO UN CAPITALE ANNUALE CONOSCIUTO, CON O SENZA CAPITALE INIZIALE A UN TASSO DI RIV CONOSCIUTO CHE MONTANTE AVRO' TRA X ANNI?",null,null,null,null,null,null,null,null,null,null,null,null,null,null,null,"INVESTENDO UN CAPITALE ANNUALE CONOSCIUTO, CON O SENZA CAPITALE INIZIALE A UN TASSO DI RIV CONOSCIUTO CHE MONTANTE AVRO' TRA X ANNI?",null,null,null,null,null,null,null,null,null,null,null,null,null,null,null,"INVESTENDO UN CAPITALE ANNUALE CONOSCIUTO, CON O SENZA CAPITALE INIZIALE A UN TASSO DI RIV CONOSCIUTO CHE MONTANTE AVRO' TRA X ANNI?",null,null,null,null,null,null,null,null,null,null,null,null,null,null,null,"INVESTENDO UN CAPITALE ANNUALE CONOSCIUTO, CON O SENZA CAPITALE INIZIALE A UN TASSO DI RIV CONOSCIUTO CHE MONTANTE AVRO' TRA X ANNI?",null,null,null,null,null,null,null,null,null,null,null,null,null,null,null,"INVESTENDO UN CAPITALE ANNUALE CONOSCIUTO, CON O SENZA CAPITALE INIZIALE A UN TASSO DI RIV CONOSCIUTO CHE MONTANTE AVRO' TRA X ANNI?",null,null,null,null,null,null,null,null,null,null,null,null,null,null,null,"INVESTENDO UN CAPITALE ANNUALE CONOSCIUTO, CON O SENZA CAPITALE INIZIALE A UN TASSO DI RIV CONOSCIUTO CHE MONTANTE AVRO' TRA X ANNI?",null,null,null,null,null,null,null,null,null,null,null,null,null,null,null,"INVESTENDO UN CAPITALE ANNUALE CONOSCIUTO, CON O SENZA CAPITALE INIZIALE A UN TASSO DI RIV CONOSCIUTO CHE MONTANTE AVRO' TRA X ANNI?",null,null,null,null,null,null,null,null,null,null,null,null,null,null,null,"INVESTENDO UN CAPITALE ANNUALE CONOSCIUTO, CON O SENZA CAPITALE INIZIALE A UN TASSO DI RIV CONOSCIUTO CHE MONTANTE AVRO' TRA X ANNI?",null,null,null,null,null,null,null,null,null,null,null,null,null,null,null,"INVESTENDO UN CAPITALE ANNUALE CONOSCIUTO, CON O SENZA CAPITALE INIZIALE A UN TASSO DI RIV CONOSCIUTO CHE MONTANTE AVRO' TRA X ANNI?",null,null,null,null,null,null,null,null,null,null,null,null,null,null,null,"INVESTENDO UN CAPITALE ANNUALE CONOSCIUTO, CON O SENZA CAPITALE INIZIALE A UN TASSO DI RIV CONOSCIUTO CHE MONTANTE AVRO' TRA X ANNI?",null,null,null,null,null,null,null,null,null,null,null,null,null,null,null,"INVESTENDO UN CAPITALE ANNUALE CONOSCIUTO, CON O SENZA CAPITALE INIZIALE A UN TASSO DI RIV CONOSCIUTO CHE MONTANTE AVRO' TRA X ANNI?",null,null,null,null,null,null,null,null,null,null,null,null,null,null,null,"INVESTENDO UN CAPITALE ANNUALE CONOSCIUTO, CON O SENZA CAPITALE INIZIALE A UN TASSO DI RIV CONOSCIUTO CHE MONTANTE AVRO' TRA X ANNI?",null,null,null,null,null,null,null,null,null,null,null,null,null,null,null,"INVESTENDO UN CAPITALE ANNUALE CONOSCIUTO, CON O SENZA CAPITALE INIZIALE A UN TASSO DI RIV CONOSCIUTO CHE MONTANTE AVRO' TRA X ANNI?",null,null,null,null,null,null,null,null,null,null,null,null,null,null,null,"INVESTENDO UN CAPITALE ANNUALE CONOSCIUTO, CON O SENZA CAPITALE INIZIALE A UN TASSO DI RIV CONOSCIUTO CHE MONTANTE AVRO' TRA X ANNI?",null,null,null,null,null,null,null,null,null,null,null,null,null,null,null,"INVESTENDO UN CAPITALE ANNUALE CONOSCIUTO, CON O SENZA CAPITALE INIZIALE A UN TASSO DI RIV CONOSCIUTO CHE MONTANTE AVRO' TRA X ANNI?",null,null,null,null,null,null,null,null,null,null,null,null,null,null,null,"INVESTENDO UN CAPITALE ANNUALE CONOSCIUTO, CON O SENZA CAPITALE INIZIALE A UN TASSO DI RIV CONOSCIUTO CHE MONTANTE AVRO' TRA X ANNI?",null,null,null,null,null,null,null,null,null,null,null,null,null,null,null,"INVESTENDO UN CAPITALE ANNUALE CONOSCIUTO, CON O SENZA CAPITALE INIZIALE A UN TASSO DI RIV CONOSCIUTO CHE MONTANTE AVRO' TRA X ANNI?",null,null,null,null,null,null,null,null,null,null,null,null,null,null,null,"INVESTENDO UN CAPITALE ANNUALE CONOSCIUTO, CON O SENZA CAPITALE INIZIALE A UN TASSO DI RIV CONOSCIUTO CHE MONTANTE AVRO' TRA X ANNI?",null,null,null,null,null,null,null,null,null,null,null,null,null,null,null,"INVESTENDO UN CAPITALE ANNUALE CONOSCIUTO, CON O SENZA CAPITALE INIZIALE A UN TASSO DI RIV CONOSCIUTO CHE MONTANTE AVRO' TRA X ANNI?",null,null,null,null,null,null,null,null,null,null,null,null,null,null,null,"INVESTENDO UN CAPITALE ANNUALE CONOSCIUTO, CON O SENZA CAPITALE INIZIALE A UN TASSO DI RIV CONOSCIUTO CHE MONTANTE AVRO' TRA X ANNI?",null,null,null,null,null,null,null,null,null,null,null,null,null,null,null,"INVESTENDO UN CAPITALE ANNUALE CONOSCIUTO, CON O SENZA CAPITALE INIZIALE A UN TASSO DI RIV CONOSCIUTO CHE MONTANTE AVRO' TRA X ANNI?",null,null,null,null,null,null,null,null,null,null,null,null,null,null,null,"INVESTENDO UN CAPITALE ANNUALE CONOSCIUTO, CON O SENZA CAPITALE INIZIALE A UN TASSO DI RIV CONOSCIUTO CHE MONTANTE AVRO' TRA X ANNI?",null,null,null,null,null,null,null,null,null,null,null,null,null,null,null,"INVESTENDO UN CAPITALE ANNUALE CONOSCIUTO, CON O SENZA CAPITALE INIZIALE A UN TASSO DI RIV CONOSCIUTO CHE MONTANTE AVRO' TRA X ANNI?",null,null,null,null,null,null,null,null,null,null,null,null,null,null,null,"INVESTENDO UN CAPITALE ANNUALE CONOSCIUTO, CON O SENZA CAPITALE INIZIALE A UN TASSO DI RIV CONOSCIUTO CHE MONTANTE AVRO' TRA X ANNI?",null,null,null,null,null,null,null,null,null,null,null,null,null,null,null,"INVESTENDO UN CAPITALE ANNUALE CONOSCIUTO, CON O SENZA CAPITALE INIZIALE A UN TASSO DI RIV CONOSCIUTO CHE MONTANTE AVRO' TRA X ANNI?",null,null,null,null,null,null,null,null,null,null,null,null,null,null,null,"INVESTENDO UN CAPITALE ANNUALE CONOSCIUTO, CON O SENZA CAPITALE INIZIALE A UN TASSO DI RIV CONOSCIUTO CHE MONTANTE AVRO' TRA X ANNI?",null,null,null,null,null,null,null,null,null,null,null,null,null,null,null,"INVESTENDO UN CAPITALE ANNUALE CONOSCIUTO, CON O SENZA CAPITALE INIZIALE A UN TASSO DI RIV CONOSCIUTO CHE MONTANTE AVRO' TRA X ANNI?",null,null,null,null,null,null,null,null,null,null,null,null,null,null,null,"INVESTENDO UN CAPITALE ANNUALE CONOSCIUTO, CON O SENZA CAPITALE INIZIALE A UN TASSO DI RIV CONOSCIUTO CHE MONTANTE AVRO' TRA X ANNI?",null,null,null,null,null,null,null,null,null,null,null,null,null,null,null,"INVESTENDO UN CAPITALE ANNUALE CONOSCIUTO, CON O SENZA CAPITALE INIZIALE A UN TASSO DI RIV CONOSCIUTO CHE MONTANTE AVRO' TRA X ANNI?",null,null,null,null,null,null,null,null,null,null,null,null,null,null,null,"INVESTENDO UN CAPITALE ANNUALE CONOSCIUTO, CON O SENZA CAPITALE INIZIALE A UN TASSO DI RIV CONOSCIUTO CHE MONTANTE AVRO' TRA X ANNI?",null,null,null,null,null,null,null,null,null,null,null,null,null,null,null,"INVESTENDO UN CAPITALE ANNUALE CONOSCIUTO, CON O SENZA CAPITALE INIZIALE A UN TASSO DI RIV CONOSCIUTO CHE MONTANTE AVRO' TRA X ANNI?",null,null,null,null,null,null,null,null,null,null,null,null,null,null,null,"INVESTENDO UN CAPITALE ANNUALE CONOSCIUTO, CON O SENZA CAPITALE INIZIALE A UN TASSO DI RIV CONOSCIUTO CHE MONTANTE AVRO' TRA X ANNI?",null,null,null,null,null,null,null,null,null,null,null,null,null,null,null,"INVESTENDO UN CAPITALE ANNUALE CONOSCIUTO, CON O SENZA CAPITALE INIZIALE A UN TASSO DI RIV CONOSCIUTO CHE MONTANTE AVRO' TRA X ANNI?",null,null,null,null,null,null,null,null,null,null,null,null,null,null,null,"INVESTENDO UN CAPITALE ANNUALE CONOSCIUTO, CON O SENZA CAPITALE INIZIALE A UN TASSO DI RIV CONOSCIUTO CHE MONTANTE AVRO' TRA X ANNI?",null,null,null,null,null,null,null,null,null,null,null,null,null,null,null,"INVESTENDO UN CAPITALE ANNUALE CONOSCIUTO, CON O SENZA CAPITALE INIZIALE A UN TASSO DI RIV CONOSCIUTO CHE MONTANTE AVRO' TRA X ANNI?",null,null,null,null,null,null,null,null,null,null,null,null,null,null,null,"INVESTENDO UN CAPITALE ANNUALE CONOSCIUTO, CON O SENZA CAPITALE INIZIALE A UN TASSO DI RIV CONOSCIUTO CHE MONTANTE AVRO' TRA X ANNI?",null,null,null,null,null,null,null,null,null,null,null,null,null,null,null,"INVESTENDO UN CAPITALE ANNUALE CONOSCIUTO, CON O SENZA CAPITALE INIZIALE A UN TASSO DI RIV CONOSCIUTO CHE MONTANTE AVRO' TRA X ANNI?",null,null,null,null,null,null,null,null,null,null,null,null,null,null,null,"INVESTENDO UN CAPITALE ANNUALE CONOSCIUTO, CON O SENZA CAPITALE INIZIALE A UN TASSO DI RIV CONOSCIUTO CHE MONTANTE AVRO' TRA X ANNI?",null,null,null,null,null,null,null,null,null,null,null,null,null,null,null,"INVESTENDO UN CAPITALE ANNUALE CONOSCIUTO, CON O SENZA CAPITALE INIZIALE A UN TASSO DI RIV CONOSCIUTO CHE MONTANTE AVRO' TRA X ANNI?",null,null,null,null,null,null,null,null,null,null,null,null,null,null,null,"INVESTENDO UN CAPITALE ANNUALE CONOSCIUTO, CON O SENZA CAPITALE INIZIALE A UN TASSO DI RIV CONOSCIUTO CHE MONTANTE AVRO' TRA X ANNI?",null,null,null,null,null,null,null,null,null,null,null,null,null,null,null,"INVESTENDO UN CAPITALE ANNUALE CONOSCIUTO, CON O SENZA CAPITALE INIZIALE A UN TASSO DI RIV CONOSCIUTO CHE MONTANTE AVRO' TRA X ANNI?",null,null,null,null,null,null,null,null,null,null,null,null,null,null,null,"INVESTENDO UN CAPITALE ANNUALE CONOSCIUTO, CON O SENZA CAPITALE INIZIALE A UN TASSO DI RIV CONOSCIUTO CHE MONTANTE AVRO' TRA X ANNI?",null,null,null,null,null,null,null,null,null,null,null,null,null,null,null,"INVESTENDO UN CAPITALE ANNUALE CONOSCIUTO, CON O SENZA CAPITALE INIZIALE A UN TASSO DI RIV CONOSCIUTO CHE MONTANTE AVRO' TRA X ANNI?",null,null,null,null,null,null,null,null,null,null,null,null,null,null,null,"INVESTENDO UN CAPITALE ANNUALE CONOSCIUTO, CON O SENZA CAPITALE INIZIALE A UN TASSO DI RIV CONOSCIUTO CHE MONTANTE AVRO' TRA X ANNI?",null,null,null,null,null,null,null,null,null,null,null,null,null,null,null,"INVESTENDO UN CAPITALE ANNUALE CONOSCIUTO, CON O SENZA CAPITALE INIZIALE A UN TASSO DI RIV CONOSCIUTO CHE MONTANTE AVRO' TRA X ANNI?",null,null,null,null,null,null,null,null,null,null,null,null,null,null,null,"INVESTENDO UN CAPITALE ANNUALE CONOSCIUTO, CON O SENZA CAPITALE INIZIALE A UN TASSO DI RIV CONOSCIUTO CHE MONTANTE AVRO' TRA X ANNI?",null,null,null,null,null,null,null,null,null,null,null,null,null,null,null,"INVESTENDO UN CAPITALE ANNUALE CONOSCIUTO, CON O SENZA CAPITALE INIZIALE A UN TASSO DI RIV CONOSCIUTO CHE MONTANTE AVRO' TRA X ANNI?",null,null,null,null,null,null,null,null,null,null,null,null,null,null,null,"INVESTENDO UN CAPITALE ANNUALE CONOSCIUTO, CON O SENZA CAPITALE INIZIALE A UN TASSO DI RIV CONOSCIUTO CHE MONTANTE AVRO' TRA X ANNI?",null,null,null,null,null,null,null,null,null,null,null,null,null,null,null,"INVESTENDO UN CAPITALE ANNUALE CONOSCIUTO, CON O SENZA CAPITALE INIZIALE A UN TASSO DI RIV CONOSCIUTO CHE MONTANTE AVRO' TRA X ANNI?",null,null,null,null,null,null,null,null,null,null,null,null,null,null,null,"INVESTENDO UN CAPITALE ANNUALE CONOSCIUTO, CON O SENZA CAPITALE INIZIALE A UN TASSO DI RIV CONOSCIUTO CHE MONTANTE AVRO' TRA X ANNI?",null,null,null,null,null,null,null,null,null,null,null,null,null,null,null,"INVESTENDO UN CAPITALE ANNUALE CONOSCIUTO, CON O SENZA CAPITALE INIZIALE A UN TASSO DI RIV CONOSCIUTO CHE MONTANTE AVRO' TRA X ANNI?",null,null,null,null,null,null,null,null,null,null,null,null,null,null,null,"INVESTENDO UN CAPITALE ANNUALE CONOSCIUTO, CON O SENZA CAPITALE INIZIALE A UN TASSO DI RIV CONOSCIUTO CHE MONTANTE AVRO' TRA X ANNI?",null,null,null,null,null,null,null,null,null,null,null,null,null,null,null,"INVESTENDO UN CAPITALE ANNUALE CONOSCIUTO, CON O SENZA CAPITALE INIZIALE A UN TASSO DI RIV CONOSCIUTO CHE MONTANTE AVRO' TRA X ANNI?",null,null,null,null,null,null,null,null,null,null,null,null,null,null,null,"INVESTENDO UN CAPITALE ANNUALE CONOSCIUTO, CON O SENZA CAPITALE INIZIALE A UN TASSO DI RIV CONOSCIUTO CHE MONTANTE AVRO' TRA X ANNI?",null,null,null,null,null,null,null,null,null,null,null,null,null,null,null,"INVESTENDO UN CAPITALE ANNUALE CONOSCIUTO, CON O SENZA CAPITALE INIZIALE A UN TASSO DI RIV CONOSCIUTO CHE MONTANTE AVRO' TRA X ANNI?",null,null,null,null,null,null,null,null,null,null,null,null,null,null,null,"INVESTENDO UN CAPITALE ANNUALE CONOSCIUTO, CON O SENZA CAPITALE INIZIALE A UN TASSO DI RIV CONOSCIUTO CHE MONTANTE AVRO' TRA X ANNI?",null,null,null,null,null,null,null,null,null,null,null,null,null,null,null,"INVESTENDO UN CAPITALE ANNUALE CONOSCIUTO, CON O SENZA CAPITALE INIZIALE A UN TASSO DI RIV CONOSCIUTO CHE MONTANTE AVRO' TRA X ANNI?",null,null,null,null,null,null,null,null,null,null,null,null,null,null,null,"INVESTENDO UN CAPITALE ANNUALE CONOSCIUTO, CON O SENZA CAPITALE INIZIALE A UN TASSO DI RIV CONOSCIUTO CHE MONTANTE AVRO' TRA X ANNI?",null,null,null,null,null,null,null,null,null,null,null,null,null,null,null,"INVESTENDO UN CAPITALE ANNUALE CONOSCIUTO, CON O SENZA CAPITALE INIZIALE A UN TASSO DI RIV CONOSCIUTO CHE MONTANTE AVRO' TRA X ANNI?",null,null,null,null,null,null,null,null,null,null,null,null,null,null,null,"INVESTENDO UN CAPITALE ANNUALE CONOSCIUTO, CON O SENZA CAPITALE INIZIALE A UN TASSO DI RIV CONOSCIUTO CHE MONTANTE AVRO' TRA X ANNI?",null,null,null,null,null,null,null,null,null,null,null,null,null,null,null,"INVESTENDO UN CAPITALE ANNUALE CONOSCIUTO, CON O SENZA CAPITALE INIZIALE A UN TASSO DI RIV CONOSCIUTO CHE MONTANTE AVRO' TRA X ANNI?",null,null,null,null,null,null,null,null,null,null,null,null,null,null,null,"INVESTENDO UN CAPITALE ANNUALE CONOSCIUTO, CON O SENZA CAPITALE INIZIALE A UN TASSO DI RIV CONOSCIUTO CHE MONTANTE AVRO' TRA X ANNI?",null,null,null,null,null,null,null,null,null,null,null,null,null,null,null,"INVESTENDO UN CAPITALE ANNUALE CONOSCIUTO, CON O SENZA CAPITALE INIZIALE A UN TASSO DI RIV CONOSCIUTO CHE MONTANTE AVRO' TRA X ANNI?",null,null,null,null,null,null,null,null,null,null,null,null,null,null,null,"INVESTENDO UN CAPITALE ANNUALE CONOSCIUTO, CON O SENZA CAPITALE INIZIALE A UN TASSO DI RIV CONOSCIUTO CHE MONTANTE AVRO' TRA X ANNI?",null,null,null,null,null,null,null,null,null,null,null,null,null,null,null,"INVESTENDO UN CAPITALE ANNUALE CONOSCIUTO, CON O SENZA CAPITALE INIZIALE A UN TASSO DI RIV CONOSCIUTO CHE MONTANTE AVRO' TRA X ANNI?",null,null,null,null,null,null,null,null,null,null,null,null,null,null,null,"INVESTENDO UN CAPITALE ANNUALE CONOSCIUTO, CON O SENZA CAPITALE INIZIALE A UN TASSO DI RIV CONOSCIUTO CHE MONTANTE AVRO' TRA X ANNI?",null,null,null,null,null,null,null,null,null,null,null,null,null,null,null,"INVESTENDO UN CAPITALE ANNUALE CONOSCIUTO, CON O SENZA CAPITALE INIZIALE A UN TASSO DI RIV CONOSCIUTO CHE MONTANTE AVRO' TRA X ANNI?",null,null,null,null,null,null,null,null,null,null,null,null,null,null,null,"INVESTENDO UN CAPITALE ANNUALE CONOSCIUTO, CON O SENZA CAPITALE INIZIALE A UN TASSO DI RIV CONOSCIUTO CHE MONTANTE AVRO' TRA X ANNI?",null,null,null,null,null,null,null,null,null,null,null,null,null,null,null,"INVESTENDO UN CAPITALE ANNUALE CONOSCIUTO, CON O SENZA CAPITALE INIZIALE A UN TASSO DI RIV CONOSCIUTO CHE MONTANTE AVRO' TRA X ANNI?",null,null,null,null,null,null,null,null,null,null,null,null,null,null,null,"INVESTENDO UN CAPITALE ANNUALE CONOSCIUTO, CON O SENZA CAPITALE INIZIALE A UN TASSO DI RIV CONOSCIUTO CHE MONTANTE AVRO' TRA X ANNI?",null,null,null,null,null,null,null,null,null,null,null,null,null,null,null,"INVESTENDO UN CAPITALE ANNUALE CONOSCIUTO, CON O SENZA CAPITALE INIZIALE A UN TASSO DI RIV CONOSCIUTO CHE MONTANTE AVRO' TRA X ANNI?",null,null,null,null,null,null,null,null,null,null,null,null,null,null,null,"INVESTENDO UN CAPITALE ANNUALE CONOSCIUTO, CON O SENZA CAPITALE INIZIALE A UN TASSO DI RIV CONOSCIUTO CHE MONTANTE AVRO' TRA X ANNI?",null,null,null,null,null,null,null,null,null,null,null,null,null,null,null,"INVESTENDO UN CAPITALE ANNUALE CONOSCIUTO, CON O SENZA CAPITALE INIZIALE A UN TASSO DI RIV CONOSCIUTO CHE MONTANTE AVRO' TRA X ANNI?",null,null,null,null,null,null,null,null,null,null,null,null,null,null,null,"INVESTENDO UN CAPITALE ANNUALE CONOSCIUTO, CON O SENZA CAPITALE INIZIALE A UN TASSO DI RIV CONOSCIUTO CHE MONTANTE AVRO' TRA X ANNI?",null,null,null,null,null,null,null,null,null,null,null,null,null,null,null,"INVESTENDO UN CAPITALE ANNUALE CONOSCIUTO, CON O SENZA CAPITALE INIZIALE A UN TASSO DI RIV CONOSCIUTO CHE MONTANTE AVRO' TRA X ANNI?",null,null,null,null,null,null,null,null,null,null,null,null,null,null,null,"INVESTENDO UN CAPITALE ANNUALE CONOSCIUTO, CON O SENZA CAPITALE INIZIALE A UN TASSO DI RIV CONOSCIUTO CHE MONTANTE AVRO' TRA X ANNI?",null,null,null,null,null,null,null,null,null,null,null,null,null,null,null,"INVESTENDO UN CAPITALE ANNUALE CONOSCIUTO, CON O SENZA CAPITALE INIZIALE A UN TASSO DI RIV CONOSCIUTO CHE MONTANTE AVRO' TRA X ANNI?",null,null,null,null,null,null,null,null,null,null,null,null,null,null,null,"INVESTENDO UN CAPITALE ANNUALE CONOSCIUTO, CON O SENZA CAPITALE INIZIALE A UN TASSO DI RIV CONOSCIUTO CHE MONTANTE AVRO' TRA X ANNI?",null,null,null,null,null,null,null,null,null,null,null,null,null,null,null,"INVESTENDO UN CAPITALE ANNUALE CONOSCIUTO, CON O SENZA CAPITALE INIZIALE A UN TASSO DI RIV CONOSCIUTO CHE MONTANTE AVRO' TRA X ANNI?",null,null,null,null,null,null,null,null,null,null,null,null,null,null,null,"INVESTENDO UN CAPITALE ANNUALE CONOSCIUTO, CON O SENZA CAPITALE INIZIALE A UN TASSO DI RIV CONOSCIUTO CHE MONTANTE AVRO' TRA X ANNI?",null,null,null,null,null,null,null,null,null,null,null,null,null,null,null,"INVESTENDO UN CAPITALE ANNUALE CONOSCIUTO, CON O SENZA CAPITALE INIZIALE A UN TASSO DI RIV CONOSCIUTO CHE MONTANTE AVRO' TRA X ANNI?",null,null,null,null,null,null,null,null,null,null,null,null,null,null,null,"INVESTENDO UN CAPITALE ANNUALE CONOSCIUTO, CON O SENZA CAPITALE INIZIALE A UN TASSO DI RIV CONOSCIUTO CHE MONTANTE AVRO' TRA X ANNI?",null,null,null,null,null,null,null,null,null,null,null,null,null,null,null,"INVESTENDO UN CAPITALE ANNUALE CONOSCIUTO, CON O SENZA CAPITALE INIZIALE A UN TASSO DI RIV CONOSCIUTO CHE MONTANTE AVRO' TRA X ANNI?",null,null,null,null,null,null,null,null,null,null,null,null,null,null,null,"INVESTENDO UN CAPITALE ANNUALE CONOSCIUTO, CON O SENZA CAPITALE INIZIALE A UN TASSO DI RIV CONOSCIUTO CHE MONTANTE AVRO' TRA X ANNI?",null,null,null,null,null,null,null,null,null,null,null,null,null,null,null,"INVESTENDO UN CAPITALE ANNUALE CONOSCIUTO, CON O SENZA CAPITALE INIZIALE A UN TASSO DI RIV CONOSCIUTO CHE MONTANTE AVRO' TRA X ANNI?",null,null,null,null,null,null,null,null,null,null,null,null,null,null,null,"INVESTENDO UN CAPITALE ANNUALE CONOSCIUTO, CON O SENZA CAPITALE INIZIALE A UN TASSO DI RIV CONOSCIUTO CHE MONTANTE AVRO' TRA X ANNI?",null,null,null,null,null,null,null,null,null,null,null,null,null,null,null,"INVESTENDO UN CAPITALE ANNUALE CONOSCIUTO, CON O SENZA CAPITALE INIZIALE A UN TASSO DI RIV CONOSCIUTO CHE MONTANTE AVRO' TRA X ANNI?",null,null,null,null,null,null,null,null,null,null,null,null,null,null,null,"INVESTENDO UN CAPITALE ANNUALE CONOSCIUTO, CON O SENZA CAPITALE INIZIALE A UN TASSO DI RIV CONOSCIUTO CHE MONTANTE AVRO' TRA X ANNI?",null,null,null,null,null,null,null,null,null,null,null,null,null,null,null,"INVESTENDO UN CAPITALE ANNUALE CONOSCIUTO, CON O SENZA CAPITALE INIZIALE A UN TASSO DI RIV CONOSCIUTO CHE MONTANTE AVRO' TRA X ANNI?",null,null,null,null,null,null,null,null,null,null,null,null,null,null,null,"INVESTENDO UN CAPITALE ANNUALE CONOSCIUTO, CON O SENZA CAPITALE INIZIALE A UN TASSO DI RIV CONOSCIUTO CHE MONTANTE AVRO' TRA X ANNI?",null,null,null,null,null,null,null,null,null,null,null,null,null,null,null,"INVESTENDO UN CAPITALE ANNUALE CONOSCIUTO, CON O SENZA CAPITALE INIZIALE A UN TASSO DI RIV CONOSCIUTO CHE MONTANTE AVRO' TRA X ANNI?",null,null,null,null,null,null,null,null,null,null,null,null,null,null,null,"INVESTENDO UN CAPITALE ANNUALE CONOSCIUTO, CON O SENZA CAPITALE INIZIALE A UN TASSO DI RIV CONOSCIUTO CHE MONTANTE AVRO' TRA X ANNI?",null,null,null,null,null,null,null,null,null,null,null,null,null,null,null,"INVESTENDO UN CAPITALE ANNUALE CONOSCIUTO, CON O SENZA CAPITALE INIZIALE A UN TASSO DI RIV CONOSCIUTO CHE MONTANTE AVRO' TRA X ANNI?",null,null,null,null,null,null,null,null,null,null,null,null,null,null,null,"INVESTENDO UN CAPITALE ANNUALE CONOSCIUTO, CON O SENZA CAPITALE INIZIALE A UN TASSO DI RIV CONOSCIUTO CHE MONTANTE AVRO' TRA X ANNI?",null,null,null,null,null,null,null,null,null,null,null,null,null,null,null,"INVESTENDO UN CAPITALE ANNUALE CONOSCIUTO, CON O SENZA CAPITALE INIZIALE A UN TASSO DI RIV CONOSCIUTO CHE MONTANTE AVRO' TRA X ANNI?",null,null,null,null,null,null,null,null,null,null,null,null,null,null,null,"INVESTENDO UN CAPITALE ANNUALE CONOSCIUTO, CON O SENZA CAPITALE INIZIALE A UN TASSO DI RIV CONOSCIUTO CHE MONTANTE AVRO' TRA X ANNI?",null,null,null,null,null,null,null,null,null,null,null,null,null,null,null,"INVESTENDO UN CAPITALE ANNUALE CONOSCIUTO, CON O SENZA CAPITALE INIZIALE A UN TASSO DI RIV CONOSCIUTO CHE MONTANTE AVRO' TRA X ANNI?",null,null,null,null,null,null,null,null,null,null,null,null,null,null,null,"INVESTENDO UN CAPITALE ANNUALE CONOSCIUTO, CON O SENZA CAPITALE INIZIALE A UN TASSO DI RIV CONOSCIUTO CHE MONTANTE AVRO' TRA X ANNI?",null,null,null,null,null,null,null,null,null,null,null,null,null,null,null,"INVESTENDO UN CAPITALE ANNUALE CONOSCIUTO, CON O SENZA CAPITALE INIZIALE A UN TASSO DI RIV CONOSCIUTO CHE MONTANTE AVRO' TRA X ANNI?",null,null,null,null,null,null,null,null,null,null,null,null,null,null,null,"INVESTENDO UN CAPITALE ANNUALE CONOSCIUTO, CON O SENZA CAPITALE INIZIALE A UN TASSO DI RIV CONOSCIUTO CHE MONTANTE AVRO' TRA X ANNI?",null,null,null,null,null,null,null,null,null,null,null,null,null,null,null,"INVESTENDO UN CAPITALE ANNUALE CONOSCIUTO, CON O SENZA CAPITALE INIZIALE A UN TASSO DI RIV CONOSCIUTO CHE MONTANTE AVRO' TRA X ANNI?",null,null,null,null,null,null,null,null,null,null,null,null,null,null,null,"INVESTENDO UN CAPITALE ANNUALE CONOSCIUTO, CON O SENZA CAPITALE INIZIALE A UN TASSO DI RIV CONOSCIUTO CHE MONTANTE AVRO' TRA X ANNI?",null,null,null,null,null,null,null,null,null,null,null,null,null,null,null,"INVESTENDO UN CAPITALE ANNUALE CONOSCIUTO, CON O SENZA CAPITALE INIZIALE A UN TASSO DI RIV CONOSCIUTO CHE MONTANTE AVRO' TRA X ANNI?",null,null,null,null,null,null,null,null,null,null,null,null,null,null,null,"INVESTENDO UN CAPITALE ANNUALE CONOSCIUTO, CON O SENZA CAPITALE INIZIALE A UN TASSO DI RIV CONOSCIUTO CHE MONTANTE AVRO' TRA X ANNI?",null,null,null,null,null,null,null,null,null,null,null,null,null,null,null,"INVESTENDO UN CAPITALE ANNUALE CONOSCIUTO, CON O SENZA CAPITALE INIZIALE A UN TASSO DI RIV CONOSCIUTO CHE MONTANTE AVRO' TRA X ANNI?",null,null,null,null,null,null,null,null,null,null,null,null,null,null,null,"INVESTENDO UN CAPITALE ANNUALE CONOSCIUTO, CON O SENZA CAPITALE INIZIALE A UN TASSO DI RIV CONOSCIUTO CHE MONTANTE AVRO' TRA X ANNI?",null,null,null,null,null,null,null,null,null,null,null,null,null,null,null,"INVESTENDO UN CAPITALE ANNUALE CONOSCIUTO, CON O SENZA CAPITALE INIZIALE A UN TASSO DI RIV CONOSCIUTO CHE MONTANTE AVRO' TRA X ANNI?",null,null,null,null,null,null,null,null,null,null,null,null,null,null,null,"INVESTENDO UN CAPITALE ANNUALE CONOSCIUTO, CON O SENZA CAPITALE INIZIALE A UN TASSO DI RIV CONOSCIUTO CHE MONTANTE AVRO' TRA X ANNI?",null,null,null,null,null,null,null,null,null,null,null,null,null,null,null,"INVESTENDO UN CAPITALE ANNUALE CONOSCIUTO, CON O SENZA CAPITALE INIZIALE A UN TASSO DI RIV CONOSCIUTO CHE MONTANTE AVRO' TRA X ANNI?",null,null,null,null,null,null,null,null,null,null,null,null,null,null,null,"INVESTENDO UN CAPITALE ANNUALE CONOSCIUTO, CON O SENZA CAPITALE INIZIALE A UN TASSO DI RIV CONOSCIUTO CHE MONTANTE AVRO' TRA X ANNI?",null,null,null,null,null,null,null,null,null,null,null,null,null,null,null,"INVESTENDO UN CAPITALE ANNUALE CONOSCIUTO, CON O SENZA CAPITALE INIZIALE A UN TASSO DI RIV CONOSCIUTO CHE MONTANTE AVRO' TRA X ANNI?",null,null,null,null,null,null,null,null,null,null,null,null,null,null,null,"INVESTENDO UN CAPITALE ANNUALE CONOSCIUTO, CON O SENZA CAPITALE INIZIALE A UN TASSO DI RIV CONOSCIUTO CHE MONTANTE AVRO' TRA X ANNI?",null,null,null,null,null,null,null,null,null,null,null,null,null,null,null,"INVESTENDO UN CAPITALE ANNUALE CONOSCIUTO, CON O SENZA CAPITALE INIZIALE A UN TASSO DI RIV CONOSCIUTO CHE MONTANTE AVRO' TRA X ANNI?",null,null,null,null,null,null,null,null,null,null,null,null,null,null,null,"INVESTENDO UN CAPITALE ANNUALE CONOSCIUTO, CON O SENZA CAPITALE INIZIALE A UN TASSO DI RIV CONOSCIUTO CHE MONTANTE AVRO' TRA X ANNI?",null,null,null,null,null,null,null,null,null,null,null,null,null,null,null,"INVESTENDO UN CAPITALE ANNUALE CONOSCIUTO, CON O SENZA CAPITALE INIZIALE A UN TASSO DI RIV CONOSCIUTO CHE MONTANTE AVRO' TRA X ANNI?",null,null,null,null,null,null,null,null,null,null,null,null,null,null,null,"INVESTENDO UN CAPITALE ANNUALE CONOSCIUTO, CON O SENZA CAPITALE INIZIALE A UN TASSO DI RIV CONOSCIUTO CHE MONTANTE AVRO' TRA X ANNI?",null,null,null,null,null,null,null,null,null,null,null,null,null,null,null,"INVESTENDO UN CAPITALE ANNUALE CONOSCIUTO, CON O SENZA CAPITALE INIZIALE A UN TASSO DI RIV CONOSCIUTO CHE MONTANTE AVRO' TRA X ANNI?",null,null,null,null,null,null,null,null,null,null,null,null,null,null,null,"INVESTENDO UN CAPITALE ANNUALE CONOSCIUTO, CON O SENZA CAPITALE INIZIALE A UN TASSO DI RIV CONOSCIUTO CHE MONTANTE AVRO' TRA X ANNI?",null,null,null,null,null,null,null,null,null,null,null,null,null,null,null,"INVESTENDO UN CAPITALE ANNUALE CONOSCIUTO, CON O SENZA CAPITALE INIZIALE A UN TASSO DI RIV CONOSCIUTO CHE MONTANTE AVRO' TRA X ANNI?",null,null,null,null,null,null,null,null,null,null,null,null,null,null,null,"INVESTENDO UN CAPITALE ANNUALE CONOSCIUTO, CON O SENZA CAPITALE INIZIALE A UN TASSO DI RIV CONOSCIUTO CHE MONTANTE AVRO' TRA X ANNI?",null,null,null,null,null,null,null,null,null,null,null,null,null,null,null,"INVESTENDO UN CAPITALE ANNUALE CONOSCIUTO, CON O SENZA CAPITALE INIZIALE A UN TASSO DI RIV CONOSCIUTO CHE MONTANTE AVRO' TRA X ANNI?",null,null,null,null,null,null,null,null,null,null,null,null,null,null,null,"INVESTENDO UN CAPITALE ANNUALE CONOSCIUTO, CON O SENZA CAPITALE INIZIALE A UN TASSO DI RIV CONOSCIUTO CHE MONTANTE AVRO' TRA X ANNI?",null,null,null,null,null,null,null,null,null,null,null,null,null,null,null,"INVESTENDO UN CAPITALE ANNUALE CONOSCIUTO, CON O SENZA CAPITALE INIZIALE A UN TASSO DI RIV CONOSCIUTO CHE MONTANTE AVRO' TRA X ANNI?",null,null,null,null,null,null,null,null,null,null,null,null,null,null,null,"INVESTENDO UN CAPITALE ANNUALE CONOSCIUTO, CON O SENZA CAPITALE INIZIALE A UN TASSO DI RIV CONOSCIUTO CHE MONTANTE AVRO' TRA X ANNI?",null,null,null,null,null,null,null,null,null,null,null,null,null,null,null,"INVESTENDO UN CAPITALE ANNUALE CONOSCIUTO, CON O SENZA CAPITALE INIZIALE A UN TASSO DI RIV CONOSCIUTO CHE MONTANTE AVRO' TRA X ANNI?",null,null,null,null,null,null,null,null,null,null,null,null,null,null,null,"INVESTENDO UN CAPITALE ANNUALE CONOSCIUTO, CON O SENZA CAPITALE INIZIALE A UN TASSO DI RIV CONOSCIUTO CHE MONTANTE AVRO' TRA X ANNI?",null,null,null,null,null,null,null,null,null,null,null,null,null,null,null,"INVESTENDO UN CAPITALE ANNUALE CONOSCIUTO, CON O SENZA CAPITALE INIZIALE A UN TASSO DI RIV CONOSCIUTO CHE MONTANTE AVRO' TRA X ANNI?",null,null,null,null,null,null,null,null,null,null,null,null,null,null,null,"INVESTENDO UN CAPITALE ANNUALE CONOSCIUTO, CON O SENZA CAPITALE INIZIALE A UN TASSO DI RIV CONOSCIUTO CHE MONTANTE AVRO' TRA X ANNI?",null,null,null,null,null,null,null,null,null,null,null,null,null,null,null,"INVESTENDO UN CAPITALE ANNUALE CONOSCIUTO, CON O SENZA CAPITALE INIZIALE A UN TASSO DI RIV CONOSCIUTO CHE MONTANTE AVRO' TRA X ANNI?",null,null,null,null,null,null,null,null,null,null,null,null,null,null,null,"INVESTENDO UN CAPITALE ANNUALE CONOSCIUTO, CON O SENZA CAPITALE INIZIALE A UN TASSO DI RIV CONOSCIUTO CHE MONTANTE AVRO' TRA X ANNI?",null,null,null,null,null,null,null,null,null,null,null,null,null,null,null,"INVESTENDO UN CAPITALE ANNUALE CONOSCIUTO, CON O SENZA CAPITALE INIZIALE A UN TASSO DI RIV CONOSCIUTO CHE MONTANTE AVRO' TRA X ANNI?",null,null,null,null,null,null,null,null,null,null,null,null,null,null,null,"INVESTENDO UN CAPITALE ANNUALE CONOSCIUTO, CON O SENZA CAPITALE INIZIALE A UN TASSO DI RIV CONOSCIUTO CHE MONTANTE AVRO' TRA X ANNI?",null,null,null,null,null,null,null,null,null,null,null,null,null,null,null,"INVESTENDO UN CAPITALE ANNUALE CONOSCIUTO, CON O SENZA CAPITALE INIZIALE A UN TASSO DI RIV CONOSCIUTO CHE MONTANTE AVRO' TRA X ANNI?",null,null,null,null,null,null,null,null,null,null,null,null,null,null,null,"INVESTENDO UN CAPITALE ANNUALE CONOSCIUTO, CON O SENZA CAPITALE INIZIALE A UN TASSO DI RIV CONOSCIUTO CHE MONTANTE AVRO' TRA X ANNI?",null,null,null,null,null,null,null,null,null,null,null,null,null,null,null,"INVESTENDO UN CAPITALE ANNUALE CONOSCIUTO, CON O SENZA CAPITALE INIZIALE A UN TASSO DI RIV CONOSCIUTO CHE MONTANTE AVRO' TRA X ANNI?",null,null,null,null,null,null,null,null,null,null,null,null,null,null,null,"INVESTENDO UN CAPITALE ANNUALE CONOSCIUTO, CON O SENZA CAPITALE INIZIALE A UN TASSO DI RIV CONOSCIUTO CHE MONTANTE AVRO' TRA X ANNI?",null,null,null,null,null,null,null,null,null,null,null,null,null,null,null,"INVESTENDO UN CAPITALE ANNUALE CONOSCIUTO, CON O SENZA CAPITALE INIZIALE A UN TASSO DI RIV CONOSCIUTO CHE MONTANTE AVRO' TRA X ANNI?",null,null,null,null,null,null,null,null,null,null,null,null,null,null,null,"INVESTENDO UN CAPITALE ANNUALE CONOSCIUTO, CON O SENZA CAPITALE INIZIALE A UN TASSO DI RIV CONOSCIUTO CHE MONTANTE AVRO' TRA X ANNI?",null,null,null,null,null,null,null,null,null,null,null,null,null,null,null,"INVESTENDO UN CAPITALE ANNUALE CONOSCIUTO, CON O SENZA CAPITALE INIZIALE A UN TASSO DI RIV CONOSCIUTO CHE MONTANTE AVRO' TRA X ANNI?",null,null,null,null,null,null,null,null,null,null,null,null,null,null,null,"INVESTENDO UN CAPITALE ANNUALE CONOSCIUTO, CON O SENZA CAPITALE INIZIALE A UN TASSO DI RIV CONOSCIUTO CHE MONTANTE AVRO' TRA X ANNI?",null,null,null,null,null,null,null,null,null,null,null,null,null,null,null,"INVESTENDO UN CAPITALE ANNUALE CONOSCIUTO, CON O SENZA CAPITALE INIZIALE A UN TASSO DI RIV CONOSCIUTO CHE MONTANTE AVRO' TRA X ANNI?",null,null,null,null,null,null,null,null,null,null,null,null,null,null,null,"INVESTENDO UN CAPITALE ANNUALE CONOSCIUTO, CON O SENZA CAPITALE INIZIALE A UN TASSO DI RIV CONOSCIUTO CHE MONTANTE AVRO' TRA X ANNI?",null,null,null,null,null,null,null,null,null,null,null,null,null,null,null,"INVESTENDO UN CAPITALE ANNUALE CONOSCIUTO, CON O SENZA CAPITALE INIZIALE A UN TASSO DI RIV CONOSCIUTO CHE MONTANTE AVRO' TRA X ANNI?",null,null,null,null,null,null,null,null,null,null,null,null,null,null,null,"INVESTENDO UN CAPITALE ANNUALE CONOSCIUTO, CON O SENZA CAPITALE INIZIALE A UN TASSO DI RIV CONOSCIUTO CHE MONTANTE AVRO' TRA X ANNI?",null,null,null,null,null,null,null,null,null,null,null,null,null,null,null,"INVESTENDO UN CAPITALE ANNUALE CONOSCIUTO, CON O SENZA CAPITALE INIZIALE A UN TASSO DI RIV CONOSCIUTO CHE MONTANTE AVRO' TRA X ANNI?",null,null,null,null,null,null,null,null,null,null,null,null,null,null,null,"INVESTENDO UN CAPITALE ANNUALE CONOSCIUTO, CON O SENZA CAPITALE INIZIALE A UN TASSO DI RIV CONOSCIUTO CHE MONTANTE AVRO' TRA X ANNI?",null,null,null,null,null,null,null,null,null,null,null,null,null,null,null,"INVESTENDO UN CAPITALE ANNUALE CONOSCIUTO, CON O SENZA CAPITALE INIZIALE A UN TASSO DI RIV CONOSCIUTO CHE MONTANTE AVRO' TRA X ANNI?",null,null,null,null,null,null,null,null,null,null,null,null,null,null,null,"INVESTENDO UN CAPITALE ANNUALE CONOSCIUTO, CON O SENZA CAPITALE INIZIALE A UN TASSO DI RIV CONOSCIUTO CHE MONTANTE AVRO' TRA X ANNI?",null,null,null,null,null,null,null,null,null,null,null,null,null,null,null,"INVESTENDO UN CAPITALE ANNUALE CONOSCIUTO, CON O SENZA CAPITALE INIZIALE A UN TASSO DI RIV CONOSCIUTO CHE MONTANTE AVRO' TRA X ANNI?",null,null,null,null,null,null,null,null,null,null,null,null,null,null,null,"INVESTENDO UN CAPITALE ANNUALE CONOSCIUTO, CON O SENZA CAPITALE INIZIALE A UN TASSO DI RIV CONOSCIUTO CHE MONTANTE AVRO' TRA X ANNI?",null,null,null,null,null,null,null,null,null,null,null,null,null,null,null,"INVESTENDO UN CAPITALE ANNUALE CONOSCIUTO, CON O SENZA CAPITALE INIZIALE A UN TASSO DI RIV CONOSCIUTO CHE MONTANTE AVRO' TRA X ANNI?",null,null,null,null,null,null,null,null,null,null,null,null,null,null,null,"INVESTENDO UN CAPITALE ANNUALE CONOSCIUTO, CON O SENZA CAPITALE INIZIALE A UN TASSO DI RIV CONOSCIUTO CHE MONTANTE AVRO' TRA X ANNI?",null,null,null,null,null,null,null,null,null,null,null,null,null,null,null,"INVESTENDO UN CAPITALE ANNUALE CONOSCIUTO, CON O SENZA CAPITALE INIZIALE A UN TASSO DI RIV CONOSCIUTO CHE MONTANTE AVRO' TRA X ANNI?",null,null,null,null,null,null,null,null,null,null,null,null,null,null,null,"INVESTENDO UN CAPITALE ANNUALE CONOSCIUTO, CON O SENZA CAPITALE INIZIALE A UN TASSO DI RIV CONOSCIUTO CHE MONTANTE AVRO' TRA X ANNI?",null,null,null,null,null,null,null,null,null,null,null,null,null,null,null,"INVESTENDO UN CAPITALE ANNUALE CONOSCIUTO, CON O SENZA CAPITALE INIZIALE A UN TASSO DI RIV CONOSCIUTO CHE MONTANTE AVRO' TRA X ANNI?",null,null,null,null,null,null,null,null,null,null,null,null,null,null,null,"INVESTENDO UN CAPITALE ANNUALE CONOSCIUTO, CON O SENZA CAPITALE INIZIALE A UN TASSO DI RIV CONOSCIUTO CHE MONTANTE AVRO' TRA X ANNI?",null,null,null,null,null,null,null,null,null,null,null,null,null,null,null,"INVESTENDO UN CAPITALE ANNUALE CONOSCIUTO, CON O SENZA CAPITALE INIZIALE A UN TASSO DI RIV CONOSCIUTO CHE MONTANTE AVRO' TRA X ANNI?",null,null,null,null,null,null,null,null,null,null,null,null,null,null,null,"INVESTENDO UN CAPITALE ANNUALE CONOSCIUTO, CON O SENZA CAPITALE INIZIALE A UN TASSO DI RIV CONOSCIUTO CHE MONTANTE AVRO' TRA X ANNI?",null,null,null,null,null,null,null,null,null,null,null,null,null,null,null,"INVESTENDO UN CAPITALE ANNUALE CONOSCIUTO, CON O SENZA CAPITALE INIZIALE A UN TASSO DI RIV CONOSCIUTO CHE MONTANTE AVRO' TRA X ANNI?",null,null,null,null,null,null,null,null,null,null,null,null,null,null,null,"INVESTENDO UN CAPITALE ANNUALE CONOSCIUTO, CON O SENZA CAPITALE INIZIALE A UN TASSO DI RIV CONOSCIUTO CHE MONTANTE AVRO' TRA X ANNI?",null,null,null,null,null,null,null,null,null,null,null,null,null,null,null,"INVESTENDO UN CAPITALE ANNUALE CONOSCIUTO, CON O SENZA CAPITALE INIZIALE A UN TASSO DI RIV CONOSCIUTO CHE MONTANTE AVRO' TRA X ANNI?",null,null,null,null,null,null,null,null,null,null,null,null,null,null,null,"INVESTENDO UN CAPITALE ANNUALE CONOSCIUTO, CON O SENZA CAPITALE INIZIALE A UN TASSO DI RIV CONOSCIUTO CHE MONTANTE AVRO' TRA X ANNI?",null,null,null,null,null,null,null,null,null,null,null,null,null,null,null,"INVESTENDO UN CAPITALE ANNUALE CONOSCIUTO, CON O SENZA CAPITALE INIZIALE A UN TASSO DI RIV CONOSCIUTO CHE MONTANTE AVRO' TRA X ANNI?",null,null,null,null,null,null,null,null,null,null,null,null,null,null,null,"INVESTENDO UN CAPITALE ANNUALE CONOSCIUTO, CON O SENZA CAPITALE INIZIALE A UN TASSO DI RIV CONOSCIUTO CHE MONTANTE AVRO' TRA X ANNI?",null,null,null,null,null,null,null,null,null,null,null,null,null,null,null,"INVESTENDO UN CAPITALE ANNUALE CONOSCIUTO, CON O SENZA CAPITALE INIZIALE A UN TASSO DI RIV CONOSCIUTO CHE MONTANTE AVRO' TRA X ANNI?",null,null,null,null,null,null,null,null,null,null,null,null,null,null,null,"INVESTENDO UN CAPITALE ANNUALE CONOSCIUTO, CON O SENZA CAPITALE INIZIALE A UN TASSO DI RIV CONOSCIUTO CHE MONTANTE AVRO' TRA X ANNI?",null,null,null,null,null,null,null,null,null,null,null,null,null,null,null,"INVESTENDO UN CAPITALE ANNUALE CONOSCIUTO, CON O SENZA CAPITALE INIZIALE A UN TASSO DI RIV CONOSCIUTO CHE MONTANTE AVRO' TRA X ANNI?",null,null,null,null,null,null,null,null,null,null,null,null,null,null,null,"INVESTENDO UN CAPITALE ANNUALE CONOSCIUTO, CON O SENZA CAPITALE INIZIALE A UN TASSO DI RIV CONOSCIUTO CHE MONTANTE AVRO' TRA X ANNI?",null,null,null,null,null,null,null,null,null,null,null,null,null,null,null,"INVESTENDO UN CAPITALE ANNUALE CONOSCIUTO, CON O SENZA CAPITALE INIZIALE A UN TASSO DI RIV CONOSCIUTO CHE MONTANTE AVRO' TRA X ANNI?",null,null,null,null,null,null,null,null,null,null,null,null,null,null,null,"INVESTENDO UN CAPITALE ANNUALE CONOSCIUTO, CON O SENZA CAPITALE INIZIALE A UN TASSO DI RIV CONOSCIUTO CHE MONTANTE AVRO' TRA X ANNI?",null,null,null,null,null,null,null,null,null,null,null,null,null,null,null,"INVESTENDO UN CAPITALE ANNUALE CONOSCIUTO, CON O SENZA CAPITALE INIZIALE A UN TASSO DI RIV CONOSCIUTO CHE MONTANTE AVRO' TRA X ANNI?",null,null,null,null,null,null,null,null,null,null,null,null,null,null,null,"INVESTENDO UN CAPITALE ANNUALE CONOSCIUTO, CON O SENZA CAPITALE INIZIALE A UN TASSO DI RIV CONOSCIUTO CHE MONTANTE AVRO' TRA X ANNI?",null,null,null,null,null,null,null,null,null,null,null,null,null,null,null,"INVESTENDO UN CAPITALE ANNUALE CONOSCIUTO, CON O SENZA CAPITALE INIZIALE A UN TASSO DI RIV CONOSCIUTO CHE MONTANTE AVRO' TRA X ANNI?",null,null,null,null,null,null,null,null,null,null,null,null,null,null,null,"INVESTENDO UN CAPITALE ANNUALE CONOSCIUTO, CON O SENZA CAPITALE INIZIALE A UN TASSO DI RIV CONOSCIUTO CHE MONTANTE AVRO' TRA X ANNI?",null,null,null,null,null,null,null,null,null,null,null,null,null,null,null,"INVESTENDO UN CAPITALE ANNUALE CONOSCIUTO, CON O SENZA CAPITALE INIZIALE A UN TASSO DI RIV CONOSCIUTO CHE MONTANTE AVRO' TRA X ANNI?",null,null,null,null,null,null,null,null,null,null,null,null,null,null,null,"INVESTENDO UN CAPITALE ANNUALE CONOSCIUTO, CON O SENZA CAPITALE INIZIALE A UN TASSO DI RIV CONOSCIUTO CHE MONTANTE AVRO' TRA X ANNI?",null,null,null,null,null,null,null,null,null,null,null,null,null,null,null,"INVESTENDO UN CAPITALE ANNUALE CONOSCIUTO, CON O SENZA CAPITALE INIZIALE A UN TASSO DI RIV CONOSCIUTO CHE MONTANTE AVRO' TRA X ANNI?",null,null,null,null,null,null,null,null,null,null,null,null,null,null,null,"INVESTENDO UN CAPITALE ANNUALE CONOSCIUTO, CON O SENZA CAPITALE INIZIALE A UN TASSO DI RIV CONOSCIUTO CHE MONTANTE AVRO' TRA X ANNI?",null,null,null,null,null,null,null,null,null,null,null,null,null,null,null,"INVESTENDO UN CAPITALE ANNUALE CONOSCIUTO, CON O SENZA CAPITALE INIZIALE A UN TASSO DI RIV CONOSCIUTO CHE MONTANTE AVRO' TRA X ANNI?",null,null,null,null,null,null,null,null,null,null,null,null,null,null,null,"INVESTENDO UN CAPITALE ANNUALE CONOSCIUTO, CON O SENZA CAPITALE INIZIALE A UN TASSO DI RIV CONOSCIUTO CHE MONTANTE AVRO' TRA X ANNI?",null,null,null,null,null,null,null,null,null,null,null,null,null,null,null,"INVESTENDO UN CAPITALE ANNUALE CONOSCIUTO, CON O SENZA CAPITALE INIZIALE A UN TASSO DI RIV CONOSCIUTO CHE MONTANTE AVRO' TRA X ANNI?",null,null,null,null,null,null,null,null,null,null,null,null,null,null,null,"INVESTENDO UN CAPITALE ANNUALE CONOSCIUTO, CON O SENZA CAPITALE INIZIALE A UN TASSO DI RIV CONOSCIUTO CHE MONTANTE AVRO' TRA X ANNI?",null,null,null,null,null,null,null,null,null,null,null,null,null,null,null,"INVESTENDO UN CAPITALE ANNUALE CONOSCIUTO, CON O SENZA CAPITALE INIZIALE A UN TASSO DI RIV CONOSCIUTO CHE MONTANTE AVRO' TRA X ANNI?",null,null,null,null,null,null,null,null,null,null,null,null,null,null,null,"INVESTENDO UN CAPITALE ANNUALE CONOSCIUTO, CON O SENZA CAPITALE INIZIALE A UN TASSO DI RIV CONOSCIUTO CHE MONTANTE AVRO' TRA X ANNI?",null,null,null,null,null,null,null,null,null,null,null,null,null,null,null,"INVESTENDO UN CAPITALE ANNUALE CONOSCIUTO, CON O SENZA CAPITALE INIZIALE A UN TASSO DI RIV CONOSCIUTO CHE MONTANTE AVRO' TRA X ANNI?",null,null,null,null,null,null,null,null,null,null,null,null,null,null,null,"INVESTENDO UN CAPITALE ANNUALE CONOSCIUTO, CON O SENZA CAPITALE INIZIALE A UN TASSO DI RIV CONOSCIUTO CHE MONTANTE AVRO' TRA X ANNI?",null,null,null,null,null,null,null,null,null,null,null,null,null,null,null,"INVESTENDO UN CAPITALE ANNUALE CONOSCIUTO, CON O SENZA CAPITALE INIZIALE A UN TASSO DI RIV CONOSCIUTO CHE MONTANTE AVRO' TRA X ANNI?",null,null,null,null,null,null,null,null,null,null,null,null,null,null,null,"INVESTENDO UN CAPITALE ANNUALE CONOSCIUTO, CON O SENZA CAPITALE INIZIALE A UN TASSO DI RIV CONOSCIUTO CHE MONTANTE AVRO' TRA X ANNI?",null,null,null,null,null,null,null,null,null,null,null,null,null,null,null,"INVESTENDO UN CAPITALE ANNUALE CONOSCIUTO, CON O SENZA CAPITALE INIZIALE A UN TASSO DI RIV CONOSCIUTO CHE MONTANTE AVRO' TRA X ANNI?",null,null,null,null,null,null,null,null,null,null,null,null,null,null,null,"INVESTENDO UN CAPITALE ANNUALE CONOSCIUTO, CON O SENZA CAPITALE INIZIALE A UN TASSO DI RIV CONOSCIUTO CHE MONTANTE AVRO' TRA X ANNI?",null,null,null,null,null,null,null,null,null,null,null,null,null,null,null,"INVESTENDO UN CAPITALE ANNUALE CONOSCIUTO, CON O SENZA CAPITALE INIZIALE A UN TASSO DI RIV CONOSCIUTO CHE MONTANTE AVRO' TRA X ANNI?",null,null,null,null,null,null,null,null,null,null,null,null,null,null,null,"INVESTENDO UN CAPITALE ANNUALE CONOSCIUTO, CON O SENZA CAPITALE INIZIALE A UN TASSO DI RIV CONOSCIUTO CHE MONTANTE AVRO' TRA X ANNI?",null,null,null,null,null,null,null,null,null,null,null,null,null,null,null,"INVESTENDO UN CAPITALE ANNUALE CONOSCIUTO, CON O SENZA CAPITALE INIZIALE A UN TASSO DI RIV CONOSCIUTO CHE MONTANTE AVRO' TRA X ANNI?",null,null,null,null,null,null,null,null,null,null,null,null,null,null,null,"INVESTENDO UN CAPITALE ANNUALE CONOSCIUTO, CON O SENZA CAPITALE INIZIALE A UN TASSO DI RIV CONOSCIUTO CHE MONTANTE AVRO' TRA X ANNI?",null,null,null,null,null,null,null,null,null,null,null,null,null,null,null,"INVESTENDO UN CAPITALE ANNUALE CONOSCIUTO, CON O SENZA CAPITALE INIZIALE A UN TASSO DI RIV CONOSCIUTO CHE MONTANTE AVRO' TRA X ANNI?",null,null,null,null,null,null,null,null,null,null,null,null,null,null,null,"INVESTENDO UN CAPITALE ANNUALE CONOSCIUTO, CON O SENZA CAPITALE INIZIALE A UN TASSO DI RIV CONOSCIUTO CHE MONTANTE AVRO' TRA X ANNI?",null,null,null,null,null,null,null,null,null,null,null,null,null,null,null,"INVESTENDO UN CAPITALE ANNUALE CONOSCIUTO, CON O SENZA CAPITALE INIZIALE A UN TASSO DI RIV CONOSCIUTO CHE MONTANTE AVRO' TRA X ANNI?",null,null,null,null,null,null,null,null,null,null,null,null,null,null,null,"INVESTENDO UN CAPITALE ANNUALE CONOSCIUTO, CON O SENZA CAPITALE INIZIALE A UN TASSO DI RIV CONOSCIUTO CHE MONTANTE AVRO' TRA X ANNI?",null,null,null,null,null,null,null,null,null,null,null,null,null,null,null,"INVESTENDO UN CAPITALE ANNUALE CONOSCIUTO, CON O SENZA CAPITALE INIZIALE A UN TASSO DI RIV CONOSCIUTO CHE MONTANTE AVRO' TRA X ANNI?",null,null,null,null,null,null,null,null,null,null,null,null,null,null,null,"INVESTENDO UN CAPITALE ANNUALE CONOSCIUTO, CON O SENZA CAPITALE INIZIALE A UN TASSO DI RIV CONOSCIUTO CHE MONTANTE AVRO' TRA X ANNI?",null,null,null,null,null,null,null,null,null,null,null,null,null,null,null,"INVESTENDO UN CAPITALE ANNUALE CONOSCIUTO, CON O SENZA CAPITALE INIZIALE A UN TASSO DI RIV CONOSCIUTO CHE MONTANTE AVRO' TRA X ANNI?",null,null,null,null,null,null,null,null,null,null,null,null,null,null,null,"INVESTENDO UN CAPITALE ANNUALE CONOSCIUTO, CON O SENZA CAPITALE INIZIALE A UN TASSO DI RIV CONOSCIUTO CHE MONTANTE AVRO' TRA X ANNI?",null,null,null,null,null,null,null,null,null,null,null,null,null,null,null,"INVESTENDO UN CAPITALE ANNUALE CONOSCIUTO, CON O SENZA CAPITALE INIZIALE A UN TASSO DI RIV CONOSCIUTO CHE MONTANTE AVRO' TRA X ANNI?",null,null,null,null,null,null,null,null,null,null,null,null,null,null,null,"INVESTENDO UN CAPITALE ANNUALE CONOSCIUTO, CON O SENZA CAPITALE INIZIALE A UN TASSO DI RIV CONOSCIUTO CHE MONTANTE AVRO' TRA X ANNI?",null,null,null,null,null,null,null,null,null,null,null,null,null,null,null,"INVESTENDO UN CAPITALE ANNUALE CONOSCIUTO, CON O SENZA CAPITALE INIZIALE A UN TASSO DI RIV CONOSCIUTO CHE MONTANTE AVRO' TRA X ANNI?",null,null,null,null,null,null,null,null,null,null,null,null,null,null,null,"INVESTENDO UN CAPITALE ANNUALE CONOSCIUTO, CON O SENZA CAPITALE INIZIALE A UN TASSO DI RIV CONOSCIUTO CHE MONTANTE AVRO' TRA X ANNI?",null,null,null,null,null,null,null,null,null,null,null,null,null,null,null,"INVESTENDO UN CAPITALE ANNUALE CONOSCIUTO, CON O SENZA CAPITALE INIZIALE A UN TASSO DI RIV CONOSCIUTO CHE MONTANTE AVRO' TRA X ANNI?",null,null,null,null,null,null,null,null,null,null,null,null,null,null,null,"INVESTENDO UN CAPITALE ANNUALE CONOSCIUTO, CON O SENZA CAPITALE INIZIALE A UN TASSO DI RIV CONOSCIUTO CHE MONTANTE AVRO' TRA X ANNI?",null,null,null,null,null,null,null,null,null,null,null,null,null,null,null,"INVESTENDO UN CAPITALE ANNUALE CONOSCIUTO, CON O SENZA CAPITALE INIZIALE A UN TASSO DI RIV CONOSCIUTO CHE MONTANTE AVRO' TRA X ANNI?",null,null,null,null,null,null,null,null,null,null,null,null,null,null,null,"INVESTENDO UN CAPITALE ANNUALE CONOSCIUTO, CON O SENZA CAPITALE INIZIALE A UN TASSO DI RIV CONOSCIUTO CHE MONTANTE AVRO' TRA X ANNI?",null,null,null,null,null,null,null,null,null,null,null,null,null,null,null,"INVESTENDO UN CAPITALE ANNUALE CONOSCIUTO, CON O SENZA CAPITALE INIZIALE A UN TASSO DI RIV CONOSCIUTO CHE MONTANTE AVRO' TRA X ANNI?",null,null,null,null,null,null,null,null,null,null,null,null,null,null,null,"INVESTENDO UN CAPITALE ANNUALE CONOSCIUTO, CON O SENZA CAPITALE INIZIALE A UN TASSO DI RIV CONOSCIUTO CHE MONTANTE AVRO' TRA X ANNI?",null,null,null,null,null,null,null,null,null,null,null,null,null,null,null,"INVESTENDO UN CAPITALE ANNUALE CONOSCIUTO, CON O SENZA CAPITALE INIZIALE A UN TASSO DI RIV CONOSCIUTO CHE MONTANTE AVRO' TRA X ANNI?",null,null,null,null,null,null,null,null,null,null,null,null,null,null,null,"INVESTENDO UN CAPITALE ANNUALE CONOSCIUTO, CON O SENZA CAPITALE INIZIALE A UN TASSO DI RIV CONOSCIUTO CHE MONTANTE AVRO' TRA X ANNI?",null,null,null,null,null,null,null,null,null,null,null,null,null,null,null,"INVESTENDO UN CAPITALE ANNUALE CONOSCIUTO, CON O SENZA CAPITALE INIZIALE A UN TASSO DI RIV CONOSCIUTO CHE MONTANTE AVRO' TRA X ANNI?",null,null,null,null,null,null,null,null,null,null,null,null,null,null,null,"INVESTENDO UN CAPITALE ANNUALE CONOSCIUTO, CON O SENZA CAPITALE INIZIALE A UN TASSO DI RIV CONOSCIUTO CHE MONTANTE AVRO' TRA X ANNI?",null,null,null,null,null,null,null,null,null,null,null,null,null,null,null,"INVESTENDO UN CAPITALE ANNUALE CONOSCIUTO, CON O SENZA CAPITALE INIZIALE A UN TASSO DI RIV CONOSCIUTO CHE MONTANTE AVRO' TRA X ANNI?",null,null,null,null,null,null,null,null,null,null,null,null,null,null,null,"INVESTENDO UN CAPITALE ANNUALE CONOSCIUTO, CON O SENZA CAPITALE INIZIALE A UN TASSO DI RIV CONOSCIUTO CHE MONTANTE AVRO' TRA X ANNI?",null,null,null,null,null,null,null,null,null,null,null,null,null,null,null,"INVESTENDO UN CAPITALE ANNUALE CONOSCIUTO, CON O SENZA CAPITALE INIZIALE A UN TASSO DI RIV CONOSCIUTO CHE MONTANTE AVRO' TRA X ANNI?",null,null,null,null,null,null,null,null,null,null,null,null,null,null,null,"INVESTENDO UN CAPITALE ANNUALE CONOSCIUTO, CON O SENZA CAPITALE INIZIALE A UN TASSO DI RIV CONOSCIUTO CHE MONTANTE AVRO' TRA X ANNI?",null,null,null,null,null,null,null,null,null,null,null,null,null,null,null,"INVESTENDO UN CAPITALE ANNUALE CONOSCIUTO, CON O SENZA CAPITALE INIZIALE A UN TASSO DI RIV CONOSCIUTO CHE MONTANTE AVRO' TRA X ANNI?",null,null,null,null,null,null,null,null,null,null,null,null,null,null,null,"INVESTENDO UN CAPITALE ANNUALE CONOSCIUTO, CON O SENZA CAPITALE INIZIALE A UN TASSO DI RIV CONOSCIUTO CHE MONTANTE AVRO' TRA X ANNI?",null,null,null,null,null,null,null,null,null,null,null,null,null,null,null,"INVESTENDO UN CAPITALE ANNUALE CONOSCIUTO, CON O SENZA CAPITALE INIZIALE A UN TASSO DI RIV CONOSCIUTO CHE MONTANTE AVRO' TRA X ANNI?",null,null,null,null,null,null,null,null,null,null,null,null,null,null,null,"INVESTENDO UN CAPITALE ANNUALE CONOSCIUTO, CON O SENZA CAPITALE INIZIALE A UN TASSO DI RIV CONOSCIUTO CHE MONTANTE AVRO' TRA X ANNI?",null,null,null,null,null,null,null,null,null,null,null,null,null,null,null,"INVESTENDO UN CAPITALE ANNUALE CONOSCIUTO, CON O SENZA CAPITALE INIZIALE A UN TASSO DI RIV CONOSCIUTO CHE MONTANTE AVRO' TRA X ANNI?",null,null,null,null,null,null,null,null,null,null,null,null,null,null,null,"INVESTENDO UN CAPITALE ANNUALE CONOSCIUTO, CON O SENZA CAPITALE INIZIALE A UN TASSO DI RIV CONOSCIUTO CHE MONTANTE AVRO' TRA X ANNI?",null,null,null,null,null,null,null,null,null,null,null,null,null,null,null,"INVESTENDO UN CAPITALE ANNUALE CONOSCIUTO, CON O SENZA CAPITALE INIZIALE A UN TASSO DI RIV CONOSCIUTO CHE MONTANTE AVRO' TRA X ANNI?",null,null,null,null,null,null,null,null,null,null,null,null,null,null,null,"INVESTENDO UN CAPITALE ANNUALE CONOSCIUTO, CON O SENZA CAPITALE INIZIALE A UN TASSO DI RIV CONOSCIUTO CHE MONTANTE AVRO' TRA X ANNI?",null,null,null,null,null,null,null,null,null,null,null,null,null,null,null,"INVESTENDO UN CAPITALE ANNUALE CONOSCIUTO, CON O SENZA CAPITALE INIZIALE A UN TASSO DI RIV CONOSCIUTO CHE MONTANTE AVRO' TRA X ANNI?",null,null,null,null,null,null,null,null,null,null,null,null,null,null,null,"INVESTENDO UN CAPITALE ANNUALE CONOSCIUTO, CON O SENZA CAPITALE INIZIALE A UN TASSO DI RIV CONOSCIUTO CHE MONTANTE AVRO' TRA X ANNI?",null,null,null,null,null,null,null,null,null,null,null,null,null,null,null,"INVESTENDO UN CAPITALE ANNUALE CONOSCIUTO, CON O SENZA CAPITALE INIZIALE A UN TASSO DI RIV CONOSCIUTO CHE MONTANTE AVRO' TRA X ANNI?",null,null,null,null,null,null,null,null,null,null,null,null,null,null,null,"INVESTENDO UN CAPITALE ANNUALE CONOSCIUTO, CON O SENZA CAPITALE INIZIALE A UN TASSO DI RIV CONOSCIUTO CHE MONTANTE AVRO' TRA X ANNI?",null,null,null,null,null,null,null,null,null,null,null,null,null,null,null,"INVESTENDO UN CAPITALE ANNUALE CONOSCIUTO, CON O SENZA CAPITALE INIZIALE A UN TASSO DI RIV CONOSCIUTO CHE MONTANTE AVRO' TRA X ANNI?",null,null,null,null,null,null,null,null,null,null,null,null,null,null,null,"INVESTENDO UN CAPITALE ANNUALE CONOSCIUTO, CON O SENZA CAPITALE INIZIALE A UN TASSO DI RIV CONOSCIUTO CHE MONTANTE AVRO' TRA X ANNI?",null,null,null,null,null,null,null,null,null,null,null,null,null,null,null,"INVESTENDO UN CAPITALE ANNUALE CONOSCIUTO, CON O SENZA CAPITALE INIZIALE A UN TASSO DI RIV CONOSCIUTO CHE MONTANTE AVRO' TRA X ANNI?",null,null,null,null,null,null,null,null,null,null,null,null,null,null,null,"INVESTENDO UN CAPITALE ANNUALE CONOSCIUTO, CON O SENZA CAPITALE INIZIALE A UN TASSO DI RIV CONOSCIUTO CHE MONTANTE AVRO' TRA X ANNI?",null,null,null,null,null,null,null,null,null,null,null,null,null,null,null,"INVESTENDO UN CAPITALE ANNUALE CONOSCIUTO, CON O SENZA CAPITALE INIZIALE A UN TASSO DI RIV CONOSCIUTO CHE MONTANTE AVRO' TRA X ANNI?",null,null,null,null,null,null,null,null,null,null,null,null,null,null,null,"INVESTENDO UN CAPITALE ANNUALE CONOSCIUTO, CON O SENZA CAPITALE INIZIALE A UN TASSO DI RIV CONOSCIUTO CHE MONTANTE AVRO' TRA X ANNI?",null,null,null,null,null,null,null,null,null,null,null,null,null,null,null,"INVESTENDO UN CAPITALE ANNUALE CONOSCIUTO, CON O SENZA CAPITALE INIZIALE A UN TASSO DI RIV CONOSCIUTO CHE MONTANTE AVRO' TRA X ANNI?",null,null,null,null,null,null,null,null,null,null,null,null,null,null,null,"INVESTENDO UN CAPITALE ANNUALE CONOSCIUTO, CON O SENZA CAPITALE INIZIALE A UN TASSO DI RIV CONOSCIUTO CHE MONTANTE AVRO' TRA X ANNI?",null,null,null,null,null,null,null,null,null,null,null,null,null,null,null,"INVESTENDO UN CAPITALE ANNUALE CONOSCIUTO, CON O SENZA CAPITALE INIZIALE A UN TASSO DI RIV CONOSCIUTO CHE MONTANTE AVRO' TRA X ANNI?",null,null,null,null,null,null,null,null,null,null,null,null,null,null,null,"INVESTENDO UN CAPITALE ANNUALE CONOSCIUTO, CON O SENZA CAPITALE INIZIALE A UN TASSO DI RIV CONOSCIUTO CHE MONTANTE AVRO' TRA X ANNI?",null,null,null,null,null,null,null,null,null,null,null,null,null,null,null,"INVESTENDO UN CAPITALE ANNUALE CONOSCIUTO, CON O SENZA CAPITALE INIZIALE A UN TASSO DI RIV CONOSCIUTO CHE MONTANTE AVRO' TRA X ANNI?",null,null,null,null,null,null,null,null,null,null,null,null,null,null,null,"INVESTENDO UN CAPITALE ANNUALE CONOSCIUTO, CON O SENZA CAPITALE INIZIALE A UN TASSO DI RIV CONOSCIUTO CHE MONTANTE AVRO' TRA X ANNI?",null,null,null,null,null,null,null,null,null,null,null,null,null,null,null,"INVESTENDO UN CAPITALE ANNUALE CONOSCIUTO, CON O SENZA CAPITALE INIZIALE A UN TASSO DI RIV CONOSCIUTO CHE MONTANTE AVRO' TRA X ANNI?",null,null,null,null,null,null,null,null,null,null,null,null,null,null,null,"INVESTENDO UN CAPITALE ANNUALE CONOSCIUTO, CON O SENZA CAPITALE INIZIALE A UN TASSO DI RIV CONOSCIUTO CHE MONTANTE AVRO' TRA X ANNI?",null,null,null,null,null,null,null,null,null,null,null,null,null,null,null,"INVESTENDO UN CAPITALE ANNUALE CONOSCIUTO, CON O SENZA CAPITALE INIZIALE A UN TASSO DI RIV CONOSCIUTO CHE MONTANTE AVRO' TRA X ANNI?",null,null,null,null,null,null,null,null,null,null,null,null,null,null,null,"INVESTENDO UN CAPITALE ANNUALE CONOSCIUTO, CON O SENZA CAPITALE INIZIALE A UN TASSO DI RIV CONOSCIUTO CHE MONTANTE AVRO' TRA X ANNI?",null,null,null,null,null,null,null,null,null,null,null,null,null,null,null,"INVESTENDO UN CAPITALE ANNUALE CONOSCIUTO, CON O SENZA CAPITALE INIZIALE A UN TASSO DI RIV CONOSCIUTO CHE MONTANTE AVRO' TRA X ANNI?",null,null,null,null,null,null,null,null,null,null,null,null,null,null,null,"INVESTENDO UN CAPITALE ANNUALE CONOSCIUTO, CON O SENZA CAPITALE INIZIALE A UN TASSO DI RIV CONOSCIUTO CHE MONTANTE AVRO' TRA X ANNI?",null,null,null,null,null,null,null,null,null,null,null,null,null,null,null,"INVESTENDO UN CAPITALE ANNUALE CONOSCIUTO, CON O SENZA CAPITALE INIZIALE A UN TASSO DI RIV CONOSCIUTO CHE MONTANTE AVRO' TRA X ANNI?",null,null,null,null,null,null,null,null,null,null,null,null,null,null,null,"INVESTENDO UN CAPITALE ANNUALE CONOSCIUTO, CON O SENZA CAPITALE INIZIALE A UN TASSO DI RIV CONOSCIUTO CHE MONTANTE AVRO' TRA X ANNI?",null,null,null,null,null,null,null,null,null,null,null,null,null,null,null,"INVESTENDO UN CAPITALE ANNUALE CONOSCIUTO, CON O SENZA CAPITALE INIZIALE A UN TASSO DI RIV CONOSCIUTO CHE MONTANTE AVRO' TRA X ANNI?",null,null,null,null,null,null,null,null,null,null,null,null,null,null,null,"INVESTENDO UN CAPITALE ANNUALE CONOSCIUTO, CON O SENZA CAPITALE INIZIALE A UN TASSO DI RIV CONOSCIUTO CHE MONTANTE AVRO' TRA X ANNI?",null,null,null,null,null,null,null,null,null,null,null,null,null,null,null,"INVESTENDO UN CAPITALE ANNUALE CONOSCIUTO, CON O SENZA CAPITALE INIZIALE A UN TASSO DI RIV CONOSCIUTO CHE MONTANTE AVRO' TRA X ANNI?",null,null,null,null,null,null,null,null,null,null,null,null,null,null,null,"INVESTENDO UN CAPITALE ANNUALE CONOSCIUTO, CON O SENZA CAPITALE INIZIALE A UN TASSO DI RIV CONOSCIUTO CHE MONTANTE AVRO' TRA X ANNI?",null,null,null,null,null,null,null,null,null,null,null,null,null,null,null,"INVESTENDO UN CAPITALE ANNUALE CONOSCIUTO, CON O SENZA CAPITALE INIZIALE A UN TASSO DI RIV CONOSCIUTO CHE MONTANTE AVRO' TRA X ANNI?",null,null,null,null,null,null,null,null,null,null,null,null,null,null,null,"INVESTENDO UN CAPITALE ANNUALE CONOSCIUTO, CON O SENZA CAPITALE INIZIALE A UN TASSO DI RIV CONOSCIUTO CHE MONTANTE AVRO' TRA X ANNI?",null,null,null,null,null,null,null,null,null,null,null,null,null,null,null,"INVESTENDO UN CAPITALE ANNUALE CONOSCIUTO, CON O SENZA CAPITALE INIZIALE A UN TASSO DI RIV CONOSCIUTO CHE MONTANTE AVRO' TRA X ANNI?",null,null,null,null,null,null,null,null,null,null,null,null,null,null,null,"INVESTENDO UN CAPITALE ANNUALE CONOSCIUTO, CON O SENZA CAPITALE INIZIALE A UN TASSO DI RIV CONOSCIUTO CHE MONTANTE AVRO' TRA X ANNI?",null,null,null,null,null,null,null,null,null,null,null,null,null,null,null,"INVESTENDO UN CAPITALE ANNUALE CONOSCIUTO, CON O SENZA CAPITALE INIZIALE A UN TASSO DI RIV CONOSCIUTO CHE MONTANTE AVRO' TRA X ANNI?",null,null,null,null,null,null,null,null,null,null,null,null,null,null,null,"INVESTENDO UN CAPITALE ANNUALE CONOSCIUTO, CON O SENZA CAPITALE INIZIALE A UN TASSO DI RIV CONOSCIUTO CHE MONTANTE AVRO' TRA X ANNI?",null,null,null,null,null,null,null,null,null,null,null,null,null,null,null,"INVESTENDO UN CAPITALE ANNUALE CONOSCIUTO, CON O SENZA CAPITALE INIZIALE A UN TASSO DI RIV CONOSCIUTO CHE MONTANTE AVRO' TRA X ANNI?",null,null,null,null,null,null,null,null,null,null,null,null,null,null,null,"INVESTENDO UN CAPITALE ANNUALE CONOSCIUTO, CON O SENZA CAPITALE INIZIALE A UN TASSO DI RIV CONOSCIUTO CHE MONTANTE AVRO' TRA X ANNI?",null,null,null,null,null,null,null,null,null,null,null,null,null,null,null,"INVESTENDO UN CAPITALE ANNUALE CONOSCIUTO, CON O SENZA CAPITALE INIZIALE A UN TASSO DI RIV CONOSCIUTO CHE MONTANTE AVRO' TRA X ANNI?",null,null,null,null,null,null,null,null,null,null,null,null,null,null,null,"INVESTENDO UN CAPITALE ANNUALE CONOSCIUTO, CON O SENZA CAPITALE INIZIALE A UN TASSO DI RIV CONOSCIUTO CHE MONTANTE AVRO' TRA X ANNI?",null,null,null,null,null,null,null,null,null,null,null,null,null,null,null,"INVESTENDO UN CAPITALE ANNUALE CONOSCIUTO, CON O SENZA CAPITALE INIZIALE A UN TASSO DI RIV CONOSCIUTO CHE MONTANTE AVRO' TRA X ANNI?",null,null,null,null,null,null,null,null,null,null,null,null,null,null,null,"INVESTENDO UN CAPITALE ANNUALE CONOSCIUTO, CON O SENZA CAPITALE INIZIALE A UN TASSO DI RIV CONOSCIUTO CHE MONTANTE AVRO' TRA X ANNI?",null,null,null,null,null,null,null,null,null,null,null,null,null,null,null,"INVESTENDO UN CAPITALE ANNUALE CONOSCIUTO, CON O SENZA CAPITALE INIZIALE A UN TASSO DI RIV CONOSCIUTO CHE MONTANTE AVRO' TRA X ANNI?",null,null,null,null,null,null,null,null,null,null,null,null,null,null,null,"INVESTENDO UN CAPITALE ANNUALE CONOSCIUTO, CON O SENZA CAPITALE INIZIALE A UN TASSO DI RIV CONOSCIUTO CHE MONTANTE AVRO' TRA X ANNI?",null,null,null,null,null,null,null,null,null,null,null,null,null,null,null,"INVESTENDO UN CAPITALE ANNUALE CONOSCIUTO, CON O SENZA CAPITALE INIZIALE A UN TASSO DI RIV CONOSCIUTO CHE MONTANTE AVRO' TRA X ANNI?",null,null,null,null,null,null,null,null,null,null,null,null,null,null,null,"INVESTENDO UN CAPITALE ANNUALE CONOSCIUTO, CON O SENZA CAPITALE INIZIALE A UN TASSO DI RIV CONOSCIUTO CHE MONTANTE AVRO' TRA X ANNI?",null,null,null,null,null,null,null,null,null,null,null,null,null,null,null,"INVESTENDO UN CAPITALE ANNUALE CONOSCIUTO, CON O SENZA CAPITALE INIZIALE A UN TASSO DI RIV CONOSCIUTO CHE MONTANTE AVRO' TRA X ANNI?",null,null,null,null,null,null,null,null,null,null,null,null,null,null,null,"INVESTENDO UN CAPITALE ANNUALE CONOSCIUTO, CON O SENZA CAPITALE INIZIALE A UN TASSO DI RIV CONOSCIUTO CHE MONTANTE AVRO' TRA X ANNI?",null,null,null,null,null,null,null,null,null,null,null,null,null,null,null,"INVESTENDO UN CAPITALE ANNUALE CONOSCIUTO, CON O SENZA CAPITALE INIZIALE A UN TASSO DI RIV CONOSCIUTO CHE MONTANTE AVRO' TRA X ANNI?",null,null,null,null,null,null,null,null,null,null,null,null,null,null,null,"INVESTENDO UN CAPITALE ANNUALE CONOSCIUTO, CON O SENZA CAPITALE INIZIALE A UN TASSO DI RIV CONOSCIUTO CHE MONTANTE AVRO' TRA X ANNI?",null,null,null,null,null,null,null,null,null,null,null,null,null,null,null,"INVESTENDO UN CAPITALE ANNUALE CONOSCIUTO, CON O SENZA CAPITALE INIZIALE A UN TASSO DI RIV CONOSCIUTO CHE MONTANTE AVRO' TRA X ANNI?",null,null,null,null,null,null,null,null,null,null,null,null,null,null,null,"INVESTENDO UN CAPITALE ANNUALE CONOSCIUTO, CON O SENZA CAPITALE INIZIALE A UN TASSO DI RIV CONOSCIUTO CHE MONTANTE AVRO' TRA X ANNI?",null,null,null,null,null,null,null,null,null,null,null,null,null,null,null,"INVESTENDO UN CAPITALE ANNUALE CONOSCIUTO, CON O SENZA CAPITALE INIZIALE A UN TASSO DI RIV CONOSCIUTO CHE MONTANTE AVRO' TRA X ANNI?",null,null,null,null,null,null,null,null,null,null,null,null,null,null,null,"INVESTENDO UN CAPITALE ANNUALE CONOSCIUTO, CON O SENZA CAPITALE INIZIALE A UN TASSO DI RIV CONOSCIUTO CHE MONTANTE AVRO' TRA X ANNI?",null,null,null,null,null,null,null,null,null,null,null,null,null,null,null,"INVESTENDO UN CAPITALE ANNUALE CONOSCIUTO, CON O SENZA CAPITALE INIZIALE A UN TASSO DI RIV CONOSCIUTO CHE MONTANTE AVRO' TRA X ANNI?",null,null,null,null,null,null,null,null,null,null,null,null,null,null,null,"INVESTENDO UN CAPITALE ANNUALE CONOSCIUTO, CON O SENZA CAPITALE INIZIALE A UN TASSO DI RIV CONOSCIUTO CHE MONTANTE AVRO' TRA X ANNI?",null,null,null,null,null,null,null,null,null,null,null,null,null,null,null,"INVESTENDO UN CAPITALE ANNUALE CONOSCIUTO, CON O SENZA CAPITALE INIZIALE A UN TASSO DI RIV CONOSCIUTO CHE MONTANTE AVRO' TRA X ANNI?",null,null,null,null,null,null,null,null,null,null,null,null,null,null,null,"INVESTENDO UN CAPITALE ANNUALE CONOSCIUTO, CON O SENZA CAPITALE INIZIALE A UN TASSO DI RIV CONOSCIUTO CHE MONTANTE AVRO' TRA X ANNI?",null,null,null,null,null,null,null,null,null,null,null,null,null,null,null,"INVESTENDO UN CAPITALE ANNUALE CONOSCIUTO, CON O SENZA CAPITALE INIZIALE A UN TASSO DI RIV CONOSCIUTO CHE MONTANTE AVRO' TRA X ANNI?",null,null,null,null,null,null,null,null,null,null,null,null,null,null,null,"INVESTENDO UN CAPITALE ANNUALE CONOSCIUTO, CON O SENZA CAPITALE INIZIALE A UN TASSO DI RIV CONOSCIUTO CHE MONTANTE AVRO' TRA X ANNI?",null,null,null,null,null,null,null,null,null,null,null,null,null,null,null,"INVESTENDO UN CAPITALE ANNUALE CONOSCIUTO, CON O SENZA CAPITALE INIZIALE A UN TASSO DI RIV CONOSCIUTO CHE MONTANTE AVRO' TRA X ANNI?",null,null,null,null,null,null,null,null,null,null,null,null,null,null,null,"INVESTENDO UN CAPITALE ANNUALE CONOSCIUTO, CON O SENZA CAPITALE INIZIALE A UN TASSO DI RIV CONOSCIUTO CHE MONTANTE AVRO' TRA X ANNI?",null,null,null,null,null,null,null,null,null,null,null,null,null,null,null,"INVESTENDO UN CAPITALE ANNUALE CONOSCIUTO, CON O SENZA CAPITALE INIZIALE A UN TASSO DI RIV CONOSCIUTO CHE MONTANTE AVRO' TRA X ANNI?",null,null,null,null,null,null,null,null,null,null,null,null,null,null,null,"INVESTENDO UN CAPITALE ANNUALE CONOSCIUTO, CON O SENZA CAPITALE INIZIALE A UN TASSO DI RIV CONOSCIUTO CHE MONTANTE AVRO' TRA X ANNI?",null,null,null,null,null,null,null,null,null,null,null,null,null,null,null,"INVESTENDO UN CAPITALE ANNUALE CONOSCIUTO, CON O SENZA CAPITALE INIZIALE A UN TASSO DI RIV CONOSCIUTO CHE MONTANTE AVRO' TRA X ANNI?",null,null,null,null,null,null,null,null,null,null,null,null,null,null,null,"INVESTENDO UN CAPITALE ANNUALE CONOSCIUTO, CON O SENZA CAPITALE INIZIALE A UN TASSO DI RIV CONOSCIUTO CHE MONTANTE AVRO' TRA X ANNI?",null,null,null,null,null,null,null,null,null,null,null,null,null,null,null,"INVESTENDO UN CAPITALE ANNUALE CONOSCIUTO, CON O SENZA CAPITALE INIZIALE A UN TASSO DI RIV CONOSCIUTO CHE MONTANTE AVRO' TRA X ANNI?",null,null,null,null,null,null,null,null,null,null,null,null,null,null,null,"INVESTENDO UN CAPITALE ANNUALE CONOSCIUTO, CON O SENZA CAPITALE INIZIALE A UN TASSO DI RIV CONOSCIUTO CHE MONTANTE AVRO' TRA X ANNI?",null,null,null,null,null,null,null,null,null,null,null,null,null,null,null,"INVESTENDO UN CAPITALE ANNUALE CONOSCIUTO, CON O SENZA CAPITALE INIZIALE A UN TASSO DI RIV CONOSCIUTO CHE MONTANTE AVRO' TRA X ANNI?",null,null,null,null,null,null,null,null,null,null,null,null,null,null,null,"INVESTENDO UN CAPITALE ANNUALE CONOSCIUTO, CON O SENZA CAPITALE INIZIALE A UN TASSO DI RIV CONOSCIUTO CHE MONTANTE AVRO' TRA X ANNI?",null,null,null,null,null,null,null,null,null,null,null,null,null,null,null,"INVESTENDO UN CAPITALE ANNUALE CONOSCIUTO, CON O SENZA CAPITALE INIZIALE A UN TASSO DI RIV CONOSCIUTO CHE MONTANTE AVRO' TRA X ANNI?",null,null,null,null,null,null,null,null,null,null,null,null,null,null,null,"INVESTENDO UN CAPITALE ANNUALE CONOSCIUTO, CON O SENZA CAPITALE INIZIALE A UN TASSO DI RIV CONOSCIUTO CHE MONTANTE AVRO' TRA X ANNI?",null,null,null,null,null,null,null,null,null,null,null,null,null,null,null,"INVESTENDO UN CAPITALE ANNUALE CONOSCIUTO, CON O SENZA CAPITALE INIZIALE A UN TASSO DI RIV CONOSCIUTO CHE MONTANTE AVRO' TRA X ANNI?",null,null,null,null,null,null,null,null,null,null,null,null,null,null,null,"INVESTENDO UN CAPITALE ANNUALE CONOSCIUTO, CON O SENZA CAPITALE INIZIALE A UN TASSO DI RIV CONOSCIUTO CHE MONTANTE AVRO' TRA X ANNI?",null,null,null,null,null,null,null,null,null,null,null,null,null,null,null,"INVESTENDO UN CAPITALE ANNUALE CONOSCIUTO, CON O SENZA CAPITALE INIZIALE A UN TASSO DI RIV CONOSCIUTO CHE MONTANTE AVRO' TRA X ANNI?",null,null,null,null,null,null,null,null,null,null,null,null,null,null,null,"INVESTENDO UN CAPITALE ANNUALE CONOSCIUTO, CON O SENZA CAPITALE INIZIALE A UN TASSO DI RIV CONOSCIUTO CHE MONTANTE AVRO' TRA X ANNI?",null,null,null,null,null,null,null,null,null,null,null,null,null,null,null,"INVESTENDO UN CAPITALE ANNUALE CONOSCIUTO, CON O SENZA CAPITALE INIZIALE A UN TASSO DI RIV CONOSCIUTO CHE MONTANTE AVRO' TRA X ANNI?",null,null,null,null,null,null,null,null,null,null,null,null,null,null,null,"INVESTENDO UN CAPITALE ANNUALE CONOSCIUTO, CON O SENZA CAPITALE INIZIALE A UN TASSO DI RIV CONOSCIUTO CHE MONTANTE AVRO' TRA X ANNI?",null,null,null,null,null,null,null,null,null,null,null,null,null,null,null,"INVESTENDO UN CAPITALE ANNUALE CONOSCIUTO, CON O SENZA CAPITALE INIZIALE A UN TASSO DI RIV CONOSCIUTO CHE MONTANTE AVRO' TRA X ANNI?",null,null,null,null,null,null,null,null,null,null,null,null,null,null,null,"INVESTENDO UN CAPITALE ANNUALE CONOSCIUTO, CON O SENZA CAPITALE INIZIALE A UN TASSO DI RIV CONOSCIUTO CHE MONTANTE AVRO' TRA X ANNI?",null,null,null,null,null,null,null,null,null,null,null,null,null,null,null,"INVESTENDO UN CAPITALE ANNUALE CONOSCIUTO, CON O SENZA CAPITALE INIZIALE A UN TASSO DI RIV CONOSCIUTO CHE MONTANTE AVRO' TRA X ANNI?",null,null,null,null,null,null,null,null,null,null,null,null,null,null,null,"INVESTENDO UN CAPITALE ANNUALE CONOSCIUTO, CON O SENZA CAPITALE INIZIALE A UN TASSO DI RIV CONOSCIUTO CHE MONTANTE AVRO' TRA X ANNI?",null,null,null,null,null,null,null,null,null,null,null,null,null,null,null,"INVESTENDO UN CAPITALE ANNUALE CONOSCIUTO, CON O SENZA CAPITALE INIZIALE A UN TASSO DI RIV CONOSCIUTO CHE MONTANTE AVRO' TRA X ANNI?",null,null,null,null,null,null,null,null,null,null,null,null,null,null,null,"INVESTENDO UN CAPITALE ANNUALE CONOSCIUTO, CON O SENZA CAPITALE INIZIALE A UN TASSO DI RIV CONOSCIUTO CHE MONTANTE AVRO' TRA X ANNI?",null,null,null,null,null,null,null,null,null,null,null,null,null,null,null,"INVESTENDO UN CAPITALE ANNUALE CONOSCIUTO, CON O SENZA CAPITALE INIZIALE A UN TASSO DI RIV CONOSCIUTO CHE MONTANTE AVRO' TRA X ANNI?",null,null,null,null,null,null,null,null,null,null,null,null,null,null,null,"INVESTENDO UN CAPITALE ANNUALE CONOSCIUTO, CON O SENZA CAPITALE INIZIALE A UN TASSO DI RIV CONOSCIUTO CHE MONTANTE AVRO' TRA X ANNI?",null,null,null,null,null,null,null,null,null,null,null,null,null,null,null,"INVESTENDO UN CAPITALE ANNUALE CONOSCIUTO, CON O SENZA CAPITALE INIZIALE A UN TASSO DI RIV CONOSCIUTO CHE MONTANTE AVRO' TRA X ANNI?",null,null,null,null,null,null,null,null,null,null,null,null,null,null,null,"INVESTENDO UN CAPITALE ANNUALE CONOSCIUTO, CON O SENZA CAPITALE INIZIALE A UN TASSO DI RIV CONOSCIUTO CHE MONTANTE AVRO' TRA X ANNI?",null,null,null,null,null,null,null,null,null,null,null,null,null,null,null,"INVESTENDO UN CAPITALE ANNUALE CONOSCIUTO, CON O SENZA CAPITALE INIZIALE A UN TASSO DI RIV CONOSCIUTO CHE MONTANTE AVRO' TRA X ANNI?",null,null,null,null,null,null,null,null,null,null,null,null,null,null,null,"INVESTENDO UN CAPITALE ANNUALE CONOSCIUTO, CON O SENZA CAPITALE INIZIALE A UN TASSO DI RIV CONOSCIUTO CHE MONTANTE AVRO' TRA X ANNI?",null,null,null,null,null,null,null,null,null,null,null,null,null,null,null,"INVESTENDO UN CAPITALE ANNUALE CONOSCIUTO, CON O SENZA CAPITALE INIZIALE A UN TASSO DI RIV CONOSCIUTO CHE MONTANTE AVRO' TRA X ANNI?",null,null,null,null,null,null,null,null,null,null,null,null,null,null,null,"INVESTENDO UN CAPITALE ANNUALE CONOSCIUTO, CON O SENZA CAPITALE INIZIALE A UN TASSO DI RIV CONOSCIUTO CHE MONTANTE AVRO' TRA X ANNI?",null,null,null,null,null,null,null,null,null,null,null,null,null,null,null,"INVESTENDO UN CAPITALE ANNUALE CONOSCIUTO, CON O SENZA CAPITALE INIZIALE A UN TASSO DI RIV CONOSCIUTO CHE MONTANTE AVRO' TRA X ANNI?",null,null,null,null,null,null,null,null,null,null,null,null,null,null,null,"INVESTENDO UN CAPITALE ANNUALE CONOSCIUTO, CON O SENZA CAPITALE INIZIALE A UN TASSO DI RIV CONOSCIUTO CHE MONTANTE AVRO' TRA X ANNI?",null,null,null,null,null,null,null,null,null,null,null,null,null,null,null,"INVESTENDO UN CAPITALE ANNUALE CONOSCIUTO, CON O SENZA CAPITALE INIZIALE A UN TASSO DI RIV CONOSCIUTO CHE MONTANTE AVRO' TRA X ANNI?",null,null,null,null,null,null,null,null,null,null,null,null,null,null,null,"INVESTENDO UN CAPITALE ANNUALE CONOSCIUTO, CON O SENZA CAPITALE INIZIALE A UN TASSO DI RIV CONOSCIUTO CHE MONTANTE AVRO' TRA X ANNI?",null,null,null,null,null,null,null,null,null,null,null,null,null,null,null,"INVESTENDO UN CAPITALE ANNUALE CONOSCIUTO, CON O SENZA CAPITALE INIZIALE A UN TASSO DI RIV CONOSCIUTO CHE MONTANTE AVRO' TRA X ANNI?",null,null,null,null,null,null,null,null,null,null,null,null,null,null,null,"INVESTENDO UN CAPITALE ANNUALE CONOSCIUTO, CON O SENZA CAPITALE INIZIALE A UN TASSO DI RIV CONOSCIUTO CHE MONTANTE AVRO' TRA X ANNI?",null,null,null,null,null,null,null,null,null,null,null,null,null,null,null,"INVESTENDO UN CAPITALE ANNUALE CONOSCIUTO, CON O SENZA CAPITALE INIZIALE A UN TASSO DI RIV CONOSCIUTO CHE MONTANTE AVRO' TRA X ANNI?",null,null,null,null,null,null,null,null,null,null,null,null,null,null,null,"INVESTENDO UN CAPITALE ANNUALE CONOSCIUTO, CON O SENZA CAPITALE INIZIALE A UN TASSO DI RIV CONOSCIUTO CHE MONTANTE AVRO' TRA X ANNI?",null,null,null,null,null,null,null,null,null,null,null,null,null,null,null,"INVESTENDO UN CAPITALE ANNUALE CONOSCIUTO, CON O SENZA CAPITALE INIZIALE A UN TASSO DI RIV CONOSCIUTO CHE MONTANTE AVRO' TRA X ANNI?",null,null,null,null,null,null,null,null,null,null,null,null,null,null,null,"INVESTENDO UN CAPITALE ANNUALE CONOSCIUTO, CON O SENZA CAPITALE INIZIALE A UN TASSO DI RIV CONOSCIUTO CHE MONTANTE AVRO' TRA X ANNI?",null,null,null,null,null,null,null,null,null,null,null,null,null,null,null,"INVESTENDO UN CAPITALE ANNUALE CONOSCIUTO, CON O SENZA CAPITALE INIZIALE A UN TASSO DI RIV CONOSCIUTO CHE MONTANTE AVRO' TRA X ANNI?",null,null,null,null,null,null,null,null,null,null,null,null,null,null,null,"INVESTENDO UN CAPITALE ANNUALE CONOSCIUTO, CON O SENZA CAPITALE INIZIALE A UN TASSO DI RIV CONOSCIUTO CHE MONTANTE AVRO' TRA X ANNI?",null,null,null,null,null,null,null,null,null,null,null,null,null,null,null,"INVESTENDO UN CAPITALE ANNUALE CONOSCIUTO, CON O SENZA CAPITALE INIZIALE A UN TASSO DI RIV CONOSCIUTO CHE MONTANTE AVRO' TRA X ANNI?",null,null,null,null,null,null,null,null,null,null,null,null,null,null,null,"INVESTENDO UN CAPITALE ANNUALE CONOSCIUTO, CON O SENZA CAPITALE INIZIALE A UN TASSO DI RIV CONOSCIUTO CHE MONTANTE AVRO' TRA X ANNI?",null,null,null,null,null,null,null,null,null,null,null,null,null,null,null,"INVESTENDO UN CAPITALE ANNUALE CONOSCIUTO, CON O SENZA CAPITALE INIZIALE A UN TASSO DI RIV CONOSCIUTO CHE MONTANTE AVRO' TRA X ANNI?",null,null,null,null,null,null,null,null,null,null,null,null,null,null,null,"INVESTENDO UN CAPITALE ANNUALE CONOSCIUTO, CON O SENZA CAPITALE INIZIALE A UN TASSO DI RIV CONOSCIUTO CHE MONTANTE AVRO' TRA X ANNI?",null,null,null,null,null,null,null,null,null,null,null,null,null,null,null,"INVESTENDO UN CAPITALE ANNUALE CONOSCIUTO, CON O SENZA CAPITALE INIZIALE A UN TASSO DI RIV CONOSCIUTO CHE MONTANTE AVRO' TRA X ANNI?",null,null,null,null,null,null,null,null,null,null,null,null,null,null,null,"INVESTENDO UN CAPITALE ANNUALE CONOSCIUTO, CON O SENZA CAPITALE INIZIALE A UN TASSO DI RIV CONOSCIUTO CHE MONTANTE AVRO' TRA X ANNI?",null,null,null,null,null,null,null,null,null,null,null,null,null,null,null,"INVESTENDO UN CAPITALE ANNUALE CONOSCIUTO, CON O SENZA CAPITALE INIZIALE A UN TASSO DI RIV CONOSCIUTO CHE MONTANTE AVRO' TRA X ANNI?",null,null,null,null,null,null,null,null,null,null,null,null,null,null,null,"INVESTENDO UN CAPITALE ANNUALE CONOSCIUTO, CON O SENZA CAPITALE INIZIALE A UN TASSO DI RIV CONOSCIUTO CHE MONTANTE AVRO' TRA X ANNI?",null,null,null,null,null,null,null,null,null,null,null,null,null,null,null,"INVESTENDO UN CAPITALE ANNUALE CONOSCIUTO, CON O SENZA CAPITALE INIZIALE A UN TASSO DI RIV CONOSCIUTO CHE MONTANTE AVRO' TRA X ANNI?",null,null,null,null,null,null,null,null,null,null,null,null,null,null,null,"INVESTENDO UN CAPITALE ANNUALE CONOSCIUTO, CON O SENZA CAPITALE INIZIALE A UN TASSO DI RIV CONOSCIUTO CHE MONTANTE AVRO' TRA X ANNI?",null,null,null,null,null,null,null,null,null,null,null,null,null,null,null,"INVESTENDO UN CAPITALE ANNUALE CONOSCIUTO, CON O SENZA CAPITALE INIZIALE A UN TASSO DI RIV CONOSCIUTO CHE MONTANTE AVRO' TRA X ANNI?",null,null,null,null,null,null,null,null,null,null,null,null,null,null,null,"INVESTENDO UN CAPITALE ANNUALE CONOSCIUTO, CON O SENZA CAPITALE INIZIALE A UN TASSO DI RIV CONOSCIUTO CHE MONTANTE AVRO' TRA X ANNI?",null,null,null,null,null,null,null,null,null,null,null,null,null,null,null,"INVESTENDO UN CAPITALE ANNUALE CONOSCIUTO, CON O SENZA CAPITALE INIZIALE A UN TASSO DI RIV CONOSCIUTO CHE MONTANTE AVRO' TRA X ANNI?",null,null,null,null,null,null,null,null,null,null,null,null,null,null,null,"INVESTENDO UN CAPITALE ANNUALE CONOSCIUTO, CON O SENZA CAPITALE INIZIALE A UN TASSO DI RIV CONOSCIUTO CHE MONTANTE AVRO' TRA X ANNI?",null,null,null,null,null,null,null,null,null,null,null,null,null,null,null,"INVESTENDO UN CAPITALE ANNUALE CONOSCIUTO, CON O SENZA CAPITALE INIZIALE A UN TASSO DI RIV CONOSCIUTO CHE MONTANTE AVRO' TRA X ANNI?",null,null,null,null,null,null,null,null,null,null,null,null,null,null,null,"INVESTENDO UN CAPITALE ANNUALE CONOSCIUTO, CON O SENZA CAPITALE INIZIALE A UN TASSO DI RIV CONOSCIUTO CHE MONTANTE AVRO' TRA X ANNI?",null,null,null,null,null,null,null,null,null,null,null,null,null,null,null,"INVESTENDO UN CAPITALE ANNUALE CONOSCIUTO, CON O SENZA CAPITALE INIZIALE A UN TASSO DI RIV CONOSCIUTO CHE MONTANTE AVRO' TRA X ANNI?",null,null,null,null,null,null,null,null,null,null,null,null,null,null,null,"INVESTENDO UN CAPITALE ANNUALE CONOSCIUTO, CON O SENZA CAPITALE INIZIALE A UN TASSO DI RIV CONOSCIUTO CHE MONTANTE AVRO' TRA X ANNI?",null,null,null,null,null,null,null,null,null,null,null,null,null,null,null,"INVESTENDO UN CAPITALE ANNUALE CONOSCIUTO, CON O SENZA CAPITALE INIZIALE A UN TASSO DI RIV CONOSCIUTO CHE MONTANTE AVRO' TRA X ANNI?",null,null,null,null,null,null,null,null,null,null,null,null,null,null,null,"INVESTENDO UN CAPITALE ANNUALE CONOSCIUTO, CON O SENZA CAPITALE INIZIALE A UN TASSO DI RIV CONOSCIUTO CHE MONTANTE AVRO' TRA X ANNI?",null,null,null,null,null,null,null,null,null,null,null,null,null,null,null,"INVESTENDO UN CAPITALE ANNUALE CONOSCIUTO, CON O SENZA CAPITALE INIZIALE A UN TASSO DI RIV CONOSCIUTO CHE MONTANTE AVRO' TRA X ANNI?",null,null,null,null,null,null,null,null,null,null,null,null,null,null,null,"INVESTENDO UN CAPITALE ANNUALE CONOSCIUTO, CON O SENZA CAPITALE INIZIALE A UN TASSO DI RIV CONOSCIUTO CHE MONTANTE AVRO' TRA X ANNI?",null,null,null,null,null,null,null,null,null,null,null,null,null,null,null,"INVESTENDO UN CAPITALE ANNUALE CONOSCIUTO, CON O SENZA CAPITALE INIZIALE A UN TASSO DI RIV CONOSCIUTO CHE MONTANTE AVRO' TRA X ANNI?",null,null,null,null,null,null,null,null,null,null,null,null,null,null,null,"INVESTENDO UN CAPITALE ANNUALE CONOSCIUTO, CON O SENZA CAPITALE INIZIALE A UN TASSO DI RIV CONOSCIUTO CHE MONTANTE AVRO' TRA X ANNI?",null,null,null,null,null,null,null,null,null,null,null,null,null,null,null,"INVESTENDO UN CAPITALE ANNUALE CONOSCIUTO, CON O SENZA CAPITALE INIZIALE A UN TASSO DI RIV CONOSCIUTO CHE MONTANTE AVRO' TRA X ANNI?",null,null,null,null,null,null,null,null,null,null,null,null,null,null,null,"INVESTENDO UN CAPITALE ANNUALE CONOSCIUTO, CON O SENZA CAPITALE INIZIALE A UN TASSO DI RIV CONOSCIUTO CHE MONTANTE AVRO' TRA X ANNI?",null,null,null,null,null,null,null,null,null,null,null,null,null,null,null,"INVESTENDO UN CAPITALE ANNUALE CONOSCIUTO, CON O SENZA CAPITALE INIZIALE A UN TASSO DI RIV CONOSCIUTO CHE MONTANTE AVRO' TRA X ANNI?",null,null,null,null,null,null,null,null,null,null,null,null,null,null,null,"INVESTENDO UN CAPITALE ANNUALE CONOSCIUTO, CON O SENZA CAPITALE INIZIALE A UN TASSO DI RIV CONOSCIUTO CHE MONTANTE AVRO' TRA X ANNI?",null,null,null,null,null,null,null,null,null,null,null,null,null,null,null,"INVESTENDO UN CAPITALE ANNUALE CONOSCIUTO, CON O SENZA CAPITALE INIZIALE A UN TASSO DI RIV CONOSCIUTO CHE MONTANTE AVRO' TRA X ANNI?",null,null,null,null,null,null,null,null,null,null,null,null,null,null,null,"INVESTENDO UN CAPITALE ANNUALE CONOSCIUTO, CON O SENZA CAPITALE INIZIALE A UN TASSO DI RIV CONOSCIUTO CHE MONTANTE AVRO' TRA X ANNI?",null,null,null,null,null,null,null,null,null,null,null,null,null,null,null,"INVESTENDO UN CAPITALE ANNUALE CONOSCIUTO, CON O SENZA CAPITALE INIZIALE A UN TASSO DI RIV CONOSCIUTO CHE MONTANTE AVRO' TRA X ANNI?",null,null,null,null,null,null,null,null,null,null,null,null,null,null,null,"INVESTENDO UN CAPITALE ANNUALE CONOSCIUTO, CON O SENZA CAPITALE INIZIALE A UN TASSO DI RIV CONOSCIUTO CHE MONTANTE AVRO' TRA X ANNI?",null,null,null,null,null,null,null,null,null,null,null,null,null,null,null,"INVESTENDO UN CAPITALE ANNUALE CONOSCIUTO, CON O SENZA CAPITALE INIZIALE A UN TASSO DI RIV CONOSCIUTO CHE MONTANTE AVRO' TRA X ANNI?",null,null,null,null,null,null,null,null,null,null,null,null,null,null,null,"INVESTENDO UN CAPITALE ANNUALE CONOSCIUTO, CON O SENZA CAPITALE INIZIALE A UN TASSO DI RIV CONOSCIUTO CHE MONTANTE AVRO' TRA X ANNI?",null,null,null,null,null,null,null,null,null,null,null,null,null,null,null,"INVESTENDO UN CAPITALE ANNUALE CONOSCIUTO, CON O SENZA CAPITALE INIZIALE A UN TASSO DI RIV CONOSCIUTO CHE MONTANTE AVRO' TRA X ANNI?",null,null,null,null,null,null,null,null,null,null,null,null,null,null,null,"INVESTENDO UN CAPITALE ANNUALE CONOSCIUTO, CON O SENZA CAPITALE INIZIALE A UN TASSO DI RIV CONOSCIUTO CHE MONTANTE AVRO' TRA X ANNI?",null,null,null,null,null,null,null,null,null,null,null,null,null,null,null,"INVESTENDO UN CAPITALE ANNUALE CONOSCIUTO, CON O SENZA CAPITALE INIZIALE A UN TASSO DI RIV CONOSCIUTO CHE MONTANTE AVRO' TRA X ANNI?",null,null,null,null,null,null,null,null,null,null,null,null,null,null,null,"INVESTENDO UN CAPITALE ANNUALE CONOSCIUTO, CON O SENZA CAPITALE INIZIALE A UN TASSO DI RIV CONOSCIUTO CHE MONTANTE AVRO' TRA X ANNI?",null,null,null,null,null,null,null,null,null,null,null,null,null,null,null,"INVESTENDO UN CAPITALE ANNUALE CONOSCIUTO, CON O SENZA CAPITALE INIZIALE A UN TASSO DI RIV CONOSCIUTO CHE MONTANTE AVRO' TRA X ANNI?",null,null,null,null,null,null,null,null,null,null,null,null,null,null,null,"INVESTENDO UN CAPITALE ANNUALE CONOSCIUTO, CON O SENZA CAPITALE INIZIALE A UN TASSO DI RIV CONOSCIUTO CHE MONTANTE AVRO' TRA X ANNI?",null,null,null,null,null,null,null,null,null,null,null,null,null,null,null,"INVESTENDO UN CAPITALE ANNUALE CONOSCIUTO, CON O SENZA CAPITALE INIZIALE A UN TASSO DI RIV CONOSCIUTO CHE MONTANTE AVRO' TRA X ANNI?",null,null,null,null,null,null,null,null,null,null,null,null,null,null,null,"INVESTENDO UN CAPITALE ANNUALE CONOSCIUTO, CON O SENZA CAPITALE INIZIALE A UN TASSO DI RIV CONOSCIUTO CHE MONTANTE AVRO' TRA X ANNI?",null,null,null,null,null,null,null,null,null,null,null,null,null,null,null,"INVESTENDO UN CAPITALE ANNUALE CONOSCIUTO, CON O SENZA CAPITALE INIZIALE A UN TASSO DI RIV CONOSCIUTO CHE MONTANTE AVRO' TRA X ANNI?",null,null,null,null,null,null,null,null,null,null,null,null,null,null,null,"INVESTENDO UN CAPITALE ANNUALE CONOSCIUTO, CON O SENZA CAPITALE INIZIALE A UN TASSO DI RIV CONOSCIUTO CHE MONTANTE AVRO' TRA X ANNI?",null,null,null,null,null,null,null,null,null,null,null,null,null,null,null,"INVESTENDO UN CAPITALE ANNUALE CONOSCIUTO, CON O SENZA CAPITALE INIZIALE A UN TASSO DI RIV CONOSCIUTO CHE MONTANTE AVRO' TRA X ANNI?",null,null,null,null,null,null,null,null,null,null,null,null,null,null,null,"INVESTENDO UN CAPITALE ANNUALE CONOSCIUTO, CON O SENZA CAPITALE INIZIALE A UN TASSO DI RIV CONOSCIUTO CHE MONTANTE AVRO' TRA X ANNI?",null,null,null,null,null,null,null,null,null,null,null,null,null,null,null,"INVESTENDO UN CAPITALE ANNUALE CONOSCIUTO, CON O SENZA CAPITALE INIZIALE A UN TASSO DI RIV CONOSCIUTO CHE MONTANTE AVRO' TRA X ANNI?",null,null,null,null,null,null,null,null,null,null,null,null,null,null,null,"INVESTENDO UN CAPITALE ANNUALE CONOSCIUTO, CON O SENZA CAPITALE INIZIALE A UN TASSO DI RIV CONOSCIUTO CHE MONTANTE AVRO' TRA X ANNI?",null,null,null,null,null,null,null,null,null,null,null,null,null,null,null,"INVESTENDO UN CAPITALE ANNUALE CONOSCIUTO, CON O SENZA CAPITALE INIZIALE A UN TASSO DI RIV CONOSCIUTO CHE MONTANTE AVRO' TRA X ANNI?",null,null,null,null,null,null,null,null,null,null,null,null,null,null,null,"INVESTENDO UN CAPITALE ANNUALE CONOSCIUTO, CON O SENZA CAPITALE INIZIALE A UN TASSO DI RIV CONOSCIUTO CHE MONTANTE AVRO' TRA X ANNI?",null,null,null,null,null,null,null,null,null,null,null,null,null,null,null,"INVESTENDO UN CAPITALE ANNUALE CONOSCIUTO, CON O SENZA CAPITALE INIZIALE A UN TASSO DI RIV CONOSCIUTO CHE MONTANTE AVRO' TRA X ANNI?",null,null,null,null,null,null,null,null,null,null,null,null,null,null,null,"INVESTENDO UN CAPITALE ANNUALE CONOSCIUTO, CON O SENZA CAPITALE INIZIALE A UN TASSO DI RIV CONOSCIUTO CHE MONTANTE AVRO' TRA X ANNI?",null,null,null,null,null,null,null,null,null,null,null,null,null,null,null,"INVESTENDO UN CAPITALE ANNUALE CONOSCIUTO, CON O SENZA CAPITALE INIZIALE A UN TASSO DI RIV CONOSCIUTO CHE MONTANTE AVRO' TRA X ANNI?",null,null,null,null,null,null,null,null,null,null,null,null,null,null,null,"INVESTENDO UN CAPITALE ANNUALE CONOSCIUTO, CON O SENZA CAPITALE INIZIALE A UN TASSO DI RIV CONOSCIUTO CHE MONTANTE AVRO' TRA X ANNI?",null,null,null,null,null,null,null,null,null,null,null,null,null,null,null,"INVESTENDO UN CAPITALE ANNUALE CONOSCIUTO, CON O SENZA CAPITALE INIZIALE A UN TASSO DI RIV CONOSCIUTO CHE MONTANTE AVRO' TRA X ANNI?",null,null,null,null,null,null,null,null,null,null,null,null,null,null,null,"INVESTENDO UN CAPITALE ANNUALE CONOSCIUTO, CON O SENZA CAPITALE INIZIALE A UN TASSO DI RIV CONOSCIUTO CHE MONTANTE AVRO' TRA X ANNI?",null,null,null,null,null,null,null,null,null,null,null,null,null,null,null,"INVESTENDO UN CAPITALE ANNUALE CONOSCIUTO, CON O SENZA CAPITALE INIZIALE A UN TASSO DI RIV CONOSCIUTO CHE MONTANTE AVRO' TRA X ANNI?",null,null,null,null,null,null,null,null,null,null,null,null,null,null,null,"INVESTENDO UN CAPITALE ANNUALE CONOSCIUTO, CON O SENZA CAPITALE INIZIALE A UN TASSO DI RIV CONOSCIUTO CHE MONTANTE AVRO' TRA X ANNI?",null,null,null,null,null,null,null,null,null,null,null,null,null,null,null,"INVESTENDO UN CAPITALE ANNUALE CONOSCIUTO, CON O SENZA CAPITALE INIZIALE A UN TASSO DI RIV CONOSCIUTO CHE MONTANTE AVRO' TRA X ANNI?",null,null,null,null,null,null,null,null,null,null,null,null,null,null,null,"INVESTENDO UN CAPITALE ANNUALE CONOSCIUTO, CON O SENZA CAPITALE INIZIALE A UN TASSO DI RIV CONOSCIUTO CHE MONTANTE AVRO' TRA X ANNI?",null,null,null,null,null,null,null,null,null,null,null,null,null,null,null,"INVESTENDO UN CAPITALE ANNUALE CONOSCIUTO, CON O SENZA CAPITALE INIZIALE A UN TASSO DI RIV CONOSCIUTO CHE MONTANTE AVRO' TRA X ANNI?",null,null,null,null,null,null,null,null,null,null,null,null,null,null,null,"INVESTENDO UN CAPITALE ANNUALE CONOSCIUTO, CON O SENZA CAPITALE INIZIALE A UN TASSO DI RIV CONOSCIUTO CHE MONTANTE AVRO' TRA X ANNI?",null,null,null,null,null,null,null,null,null,null,null,null,null,null,null,"INVESTENDO UN CAPITALE ANNUALE CONOSCIUTO, CON O SENZA CAPITALE INIZIALE A UN TASSO DI RIV CONOSCIUTO CHE MONTANTE AVRO' TRA X ANNI?",null,null,null,null,null,null,null,null,null,null,null,null,null,null,null,"INVESTENDO UN CAPITALE ANNUALE CONOSCIUTO, CON O SENZA CAPITALE INIZIALE A UN TASSO DI RIV CONOSCIUTO CHE MONTANTE AVRO' TRA X ANNI?",null,null,null,null,null,null,null,null,null,null,null,null,null,null,null,"INVESTENDO UN CAPITALE ANNUALE CONOSCIUTO, CON O SENZA CAPITALE INIZIALE A UN TASSO DI RIV CONOSCIUTO CHE MONTANTE AVRO' TRA X ANNI?",null,null,null,null,null,null,null,null,null,null,null,null,null,null,null,"INVESTENDO UN CAPITALE ANNUALE CONOSCIUTO, CON O SENZA CAPITALE INIZIALE A UN TASSO DI RIV CONOSCIUTO CHE MONTANTE AVRO' TRA X ANNI?",null,null,null,null,null,null,null,null,null,null,null,null,null,null,null,"INVESTENDO UN CAPITALE ANNUALE CONOSCIUTO, CON O SENZA CAPITALE INIZIALE A UN TASSO DI RIV CONOSCIUTO CHE MONTANTE AVRO' TRA X ANNI?",null,null,null,null,null,null,null,null,null,null,null,null,null,null,null,"INVESTENDO UN CAPITALE ANNUALE CONOSCIUTO, CON O SENZA CAPITALE INIZIALE A UN TASSO DI RIV CONOSCIUTO CHE MONTANTE AVRO' TRA X ANNI?",null,null,null,null,null,null,null,null,null,null,null,null,null,null,null,"INVESTENDO UN CAPITALE ANNUALE CONOSCIUTO, CON O SENZA CAPITALE INIZIALE A UN TASSO DI RIV CONOSCIUTO CHE MONTANTE AVRO' TRA X ANNI?",null,null,null,null,null,null,null,null,null,null,null,null,null,null,null,"INVESTENDO UN CAPITALE ANNUALE CONOSCIUTO, CON O SENZA CAPITALE INIZIALE A UN TASSO DI RIV CONOSCIUTO CHE MONTANTE AVRO' TRA X ANNI?",null,null,null,null,null,null,null,null,null,null,null,null,null,null,null,"INVESTENDO UN CAPITALE ANNUALE CONOSCIUTO, CON O SENZA CAPITALE INIZIALE A UN TASSO DI RIV CONOSCIUTO CHE MONTANTE AVRO' TRA X ANNI?",null,null,null,null,null,null,null,null,null,null,null,null,null,null,null,"INVESTENDO UN CAPITALE ANNUALE CONOSCIUTO, CON O SENZA CAPITALE INIZIALE A UN TASSO DI RIV CONOSCIUTO CHE MONTANTE AVRO' TRA X ANNI?",null,null,null,null,null,null,null,null,null,null,null,null,null,null,null,"INVESTENDO UN CAPITALE ANNUALE CONOSCIUTO, CON O SENZA CAPITALE INIZIALE A UN TASSO DI RIV CONOSCIUTO CHE MONTANTE AVRO' TRA X ANNI?",null,null,null,null,null,null,null,null,null,null,null,null,null,null,null,"INVESTENDO UN CAPITALE ANNUALE CONOSCIUTO, CON O SENZA CAPITALE INIZIALE A UN TASSO DI RIV CONOSCIUTO CHE MONTANTE AVRO' TRA X ANNI?",null,null,null,null,null,null,null,null,null,null,null,null,null,null,null,"INVESTENDO UN CAPITALE ANNUALE CONOSCIUTO, CON O SENZA CAPITALE INIZIALE A UN TASSO DI RIV CONOSCIUTO CHE MONTANTE AVRO' TRA X ANNI?",null,null,null,null,null,null,null,null,null,null,null,null,null,null,null,"INVESTENDO UN CAPITALE ANNUALE CONOSCIUTO, CON O SENZA CAPITALE INIZIALE A UN TASSO DI RIV CONOSCIUTO CHE MONTANTE AVRO' TRA X ANNI?",null,null,null,null,null,null,null,null,null,null,null,null,null,null,null,"INVESTENDO UN CAPITALE ANNUALE CONOSCIUTO, CON O SENZA CAPITALE INIZIALE A UN TASSO DI RIV CONOSCIUTO CHE MONTANTE AVRO' TRA X ANNI?",null,null,null,null,null,null,null,null,null,null,null,null,null,null,null,"INVESTENDO UN CAPITALE ANNUALE CONOSCIUTO, CON O SENZA CAPITALE INIZIALE A UN TASSO DI RIV CONOSCIUTO CHE MONTANTE AVRO' TRA X ANNI?",null,null,null,null,null,null,null,null,null,null,null,null,null,null,null,"INVESTENDO UN CAPITALE ANNUALE CONOSCIUTO, CON O SENZA CAPITALE INIZIALE A UN TASSO DI RIV CONOSCIUTO CHE MONTANTE AVRO' TRA X ANNI?",null,null,null,null,null,null,null,null,null,null,null,null,null,null,null,"INVESTENDO UN CAPITALE ANNUALE CONOSCIUTO, CON O SENZA CAPITALE INIZIALE A UN TASSO DI RIV CONOSCIUTO CHE MONTANTE AVRO' TRA X ANNI?",null,null,null,null,null,null,null,null,null,null,null,null,null,null,null,"INVESTENDO UN CAPITALE ANNUALE CONOSCIUTO, CON O SENZA CAPITALE INIZIALE A UN TASSO DI RIV CONOSCIUTO CHE MONTANTE AVRO' TRA X ANNI?",null,null,null,null,null,null,null,null,null,null,null,null,null,null,null,"INVESTENDO UN CAPITALE ANNUALE CONOSCIUTO, CON O SENZA CAPITALE INIZIALE A UN TASSO DI RIV CONOSCIUTO CHE MONTANTE AVRO' TRA X ANNI?",null,null,null,null,null,null,null,null,null,null,null,null,null,null,null,"INVESTENDO UN CAPITALE ANNUALE CONOSCIUTO, CON O SENZA CAPITALE INIZIALE A UN TASSO DI RIV CONOSCIUTO CHE MONTANTE AVRO' TRA X ANNI?",null,null,null,null,null,null,null,null,null,null,null,null,null,null,null,"INVESTENDO UN CAPITALE ANNUALE CONOSCIUTO, CON O SENZA CAPITALE INIZIALE A UN TASSO DI RIV CONOSCIUTO CHE MONTANTE AVRO' TRA X ANNI?",null,null,null,null,null,null,null,null,null,null,null,null,null,null,null,"INVESTENDO UN CAPITALE ANNUALE CONOSCIUTO, CON O SENZA CAPITALE INIZIALE A UN TASSO DI RIV CONOSCIUTO CHE MONTANTE AVRO' TRA X ANNI?",null,null,null,null,null,null,null,null,null,null,null,null,null,null,null,"INVESTENDO UN CAPITALE ANNUALE CONOSCIUTO, CON O SENZA CAPITALE INIZIALE A UN TASSO DI RIV CONOSCIUTO CHE MONTANTE AVRO' TRA X ANNI?",null,null,null,null,null,null,null,null,null,null,null,null,null,null,null,"INVESTENDO UN CAPITALE ANNUALE CONOSCIUTO, CON O SENZA CAPITALE INIZIALE A UN TASSO DI RIV CONOSCIUTO CHE MONTANTE AVRO' TRA X ANNI?",null,null,null,null,null,null,null,null,null,null,null,null,null,null,null,"INVESTENDO UN CAPITALE ANNUALE CONOSCIUTO, CON O SENZA CAPITALE INIZIALE A UN TASSO DI RIV CONOSCIUTO CHE MONTANTE AVRO' TRA X ANNI?",null,null,null,null,null,null,null,null,null,null,null,null,null,null,null,"INVESTENDO UN CAPITALE ANNUALE CONOSCIUTO, CON O SENZA CAPITALE INIZIALE A UN TASSO DI RIV CONOSCIUTO CHE MONTANTE AVRO' TRA X ANNI?",null,null,null,null,null,null,null,null,null,null,null,null,null,null,null,"INVESTENDO UN CAPITALE ANNUALE CONOSCIUTO, CON O SENZA CAPITALE INIZIALE A UN TASSO DI RIV CONOSCIUTO CHE MONTANTE AVRO' TRA X ANNI?",null,null,null,null,null,null,null,null,null,null,null,null,null,null,null,"INVESTENDO UN CAPITALE ANNUALE CONOSCIUTO, CON O SENZA CAPITALE INIZIALE A UN TASSO DI RIV CONOSCIUTO CHE MONTANTE AVRO' TRA X ANNI?",null,null,null,null,null,null,null,null,null,null,null,null,null,null,null,"INVESTENDO UN CAPITALE ANNUALE CONOSCIUTO, CON O SENZA CAPITALE INIZIALE A UN TASSO DI RIV CONOSCIUTO CHE MONTANTE AVRO' TRA X ANNI?",null,null,null,null,null,null,null,null,null,null,null,null,null,null,null,"INVESTENDO UN CAPITALE ANNUALE CONOSCIUTO, CON O SENZA CAPITALE INIZIALE A UN TASSO DI RIV CONOSCIUTO CHE MONTANTE AVRO' TRA X ANNI?",null,null,null,null,null,null,null,null,null,null,null,null,null,null,null,"INVESTENDO UN CAPITALE ANNUALE CONOSCIUTO, CON O SENZA CAPITALE INIZIALE A UN TASSO DI RIV CONOSCIUTO CHE MONTANTE AVRO' TRA X ANNI?",null,null,null,null,null,null,null,null,null,null,null,null,null,null,null,"INVESTENDO UN CAPITALE ANNUALE CONOSCIUTO, CON O SENZA CAPITALE INIZIALE A UN TASSO DI RIV CONOSCIUTO CHE MONTANTE AVRO' TRA X ANNI?",null,null,null,null,null,null,null,null,null,null,null,null,null,null,null,"INVESTENDO UN CAPITALE ANNUALE CONOSCIUTO, CON O SENZA CAPITALE INIZIALE A UN TASSO DI RIV CONOSCIUTO CHE MONTANTE AVRO' TRA X ANNI?",null,null,null,null,null,null,null,null,null,null,null,null,null,null,null,"INVESTENDO UN CAPITALE ANNUALE CONOSCIUTO, CON O SENZA CAPITALE INIZIALE A UN TASSO DI RIV CONOSCIUTO CHE MONTANTE AVRO' TRA X ANNI?",null,null,null,null,null,null,null,null,null,null,null,null,null,null,null,"INVESTENDO UN CAPITALE ANNUALE CONOSCIUTO, CON O SENZA CAPITALE INIZIALE A UN TASSO DI RIV CONOSCIUTO CHE MONTANTE AVRO' TRA X ANNI?",null,null,null,null,null,null,null,null,null,null,null,null,null,null,null,"INVESTENDO UN CAPITALE ANNUALE CONOSCIUTO, CON O SENZA CAPITALE INIZIALE A UN TASSO DI RIV CONOSCIUTO CHE MONTANTE AVRO' TRA X ANNI?",null,null,null,null,null,null,null,null,null,null,null,null,null,null,null,"INVESTENDO UN CAPITALE ANNUALE CONOSCIUTO, CON O SENZA CAPITALE INIZIALE A UN TASSO DI RIV CONOSCIUTO CHE MONTANTE AVRO' TRA X ANNI?",null,null,null,null,null,null,null,null,null,null,null,null,null,null,null,"INVESTENDO UN CAPITALE ANNUALE CONOSCIUTO, CON O SENZA CAPITALE INIZIALE A UN TASSO DI RIV CONOSCIUTO CHE MONTANTE AVRO' TRA X ANNI?",null,null,null,null,null,null,null,null,null,null,null,null,null,null,null,"INVESTENDO UN CAPITALE ANNUALE CONOSCIUTO, CON O SENZA CAPITALE INIZIALE A UN TASSO DI RIV CONOSCIUTO CHE MONTANTE AVRO' TRA X ANNI?",null,null,null,null,null,null,null,null,null,null,null,null,null,null,null,"INVESTENDO UN CAPITALE ANNUALE CONOSCIUTO, CON O SENZA CAPITALE INIZIALE A UN TASSO DI RIV CONOSCIUTO CHE MONTANTE AVRO' TRA X ANNI?",null,null,null,null,null,null,null,null,null,null,null,null,null,null,null,"INVESTENDO UN CAPITALE ANNUALE CONOSCIUTO, CON O SENZA CAPITALE INIZIALE A UN TASSO DI RIV CONOSCIUTO CHE MONTANTE AVRO' TRA X ANNI?",null,null,null,null,null,null,null,null,null,null,null,null,null,null,null,"INVESTENDO UN CAPITALE ANNUALE CONOSCIUTO, CON O SENZA CAPITALE INIZIALE A UN TASSO DI RIV CONOSCIUTO CHE MONTANTE AVRO' TRA X ANNI?",null,null,null,null,null,null,null,null,null,null,null,null,null,null,null,"INVESTENDO UN CAPITALE ANNUALE CONOSCIUTO, CON O SENZA CAPITALE INIZIALE A UN TASSO DI RIV CONOSCIUTO CHE MONTANTE AVRO' TRA X ANNI?",null,null,null,null,null,null,null,null,null,null,null,null,null,null,null,"INVESTENDO UN CAPITALE ANNUALE CONOSCIUTO, CON O SENZA CAPITALE INIZIALE A UN TASSO DI RIV CONOSCIUTO CHE MONTANTE AVRO' TRA X ANNI?",null,null,null,null,null,null,null,null,null,null,null,null,null,null,null,"INVESTENDO UN CAPITALE ANNUALE CONOSCIUTO, CON O SENZA CAPITALE INIZIALE A UN TASSO DI RIV CONOSCIUTO CHE MONTANTE AVRO' TRA X ANNI?",null,null,null,null,null,null,null,null,null,null,null,null,null,null,null,"INVESTENDO UN CAPITALE ANNUALE CONOSCIUTO, CON O SENZA CAPITALE INIZIALE A UN TASSO DI RIV CONOSCIUTO CHE MONTANTE AVRO' TRA X ANNI?",null,null,null,null,null,null,null,null,null,null,null,null,null,null,null,"INVESTENDO UN CAPITALE ANNUALE CONOSCIUTO, CON O SENZA CAPITALE INIZIALE A UN TASSO DI RIV CONOSCIUTO CHE MONTANTE AVRO' TRA X ANNI?",null,null,null,null,null,null,null,null,null,null,null,null,null,null,null,"INVESTENDO UN CAPITALE ANNUALE CONOSCIUTO, CON O SENZA CAPITALE INIZIALE A UN TASSO DI RIV CONOSCIUTO CHE MONTANTE AVRO' TRA X ANNI?",null,null,null,null,null,null,null,null,null,null,null,null,null,null,null,"INVESTENDO UN CAPITALE ANNUALE CONOSCIUTO, CON O SENZA CAPITALE INIZIALE A UN TASSO DI RIV CONOSCIUTO CHE MONTANTE AVRO' TRA X ANNI?",null,null,null,null,null,null,null,null,null,null,null,null,null,null,null,"INVESTENDO UN CAPITALE ANNUALE CONOSCIUTO, CON O SENZA CAPITALE INIZIALE A UN TASSO DI RIV CONOSCIUTO CHE MONTANTE AVRO' TRA X ANNI?",null,null,null,null,null,null,null,null,null,null,null,null,null,null,null,"INVESTENDO UN CAPITALE ANNUALE CONOSCIUTO, CON O SENZA CAPITALE INIZIALE A UN TASSO DI RIV CONOSCIUTO CHE MONTANTE AVRO' TRA X ANNI?",null,null,null,null,null,null,null,null,null,null,null,null,null,null,null,"INVESTENDO UN CAPITALE ANNUALE CONOSCIUTO, CON O SENZA CAPITALE INIZIALE A UN TASSO DI RIV CONOSCIUTO CHE MONTANTE AVRO' TRA X ANNI?",null,null,null,null,null,null,null,null,null,null,null,null,null,null,null,"INVESTENDO UN CAPITALE ANNUALE CONOSCIUTO, CON O SENZA CAPITALE INIZIALE A UN TASSO DI RIV CONOSCIUTO CHE MONTANTE AVRO' TRA X ANNI?",null,null,null,null,null,null,null,null,null,null,null,null,null,null,null,"INVESTENDO UN CAPITALE ANNUALE CONOSCIUTO, CON O SENZA CAPITALE INIZIALE A UN TASSO DI RIV CONOSCIUTO CHE MONTANTE AVRO' TRA X ANNI?",null,null,null,null,null,null,null,null,null,null,null,null,null,null,null,"INVESTENDO UN CAPITALE ANNUALE CONOSCIUTO, CON O SENZA CAPITALE INIZIALE A UN TASSO DI RIV CONOSCIUTO CHE MONTANTE AVRO' TRA X ANNI?",null,null,null,null,null,null,null,null,null,null,null,null,null,null,null,"INVESTENDO UN CAPITALE ANNUALE CONOSCIUTO, CON O SENZA CAPITALE INIZIALE A UN TASSO DI RIV CONOSCIUTO CHE MONTANTE AVRO' TRA X ANNI?",null,null,null,null,null,null,null,null,null,null,null,null,null,null,null,"INVESTENDO UN CAPITALE ANNUALE CONOSCIUTO, CON O SENZA CAPITALE INIZIALE A UN TASSO DI RIV CONOSCIUTO CHE MONTANTE AVRO' TRA X ANNI?",null,null,null,null,null,null,null,null,null,null,null,null,null,null,null,"INVESTENDO UN CAPITALE ANNUALE CONOSCIUTO, CON O SENZA CAPITALE INIZIALE A UN TASSO DI RIV CONOSCIUTO CHE MONTANTE AVRO' TRA X ANNI?",null,null,null,null,null,null,null,null,null,null,null,null,null,null,null,"INVESTENDO UN CAPITALE ANNUALE CONOSCIUTO, CON O SENZA CAPITALE INIZIALE A UN TASSO DI RIV CONOSCIUTO CHE MONTANTE AVRO' TRA X ANNI?",null,null,null,null,null,null,null,null,null,null,null,null,null,null,null,"INVESTENDO UN CAPITALE ANNUALE CONOSCIUTO, CON O SENZA CAPITALE INIZIALE A UN TASSO DI RIV CONOSCIUTO CHE MONTANTE AVRO' TRA X ANNI?",null,null,null,null,null,null,null,null,null,null,null,null,null,null,null,"INVESTENDO UN CAPITALE ANNUALE CONOSCIUTO, CON O SENZA CAPITALE INIZIALE A UN TASSO DI RIV CONOSCIUTO CHE MONTANTE AVRO' TRA X ANNI?",null,null,null,null,null,null,null,null,null,null,null,null,null,null,null,"INVESTENDO UN CAPITALE ANNUALE CONOSCIUTO, CON O SENZA CAPITALE INIZIALE A UN TASSO DI RIV CONOSCIUTO CHE MONTANTE AVRO' TRA X ANNI?",null,null,null,null,null,null,null,null,null,null,null,null,null,null,null,"INVESTENDO UN CAPITALE ANNUALE CONOSCIUTO, CON O SENZA CAPITALE INIZIALE A UN TASSO DI RIV CONOSCIUTO CHE MONTANTE AVRO' TRA X ANNI?",null,null,null,null,null,null,null,null,null,null,null,null,null,null,null,"INVESTENDO UN CAPITALE ANNUALE CONOSCIUTO, CON O SENZA CAPITALE INIZIALE A UN TASSO DI RIV CONOSCIUTO CHE MONTANTE AVRO' TRA X ANNI?",null,null,null,null,null,null,null,null,null,null,null,null,null,null,null,"INVESTENDO UN CAPITALE ANNUALE CONOSCIUTO, CON O SENZA CAPITALE INIZIALE A UN TASSO DI RIV CONOSCIUTO CHE MONTANTE AVRO' TRA X ANNI?",null,null,null,null,null,null,null,null,null,null,null,null,null,null,null,"INVESTENDO UN CAPITALE ANNUALE CONOSCIUTO, CON O SENZA CAPITALE INIZIALE A UN TASSO DI RIV CONOSCIUTO CHE MONTANTE AVRO' TRA X ANNI?",null,null,null,null,null,null,null,null,null,null,null,null,null,null,null,"INVESTENDO UN CAPITALE ANNUALE CONOSCIUTO, CON O SENZA CAPITALE INIZIALE A UN TASSO DI RIV CONOSCIUTO CHE MONTANTE AVRO' TRA X ANNI?",null,null,null,null,null,null,null,null,null,null,null,null,null,null,null,"INVESTENDO UN CAPITALE ANNUALE CONOSCIUTO, CON O SENZA CAPITALE INIZIALE A UN TASSO DI RIV CONOSCIUTO CHE MONTANTE AVRO' TRA X ANNI?",null,null,null,null,null,null,null,null,null,null,null,null,null,null,null,"INVESTENDO UN CAPITALE ANNUALE CONOSCIUTO, CON O SENZA CAPITALE INIZIALE A UN TASSO DI RIV CONOSCIUTO CHE MONTANTE AVRO' TRA X ANNI?",null,null,null,null,null,null,null,null,null,null,null,null,null,null,null,"INVESTENDO UN CAPITALE ANNUALE CONOSCIUTO, CON O SENZA CAPITALE INIZIALE A UN TASSO DI RIV CONOSCIUTO CHE MONTANTE AVRO' TRA X ANNI?",null,null,null,null,null,null,null,null,null,null,null,null,null,null,null,"INVESTENDO UN CAPITALE ANNUALE CONOSCIUTO, CON O SENZA CAPITALE INIZIALE A UN TASSO DI RIV CONOSCIUTO CHE MONTANTE AVRO' TRA X ANNI?",null,null,null,null,null,null,null,null,null,null,null,null,null,null,null,"INVESTENDO UN CAPITALE ANNUALE CONOSCIUTO, CON O SENZA CAPITALE INIZIALE A UN TASSO DI RIV CONOSCIUTO CHE MONTANTE AVRO' TRA X ANNI?",null,null,null,null,null,null,null,null,null,null,null,null,null,null,null,"INVESTENDO UN CAPITALE ANNUALE CONOSCIUTO, CON O SENZA CAPITALE INIZIALE A UN TASSO DI RIV CONOSCIUTO CHE MONTANTE AVRO' TRA X ANNI?",null,null,null,null,null,null,null,null,null,null,null,null,null,null,null,"INVESTENDO UN CAPITALE ANNUALE CONOSCIUTO, CON O SENZA CAPITALE INIZIALE A UN TASSO DI RIV CONOSCIUTO CHE MONTANTE AVRO' TRA X ANNI?",null,null,null,null,null,null,null,null,null,null,null,null,null,null,null,"INVESTENDO UN CAPITALE ANNUALE CONOSCIUTO, CON O SENZA CAPITALE INIZIALE A UN TASSO DI RIV CONOSCIUTO CHE MONTANTE AVRO' TRA X ANNI?",null,null,null,null,null,null,null,null,null,null,null,null,null,null,null,"INVESTENDO UN CAPITALE ANNUALE CONOSCIUTO, CON O SENZA CAPITALE INIZIALE A UN TASSO DI RIV CONOSCIUTO CHE MONTANTE AVRO' TRA X ANNI?",null,null,null,null,null,null,null,null,null,null,null,null,null,null,null,"INVESTENDO UN CAPITALE ANNUALE CONOSCIUTO, CON O SENZA CAPITALE INIZIALE A UN TASSO DI RIV CONOSCIUTO CHE MONTANTE AVRO' TRA X ANNI?",null,null,null,null,null,null,null,null,null,null,null,null,null,null,null,"INVESTENDO UN CAPITALE ANNUALE CONOSCIUTO, CON O SENZA CAPITALE INIZIALE A UN TASSO DI RIV CONOSCIUTO CHE MONTANTE AVRO' TRA X ANNI?",null,null,null,null,null,null,null,null,null,null,null,null,null,null,null,"INVESTENDO UN CAPITALE ANNUALE CONOSCIUTO, CON O SENZA CAPITALE INIZIALE A UN TASSO DI RIV CONOSCIUTO CHE MONTANTE AVRO' TRA X ANNI?",null,null,null,null,null,null,null,null,null,null,null,null,null,null,null,"INVESTENDO UN CAPITALE ANNUALE CONOSCIUTO, CON O SENZA CAPITALE INIZIALE A UN TASSO DI RIV CONOSCIUTO CHE MONTANTE AVRO' TRA X ANNI?",null,null,null,null,null,null,null,null,null,null,null,null,null,null,null,"INVESTENDO UN CAPITALE ANNUALE CONOSCIUTO, CON O SENZA CAPITALE INIZIALE A UN TASSO DI RIV CONOSCIUTO CHE MONTANTE AVRO' TRA X ANNI?",null,null,null,null,null,null,null,null,null,null,null,null,null,null,null,"INVESTENDO UN CAPITALE ANNUALE CONOSCIUTO, CON O SENZA CAPITALE INIZIALE A UN TASSO DI RIV CONOSCIUTO CHE MONTANTE AVRO' TRA X ANNI?",null,null,null,null,null,null,null,null,null,null,null,null,null,null,null,"INVESTENDO UN CAPITALE ANNUALE CONOSCIUTO, CON O SENZA CAPITALE INIZIALE A UN TASSO DI RIV CONOSCIUTO CHE MONTANTE AVRO' TRA X ANNI?",null,null,null,null,null,null,null,null,null,null,null,null,null,null,null,"INVESTENDO UN CAPITALE ANNUALE CONOSCIUTO, CON O SENZA CAPITALE INIZIALE A UN TASSO DI RIV CONOSCIUTO CHE MONTANTE AVRO' TRA X ANNI?",null,null,null,null,null,null,null,null,null,null,null,null,null,null,null,"INVESTENDO UN CAPITALE ANNUALE CONOSCIUTO, CON O SENZA CAPITALE INIZIALE A UN TASSO DI RIV CONOSCIUTO CHE MONTANTE AVRO' TRA X ANNI?",null,null,null,null,null,null,null,null,null,null,null,null,null,null,null,"INVESTENDO UN CAPITALE ANNUALE CONOSCIUTO, CON O SENZA CAPITALE INIZIALE A UN TASSO DI RIV CONOSCIUTO CHE MONTANTE AVRO' TRA X ANNI?",null,null,null,null,null,null,null,null,null,null,null,null,null,null,null,"INVESTENDO UN CAPITALE ANNUALE CONOSCIUTO, CON O SENZA CAPITALE INIZIALE A UN TASSO DI RIV CONOSCIUTO CHE MONTANTE AVRO' TRA X ANNI?",null,null,null,null,null,null,null,null,null,null,null,null,null,null,null,"INVESTENDO UN CAPITALE ANNUALE CONOSCIUTO, CON O SENZA CAPITALE INIZIALE A UN TASSO DI RIV CONOSCIUTO CHE MONTANTE AVRO' TRA X ANNI?",null,null,null,null,null,null,null,null,null,null,null,null,null,null,null,"INVESTENDO UN CAPITALE ANNUALE CONOSCIUTO, CON O SENZA CAPITALE INIZIALE A UN TASSO DI RIV CONOSCIUTO CHE MONTANTE AVRO' TRA X ANNI?",null,null,null,null,null,null,null,null,null,null,null,null,null,null,null,"INVESTENDO UN CAPITALE ANNUALE CONOSCIUTO, CON O SENZA CAPITALE INIZIALE A UN TASSO DI RIV CONOSCIUTO CHE MONTANTE AVRO' TRA X ANNI?",null,null,null,null,null,null,null,null,null,null,null,null,null,null,null,"INVESTENDO UN CAPITALE ANNUALE CONOSCIUTO, CON O SENZA CAPITALE INIZIALE A UN TASSO DI RIV CONOSCIUTO CHE MONTANTE AVRO' TRA X ANNI?",null,null,null,null,null,null,null,null,null,null,null,null,null,null,null,"INVESTENDO UN CAPITALE ANNUALE CONOSCIUTO, CON O SENZA CAPITALE INIZIALE A UN TASSO DI RIV CONOSCIUTO CHE MONTANTE AVRO' TRA X ANNI?",null,null,null,null,null,null,null,null,null,null,null,null,null,null,null,"INVESTENDO UN CAPITALE ANNUALE CONOSCIUTO, CON O SENZA CAPITALE INIZIALE A UN TASSO DI RIV CONOSCIUTO CHE MONTANTE AVRO' TRA X ANNI?",null,null,null,null,null,null,null,null,null,null,null,null,null,null,null,"INVESTENDO UN CAPITALE ANNUALE CONOSCIUTO, CON O SENZA CAPITALE INIZIALE A UN TASSO DI RIV CONOSCIUTO CHE MONTANTE AVRO' TRA X ANNI?",null,null,null,null,null,null,null,null,null,null,null,null,null,null,null,"INVESTENDO UN CAPITALE ANNUALE CONOSCIUTO, CON O SENZA CAPITALE INIZIALE A UN TASSO DI RIV CONOSCIUTO CHE MONTANTE AVRO' TRA X ANNI?",null,null,null,null,null,null,null,null,null,null,null,null,null,null,null,"INVESTENDO UN CAPITALE ANNUALE CONOSCIUTO, CON O SENZA CAPITALE INIZIALE A UN TASSO DI RIV CONOSCIUTO CHE MONTANTE AVRO' TRA X ANNI?",null,null,null,null,null,null,null,null,null,null,null,null,null,null,null,"INVESTENDO UN CAPITALE ANNUALE CONOSCIUTO, CON O SENZA CAPITALE INIZIALE A UN TASSO DI RIV CONOSCIUTO CHE MONTANTE AVRO' TRA X ANNI?",null,null,null,null,null,null,null,null,null,null,null,null,null,null,null,"INVESTENDO UN CAPITALE ANNUALE CONOSCIUTO, CON O SENZA CAPITALE INIZIALE A UN TASSO DI RIV CONOSCIUTO CHE MONTANTE AVRO' TRA X ANNI?",null,null,null,null,null,null,null,null,null,null,null,null,null,null,null,"INVESTENDO UN CAPITALE ANNUALE CONOSCIUTO, CON O SENZA CAPITALE INIZIALE A UN TASSO DI RIV CONOSCIUTO CHE MONTANTE AVRO' TRA X ANNI?",null,null,null,null,null,null,null,null,null,null,null,null,null,null,null,"INVESTENDO UN CAPITALE ANNUALE CONOSCIUTO, CON O SENZA CAPITALE INIZIALE A UN TASSO DI RIV CONOSCIUTO CHE MONTANTE AVRO' TRA X ANNI?",null,null,null,null,null,null,null,null,null,null,null,null,null,null,null,"INVESTENDO UN CAPITALE ANNUALE CONOSCIUTO, CON O SENZA CAPITALE INIZIALE A UN TASSO DI RIV CONOSCIUTO CHE MONTANTE AVRO' TRA X ANNI?",null,null,null,null,null,null,null,null,null,null,null,null,null,null,null,"INVESTENDO UN CAPITALE ANNUALE CONOSCIUTO, CON O SENZA CAPITALE INIZIALE A UN TASSO DI RIV CONOSCIUTO CHE MONTANTE AVRO' TRA X ANNI?",null,null,null,null,null,null,null,null,null,null,null,null,null,null,null,"INVESTENDO UN CAPITALE ANNUALE CONOSCIUTO, CON O SENZA CAPITALE INIZIALE A UN TASSO DI RIV CONOSCIUTO CHE MONTANTE AVRO' TRA X ANNI?",null,null,null,null,null,null,null,null,null,null,null,null,null,null,null,"INVESTENDO UN CAPITALE ANNUALE CONOSCIUTO, CON O SENZA CAPITALE INIZIALE A UN TASSO DI RIV CONOSCIUTO CHE MONTANTE AVRO' TRA X ANNI?",null,null,null,null,null,null,null,null,null,null,null,null,null,null,null,"INVESTENDO UN CAPITALE ANNUALE CONOSCIUTO, CON O SENZA CAPITALE INIZIALE A UN TASSO DI RIV CONOSCIUTO CHE MONTANTE AVRO' TRA X ANNI?",null,null,null,null,null,null,null,null,null,null,null,null,null,null,null,"INVESTENDO UN CAPITALE ANNUALE CONOSCIUTO, CON O SENZA CAPITALE INIZIALE A UN TASSO DI RIV CONOSCIUTO CHE MONTANTE AVRO' TRA X ANNI?",null,null,null,null,null,null,null,null,null,null,null,null,null,null,null,"INVESTENDO UN CAPITALE ANNUALE CONOSCIUTO, CON O SENZA CAPITALE INIZIALE A UN TASSO DI RIV CONOSCIUTO CHE MONTANTE AVRO' TRA X ANNI?",null,null,null,null,null,null,null,null,null,null,null,null,null,null,null,"INVESTENDO UN CAPITALE ANNUALE CONOSCIUTO, CON O SENZA CAPITALE INIZIALE A UN TASSO DI RIV CONOSCIUTO CHE MONTANTE AVRO' TRA X ANNI?",null,null,null,null,null,null,null,null,null,null,null,null,null,null,null,"INVESTENDO UN CAPITALE ANNUALE CONOSCIUTO, CON O SENZA CAPITALE INIZIALE A UN TASSO DI RIV CONOSCIUTO CHE MONTANTE AVRO' TRA X ANNI?",null,null,null,null,null,null,null,null,null,null,null,null,null,null,null,"INVESTENDO UN CAPITALE ANNUALE CONOSCIUTO, CON O SENZA CAPITALE INIZIALE A UN TASSO DI RIV CONOSCIUTO CHE MONTANTE AVRO' TRA X ANNI?",null,null,null,null,null,null,null,null,null,null,null,null,null,null,null,"INVESTENDO UN CAPITALE ANNUALE CONOSCIUTO, CON O SENZA CAPITALE INIZIALE A UN TASSO DI RIV CONOSCIUTO CHE MONTANTE AVRO' TRA X ANNI?",null,null,null,null,null,null,null,null,null,null,null,null,null,null,null,"INVESTENDO UN CAPITALE ANNUALE CONOSCIUTO, CON O SENZA CAPITALE INIZIALE A UN TASSO DI RIV CONOSCIUTO CHE MONTANTE AVRO' TRA X ANNI?",null,null,null,null,null,null,null,null,null,null,null,null,null,null,null,"INVESTENDO UN CAPITALE ANNUALE CONOSCIUTO, CON O SENZA CAPITALE INIZIALE A UN TASSO DI RIV CONOSCIUTO CHE MONTANTE AVRO' TRA X ANNI?",null,null,null,null,null,null,null,null,null,null,null,null,null,null,null,"INVESTENDO UN CAPITALE ANNUALE CONOSCIUTO, CON O SENZA CAPITALE INIZIALE A UN TASSO DI RIV CONOSCIUTO CHE MONTANTE AVRO' TRA X ANNI?",null,null,null,null,null,null,null,null,null,null,null,null,null,null,null,"INVESTENDO UN CAPITALE ANNUALE CONOSCIUTO, CON O SENZA CAPITALE INIZIALE A UN TASSO DI RIV CONOSCIUTO CHE MONTANTE AVRO' TRA X ANNI?",null,null,null,null,null,null,null,null,null,null,null,null,null,null,null,"INVESTENDO UN CAPITALE ANNUALE CONOSCIUTO, CON O SENZA CAPITALE INIZIALE A UN TASSO DI RIV CONOSCIUTO CHE MONTANTE AVRO' TRA X ANNI?",null,null,null,null,null,null,null,null,null,null,null,null,null,null,null,"INVESTENDO UN CAPITALE ANNUALE CONOSCIUTO, CON O SENZA CAPITALE INIZIALE A UN TASSO DI RIV CONOSCIUTO CHE MONTANTE AVRO' TRA X ANNI?",null,null,null,null,null,null,null,null,null,null,null,null,null,null,null,"INVESTENDO UN CAPITALE ANNUALE CONOSCIUTO, CON O SENZA CAPITALE INIZIALE A UN TASSO DI RIV CONOSCIUTO CHE MONTANTE AVRO' TRA X ANNI?",null,null,null,null,null,null,null,null,null,null,null,null,null,null,null,"INVESTENDO UN CAPITALE ANNUALE CONOSCIUTO, CON O SENZA CAPITALE INIZIALE A UN TASSO DI RIV CONOSCIUTO CHE MONTANTE AVRO' TRA X ANNI?",null,null,null,null,null,null,null,null,null,null,null,null,null,null,null,"INVESTENDO UN CAPITALE ANNUALE CONOSCIUTO, CON O SENZA CAPITALE INIZIALE A UN TASSO DI RIV CONOSCIUTO CHE MONTANTE AVRO' TRA X ANNI?",null,null,null,null,null,null,null,null,null,null,null,null,null,null,null,"INVESTENDO UN CAPITALE ANNUALE CONOSCIUTO, CON O SENZA CAPITALE INIZIALE A UN TASSO DI RIV CONOSCIUTO CHE MONTANTE AVRO' TRA X ANNI?",null,null,null,null,null,null,null,null,null,null,null,null,null,null,null,"INVESTENDO UN CAPITALE ANNUALE CONOSCIUTO, CON O SENZA CAPITALE INIZIALE A UN TASSO DI RIV CONOSCIUTO CHE MONTANTE AVRO' TRA X ANNI?",null,null,null,null,null,null,null,null,null,null,null,null,null,null,null,"INVESTENDO UN CAPITALE ANNUALE CONOSCIUTO, CON O SENZA CAPITALE INIZIALE A UN TASSO DI RIV CONOSCIUTO CHE MONTANTE AVRO' TRA X ANNI?",null,null,null,null,null,null,null,null,null,null,null,null,null,null,null,"INVESTENDO UN CAPITALE ANNUALE CONOSCIUTO, CON O SENZA CAPITALE INIZIALE A UN TASSO DI RIV CONOSCIUTO CHE MONTANTE AVRO' TRA X ANNI?",null,null,null,null,null,null,null,null,null,null,null,null,null,null,null,"INVESTENDO UN CAPITALE ANNUALE CONOSCIUTO, CON O SENZA CAPITALE INIZIALE A UN TASSO DI RIV CONOSCIUTO CHE MONTANTE AVRO' TRA X ANNI?",null,null,null,null,null,null,null,null,null,null,null,null,null,null,null,"INVESTENDO UN CAPITALE ANNUALE CONOSCIUTO, CON O SENZA CAPITALE INIZIALE A UN TASSO DI RIV CONOSCIUTO CHE MONTANTE AVRO' TRA X ANNI?",null,null,null,null,null,null,null,null,null,null,null,null,null,null,null,"INVESTENDO UN CAPITALE ANNUALE CONOSCIUTO, CON O SENZA CAPITALE INIZIALE A UN TASSO DI RIV CONOSCIUTO CHE MONTANTE AVRO' TRA X ANNI?",null,null,null,null,null,null,null,null,null,null,null,null,null,null,null,"INVESTENDO UN CAPITALE ANNUALE CONOSCIUTO, CON O SENZA CAPITALE INIZIALE A UN TASSO DI RIV CONOSCIUTO CHE MONTANTE AVRO' TRA X ANNI?",null,null,null,null,null,null,null,null,null,null,null,null,null,null,null,"INVESTENDO UN CAPITALE ANNUALE CONOSCIUTO, CON O SENZA CAPITALE INIZIALE A UN TASSO DI RIV CONOSCIUTO CHE MONTANTE AVRO' TRA X ANNI?",null,null,null,null,null,null,null,null,null,null,null,null,null,null,null,"INVESTENDO UN CAPITALE ANNUALE CONOSCIUTO, CON O SENZA CAPITALE INIZIALE A UN TASSO DI RIV CONOSCIUTO CHE MONTANTE AVRO' TRA X ANNI?",null,null,null,null,null,null,null,null,null,null,null,null,null,null,null,"INVESTENDO UN CAPITALE ANNUALE CONOSCIUTO, CON O SENZA CAPITALE INIZIALE A UN TASSO DI RIV CONOSCIUTO CHE MONTANTE AVRO' TRA X ANNI?",null,null,null,null,null,null,null,null,null,null,null,null,null,null,null,"INVESTENDO UN CAPITALE ANNUALE CONOSCIUTO, CON O SENZA CAPITALE INIZIALE A UN TASSO DI RIV CONOSCIUTO CHE MONTANTE AVRO' TRA X ANNI?",null,null,null,null,null,null,null,null,null,null,null,null,null,null,null,"INVESTENDO UN CAPITALE ANNUALE CONOSCIUTO, CON O SENZA CAPITALE INIZIALE A UN TASSO DI RIV CONOSCIUTO CHE MONTANTE AVRO' TRA X ANNI?",null,null,null,null,null,null,null,null,null,null,null,null,null,null,null,"INVESTENDO UN CAPITALE ANNUALE CONOSCIUTO, CON O SENZA CAPITALE INIZIALE A UN TASSO DI RIV CONOSCIUTO CHE MONTANTE AVRO' TRA X ANNI?",null,null,null,null,null,null,null,null,null,null,null,null,null,null,null,"INVESTENDO UN CAPITALE ANNUALE CONOSCIUTO, CON O SENZA CAPITALE INIZIALE A UN TASSO DI RIV CONOSCIUTO CHE MONTANTE AVRO' TRA X ANNI?",null,null,null,null,null,null,null,null,null,null,null,null,null,null,null,"INVESTENDO UN CAPITALE ANNUALE CONOSCIUTO, CON O SENZA CAPITALE INIZIALE A UN TASSO DI RIV CONOSCIUTO CHE MONTANTE AVRO' TRA X ANNI?",null,null,null,null,null,null,null,null,null,null,null,null,null,null,null,"INVESTENDO UN CAPITALE ANNUALE CONOSCIUTO, CON O SENZA CAPITALE INIZIALE A UN TASSO DI RIV CONOSCIUTO CHE MONTANTE AVRO' TRA X ANNI?",null,null,null,null,null,null,null,null,null,null,null,null,null,null,null,"INVESTENDO UN CAPITALE ANNUALE CONOSCIUTO, CON O SENZA CAPITALE INIZIALE A UN TASSO DI RIV CONOSCIUTO CHE MONTANTE AVRO' TRA X ANNI?",null,null,null,null,null,null,null,null,null,null,null,null,null,null,null,"INVESTENDO UN CAPITALE ANNUALE CONOSCIUTO, CON O SENZA CAPITALE INIZIALE A UN TASSO DI RIV CONOSCIUTO CHE MONTANTE AVRO' TRA X ANNI?",null,null,null,null,null,null,null,null,null,null,null,null,null,null,null,"INVESTENDO UN CAPITALE ANNUALE CONOSCIUTO, CON O SENZA CAPITALE INIZIALE A UN TASSO DI RIV CONOSCIUTO CHE MONTANTE AVRO' TRA X ANNI?",null,null,null,null,null,null,null,null,null,null,null,null,null,null,null,"INVESTENDO UN CAPITALE ANNUALE CONOSCIUTO, CON O SENZA CAPITALE INIZIALE A UN TASSO DI RIV CONOSCIUTO CHE MONTANTE AVRO' TRA X ANNI?",null,null,null,null,null,null,null,null,null,null,null,null,null,null,null,"INVESTENDO UN CAPITALE ANNUALE CONOSCIUTO, CON O SENZA CAPITALE INIZIALE A UN TASSO DI RIV CONOSCIUTO CHE MONTANTE AVRO' TRA X ANNI?",null,null,null,null,null,null,null,null,null,null,null,null,null,null,null,"INVESTENDO UN CAPITALE ANNUALE CONOSCIUTO, CON O SENZA CAPITALE INIZIALE A UN TASSO DI RIV CONOSCIUTO CHE MONTANTE AVRO' TRA X ANNI?",null,null,null,null,null,null,null,null,null,null,null,null,null,null,null,"INVESTENDO UN CAPITALE ANNUALE CONOSCIUTO, CON O SENZA CAPITALE INIZIALE A UN TASSO DI RIV CONOSCIUTO CHE MONTANTE AVRO' TRA X ANNI?",null,null,null,null,null,null,null,null,null,null,null,null,null,null,null,"INVESTENDO UN CAPITALE ANNUALE CONOSCIUTO, CON O SENZA CAPITALE INIZIALE A UN TASSO DI RIV CONOSCIUTO CHE MONTANTE AVRO' TRA X ANNI?",null,null,null,null,null,null,null,null,null,null,null,null,null,null,null,"INVESTENDO UN CAPITALE ANNUALE CONOSCIUTO, CON O SENZA CAPITALE INIZIALE A UN TASSO DI RIV CONOSCIUTO CHE MONTANTE AVRO' TRA X ANNI?",null,null,null,null,null,null,null,null,null,null,null,null,null,null,null,"INVESTENDO UN CAPITALE ANNUALE CONOSCIUTO, CON O SENZA CAPITALE INIZIALE A UN TASSO DI RIV CONOSCIUTO CHE MONTANTE AVRO' TRA X ANNI?",null,null,null,null,null,null,null,null,null,null,null,null,null,null,null,"INVESTENDO UN CAPITALE ANNUALE CONOSCIUTO, CON O SENZA CAPITALE INIZIALE A UN TASSO DI RIV CONOSCIUTO CHE MONTANTE AVRO' TRA X ANNI?",null,null,null,null,null,null,null,null,null,null,null,null,null,null,null,"INVESTENDO UN CAPITALE ANNUALE CONOSCIUTO, CON O SENZA CAPITALE INIZIALE A UN TASSO DI RIV CONOSCIUTO CHE MONTANTE AVRO' TRA X ANNI?",null,null,null,null,null,null,null,null,null,null,null,null,null,null,null,"INVESTENDO UN CAPITALE ANNUALE CONOSCIUTO, CON O SENZA CAPITALE INIZIALE A UN TASSO DI RIV CONOSCIUTO CHE MONTANTE AVRO' TRA X ANNI?",null,null,null,null,null,null,null,null,null,null,null,null,null,null,null,"INVESTENDO UN CAPITALE ANNUALE CONOSCIUTO, CON O SENZA CAPITALE INIZIALE A UN TASSO DI RIV CONOSCIUTO CHE MONTANTE AVRO' TRA X ANNI?",null,null,null,null,null,null,null,null,null,null,null,null,null,null,null,"INVESTENDO UN CAPITALE ANNUALE CONOSCIUTO, CON O SENZA CAPITALE INIZIALE A UN TASSO DI RIV CONOSCIUTO CHE MONTANTE AVRO' TRA X ANNI?",null,null,null,null,null,null,null,null,null,null,null,null,null,null,null,"INVESTENDO UN CAPITALE ANNUALE CONOSCIUTO, CON O SENZA CAPITALE INIZIALE A UN TASSO DI RIV CONOSCIUTO CHE MONTANTE AVRO' TRA X ANNI?",null,null,null,null,null,null,null,null,null,null,null,null,null,null,null,"INVESTENDO UN CAPITALE ANNUALE CONOSCIUTO, CON O SENZA CAPITALE INIZIALE A UN TASSO DI RIV CONOSCIUTO CHE MONTANTE AVRO' TRA X ANNI?",null,null,null,null,null,null,null,null,null,null,null,null,null,null,null,"INVESTENDO UN CAPITALE ANNUALE CONOSCIUTO, CON O SENZA CAPITALE INIZIALE A UN TASSO DI RIV CONOSCIUTO CHE MONTANTE AVRO' TRA X ANNI?",null,null,null,null,null,null,null,null,null,null,null,null,null,null,null,"INVESTENDO UN CAPITALE ANNUALE CONOSCIUTO, CON O SENZA CAPITALE INIZIALE A UN TASSO DI RIV CONOSCIUTO CHE MONTANTE AVRO' TRA X ANNI?",null,null,null,null,null,null,null,null,null,null,null,null,null,null,null,"INVESTENDO UN CAPITALE ANNUALE CONOSCIUTO, CON O SENZA CAPITALE INIZIALE A UN TASSO DI RIV CONOSCIUTO CHE MONTANTE AVRO' TRA X ANNI?",null,null,null,null,null,null,null,null,null,null,null,null,null,null,null,"INVESTENDO UN CAPITALE ANNUALE CONOSCIUTO, CON O SENZA CAPITALE INIZIALE A UN TASSO DI RIV CONOSCIUTO CHE MONTANTE AVRO' TRA X ANNI?",null,null,null,null,null,null,null,null,null,null,null,null,null,null,null,"INVESTENDO UN CAPITALE ANNUALE CONOSCIUTO, CON O SENZA CAPITALE INIZIALE A UN TASSO DI RIV CONOSCIUTO CHE MONTANTE AVRO' TRA X ANNI?",null,null,null,null,null,null,null,null,null,null,null,null,null,null,null,"INVESTENDO UN CAPITALE ANNUALE CONOSCIUTO, CON O SENZA CAPITALE INIZIALE A UN TASSO DI RIV CONOSCIUTO CHE MONTANTE AVRO' TRA X ANNI?",null,null,null,null,null,null,null,null,null,null,null,null,null,null,null,"INVESTENDO UN CAPITALE ANNUALE CONOSCIUTO, CON O SENZA CAPITALE INIZIALE A UN TASSO DI RIV CONOSCIUTO CHE MONTANTE AVRO' TRA X ANNI?",null,null,null,null,null,null,null,null,null,null,null,null,null,null,null,"INVESTENDO UN CAPITALE ANNUALE CONOSCIUTO, CON O SENZA CAPITALE INIZIALE A UN TASSO DI RIV CONOSCIUTO CHE MONTANTE AVRO' TRA X ANNI?",null,null,null,null,null,null,null,null,null,null,null,null,null,null,null,"INVESTENDO UN CAPITALE ANNUALE CONOSCIUTO, CON O SENZA CAPITALE INIZIALE A UN TASSO DI RIV CONOSCIUTO CHE MONTANTE AVRO' TRA X ANNI?",null,null,null,null,null,null,null,null,null,null,null,null,null,null,null,"INVESTENDO UN CAPITALE ANNUALE CONOSCIUTO, CON O SENZA CAPITALE INIZIALE A UN TASSO DI RIV CONOSCIUTO CHE MONTANTE AVRO' TRA X ANNI?",null,null,null,null,null,null,null,null,null,null,null,null,null,null,null,"INVESTENDO UN CAPITALE ANNUALE CONOSCIUTO, CON O SENZA CAPITALE INIZIALE A UN TASSO DI RIV CONOSCIUTO CHE MONTANTE AVRO' TRA X ANNI?",null,null,null,null,null,null,null,null,null,null,null,null,null,null,null,"INVESTENDO UN CAPITALE ANNUALE CONOSCIUTO, CON O SENZA CAPITALE INIZIALE A UN TASSO DI RIV CONOSCIUTO CHE MONTANTE AVRO' TRA X ANNI?",null,null,null,null,null,null,null,null,null,null,null,null,null,null,null,"INVESTENDO UN CAPITALE ANNUALE CONOSCIUTO, CON O SENZA CAPITALE INIZIALE A UN TASSO DI RIV CONOSCIUTO CHE MONTANTE AVRO' TRA X ANNI?",null,null,null,null,null,null,null,null,null,null,null,null,null,null,null,"INVESTENDO UN CAPITALE ANNUALE CONOSCIUTO, CON O SENZA CAPITALE INIZIALE A UN TASSO DI RIV CONOSCIUTO CHE MONTANTE AVRO' TRA X ANNI?",null,null,null,null,null,null,null,null,null,null,null,null,null,null,null,"INVESTENDO UN CAPITALE ANNUALE CONOSCIUTO, CON O SENZA CAPITALE INIZIALE A UN TASSO DI RIV CONOSCIUTO CHE MONTANTE AVRO' TRA X ANNI?",null,null,null,null,null,null,null,null,null,null,null,null,null,null,null,"INVESTENDO UN CAPITALE ANNUALE CONOSCIUTO, CON O SENZA CAPITALE INIZIALE A UN TASSO DI RIV CONOSCIUTO CHE MONTANTE AVRO' TRA X ANNI?",null,null,null,null,null,null,null,null,null,null,null,null,null,null,null,"INVESTENDO UN CAPITALE ANNUALE CONOSCIUTO, CON O SENZA CAPITALE INIZIALE A UN TASSO DI RIV CONOSCIUTO CHE MONTANTE AVRO' TRA X ANNI?",null,null,null,null,null,null,null,null,null,null,null,null,null,null,null,"INVESTENDO UN CAPITALE ANNUALE CONOSCIUTO, CON O SENZA CAPITALE INIZIALE A UN TASSO DI RIV CONOSCIUTO CHE MONTANTE AVRO' TRA X ANNI?",null,null,null,null,null,null,null,null,null,null,null,null,null,null,null,"INVESTENDO UN CAPITALE ANNUALE CONOSCIUTO, CON O SENZA CAPITALE INIZIALE A UN TASSO DI RIV CONOSCIUTO CHE MONTANTE AVRO' TRA X ANNI?",null,null,null,null,null,null,null,null,null,null,null,null,null,null,null,"INVESTENDO UN CAPITALE ANNUALE CONOSCIUTO, CON O SENZA CAPITALE INIZIALE A UN TASSO DI RIV CONOSCIUTO CHE MONTANTE AVRO' TRA X ANNI?",null,null,null,null,null,null,null,null,null,null,null,null,null,null,null,"INVESTENDO UN CAPITALE ANNUALE CONOSCIUTO, CON O SENZA CAPITALE INIZIALE A UN TASSO DI RIV CONOSCIUTO CHE MONTANTE AVRO' TRA X ANNI?",null,null,null,null,null,null,null,null,null,null,null,null,null,null,null,"INVESTENDO UN CAPITALE ANNUALE CONOSCIUTO, CON O SENZA CAPITALE INIZIALE A UN TASSO DI RIV CONOSCIUTO CHE MONTANTE AVRO' TRA X ANNI?",null,null,null,null,null,null,null,null,null,null,null,null,null,null,null,"INVESTENDO UN CAPITALE ANNUALE CONOSCIUTO, CON O SENZA CAPITALE INIZIALE A UN TASSO DI RIV CONOSCIUTO CHE MONTANTE AVRO' TRA X ANNI?",null,null,null,null,null,null,null,null,null,null,null,null,null,null,null,"INVESTENDO UN CAPITALE ANNUALE CONOSCIUTO, CON O SENZA CAPITALE INIZIALE A UN TASSO DI RIV CONOSCIUTO CHE MONTANTE AVRO' TRA X ANNI?",null,null,null,null,null,null,null,null,null,null,null,null,null,null,null,"INVESTENDO UN CAPITALE ANNUALE CONOSCIUTO, CON O SENZA CAPITALE INIZIALE A UN TASSO DI RIV CONOSCIUTO CHE MONTANTE AVRO' TRA X ANNI?",null,null,null,null,null,null,null,null,null,null,null,null,null,null,null,"INVESTENDO UN CAPITALE ANNUALE CONOSCIUTO, CON O SENZA CAPITALE INIZIALE A UN TASSO DI RIV CONOSCIUTO CHE MONTANTE AVRO' TRA X ANNI?",null,null,null,null,null,null,null,null,null,null,null,null,null,null,null,"INVESTENDO UN CAPITALE ANNUALE CONOSCIUTO, CON O SENZA CAPITALE INIZIALE A UN TASSO DI RIV CONOSCIUTO CHE MONTANTE AVRO' TRA X ANNI?",null,null,null,null,null,null,null,null,null,null,null,null,null,null,null,"INVESTENDO UN CAPITALE ANNUALE CONOSCIUTO, CON O SENZA CAPITALE INIZIALE A UN TASSO DI RIV CONOSCIUTO CHE MONTANTE AVRO' TRA X ANNI?",null,null,null,null,null,null,null,null,null,null,null,null,null,null,null,"INVESTENDO UN CAPITALE ANNUALE CONOSCIUTO, CON O SENZA CAPITALE INIZIALE A UN TASSO DI RIV CONOSCIUTO CHE MONTANTE AVRO' TRA X ANNI?",null,null,null,null,null,null,null,null,null,null,null,null,null,null,null,"INVESTENDO UN CAPITALE ANNUALE CONOSCIUTO, CON O SENZA CAPITALE INIZIALE A UN TASSO DI RIV CONOSCIUTO CHE MONTANTE AVRO' TRA X ANNI?",null,null,null,null,null,null,null,null,null,null,null,null,null,null,null,"INVESTENDO UN CAPITALE ANNUALE CONOSCIUTO, CON O SENZA CAPITALE INIZIALE A UN TASSO DI RIV CONOSCIUTO CHE MONTANTE AVRO' TRA X ANNI?",null,null,null,null,null,null,null,null,null,null,null,null,null,null,null,"INVESTENDO UN CAPITALE ANNUALE CONOSCIUTO, CON O SENZA CAPITALE INIZIALE A UN TASSO DI RIV CONOSCIUTO CHE MONTANTE AVRO' TRA X ANNI?",null,null,null,null,null,null,null,null,null,null,null,null,null,null,null,"INVESTENDO UN CAPITALE ANNUALE CONOSCIUTO, CON O SENZA CAPITALE INIZIALE A UN TASSO DI RIV CONOSCIUTO CHE MONTANTE AVRO' TRA X ANNI?",null,null,null,null,null,null,null,null,null,null,null,null,null,null,null,"INVESTENDO UN CAPITALE ANNUALE CONOSCIUTO, CON O SENZA CAPITALE INIZIALE A UN TASSO DI RIV CONOSCIUTO CHE MONTANTE AVRO' TRA X ANNI?",null,null,null,null,null,null,null,null,null,null,null,null,null,null,null,"INVESTENDO UN CAPITALE ANNUALE CONOSCIUTO, CON O SENZA CAPITALE INIZIALE A UN TASSO DI RIV CONOSCIUTO CHE MONTANTE AVRO' TRA X ANNI?",null,null,null,null,null,null,null,null,null,null,null,null,null,null,null,"INVESTENDO UN CAPITALE ANNUALE CONOSCIUTO, CON O SENZA CAPITALE INIZIALE A UN TASSO DI RIV CONOSCIUTO CHE MONTANTE AVRO' TRA X ANNI?",null,null,null,null,null,null,null,null,null,null,null,null,null,null,null,"INVESTENDO UN CAPITALE ANNUALE CONOSCIUTO, CON O SENZA CAPITALE INIZIALE A UN TASSO DI RIV CONOSCIUTO CHE MONTANTE AVRO' TRA X ANNI?",null,null,null,null,null,null,null,null,null,null,null,null,null,null,null,"INVESTENDO UN CAPITALE ANNUALE CONOSCIUTO, CON O SENZA CAPITALE INIZIALE A UN TASSO DI RIV CONOSCIUTO CHE MONTANTE AVRO' TRA X ANNI?",null,null,null,null,null,null,null,null,null,null,null,null,null,null,null,"INVESTENDO UN CAPITALE ANNUALE CONOSCIUTO, CON O SENZA CAPITALE INIZIALE A UN TASSO DI RIV CONOSCIUTO CHE MONTANTE AVRO' TRA X ANNI?",null,null,null,null,null,null,null,null,null,null,null,null,null,null,null,"INVESTENDO UN CAPITALE ANNUALE CONOSCIUTO, CON O SENZA CAPITALE INIZIALE A UN TASSO DI RIV CONOSCIUTO CHE MONTANTE AVRO' TRA X ANNI?",null,null,null,null,null,null,null,null,null,null,null,null,null,null,null,"INVESTENDO UN CAPITALE ANNUALE CONOSCIUTO, CON O SENZA CAPITALE INIZIALE A UN TASSO DI RIV CONOSCIUTO CHE MONTANTE AVRO' TRA X ANNI?",null,null,null,null,null,null,null,null,null,null,null,null,null,null,null,"INVESTENDO UN CAPITALE ANNUALE CONOSCIUTO, CON O SENZA CAPITALE INIZIALE A UN TASSO DI RIV CONOSCIUTO CHE MONTANTE AVRO' TRA X ANNI?",null,null,null,null,null,null,null,null,null,null,null,null,null,null,null,"INVESTENDO UN CAPITALE ANNUALE CONOSCIUTO, CON O SENZA CAPITALE INIZIALE A UN TASSO DI RIV CONOSCIUTO CHE MONTANTE AVRO' TRA X ANNI?",null,null,null,null,null,null,null,null,null,null,null,null,null,null,null,"INVESTENDO UN CAPITALE ANNUALE CONOSCIUTO, CON O SENZA CAPITALE INIZIALE A UN TASSO DI RIV CONOSCIUTO CHE MONTANTE AVRO' TRA X ANNI?",null,null,null,null,null,null,null,null,null,null,null,null,null,null,null,"INVESTENDO UN CAPITALE ANNUALE CONOSCIUTO, CON O SENZA CAPITALE INIZIALE A UN TASSO DI RIV CONOSCIUTO CHE MONTANTE AVRO' TRA X ANNI?",null,null,null,null,null,null,null,null,null,null,null,null,null,null,null,"INVESTENDO UN CAPITALE ANNUALE CONOSCIUTO, CON O SENZA CAPITALE INIZIALE A UN TASSO DI RIV CONOSCIUTO CHE MONTANTE AVRO' TRA X ANNI?",null,null,null,null,null,null,null,null,null,null,null,null,null,null,null,"INVESTENDO UN CAPITALE ANNUALE CONOSCIUTO, CON O SENZA CAPITALE INIZIALE A UN TASSO DI RIV CONOSCIUTO CHE MONTANTE AVRO' TRA X ANNI?",null,null,null,null,null,null,null,null,null,null,null,null,null,null,null,"INVESTENDO UN CAPITALE ANNUALE CONOSCIUTO, CON O SENZA CAPITALE INIZIALE A UN TASSO DI RIV CONOSCIUTO CHE MONTANTE AVRO' TRA X ANNI?",null,null,null,null,null,null,null,null,null,null,null,null,null,null,null,"INVESTENDO UN CAPITALE ANNUALE CONOSCIUTO, CON O SENZA CAPITALE INIZIALE A UN TASSO DI RIV CONOSCIUTO CHE MONTANTE AVRO' TRA X ANNI?",null,null,null,null,null,null,null,null,null,null,null,null,null,null,null,"INVESTENDO UN CAPITALE ANNUALE CONOSCIUTO, CON O SENZA CAPITALE INIZIALE A UN TASSO DI RIV CONOSCIUTO CHE MONTANTE AVRO' TRA X ANNI?",null,null,null,null,null,null,null,null,null,null,null,null,null,null,null,"INVESTENDO UN CAPITALE ANNUALE CONOSCIUTO, CON O SENZA CAPITALE INIZIALE A UN TASSO DI RIV CONOSCIUTO CHE MONTANTE AVRO' TRA X ANNI?",null,null,null,null,null,null,null,null,null,null,null,null,null,null,null,"INVESTENDO UN CAPITALE ANNUALE CONOSCIUTO, CON O SENZA CAPITALE INIZIALE A UN TASSO DI RIV CONOSCIUTO CHE MONTANTE AVRO' TRA X ANNI?",null,null,null,null,null,null,null,null,null,null,null,null,null,null,null,"INVESTENDO UN CAPITALE ANNUALE CONOSCIUTO, CON O SENZA CAPITALE INIZIALE A UN TASSO DI RIV CONOSCIUTO CHE MONTANTE AVRO' TRA X ANNI?",null,null,null,null,null,null,null,null,null,null,null,null,null,null,null,"INVESTENDO UN CAPITALE ANNUALE CONOSCIUTO, CON O SENZA CAPITALE INIZIALE A UN TASSO DI RIV CONOSCIUTO CHE MONTANTE AVRO' TRA X ANNI?",null,null,null,null,null,null,null,null,null,null,null,null,null,null,null,"INVESTENDO UN CAPITALE ANNUALE CONOSCIUTO, CON O SENZA CAPITALE INIZIALE A UN TASSO DI RIV CONOSCIUTO CHE MONTANTE AVRO' TRA X ANNI?",null,null,null,null,null,null,null,null,null,null,null,null,null,null,null,"INVESTENDO UN CAPITALE ANNUALE CONOSCIUTO, CON O SENZA CAPITALE INIZIALE A UN TASSO DI RIV CONOSCIUTO CHE MONTANTE AVRO' TRA X ANNI?",null,null,null,null,null,null,null,null,null,null,null,null,null,null,null,"INVESTENDO UN CAPITALE ANNUALE CONOSCIUTO, CON O SENZA CAPITALE INIZIALE A UN TASSO DI RIV CONOSCIUTO CHE MONTANTE AVRO' TRA X ANNI?",null,null,null,null,null,null,null,null,null,null,null,null,null,null,null,"INVESTENDO UN CAPITALE ANNUALE CONOSCIUTO, CON O SENZA CAPITALE INIZIALE A UN TASSO DI RIV CONOSCIUTO CHE MONTANTE AVRO' TRA X ANNI?",null,null,null,null,null,null,null,null,null,null,null,null,null,null,null,"INVESTENDO UN CAPITALE ANNUALE CONOSCIUTO, CON O SENZA CAPITALE INIZIALE A UN TASSO DI RIV CONOSCIUTO CHE MONTANTE AVRO' TRA X ANNI?",null,null,null,null,null,null,null,null,null,null,null,null,null,null,null,"INVESTENDO UN CAPITALE ANNUALE CONOSCIUTO, CON O SENZA CAPITALE INIZIALE A UN TASSO DI RIV CONOSCIUTO CHE MONTANTE AVRO' TRA X ANNI?",null,null,null,null,null,null,null,null,null,null,null,null,null,null,null,"INVESTENDO UN CAPITALE ANNUALE CONOSCIUTO, CON O SENZA CAPITALE INIZIALE A UN TASSO DI RIV CONOSCIUTO CHE MONTANTE AVRO' TRA X ANNI?",null,null,null,null,null,null,null,null,null,null,null,null,null,null,null,"INVESTENDO UN CAPITALE ANNUALE CONOSCIUTO, CON O SENZA CAPITALE INIZIALE A UN TASSO DI RIV CONOSCIUTO CHE MONTANTE AVRO' TRA X ANNI?",null,null,null,null,null,null,null,null,null,null,null,null,null,null,null,"INVESTENDO UN CAPITALE ANNUALE CONOSCIUTO, CON O SENZA CAPITALE INIZIALE A UN TASSO DI RIV CONOSCIUTO CHE MONTANTE AVRO' TRA X ANNI?",null,null,null,null,null,null,null,null,null,null,null,null,null,null,null,"INVESTENDO UN CAPITALE ANNUALE CONOSCIUTO, CON O SENZA CAPITALE INIZIALE A UN TASSO DI RIV CONOSCIUTO CHE MONTANTE AVRO' TRA X ANNI?",null,null,null,null,null,null,null,null,null,null,null,null,null,null,null,"INVESTENDO UN CAPITALE ANNUALE CONOSCIUTO, CON O SENZA CAPITALE INIZIALE A UN TASSO DI RIV CONOSCIUTO CHE MONTANTE AVRO' TRA X ANNI?",null,null,null,null,null,null,null,null,null,null,null,null,null,null,null,"INVESTENDO UN CAPITALE ANNUALE CONOSCIUTO, CON O SENZA CAPITALE INIZIALE A UN TASSO DI RIV CONOSCIUTO CHE MONTANTE AVRO' TRA X ANNI?",null,null,null,null,null,null,null,null,null,null,null,null,null,null,null,"INVESTENDO UN CAPITALE ANNUALE CONOSCIUTO, CON O SENZA CAPITALE INIZIALE A UN TASSO DI RIV CONOSCIUTO CHE MONTANTE AVRO' TRA X ANNI?",null,null,null,null,null,null,null,null,null,null,null,null,null,null,null,"INVESTENDO UN CAPITALE ANNUALE CONOSCIUTO, CON O SENZA CAPITALE INIZIALE A UN TASSO DI RIV CONOSCIUTO CHE MONTANTE AVRO' TRA X ANNI?",null,null,null,null,null,null,null,null,null,null,null,null,null,null,null,"INVESTENDO UN CAPITALE ANNUALE CONOSCIUTO, CON O SENZA CAPITALE INIZIALE A UN TASSO DI RIV CONOSCIUTO CHE MONTANTE AVRO' TRA X ANNI?",null,null,null,null,null,null,null,null,null,null,null,null,null,null,null,"INVESTENDO UN CAPITALE ANNUALE CONOSCIUTO, CON O SENZA CAPITALE INIZIALE A UN TASSO DI RIV CONOSCIUTO CHE MONTANTE AVRO' TRA X ANNI?",null,null,null,null,null,null,null,null,null,null,null,null,null,null,null,"INVESTENDO UN CAPITALE ANNUALE CONOSCIUTO, CON O SENZA CAPITALE INIZIALE A UN TASSO DI RIV CONOSCIUTO CHE MONTANTE AVRO' TRA X ANNI?",null,null,null,null,null,null,null,null,null,null,null,null,null,null,null,"INVESTENDO UN CAPITALE ANNUALE CONOSCIUTO, CON O SENZA CAPITALE INIZIALE A UN TASSO DI RIV CONOSCIUTO CHE MONTANTE AVRO' TRA X ANNI?",null,null,null,null,null,null,null,null,null,null,null,null,null,null,null,"INVESTENDO UN CAPITALE ANNUALE CONOSCIUTO, CON O SENZA CAPITALE INIZIALE A UN TASSO DI RIV CONOSCIUTO CHE MONTANTE AVRO' TRA X ANNI?",null,null,null,null,null,null,null,null,null,null,null,null,null,null,null,"INVESTENDO UN CAPITALE ANNUALE CONOSCIUTO, CON O SENZA CAPITALE INIZIALE A UN TASSO DI RIV CONOSCIUTO CHE MONTANTE AVRO' TRA X ANNI?",null,null,null,null,null,null,null,null,null,null,null,null,null,null,null,"INVESTENDO UN CAPITALE ANNUALE CONOSCIUTO, CON O SENZA CAPITALE INIZIALE A UN TASSO DI RIV CONOSCIUTO CHE MONTANTE AVRO' TRA X ANNI?",null,null,null,null,null,null,null,null,null,null,null,null,null,null,null,"INVESTENDO UN CAPITALE ANNUALE CONOSCIUTO, CON O SENZA CAPITALE INIZIALE A UN TASSO DI RIV CONOSCIUTO CHE MONTANTE AVRO' TRA X ANNI?",null,null,null,null,null,null,null,null,null,null,null,null,null,null,null,"INVESTENDO UN CAPITALE ANNUALE CONOSCIUTO, CON O SENZA CAPITALE INIZIALE A UN TASSO DI RIV CONOSCIUTO CHE MONTANTE AVRO' TRA X ANNI?",null,null,null,null,null,null,null,null,null,null,null,null,null,null,null,"INVESTENDO UN CAPITALE ANNUALE CONOSCIUTO, CON O SENZA CAPITALE INIZIALE A UN TASSO DI RIV CONOSCIUTO CHE MONTANTE AVRO' TRA X ANNI?",null,null,null,null,null,null,null,null,null,null,null,null,null,null,null,"INVESTENDO UN CAPITALE ANNUALE CONOSCIUTO, CON O SENZA CAPITALE INIZIALE A UN TASSO DI RIV CONOSCIUTO CHE MONTANTE AVRO' TRA X ANNI?",null,null,null,null,null,null,null,null,null,null,null,null,null,null,null,"INVESTENDO UN CAPITALE ANNUALE CONOSCIUTO, CON O SENZA CAPITALE INIZIALE A UN TASSO DI RIV CONOSCIUTO CHE MONTANTE AVRO' TRA X ANNI?",null,null,null,null,null,null,null,null,null,null,null,null,null,null,null,"INVESTENDO UN CAPITALE ANNUALE CONOSCIUTO, CON O SENZA CAPITALE INIZIALE A UN TASSO DI RIV CONOSCIUTO CHE MONTANTE AVRO' TRA X ANNI?",null,null,null,null,null,null,null,null,null,null,null,null,null,null,null,"INVESTENDO UN CAPITALE ANNUALE CONOSCIUTO, CON O SENZA CAPITALE INIZIALE A UN TASSO DI RIV CONOSCIUTO CHE MONTANTE AVRO' TRA X ANNI?",null,null,null,null,null,null,null,null,null,null,null,null,null,null,null,"INVESTENDO UN CAPITALE ANNUALE CONOSCIUTO, CON O SENZA CAPITALE INIZIALE A UN TASSO DI RIV CONOSCIUTO CHE MONTANTE AVRO' TRA X ANNI?",null,null,null,null,null,null,null,null,null,null,null,null,null,null,null,"INVESTENDO UN CAPITALE ANNUALE CONOSCIUTO, CON O SENZA CAPITALE INIZIALE A UN TASSO DI RIV CONOSCIUTO CHE MONTANTE AVRO' TRA X ANNI?",null,null,null,null,null,null,null,null,null,null,null,null,null,null,null,"INVESTENDO UN CAPITALE ANNUALE CONOSCIUTO, CON O SENZA CAPITALE INIZIALE A UN TASSO DI RIV CONOSCIUTO CHE MONTANTE AVRO' TRA X ANNI?",null,null,null,null,null,null,null,null,null,null,null,null,null,null,null,"INVESTENDO UN CAPITALE ANNUALE CONOSCIUTO, CON O SENZA CAPITALE INIZIALE A UN TASSO DI RIV CONOSCIUTO CHE MONTANTE AVRO' TRA X ANNI?",null,null,null,null,null,null,null,null,null,null,null,null,null,null,null,"INVESTENDO UN CAPITALE ANNUALE CONOSCIUTO, CON O SENZA CAPITALE INIZIALE A UN TASSO DI RIV CONOSCIUTO CHE MONTANTE AVRO' TRA X ANNI?",null,null,null,null,null,null,null,null,null,null,null,null,null,null,null,"INVESTENDO UN CAPITALE ANNUALE CONOSCIUTO, CON O SENZA CAPITALE INIZIALE A UN TASSO DI RIV CONOSCIUTO CHE MONTANTE AVRO' TRA X ANNI?",null,null,null,null,null,null,null,null,null,null,null,null,null,null,null,"INVESTENDO UN CAPITALE ANNUALE CONOSCIUTO, CON O SENZA CAPITALE INIZIALE A UN TASSO DI RIV CONOSCIUTO CHE MONTANTE AVRO' TRA X ANNI?",null,null,null,null,null,null,null,null,null,null,null,null,null,null,null,"INVESTENDO UN CAPITALE ANNUALE CONOSCIUTO, CON O SENZA CAPITALE INIZIALE A UN TASSO DI RIV CONOSCIUTO CHE MONTANTE AVRO' TRA X ANNI?",null,null,null,null,null,null,null,null,null,null,null,null,null,null,null,"INVESTENDO UN CAPITALE ANNUALE CONOSCIUTO, CON O SENZA CAPITALE INIZIALE A UN TASSO DI RIV CONOSCIUTO CHE MONTANTE AVRO' TRA X ANNI?",null,null,null,null,null,null,null,null,null,null,null,null,null,null,null,"INVESTENDO UN CAPITALE ANNUALE CONOSCIUTO, CON O SENZA CAPITALE INIZIALE A UN TASSO DI RIV CONOSCIUTO CHE MONTANTE AVRO' TRA X ANNI?",null,null,null,null,null,null,null,null,null,null,null,null,null,null,null,"INVESTENDO UN CAPITALE ANNUALE CONOSCIUTO, CON O SENZA CAPITALE INIZIALE A UN TASSO DI RIV CONOSCIUTO CHE MONTANTE AVRO' TRA X ANNI?",null,null,null,null,null,null,null,null,null,null,null,null,null,null,null,"INVESTENDO UN CAPITALE ANNUALE CONOSCIUTO, CON O SENZA CAPITALE INIZIALE A UN TASSO DI RIV CONOSCIUTO CHE MONTANTE AVRO' TRA X ANNI?",null,null,null,null,null,null,null,null,null,null,null,null,null,null,null,"INVESTENDO UN CAPITALE ANNUALE CONOSCIUTO, CON O SENZA CAPITALE INIZIALE A UN TASSO DI RIV CONOSCIUTO CHE MONTANTE AVRO' TRA X ANNI?",null,null,null,null,null,null,null,null,null,null,null,null,null,null,null,"INVESTENDO UN CAPITALE ANNUALE CONOSCIUTO, CON O SENZA CAPITALE INIZIALE A UN TASSO DI RIV CONOSCIUTO CHE MONTANTE AVRO' TRA X ANNI?",null,null,null,null,null,null,null,null,null,null,null,null,null,null,null,"INVESTENDO UN CAPITALE ANNUALE CONOSCIUTO, CON O SENZA CAPITALE INIZIALE A UN TASSO DI RIV CONOSCIUTO CHE MONTANTE AVRO' TRA X ANNI?",null,null,null,null,null,null,null,null,null,null,null,null,null,null,null,"INVESTENDO UN CAPITALE ANNUALE CONOSCIUTO, CON O SENZA CAPITALE INIZIALE A UN TASSO DI RIV CONOSCIUTO CHE MONTANTE AVRO' TRA X ANNI?",null,null,null,null,null,null,null,null,null,null,null,null,null,null,null,"INVESTENDO UN CAPITALE ANNUALE CONOSCIUTO, CON O SENZA CAPITALE INIZIALE A UN TASSO DI RIV CONOSCIUTO CHE MONTANTE AVRO' TRA X ANNI?",null,null,null,null,null,null,null,null,null,null,null,null,null,null,null,"INVESTENDO UN CAPITALE ANNUALE CONOSCIUTO, CON O SENZA CAPITALE INIZIALE A UN TASSO DI RIV CONOSCIUTO CHE MONTANTE AVRO' TRA X ANNI?",null,null,null,null,null,null,null,null,null,null,null,null,null,null,null,"INVESTENDO UN CAPITALE ANNUALE CONOSCIUTO, CON O SENZA CAPITALE INIZIALE A UN TASSO DI RIV CONOSCIUTO CHE MONTANTE AVRO' TRA X ANNI?",null,null,null,null,null,null,null,null,null,null,null,null,null,null,null,"INVESTENDO UN CAPITALE ANNUALE CONOSCIUTO, CON O SENZA CAPITALE INIZIALE A UN TASSO DI RIV CONOSCIUTO CHE MONTANTE AVRO' TRA X ANNI?",null,null,null,null,null,null,null,null,null,null,null,null,null,null,null,"INVESTENDO UN CAPITALE ANNUALE CONOSCIUTO, CON O SENZA CAPITALE INIZIALE A UN TASSO DI RIV CONOSCIUTO CHE MONTANTE AVRO' TRA X ANNI?",null,null,null,null,null,null,null,null,null,null,null,null,null,null,null,"INVESTENDO UN CAPITALE ANNUALE CONOSCIUTO, CON O SENZA CAPITALE INIZIALE A UN TASSO DI RIV CONOSCIUTO CHE MONTANTE AVRO' TRA X ANNI?",null,null,null,null,null,null,null,null,null,null,null,null,null,null,null,"INVESTENDO UN CAPITALE ANNUALE CONOSCIUTO, CON O SENZA CAPITALE INIZIALE A UN TASSO DI RIV CONOSCIUTO CHE MONTANTE AVRO' TRA X ANNI?",null,null,null,null,null,null,null,null,null,null,null,null,null,null,null,"INVESTENDO UN CAPITALE ANNUALE CONOSCIUTO, CON O SENZA CAPITALE INIZIALE A UN TASSO DI RIV CONOSCIUTO CHE MONTANTE AVRO' TRA X ANNI?",null,null,null,null,null,null,null,null,null,null,null,null,null,null,null,"INVESTENDO UN CAPITALE ANNUALE CONOSCIUTO, CON O SENZA CAPITALE INIZIALE A UN TASSO DI RIV CONOSCIUTO CHE MONTANTE AVRO' TRA X ANNI?",null,null,null,null,null,null,null,null,null,null,null,null,null,null,null,"INVESTENDO UN CAPITALE ANNUALE CONOSCIUTO, CON O SENZA CAPITALE INIZIALE A UN TASSO DI RIV CONOSCIUTO CHE MONTANTE AVRO' TRA X ANNI?",null,null,null,null,null,null,null,null,null,null,null,null,null,null,null,"INVESTENDO UN CAPITALE ANNUALE CONOSCIUTO, CON O SENZA CAPITALE INIZIALE A UN TASSO DI RIV CONOSCIUTO CHE MONTANTE AVRO' TRA X ANNI?",null,null,null,null,null,null,null,null,null,null,null,null,null,null,null,"INVESTENDO UN CAPITALE ANNUALE CONOSCIUTO, CON O SENZA CAPITALE INIZIALE A UN TASSO DI RIV CONOSCIUTO CHE MONTANTE AVRO' TRA X ANNI?",null,null,null,null,null,null,null,null,null,null,null,null,null,null,null,"INVESTENDO UN CAPITALE ANNUALE CONOSCIUTO, CON O SENZA CAPITALE INIZIALE A UN TASSO DI RIV CONOSCIUTO CHE MONTANTE AVRO' TRA X ANNI?",null,null,null,null,null,null,null,null,null,null,null,null,null,null,null,"INVESTENDO UN CAPITALE ANNUALE CONOSCIUTO, CON O SENZA CAPITALE INIZIALE A UN TASSO DI RIV CONOSCIUTO CHE MONTANTE AVRO' TRA X ANNI?",null,null,null,null,null,null,null,null,null,null,null,null,null,null,null,"INVESTENDO UN CAPITALE ANNUALE CONOSCIUTO, CON O SENZA CAPITALE INIZIALE A UN TASSO DI RIV CONOSCIUTO CHE MONTANTE AVRO' TRA X ANNI?",null,null,null,null,null,null,null,null,null,null,null,null,null,null,null,"INVESTENDO UN CAPITALE ANNUALE CONOSCIUTO, CON O SENZA CAPITALE INIZIALE A UN TASSO DI RIV CONOSCIUTO CHE MONTANTE AVRO' TRA X ANNI?",null,null,null,null,null,null,null,null,null,null,null,null,null,null,null,"INVESTENDO UN CAPITALE ANNUALE CONOSCIUTO, CON O SENZA CAPITALE INIZIALE A UN TASSO DI RIV CONOSCIUTO CHE MONTANTE AVRO' TRA X ANNI?",null,null,null,null,null,null,null,null,null,null,null,null,null,null,null,"INVESTENDO UN CAPITALE ANNUALE CONOSCIUTO, CON O SENZA CAPITALE INIZIALE A UN TASSO DI RIV CONOSCIUTO CHE MONTANTE AVRO' TRA X ANNI?",null,null,null,null,null,null,null,null,null,null,null,null,null,null,null,"INVESTENDO UN CAPITALE ANNUALE CONOSCIUTO, CON O SENZA CAPITALE INIZIALE A UN TASSO DI RIV CONOSCIUTO CHE MONTANTE AVRO' TRA X ANNI?",null,null,null,null,null,null,null,null,null,null,null,null,null,null,null,"INVESTENDO UN CAPITALE ANNUALE CONOSCIUTO, CON O SENZA CAPITALE INIZIALE A UN TASSO DI RIV CONOSCIUTO CHE MONTANTE AVRO' TRA X ANNI?",null,null,null,null,null,null,null,null,null,null,null,null,null,null,null,"INVESTENDO UN CAPITALE ANNUALE CONOSCIUTO, CON O SENZA CAPITALE INIZIALE A UN TASSO DI RIV CONOSCIUTO CHE MONTANTE AVRO' TRA X ANNI?",null,null,null,null,null,null,null,null,null,null,null,null,null,null,null,"INVESTENDO UN CAPITALE ANNUALE CONOSCIUTO, CON O SENZA CAPITALE INIZIALE A UN TASSO DI RIV CONOSCIUTO CHE MONTANTE AVRO' TRA X ANNI?",null,null,null,null,null,null,null,null,null,null,null,null,null,null,null,"INVESTENDO UN CAPITALE ANNUALE CONOSCIUTO, CON O SENZA CAPITALE INIZIALE A UN TASSO DI RIV CONOSCIUTO CHE MONTANTE AVRO' TRA X ANNI?",null,null,null,null,null,null,null,null,null,null,null,null,null,null,null,"INVESTENDO UN CAPITALE ANNUALE CONOSCIUTO, CON O SENZA CAPITALE INIZIALE A UN TASSO DI RIV CONOSCIUTO CHE MONTANTE AVRO' TRA X ANNI?",null,null,null,null,null,null,null,null,null,null,null,null,null,null,null,"INVESTENDO UN CAPITALE ANNUALE CONOSCIUTO, CON O SENZA CAPITALE INIZIALE A UN TASSO DI RIV CONOSCIUTO CHE MONTANTE AVRO' TRA X ANNI?",null,null,null,null,null,null,null,null,null,null,null,null,null,null,null,"INVESTENDO UN CAPITALE ANNUALE CONOSCIUTO, CON O SENZA CAPITALE INIZIALE A UN TASSO DI RIV CONOSCIUTO CHE MONTANTE AVRO' TRA X ANNI?",null,null,null,null,null,null,null,null,null,null,null,null,null,null,null,"INVESTENDO UN CAPITALE ANNUALE CONOSCIUTO, CON O SENZA CAPITALE INIZIALE A UN TASSO DI RIV CONOSCIUTO CHE MONTANTE AVRO' TRA X ANNI?",null,null,null,null,null,null,null,null,null,null,null,null,null,null,null,"INVESTENDO UN CAPITALE ANNUALE CONOSCIUTO, CON O SENZA CAPITALE INIZIALE A UN TASSO DI RIV CONOSCIUTO CHE MONTANTE AVRO' TRA X ANNI?",null,null,null,null,null,null,null,null,null,null,null,null,null,null,null,"INVESTENDO UN CAPITALE ANNUALE CONOSCIUTO, CON O SENZA CAPITALE INIZIALE A UN TASSO DI RIV CONOSCIUTO CHE MONTANTE AVRO' TRA X ANNI?",null,null,null,null,null,null,null,null,null,null,null,null,null,null,null,"INVESTENDO UN CAPITALE ANNUALE CONOSCIUTO, CON O SENZA CAPITALE INIZIALE A UN TASSO DI RIV CONOSCIUTO CHE MONTANTE AVRO' TRA X ANNI?",null,null,null,null,null,null,null,null,null,null,null,null,null,null,null,"INVESTENDO UN CAPITALE ANNUALE CONOSCIUTO, CON O SENZA CAPITALE INIZIALE A UN TASSO DI RIV CONOSCIUTO CHE MONTANTE AVRO' TRA X ANNI?",null,null,null,null,null,null,null,null,null,null,null,null,null,null,null,"INVESTENDO UN CAPITALE ANNUALE CONOSCIUTO, CON O SENZA CAPITALE INIZIALE A UN TASSO DI RIV CONOSCIUTO CHE MONTANTE AVRO' TRA X ANNI?",null,null,null,null,null,null,null,null,null,null,null,null,null,null,null,"INVESTENDO UN CAPITALE ANNUALE CONOSCIUTO, CON O SENZA CAPITALE INIZIALE A UN TASSO DI RIV CONOSCIUTO CHE MONTANTE AVRO' TRA X ANNI?",null,null,null,null,null,null,null,null,null,null,null,null,null,null,null,"INVESTENDO UN CAPITALE ANNUALE CONOSCIUTO, CON O SENZA CAPITALE INIZIALE A UN TASSO DI RIV CONOSCIUTO CHE MONTANTE AVRO' TRA X ANNI?",null,null,null,null,null,null,null,null,null,null,null,null,null,null,null,"INVESTENDO UN CAPITALE ANNUALE CONOSCIUTO, CON O SENZA CAPITALE INIZIALE A UN TASSO DI RIV CONOSCIUTO CHE MONTANTE AVRO' TRA X ANNI?",null,null,null,null,null,null,null,null,null,null,null,null,null,null,null,"INVESTENDO UN CAPITALE ANNUALE CONOSCIUTO, CON O SENZA CAPITALE INIZIALE A UN TASSO DI RIV CONOSCIUTO CHE MONTANTE AVRO' TRA X ANNI?",null,null,null,null,null,null,null,null,null,null,null,null,null,null,null,"INVESTENDO UN CAPITALE ANNUALE CONOSCIUTO, CON O SENZA CAPITALE INIZIALE A UN TASSO DI RIV CONOSCIUTO CHE MONTANTE AVRO' TRA X ANNI?",null,null,null,null,null,null,null,null,null,null,null,null,null,null,null,"INVESTENDO UN CAPITALE ANNUALE CONOSCIUTO, CON O SENZA CAPITALE INIZIALE A UN TASSO DI RIV CONOSCIUTO CHE MONTANTE AVRO' TRA X ANNI?",null,null,null,null,null,null,null,null,null,null,null,null,null,null,null,"INVESTENDO UN CAPITALE ANNUALE CONOSCIUTO, CON O SENZA CAPITALE INIZIALE A UN TASSO DI RIV CONOSCIUTO CHE MONTANTE AVRO' TRA X ANNI?",null,null,null,null,null,null,null,null,null,null,null,null,null,null,null,"INVESTENDO UN CAPITALE ANNUALE CONOSCIUTO, CON O SENZA CAPITALE INIZIALE A UN TASSO DI RIV CONOSCIUTO CHE MONTANTE AVRO' TRA X ANNI?",null,null,null,null,null,null,null,null,null,null,null,null,null,null,null,"INVESTENDO UN CAPITALE ANNUALE CONOSCIUTO, CON O SENZA CAPITALE INIZIALE A UN TASSO DI RIV CONOSCIUTO CHE MONTANTE AVRO' TRA X ANNI?",null,null,null,null,null,null,null,null,null,null,null,null,null,null,null,"INVESTENDO UN CAPITALE ANNUALE CONOSCIUTO, CON O SENZA CAPITALE INIZIALE A UN TASSO DI RIV CONOSCIUTO CHE MONTANTE AVRO' TRA X ANNI?",null,null,null,null,null,null,null,null,null,null,null,null,null,null,null,"INVESTENDO UN CAPITALE ANNUALE CONOSCIUTO, CON O SENZA CAPITALE INIZIALE A UN TASSO DI RIV CONOSCIUTO CHE MONTANTE AVRO' TRA X ANNI?",null,null,null,null,null,null,null,null,null,null,null,null,null,null,null,"INVESTENDO UN CAPITALE ANNUALE CONOSCIUTO, CON O SENZA CAPITALE INIZIALE A UN TASSO DI RIV CONOSCIUTO CHE MONTANTE AVRO' TRA X ANNI?",null,null,null,null,null,null,null,null,null,null,null,null,null,null,null,"INVESTENDO UN CAPITALE ANNUALE CONOSCIUTO, CON O SENZA CAPITALE INIZIALE A UN TASSO DI RIV CONOSCIUTO CHE MONTANTE AVRO' TRA X ANNI?",null,null,null,null,null,null,null,null,null,null,null,null,null,null,null,"INVESTENDO UN CAPITALE ANNUALE CONOSCIUTO, CON O SENZA CAPITALE INIZIALE A UN TASSO DI RIV CONOSCIUTO CHE MONTANTE AVRO' TRA X ANNI?",null,null,null,null,null,null,null,null,null,null,null,null,null,null,null,"INVESTENDO UN CAPITALE ANNUALE CONOSCIUTO, CON O SENZA CAPITALE INIZIALE A UN TASSO DI RIV CONOSCIUTO CHE MONTANTE AVRO' TRA X ANNI?",null,null,null,null,null,null,null,null,null,null,null,null,null,null,null,"INVESTENDO UN CAPITALE ANNUALE CONOSCIUTO, CON O SENZA CAPITALE INIZIALE A UN TASSO DI RIV CONOSCIUTO CHE MONTANTE AVRO' TRA X ANNI?",null,null,null,null,null,null,null,null,null,null,null,null,null,null,null,"INVESTENDO UN CAPITALE ANNUALE CONOSCIUTO, CON O SENZA CAPITALE INIZIALE A UN TASSO DI RIV CONOSCIUTO CHE MONTANTE AVRO' TRA X ANNI?",null,null,null,null,null,null,null,null,null,null,null,null,null,null,null,"INVESTENDO UN CAPITALE ANNUALE CONOSCIUTO, CON O SENZA CAPITALE INIZIALE A UN TASSO DI RIV CONOSCIUTO CHE MONTANTE AVRO' TRA X ANNI?",null,null,null,null,null,null,null,null,null,null,null,null,null,null,null,"INVESTENDO UN CAPITALE ANNUALE CONOSCIUTO, CON O SENZA CAPITALE INIZIALE A UN TASSO DI RIV CONOSCIUTO CHE MONTANTE AVRO' TRA X ANNI?",null,null,null,null,null,null,null,null,null,null,null,null,null,null,null,"INVESTENDO UN CAPITALE ANNUALE CONOSCIUTO, CON O SENZA CAPITALE INIZIALE A UN TASSO DI RIV CONOSCIUTO CHE MONTANTE AVRO' TRA X ANNI?",null,null,null,null,null,null,null,null,null,null,null,null,null,null,null,"INVESTENDO UN CAPITALE ANNUALE CONOSCIUTO, CON O SENZA CAPITALE INIZIALE A UN TASSO DI RIV CONOSCIUTO CHE MONTANTE AVRO' TRA X ANNI?",null,null,null,null,null,null,null,null,null,null,null,null,null,null,null,"INVESTENDO UN CAPITALE ANNUALE CONOSCIUTO, CON O SENZA CAPITALE INIZIALE A UN TASSO DI RIV CONOSCIUTO CHE MONTANTE AVRO' TRA X ANNI?",null,null,null,null,null,null,null,null,null,null,null,null,null,null,null,"INVESTENDO UN CAPITALE ANNUALE CONOSCIUTO, CON O SENZA CAPITALE INIZIALE A UN TASSO DI RIV CONOSCIUTO CHE MONTANTE AVRO' TRA X ANNI?",null,null,null,null,null,null,null,null,null,null,null,null,null,null,null,"INVESTENDO UN CAPITALE ANNUALE CONOSCIUTO, CON O SENZA CAPITALE INIZIALE A UN TASSO DI RIV CONOSCIUTO CHE MONTANTE AVRO' TRA X ANNI?",null,null,null,null,null,null,null,null,null,null,null,null,null,null,null,"INVESTENDO UN CAPITALE ANNUALE CONOSCIUTO, CON O SENZA CAPITALE INIZIALE A UN TASSO DI RIV CONOSCIUTO CHE MONTANTE AVRO' TRA X ANNI?",null,null,null,null,null,null,null,null,null,null,null,null,null,null,null,"INVESTENDO UN CAPITALE ANNUALE CONOSCIUTO, CON O SENZA CAPITALE INIZIALE A UN TASSO DI RIV CONOSCIUTO CHE MONTANTE AVRO' TRA X ANNI?",null,null,null,null,null,null,null,null,null,null,null,null,null,null,null,"INVESTENDO UN CAPITALE ANNUALE CONOSCIUTO, CON O SENZA CAPITALE INIZIALE A UN TASSO DI RIV CONOSCIUTO CHE MONTANTE AVRO' TRA X ANNI?",null,null,null,null,null,null,null,null,null,null,null,null,null,null,null,"INVESTENDO UN CAPITALE ANNUALE CONOSCIUTO, CON O SENZA CAPITALE INIZIALE A UN TASSO DI RIV CONOSCIUTO CHE MONTANTE AVRO' TRA X ANNI?",null,null,null,null,null,null,null,null,null,null,null,null,null,null,null,"INVESTENDO UN CAPITALE ANNUALE CONOSCIUTO, CON O SENZA CAPITALE INIZIALE A UN TASSO DI RIV CONOSCIUTO CHE MONTANTE AVRO' TRA X ANNI?",null,null,null,null,null,null,null,null,null,null,null,null,null,null,null,"INVESTENDO UN CAPITALE ANNUALE CONOSCIUTO, CON O SENZA CAPITALE INIZIALE A UN TASSO DI RIV CONOSCIUTO CHE MONTANTE AVRO' TRA X ANNI?",null,null,null,null,null,null,null,null,null,null,null,null,null,null,null,"INVESTENDO UN CAPITALE ANNUALE CONOSCIUTO, CON O SENZA CAPITALE INIZIALE A UN TASSO DI RIV CONOSCIUTO CHE MONTANTE AVRO' TRA X ANNI?",null,null,null,null,null,null,null,null,null,null,null,null,null,null,null,"INVESTENDO UN CAPITALE ANNUALE CONOSCIUTO, CON O SENZA CAPITALE INIZIALE A UN TASSO DI RIV CONOSCIUTO CHE MONTANTE AVRO' TRA X ANNI?",null,null,null,null,null,null,null,null,null,null,null,null,null,null,null,"INVESTENDO UN CAPITALE ANNUALE CONOSCIUTO, CON O SENZA CAPITALE INIZIALE A UN TASSO DI RIV CONOSCIUTO CHE MONTANTE AVRO' TRA X ANNI?",null,null,null,null,null,null,null,null,null,null,null,null,null,null,null,"INVESTENDO UN CAPITALE ANNUALE CONOSCIUTO, CON O SENZA CAPITALE INIZIALE A UN TASSO DI RIV CONOSCIUTO CHE MONTANTE AVRO' TRA X ANNI?",null,null,null,null,null,null,null,null,null,null,null,null,null,null,null,"INVESTENDO UN CAPITALE ANNUALE CONOSCIUTO, CON O SENZA CAPITALE INIZIALE A UN TASSO DI RIV CONOSCIUTO CHE MONTANTE AVRO' TRA X ANNI?",null,null,null,null,null,null,null,null,null,null,null,null,null,null,null,"INVESTENDO UN CAPITALE ANNUALE CONOSCIUTO, CON O SENZA CAPITALE INIZIALE A UN TASSO DI RIV CONOSCIUTO CHE MONTANTE AVRO' TRA X ANNI?",null,null,null,null,null,null,null,null,null,null,null,null,null,null,null,"INVESTENDO UN CAPITALE ANNUALE CONOSCIUTO, CON O SENZA CAPITALE INIZIALE A UN TASSO DI RIV CONOSCIUTO CHE MONTANTE AVRO' TRA X ANNI?",null,null,null,null,null,null,null,null,null,null,null,null,null,null,null,"INVESTENDO UN CAPITALE ANNUALE CONOSCIUTO, CON O SENZA CAPITALE INIZIALE A UN TASSO DI RIV CONOSCIUTO CHE MONTANTE AVRO' TRA X ANNI?",null,null,null,null,null,null,null,null,null,null,null,null,null,null,null,"INVESTENDO UN CAPITALE ANNUALE CONOSCIUTO, CON O SENZA CAPITALE INIZIALE A UN TASSO DI RIV CONOSCIUTO CHE MONTANTE AVRO' TRA X ANNI?",null,null,null,null,null,null,null,null,null,null,null,null,null,null,null,"INVESTENDO UN CAPITALE ANNUALE CONOSCIUTO, CON O SENZA CAPITALE INIZIALE A UN TASSO DI RIV CONOSCIUTO CHE MONTANTE AVRO' TRA X ANNI?",null,null,null,null,null,null,null,null,null,null,null,null,null,null,null,"INVESTENDO UN CAPITALE ANNUALE CONOSCIUTO, CON O SENZA CAPITALE INIZIALE A UN TASSO DI RIV CONOSCIUTO CHE MONTANTE AVRO' TRA X ANNI?",null,null,null,null,null,null,null,null,null,null,null,null,null,null,null,"INVESTENDO UN CAPITALE ANNUALE CONOSCIUTO, CON O SENZA CAPITALE INIZIALE A UN TASSO DI RIV CONOSCIUTO CHE MONTANTE AVRO' TRA X ANNI?",null,null,null,null,null,null,null,null,null,null,null,null,null,null,null,"INVESTENDO UN CAPITALE ANNUALE CONOSCIUTO, CON O SENZA CAPITALE INIZIALE A UN TASSO DI RIV CONOSCIUTO CHE MONTANTE AVRO' TRA X ANNI?",null,null,null,null,null,null,null,null,null,null,null,null,null,null,null,"INVESTENDO UN CAPITALE ANNUALE CONOSCIUTO, CON O SENZA CAPITALE INIZIALE A UN TASSO DI RIV CONOSCIUTO CHE MONTANTE AVRO' TRA X ANNI?",null,null,null,null,null,null,null,null,null,null,null,null,null,null,null,"INVESTENDO UN CAPITALE ANNUALE CONOSCIUTO, CON O SENZA CAPITALE INIZIALE A UN TASSO DI RIV CONOSCIUTO CHE MONTANTE AVRO' TRA X ANNI?",null,null,null,null,null,null,null,null,null,null,null,null,null,null,null,"INVESTENDO UN CAPITALE ANNUALE CONOSCIUTO, CON O SENZA CAPITALE INIZIALE A UN TASSO DI RIV CONOSCIUTO CHE MONTANTE AVRO' TRA X ANNI?",null,null,null,null,null,null,null,null,null,null,null,null,null,null,null,"INVESTENDO UN CAPITALE ANNUALE CONOSCIUTO, CON O SENZA CAPITALE INIZIALE A UN TASSO DI RIV CONOSCIUTO CHE MONTANTE AVRO' TRA X ANNI?",null,null,null,null,null,null,null,null,null,null,null,null,null,null,null,"INVESTENDO UN CAPITALE ANNUALE CONOSCIUTO, CON O SENZA CAPITALE INIZIALE A UN TASSO DI RIV CONOSCIUTO CHE MONTANTE AVRO' TRA X ANNI?",null,null,null,null,null,null,null,null,null,null,null,null,null,null,null,"INVESTENDO UN CAPITALE ANNUALE CONOSCIUTO, CON O SENZA CAPITALE INIZIALE A UN TASSO DI RIV CONOSCIUTO CHE MONTANTE AVRO' TRA X ANNI?",null,null,null,null,null,null,null,null,null,null,null,null,null,null,null,"INVESTENDO UN CAPITALE ANNUALE CONOSCIUTO, CON O SENZA CAPITALE INIZIALE A UN TASSO DI RIV CONOSCIUTO CHE MONTANTE AVRO' TRA X ANNI?",null,null,null,null,null,null,null,null,null,null,null,null,null,null,null,"INVESTENDO UN CAPITALE ANNUALE CONOSCIUTO, CON O SENZA CAPITALE INIZIALE A UN TASSO DI RIV CONOSCIUTO CHE MONTANTE AVRO' TRA X ANNI?",null,null,null,null,null,null,null,null,null,null,null,null,null,null,null,"INVESTENDO UN CAPITALE ANNUALE CONOSCIUTO, CON O SENZA CAPITALE INIZIALE A UN TASSO DI RIV CONOSCIUTO CHE MONTANTE AVRO' TRA X ANNI?",null,null,null,null,null,null,null,null,null,null,null,null,null,null,null,"INVESTENDO UN CAPITALE ANNUALE CONOSCIUTO, CON O SENZA CAPITALE INIZIALE A UN TASSO DI RIV CONOSCIUTO CHE MONTANTE AVRO' TRA X ANNI?",null,null,null,null,null,null,null,null,null,null,null,null,null,null,null,"INVESTENDO UN CAPITALE ANNUALE CONOSCIUTO, CON O SENZA CAPITALE INIZIALE A UN TASSO DI RIV CONOSCIUTO CHE MONTANTE AVRO' TRA X ANNI?",null,null,null,null,null,null,null,null,null,null,null,null,null,null,null,"INVESTENDO UN CAPITALE ANNUALE CONOSCIUTO, CON O SENZA CAPITALE INIZIALE A UN TASSO DI RIV CONOSCIUTO CHE MONTANTE AVRO' TRA X ANNI?",null,null,null,null,null,null,null,null,null,null,null,null,null,null,null,"INVESTENDO UN CAPITALE ANNUALE CONOSCIUTO, CON O SENZA CAPITALE INIZIALE A UN TASSO DI RIV CONOSCIUTO CHE MONTANTE AVRO' TRA X ANNI?",null,null,null,null,null,null,null,null,null,null,null,null,null,null,null,"INVESTENDO UN CAPITALE ANNUALE CONOSCIUTO, CON O SENZA CAPITALE INIZIALE A UN TASSO DI RIV CONOSCIUTO CHE MONTANTE AVRO' TRA X ANNI?",null,null,null,null,null,null,null,null,null,null,null,null,null,null,null,"INVESTENDO UN CAPITALE ANNUALE CONOSCIUTO, CON O SENZA CAPITALE INIZIALE A UN TASSO DI RIV CONOSCIUTO CHE MONTANTE AVRO' TRA X ANNI?",null,null,null,null,null,null,null,null,null,null,null,null,null,null,null,"INVESTENDO UN CAPITALE ANNUALE CONOSCIUTO, CON O SENZA CAPITALE INIZIALE A UN TASSO DI RIV CONOSCIUTO CHE MONTANTE AVRO' TRA X ANNI?",null,null,null,null,null,null,null,null,null,null,null,null,null,null,null,"INVESTENDO UN CAPITALE ANNUALE CONOSCIUTO, CON O SENZA CAPITALE INIZIALE A UN TASSO DI RIV CONOSCIUTO CHE MONTANTE AVRO' TRA X ANNI?",null,null,null,null,null,null,null,null,null,null,null,null,null,null,null,"INVESTENDO UN CAPITALE ANNUALE CONOSCIUTO, CON O SENZA CAPITALE INIZIALE A UN TASSO DI RIV CONOSCIUTO CHE MONTANTE AVRO' TRA X ANNI?",null,null,null,null,null,null,null,null,null,null,null,null,null,null,null,"INVESTENDO UN CAPITALE ANNUALE CONOSCIUTO, CON O SENZA CAPITALE INIZIALE A UN TASSO DI RIV CONOSCIUTO CHE MONTANTE AVRO' TRA X ANNI?",null,null,null,null,null,null,null,null,null,null,null,null,null,null,null,"INVESTENDO UN CAPITALE ANNUALE CONOSCIUTO, CON O SENZA CAPITALE INIZIALE A UN TASSO DI RIV CONOSCIUTO CHE MONTANTE AVRO' TRA X ANNI?",null,null,null,null,null,null,null,null,null,null,null,null,null,null,null,"INVESTENDO UN CAPITALE ANNUALE CONOSCIUTO, CON O SENZA CAPITALE INIZIALE A UN TASSO DI RIV CONOSCIUTO CHE MONTANTE AVRO' TRA X ANNI?",null,null,null,null,null,null,null,null,null,null,null,null,null,null,null,"INVESTENDO UN CAPITALE ANNUALE CONOSCIUTO, CON O SENZA CAPITALE INIZIALE A UN TASSO DI RIV CONOSCIUTO CHE MONTANTE AVRO' TRA X ANNI?",null,null,null,null,null,null,null,null,null,null,null,null,null,null,null,"INVESTENDO UN CAPITALE ANNUALE CONOSCIUTO, CON O SENZA CAPITALE INIZIALE A UN TASSO DI RIV CONOSCIUTO CHE MONTANTE AVRO' TRA X ANNI?",null,null,null,null,null,null,null,null,null,null,null,null,null,null,null,"INVESTENDO UN CAPITALE ANNUALE CONOSCIUTO, CON O SENZA CAPITALE INIZIALE A UN TASSO DI RIV CONOSCIUTO CHE MONTANTE AVRO' TRA X ANNI?",null,null,null,null,null,null,null,null,null,null,null,null,null,null,null,"INVESTENDO UN CAPITALE ANNUALE CONOSCIUTO, CON O SENZA CAPITALE INIZIALE A UN TASSO DI RIV CONOSCIUTO CHE MONTANTE AVRO' TRA X ANNI?",null,null,null,null,null,null,null,null,null,null,null,null,null,null,null,"INVESTENDO UN CAPITALE ANNUALE CONOSCIUTO, CON O SENZA CAPITALE INIZIALE A UN TASSO DI RIV CONOSCIUTO CHE MONTANTE AVRO' TRA X ANNI?",null,null,null,null,null,null,null,null,null,null,null,null,null,null,null,"INVESTENDO UN CAPITALE ANNUALE CONOSCIUTO, CON O SENZA CAPITALE INIZIALE A UN TASSO DI RIV CONOSCIUTO CHE MONTANTE AVRO' TRA X ANNI?",null,null,null,null,null,null,null,null,null,null,null,null,null,null,null,"INVESTENDO UN CAPITALE ANNUALE CONOSCIUTO, CON O SENZA CAPITALE INIZIALE A UN TASSO DI RIV CONOSCIUTO CHE MONTANTE AVRO' TRA X ANNI?",null,null,null,null,null,null,null,null,null,null,null,null,null,null,null,"INVESTENDO UN CAPITALE ANNUALE CONOSCIUTO, CON O SENZA CAPITALE INIZIALE A UN TASSO DI RIV CONOSCIUTO CHE MONTANTE AVRO' TRA X ANNI?",null,null,null,null,null,null,null,null,null,null,null,null,null,null,null,"INVESTENDO UN CAPITALE ANNUALE CONOSCIUTO, CON O SENZA CAPITALE INIZIALE A UN TASSO DI RIV CONOSCIUTO CHE MONTANTE AVRO' TRA X ANNI?",null,null,null,null,null,null,null,null,null,null,null,null,null,null,null,"INVESTENDO UN CAPITALE ANNUALE CONOSCIUTO, CON O SENZA CAPITALE INIZIALE A UN TASSO DI RIV CONOSCIUTO CHE MONTANTE AVRO' TRA X ANNI?",null,null,null,null,null,null,null,null,null,null,null,null,null,null,null,"INVESTENDO UN CAPITALE ANNUALE CONOSCIUTO, CON O SENZA CAPITALE INIZIALE A UN TASSO DI RIV CONOSCIUTO CHE MONTANTE AVRO' TRA X ANNI?",null,null,null,null,null,null,null,null,null,null,null,null,null,null,null,"INVESTENDO UN CAPITALE ANNUALE CONOSCIUTO, CON O SENZA CAPITALE INIZIALE A UN TASSO DI RIV CONOSCIUTO CHE MONTANTE AVRO' TRA X ANNI?",null,null,null,null,null,null,null,null,null,null,null,null,null,null,null,"INVESTENDO UN CAPITALE ANNUALE CONOSCIUTO, CON O SENZA CAPITALE INIZIALE A UN TASSO DI RIV CONOSCIUTO CHE MONTANTE AVRO' TRA X ANNI?",null,null,null,null,null,null,null,null,null,null,null,null,null,null,null,"INVESTENDO UN CAPITALE ANNUALE CONOSCIUTO, CON O SENZA CAPITALE INIZIALE A UN TASSO DI RIV CONOSCIUTO CHE MONTANTE AVRO' TRA X ANNI?",null,null,null,null,null,null,null,null,null,null,null,null,null,null,null,"INVESTENDO UN CAPITALE ANNUALE CONOSCIUTO, CON O SENZA CAPITALE INIZIALE A UN TASSO DI RIV CONOSCIUTO CHE MONTANTE AVRO' TRA X ANNI?",null,null,null,null,null,null,null,null,null,null,null,null,null,null,null,"INVESTENDO UN CAPITALE ANNUALE CONOSCIUTO, CON O SENZA CAPITALE INIZIALE A UN TASSO DI RIV CONOSCIUTO CHE MONTANTE AVRO' TRA X ANNI?",null,null,null,null,null,null,null,null,null,null,null,null,null,null,null,"INVESTENDO UN CAPITALE ANNUALE CONOSCIUTO, CON O SENZA CAPITALE INIZIALE A UN TASSO DI RIV CONOSCIUTO CHE MONTANTE AVRO' TRA X ANNI?",null,null,null,null,null,null,null,null,null,null,null,null,null,null,null,"INVESTENDO UN CAPITALE ANNUALE CONOSCIUTO, CON O SENZA CAPITALE INIZIALE A UN TASSO DI RIV CONOSCIUTO CHE MONTANTE AVRO' TRA X ANNI?",null,null,null,null,null,null,null,null,null,null,null,null,null,null,null,"INVESTENDO UN CAPITALE ANNUALE CONOSCIUTO, CON O SENZA CAPITALE INIZIALE A UN TASSO DI RIV CONOSCIUTO CHE MONTANTE AVRO' TRA X ANNI?",null,null,null,null,null,null,null,null,null,null,null,null,null,null,null,"INVESTENDO UN CAPITALE ANNUALE CONOSCIUTO, CON O SENZA CAPITALE INIZIALE A UN TASSO DI RIV CONOSCIUTO CHE MONTANTE AVRO' TRA X ANNI?",null,null,null,null,null,null,null,null,null,null,null,null,null,null,null,"INVESTENDO UN CAPITALE ANNUALE CONOSCIUTO, CON O SENZA CAPITALE INIZIALE A UN TASSO DI RIV CONOSCIUTO CHE MONTANTE AVRO' TRA X ANNI?",null,null,null,null,null,null,null,null,null,null,null,null,null,null,null,"INVESTENDO UN CAPITALE ANNUALE CONOSCIUTO, CON O SENZA CAPITALE INIZIALE A UN TASSO DI RIV CONOSCIUTO CHE MONTANTE AVRO' TRA X ANNI?",null,null,null,null,null,null,null,null,null,null,null,null,null,null,null,"INVESTENDO UN CAPITALE ANNUALE CONOSCIUTO, CON O SENZA CAPITALE INIZIALE A UN TASSO DI RIV CONOSCIUTO CHE MONTANTE AVRO' TRA X ANNI?",null,null,null,null,null,null,null,null,null,null,null,null,null,null,null,"INVESTENDO UN CAPITALE ANNUALE CONOSCIUTO, CON O SENZA CAPITALE INIZIALE A UN TASSO DI RIV CONOSCIUTO CHE MONTANTE AVRO' TRA X ANNI?",null,null,null,null,null,null,null,null,null,null,null,null,null,null,null,"INVESTENDO UN CAPITALE ANNUALE CONOSCIUTO, CON O SENZA CAPITALE INIZIALE A UN TASSO DI RIV CONOSCIUTO CHE MONTANTE AVRO' TRA X ANNI?",null,null,null,null,null,null,null,null,null,null,null,null,null,null,null,"INVESTENDO UN CAPITALE ANNUALE CONOSCIUTO, CON O SENZA CAPITALE INIZIALE A UN TASSO DI RIV CONOSCIUTO CHE MONTANTE AVRO' TRA X ANNI?",null,null,null,null,null,null,null,null,null,null,null,null,null,null,null,"INVESTENDO UN CAPITALE ANNUALE CONOSCIUTO, CON O SENZA CAPITALE INIZIALE A UN TASSO DI RIV CONOSCIUTO CHE MONTANTE AVRO' TRA X ANNI?",null,null,null,null,null,null,null,null,null,null,null,null,null,null,null,"INVESTENDO UN CAPITALE ANNUALE CONOSCIUTO, CON O SENZA CAPITALE INIZIALE A UN TASSO DI RIV CONOSCIUTO CHE MONTANTE AVRO' TRA X ANNI?",null,null,null,null,null,null,null,null,null,null,null,null,null,null,null,"INVESTENDO UN CAPITALE ANNUALE CONOSCIUTO, CON O SENZA CAPITALE INIZIALE A UN TASSO DI RIV CONOSCIUTO CHE MONTANTE AVRO' TRA X ANNI?",null,null,null,null,null,null,null,null,null,null,null,null,null,null,null,"INVESTENDO UN CAPITALE ANNUALE CONOSCIUTO, CON O SENZA CAPITALE INIZIALE A UN TASSO DI RIV CONOSCIUTO CHE MONTANTE AVRO' TRA X ANNI?",null,null,null,null,null,null,null,null,null,null,null,null,null,null,null,"INVESTENDO UN CAPITALE ANNUALE CONOSCIUTO, CON O SENZA CAPITALE INIZIALE A UN TASSO DI RIV CONOSCIUTO CHE MONTANTE AVRO' TRA X ANNI?",null,null,null,null,null,null,null,null,null,null,null,null,null,null,null,"INVESTENDO UN CAPITALE ANNUALE CONOSCIUTO, CON O SENZA CAPITALE INIZIALE A UN TASSO DI RIV CONOSCIUTO CHE MONTANTE AVRO' TRA X ANNI?",null,null,null,null,null,null,null,null,null,null,null,null,null,null,null,"INVESTENDO UN CAPITALE ANNUALE CONOSCIUTO, CON O SENZA CAPITALE INIZIALE A UN TASSO DI RIV CONOSCIUTO CHE MONTANTE AVRO' TRA X ANNI?",null,null,null,null,null,null,null,null,null,null,null,null,null,null,null,"INVESTENDO UN CAPITALE ANNUALE CONOSCIUTO, CON O SENZA CAPITALE INIZIALE A UN TASSO DI RIV CONOSCIUTO CHE MONTANTE AVRO' TRA X ANNI?",null,null,null,null,null,null,null,null,null,null,null,null,null,null,null,"INVESTENDO UN CAPITALE ANNUALE CONOSCIUTO, CON O SENZA CAPITALE INIZIALE A UN TASSO DI RIV CONOSCIUTO CHE MONTANTE AVRO' TRA X ANNI?",null,null,null,null,null,null,null,null,null,null,null,null,null,null,null,"INVESTENDO UN CAPITALE ANNUALE CONOSCIUTO, CON O SENZA CAPITALE INIZIALE A UN TASSO DI RIV CONOSCIUTO CHE MONTANTE AVRO' TRA X ANNI?",null,null,null,null,null,null,null,null,null,null,null,null,null,null,null,"INVESTENDO UN CAPITALE ANNUALE CONOSCIUTO, CON O SENZA CAPITALE INIZIALE A UN TASSO DI RIV CONOSCIUTO CHE MONTANTE AVRO' TRA X ANNI?",null,null,null,null,null,null,null,null,null,null,null,null,null,null,null,"INVESTENDO UN CAPITALE ANNUALE CONOSCIUTO, CON O SENZA CAPITALE INIZIALE A UN TASSO DI RIV CONOSCIUTO CHE MONTANTE AVRO' TRA X ANNI?",null,null,null,null,null,null,null,null,null,null,null,null,null,null,null,"INVESTENDO UN CAPITALE ANNUALE CONOSCIUTO, CON O SENZA CAPITALE INIZIALE A UN TASSO DI RIV CONOSCIUTO CHE MONTANTE AVRO' TRA X ANNI?",null,null,null,null,null,null,null,null,null,null,null,null,null,null,null,"INVESTENDO UN CAPITALE ANNUALE CONOSCIUTO, CON O SENZA CAPITALE INIZIALE A UN TASSO DI RIV CONOSCIUTO CHE MONTANTE AVRO' TRA X ANNI?",null,null,null,null,null,null,null,null,null,null,null,null,null,null,null,"INVESTENDO UN CAPITALE ANNUALE CONOSCIUTO, CON O SENZA CAPITALE INIZIALE A UN TASSO DI RIV CONOSCIUTO CHE MONTANTE AVRO' TRA X ANNI?",null,null,null,null,null,null,null,null,null,null,null,null,null,null,null,"INVESTENDO UN CAPITALE ANNUALE CONOSCIUTO, CON O SENZA CAPITALE INIZIALE A UN TASSO DI RIV CONOSCIUTO CHE MONTANTE AVRO' TRA X ANNI?",null,null,null,null,null,null,null,null,null,null,null,null,null,null,null,"INVESTENDO UN CAPITALE ANNUALE CONOSCIUTO, CON O SENZA CAPITALE INIZIALE A UN TASSO DI RIV CONOSCIUTO CHE MONTANTE AVRO' TRA X ANNI?",null,null,null,null,null,null,null,null,null,null,null,null,null,null,null,"INVESTENDO UN CAPITALE ANNUALE CONOSCIUTO, CON O SENZA CAPITALE INIZIALE A UN TASSO DI RIV CONOSCIUTO CHE MONTANTE AVRO' TRA X ANNI?",null,null,null,null,null,null,null,null,null,null,null,null,null,null,null,"INVESTENDO UN CAPITALE ANNUALE CONOSCIUTO, CON O SENZA CAPITALE INIZIALE A UN TASSO DI RIV CONOSCIUTO CHE MONTANTE AVRO' TRA X ANNI?",null,null,null,null,null,null,null,null,null,null,null,null,null,null,null,"INVESTENDO UN CAPITALE ANNUALE CONOSCIUTO, CON O SENZA CAPITALE INIZIALE A UN TASSO DI RIV CONOSCIUTO CHE MONTANTE AVRO' TRA X ANNI?",null,null,null,null,null,null,null,null,null,null,null,null,null,null,null,"INVESTENDO UN CAPITALE ANNUALE CONOSCIUTO, CON O SENZA CAPITALE INIZIALE A UN TASSO DI RIV CONOSCIUTO CHE MONTANTE AVRO' TRA X ANNI?",null,null,null,null,null,null,null,null,null,null,null,null,null,null,null,"INVESTENDO UN CAPITALE ANNUALE CONOSCIUTO, CON O SENZA CAPITALE INIZIALE A UN TASSO DI RIV CONOSCIUTO CHE MONTANTE AVRO' TRA X ANNI?",null,null,null,null,null,null,null,null,null,null,null,null,null,null,null,"INVESTENDO UN CAPITALE ANNUALE CONOSCIUTO, CON O SENZA CAPITALE INIZIALE A UN TASSO DI RIV CONOSCIUTO CHE MONTANTE AVRO' TRA X ANNI?",null,null,null,null,null,null,null,null,null,null,null,null,null,null,null,"INVESTENDO UN CAPITALE ANNUALE CONOSCIUTO, CON O SENZA CAPITALE INIZIALE A UN TASSO DI RIV CONOSCIUTO CHE MONTANTE AVRO' TRA X ANNI?",null,null,null,null,null,null,null,null,null,null,null,null,null,null,null,"INVESTENDO UN CAPITALE ANNUALE CONOSCIUTO, CON O SENZA CAPITALE INIZIALE A UN TASSO DI RIV CONOSCIUTO CHE MONTANTE AVRO' TRA X ANNI?",null,null,null,null,null,null,null,null,null,null,null,null,null,null,null,"INVESTENDO UN CAPITALE ANNUALE CONOSCIUTO, CON O SENZA CAPITALE INIZIALE A UN TASSO DI RIV CONOSCIUTO CHE MONTANTE AVRO' TRA X ANNI?",null,null,null,null,null,null,null,null,null,null,null,null,null,null,null,"INVESTENDO UN CAPITALE ANNUALE CONOSCIUTO, CON O SENZA CAPITALE INIZIALE A UN TASSO DI RIV CONOSCIUTO CHE MONTANTE AVRO' TRA X ANNI?",null,null,null,null,null,null,null,null,null,null,null,null,null,null,null,"INVESTENDO UN CAPITALE ANNUALE CONOSCIUTO, CON O SENZA CAPITALE INIZIALE A UN TASSO DI RIV CONOSCIUTO CHE MONTANTE AVRO' TRA X ANNI?",null,null,null,null,null,null,null,null,null,null,null,null,null,null,null,"INVESTENDO UN CAPITALE ANNUALE CONOSCIUTO, CON O SENZA CAPITALE INIZIALE A UN TASSO DI RIV CONOSCIUTO CHE MONTANTE AVRO' TRA X ANNI?",null,null,null,null,null,null,null,null,null,null,null,null,null,null,null,"INVESTENDO UN CAPITALE ANNUALE CONOSCIUTO, CON O SENZA CAPITALE INIZIALE A UN TASSO DI RIV CONOSCIUTO CHE MONTANTE AVRO' TRA X ANNI?",null,null,null,null,null,null,null,null,null,null,null,null,null,null,null,"INVESTENDO UN CAPITALE ANNUALE CONOSCIUTO, CON O SENZA CAPITALE INIZIALE A UN TASSO DI RIV CONOSCIUTO CHE MONTANTE AVRO' TRA X ANNI?",null,null,null,null,null,null,null,null,null,null,null,null,null,null,null,"INVESTENDO UN CAPITALE ANNUALE CONOSCIUTO, CON O SENZA CAPITALE INIZIALE A UN TASSO DI RIV CONOSCIUTO CHE MONTANTE AVRO' TRA X ANNI?",null,null,null,null,null,null,null,null,null,null,null,null,null,null,null,"INVESTENDO UN CAPITALE ANNUALE CONOSCIUTO, CON O SENZA CAPITALE INIZIALE A UN TASSO DI RIV CONOSCIUTO CHE MONTANTE AVRO' TRA X ANNI?",null,null,null,null,null,null,null,null,null,null,null,null,null,null,null,"INVESTENDO UN CAPITALE ANNUALE CONOSCIUTO, CON O SENZA CAPITALE INIZIALE A UN TASSO DI RIV CONOSCIUTO CHE MONTANTE AVRO' TRA X ANNI?",null,null,null,null,null,null,null,null,null,null,null,null,null,null,null,"INVESTENDO UN CAPITALE ANNUALE CONOSCIUTO, CON O SENZA CAPITALE INIZIALE A UN TASSO DI RIV CONOSCIUTO CHE MONTANTE AVRO' TRA X ANNI?",null,null,null,null,null,null,null,null,null,null,null,null,null,null,null,"INVESTENDO UN CAPITALE ANNUALE CONOSCIUTO, CON O SENZA CAPITALE INIZIALE A UN TASSO DI RIV CONOSCIUTO CHE MONTANTE AVRO' TRA X ANNI?",null,null,null,null,null,null,null,null,null,null,null,null,null,null,null,"INVESTENDO UN CAPITALE ANNUALE CONOSCIUTO, CON O SENZA CAPITALE INIZIALE A UN TASSO DI RIV CONOSCIUTO CHE MONTANTE AVRO' TRA X ANNI?",null,null,null,null,null,null,null,null,null,null,null,null,null,null,null,"INVESTENDO UN CAPITALE ANNUALE CONOSCIUTO, CON O SENZA CAPITALE INIZIALE A UN TASSO DI RIV CONOSCIUTO CHE MONTANTE AVRO' TRA X ANNI?",null,null,null,null,null,null,null,null,null,null,null,null,null,null,null,"INVESTENDO UN CAPITALE ANNUALE CONOSCIUTO, CON O SENZA CAPITALE INIZIALE A UN TASSO DI RIV CONOSCIUTO CHE MONTANTE AVRO' TRA X ANNI?",null,null,null,null,null,null,null,null,null,null,null,null,null,null,null,"INVESTENDO UN CAPITALE ANNUALE CONOSCIUTO, CON O SENZA CAPITALE INIZIALE A UN TASSO DI RIV CONOSCIUTO CHE MONTANTE AVRO' TRA X ANNI?",null,null,null,null,null,null,null,null,null,null,null,null,null,null,null,"INVESTENDO UN CAPITALE ANNUALE CONOSCIUTO, CON O SENZA CAPITALE INIZIALE A UN TASSO DI RIV CONOSCIUTO CHE MONTANTE AVRO' TRA X ANNI?",null,null,null,null,null,null,null,null,null,null,null,null,null,null,null,"INVESTENDO UN CAPITALE ANNUALE CONOSCIUTO, CON O SENZA CAPITALE INIZIALE A UN TASSO DI RIV CONOSCIUTO CHE MONTANTE AVRO' TRA X ANNI?",null,null,null,null,null,null,null,null,null,null,null,null,null,null,null,"INVESTENDO UN CAPITALE ANNUALE CONOSCIUTO, CON O SENZA CAPITALE INIZIALE A UN TASSO DI RIV CONOSCIUTO CHE MONTANTE AVRO' TRA X ANNI?",null,null,null,null,null,null,null,null,null,null,null,null,null,null,null,"INVESTENDO UN CAPITALE ANNUALE CONOSCIUTO, CON O SENZA CAPITALE INIZIALE A UN TASSO DI RIV CONOSCIUTO CHE MONTANTE AVRO' TRA X ANNI?",null,null,null,null,null,null,null,null,null,null,null,null,null,null,null,"INVESTENDO UN CAPITALE ANNUALE CONOSCIUTO, CON O SENZA CAPITALE INIZIALE A UN TASSO DI RIV CONOSCIUTO CHE MONTANTE AVRO' TRA X ANNI?",null,null,null,null,null,null,null,null,null,null,null,null,null,null,null,"INVESTENDO UN CAPITALE ANNUALE CONOSCIUTO, CON O SENZA CAPITALE INIZIALE A UN TASSO DI RIV CONOSCIUTO CHE MONTANTE AVRO' TRA X ANNI?",null,null,null,null,null,null,null,null,null,null,null,null,null,null,null,"INVESTENDO UN CAPITALE ANNUALE CONOSCIUTO, CON O SENZA CAPITALE INIZIALE A UN TASSO DI RIV CONOSCIUTO CHE MONTANTE AVRO' TRA X ANNI?",null,null,null,null,null,null,null,null,null,null,null,null,null,null,null,"INVESTENDO UN CAPITALE ANNUALE CONOSCIUTO, CON O SENZA CAPITALE INIZIALE A UN TASSO DI RIV CONOSCIUTO CHE MONTANTE AVRO' TRA X ANNI?",null,null,null,null,null,null,null,null,null,null,null,null,null,null,null,"INVESTENDO UN CAPITALE ANNUALE CONOSCIUTO, CON O SENZA CAPITALE INIZIALE A UN TASSO DI RIV CONOSCIUTO CHE MONTANTE AVRO' TRA X ANNI?",null,null,null,null,null,null,null,null,null,null,null,null,null,null,null,"INVESTENDO UN CAPITALE ANNUALE CONOSCIUTO, CON O SENZA CAPITALE INIZIALE A UN TASSO DI RIV CONOSCIUTO CHE MONTANTE AVRO' TRA X ANNI?",null,null,null,null,null,null,null,null,null,null,null,null,null,null,null,"INVESTENDO UN CAPITALE ANNUALE CONOSCIUTO, CON O SENZA CAPITALE INIZIALE A UN TASSO DI RIV CONOSCIUTO CHE MONTANTE AVRO' TRA X ANNI?",null,null,null,null,null,null,null,null,null,null,null,null,null,null,null,"INVESTENDO UN CAPITALE ANNUALE CONOSCIUTO, CON O SENZA CAPITALE INIZIALE A UN TASSO DI RIV CONOSCIUTO CHE MONTANTE AVRO' TRA X ANNI?",null,null,null,null,null,null,null,null,null,null,null,null,null,null,null,"INVESTENDO UN CAPITALE ANNUALE CONOSCIUTO, CON O SENZA CAPITALE INIZIALE A UN TASSO DI RIV CONOSCIUTO CHE MONTANTE AVRO' TRA X ANNI?",null,null,null,null,null,null,null,null,null,null,null,null,null,null,null,"INVESTENDO UN CAPITALE ANNUALE CONOSCIUTO, CON O SENZA CAPITALE INIZIALE A UN TASSO DI RIV CONOSCIUTO CHE MONTANTE AVRO' TRA X ANNI?",null,null,null,null,null,null,null,null,null,null,null,null,null,null,null,"INVESTENDO UN CAPITALE ANNUALE CONOSCIUTO, CON O SENZA CAPITALE INIZIALE A UN TASSO DI RIV CONOSCIUTO CHE MONTANTE AVRO' TRA X ANNI?",null,null,null,null,null,null,null,null,null,null,null,null,null,null,null,"INVESTENDO UN CAPITALE ANNUALE CONOSCIUTO, CON O SENZA CAPITALE INIZIALE A UN TASSO DI RIV CONOSCIUTO CHE MONTANTE AVRO' TRA X ANNI?",null,null,null,null,null,null,null,null,null,null,null,null,null,null,null,"INVESTENDO UN CAPITALE ANNUALE CONOSCIUTO, CON O SENZA CAPITALE INIZIALE A UN TASSO DI RIV CONOSCIUTO CHE MONTANTE AVRO' TRA X ANNI?",null,null,null,null,null,null,null,null,null,null,null,null,null,null,null,"INVESTENDO UN CAPITALE ANNUALE CONOSCIUTO, CON O SENZA CAPITALE INIZIALE A UN TASSO DI RIV CONOSCIUTO CHE MONTANTE AVRO' TRA X ANNI?",null,null,null,null,null,null,null,null,null,null,null,null,null,null,null,"INVESTENDO UN CAPITALE ANNUALE CONOSCIUTO, CON O SENZA CAPITALE INIZIALE A UN TASSO DI RIV CONOSCIUTO CHE MONTANTE AVRO' TRA X ANNI?",null,null,null,null,null,null,null,null,null,null,null,null,null,null,null,"INVESTENDO UN CAPITALE ANNUALE CONOSCIUTO, CON O SENZA CAPITALE INIZIALE A UN TASSO DI RIV CONOSCIUTO CHE MONTANTE AVRO' TRA X ANNI?",null,null,null,null,null,null,null,null,null,null,null,null,null,null,null,"INVESTENDO UN CAPITALE ANNUALE CONOSCIUTO, CON O SENZA CAPITALE INIZIALE A UN TASSO DI RIV CONOSCIUTO CHE MONTANTE AVRO' TRA X ANNI?",null,null,null,null,null,null,null,null,null,null,null,null,null,null,null,"INVESTENDO UN CAPITALE ANNUALE CONOSCIUTO, CON O SENZA CAPITALE INIZIALE A UN TASSO DI RIV CONOSCIUTO CHE MONTANTE AVRO' TRA X ANNI?",null,null,null,null,null,null,null,null,null,null,null,null,null,null,null,"INVESTENDO UN CAPITALE ANNUALE CONOSCIUTO, CON O SENZA CAPITALE INIZIALE A UN TASSO DI RIV CONOSCIUTO CHE MONTANTE AVRO' TRA X ANNI?",null,null,null,null,null,null,null,null,null,null,null,null,null,null,null,"INVESTENDO UN CAPITALE ANNUALE CONOSCIUTO, CON O SENZA CAPITALE INIZIALE A UN TASSO DI RIV CONOSCIUTO CHE MONTANTE AVRO' TRA X ANNI?",null,null,null,null,null,null,null,null,null,null,null,null,null,null,null,"INVESTENDO UN CAPITALE ANNUALE CONOSCIUTO, CON O SENZA CAPITALE INIZIALE A UN TASSO DI RIV CONOSCIUTO CHE MONTANTE AVRO' TRA X ANNI?",null,null,null,null,null,null,null,null,null,null,null,null,null,null,null,"INVESTENDO UN CAPITALE ANNUALE CONOSCIUTO, CON O SENZA CAPITALE INIZIALE A UN TASSO DI RIV CONOSCIUTO CHE MONTANTE AVRO' TRA X ANNI?",null,null,null,null,null,null,null,null,null,null,null,null,null,null,null,"INVESTENDO UN CAPITALE ANNUALE CONOSCIUTO, CON O SENZA CAPITALE INIZIALE A UN TASSO DI RIV CONOSCIUTO CHE MONTANTE AVRO' TRA X ANNI?",null,null,null,null,null,null,null,null,null,null,null,null,null,null,null,"INVESTENDO UN CAPITALE ANNUALE CONOSCIUTO, CON O SENZA CAPITALE INIZIALE A UN TASSO DI RIV CONOSCIUTO CHE MONTANTE AVRO' TRA X ANNI?",null,null,null,null,null,null,null,null,null,null,null,null,null,null,null,"INVESTENDO UN CAPITALE ANNUALE CONOSCIUTO, CON O SENZA CAPITALE INIZIALE A UN TASSO DI RIV CONOSCIUTO CHE MONTANTE AVRO' TRA X ANNI?",null,null,null,null,null,null,null,null,null,null,null,null,null,null,null,"INVESTENDO UN CAPITALE ANNUALE CONOSCIUTO, CON O SENZA CAPITALE INIZIALE A UN TASSO DI RIV CONOSCIUTO CHE MONTANTE AVRO' TRA X ANNI?",null,null,null,null,null,null,null,null,null,null,null,null,null,null,null,"INVESTENDO UN CAPITALE ANNUALE CONOSCIUTO, CON O SENZA CAPITALE INIZIALE A UN TASSO DI RIV CONOSCIUTO CHE MONTANTE AVRO' TRA X ANNI?",null,null,null,null,null,null,null,null,null,null,null,null,null,null,null,"INVESTENDO UN CAPITALE ANNUALE CONOSCIUTO, CON O SENZA CAPITALE INIZIALE A UN TASSO DI RIV CONOSCIUTO CHE MONTANTE AVRO' TRA X ANNI?",null,null,null,null,null,null,null,null,null,null,null,null,null,null,null,"INVESTENDO UN CAPITALE ANNUALE CONOSCIUTO, CON O SENZA CAPITALE INIZIALE A UN TASSO DI RIV CONOSCIUTO CHE MONTANTE AVRO' TRA X ANNI?",null,null,null,null,null,null,null,null,null,null,null,null,null,null,null,"INVESTENDO UN CAPITALE ANNUALE CONOSCIUTO, CON O SENZA CAPITALE INIZIALE A UN TASSO DI RIV CONOSCIUTO CHE MONTANTE AVRO' TRA X ANNI?",null,null,null,null,null,null,null,null,null,null,null,null,null,null,null,"INVESTENDO UN CAPITALE ANNUALE CONOSCIUTO, CON O SENZA CAPITALE INIZIALE A UN TASSO DI RIV CONOSCIUTO CHE MONTANTE AVRO' TRA X ANNI?",null,null,null,null,null,null,null,null,null,null,null,null,null,null,null,"INVESTENDO UN CAPITALE ANNUALE CONOSCIUTO, CON O SENZA CAPITALE INIZIALE A UN TASSO DI RIV CONOSCIUTO CHE MONTANTE AVRO' TRA X ANNI?",null,null,null,null,null,null,null,null,null,null,null,null,null,null,null,"INVESTENDO UN CAPITALE ANNUALE CONOSCIUTO, CON O SENZA CAPITALE INIZIALE A UN TASSO DI RIV CONOSCIUTO CHE MONTANTE AVRO' TRA X ANNI?",null,null,null,null,null,null,null,null,null,null,null,null,null,null,null,"INVESTENDO UN CAPITALE ANNUALE CONOSCIUTO, CON O SENZA CAPITALE INIZIALE A UN TASSO DI RIV CONOSCIUTO CHE MONTANTE AVRO' TRA X ANNI?",null,null,null,null,null,null,null,null,null,null,null,null,null,null,null,"INVESTENDO UN CAPITALE ANNUALE CONOSCIUTO, CON O SENZA CAPITALE INIZIALE A UN TASSO DI RIV CONOSCIUTO CHE MONTANTE AVRO' TRA X ANNI?",null,null,null,null,null,null,null,null,null,null,null,null,null,null,null,"INVESTENDO UN CAPITALE ANNUALE CONOSCIUTO, CON O SENZA CAPITALE INIZIALE A UN TASSO DI RIV CONOSCIUTO CHE MONTANTE AVRO' TRA X ANNI?",null,null,null,null,null,null,null,null,null,null,null,null,null,null,null,"INVESTENDO UN CAPITALE ANNUALE CONOSCIUTO, CON O SENZA CAPITALE INIZIALE A UN TASSO DI RIV CONOSCIUTO CHE MONTANTE AVRO' TRA X ANNI?",null,null,null,null,null,null,null,null,null,null,null,null,null,null,null,"INVESTENDO UN CAPITALE ANNUALE CONOSCIUTO, CON O SENZA CAPITALE INIZIALE A UN TASSO DI RIV CONOSCIUTO CHE MONTANTE AVRO' TRA X ANNI?",null,null,null,null,null,null,null,null,null,null,null,null,null,null,null,"INVESTENDO UN CAPITALE ANNUALE CONOSCIUTO, CON O SENZA CAPITALE INIZIALE A UN TASSO DI RIV CONOSCIUTO CHE MONTANTE AVRO' TRA X ANNI?",null,null,null,null,null,null,null,null,null,null,null,null,null,null,null,"INVESTENDO UN CAPITALE ANNUALE CONOSCIUTO, CON O SENZA CAPITALE INIZIALE A UN TASSO DI RIV CONOSCIUTO CHE MONTANTE AVRO' TRA X ANNI?",null,null,null,null,null,null,null,null,null,null,null,null,null,null,null,"INVESTENDO UN CAPITALE ANNUALE CONOSCIUTO, CON O SENZA CAPITALE INIZIALE A UN TASSO DI RIV CONOSCIUTO CHE MONTANTE AVRO' TRA X ANNI?",null,null,null,null,null,null,null,null,null,null,null,null,null,null,null,"INVESTENDO UN CAPITALE ANNUALE CONOSCIUTO, CON O SENZA CAPITALE INIZIALE A UN TASSO DI RIV CONOSCIUTO CHE MONTANTE AVRO' TRA X ANNI?",null,null,null,null,null,null,null,null,null,null,null,null,null,null,null,"INVESTENDO UN CAPITALE ANNUALE CONOSCIUTO, CON O SENZA CAPITALE INIZIALE A UN TASSO DI RIV CONOSCIUTO CHE MONTANTE AVRO' TRA X ANNI?",null,null,null,null,null,null,null,null,null,null,null,null,null,null,null,"INVESTENDO UN CAPITALE ANNUALE CONOSCIUTO, CON O SENZA CAPITALE INIZIALE A UN TASSO DI RIV CONOSCIUTO CHE MONTANTE AVRO' TRA X ANNI?",null,null,null,null,null,null,null,null,null,null,null,null,null,null,null,"INVESTENDO UN CAPITALE ANNUALE CONOSCIUTO, CON O SENZA CAPITALE INIZIALE A UN TASSO DI RIV CONOSCIUTO CHE MONTANTE AVRO' TRA X ANNI?",null,null,null,null,null,null,null,null,null,null,null,null,null,null,null,"INVESTENDO UN CAPITALE ANNUALE CONOSCIUTO, CON O SENZA CAPITALE INIZIALE A UN TASSO DI RIV CONOSCIUTO CHE MONTANTE AVRO' TRA X ANNI?",null,null,null,null,null,null,null,null,null,null,null,null,null,null,null,"INVESTENDO UN CAPITALE ANNUALE CONOSCIUTO, CON O SENZA CAPITALE INIZIALE A UN TASSO DI RIV CONOSCIUTO CHE MONTANTE AVRO' TRA X ANNI?",null,null,null,null,null,null,null,null,null,null,null,null,null,null,null,"INVESTENDO UN CAPITALE ANNUALE CONOSCIUTO, CON O SENZA CAPITALE INIZIALE A UN TASSO DI RIV CONOSCIUTO CHE MONTANTE AVRO' TRA X ANNI?",null,null,null,null,null,null,null,null,null,null,null,null,null,null,null,"INVESTENDO UN CAPITALE ANNUALE CONOSCIUTO, CON O SENZA CAPITALE INIZIALE A UN TASSO DI RIV CONOSCIUTO CHE MONTANTE AVRO' TRA X ANNI?",null,null,null,null,null,null,null,null,null,null,null,null,null,null,null,"INVESTENDO UN CAPITALE ANNUALE CONOSCIUTO, CON O SENZA CAPITALE INIZIALE A UN TASSO DI RIV CONOSCIUTO CHE MONTANTE AVRO' TRA X ANNI?",null,null,null,null,null,null,null,null,null,null,null,null,null,null,null,"INVESTENDO UN CAPITALE ANNUALE CONOSCIUTO, CON O SENZA CAPITALE INIZIALE A UN TASSO DI RIV CONOSCIUTO CHE MONTANTE AVRO' TRA X ANNI?",null,null,null,null,null,null,null,null,null,null,null,null,null,null,null,"INVESTENDO UN CAPITALE ANNUALE CONOSCIUTO, CON O SENZA CAPITALE INIZIALE A UN TASSO DI RIV CONOSCIUTO CHE MONTANTE AVRO' TRA X ANNI?",null,null,null,null,null,null,null,null,null,null,null,null,null,null,null,"INVESTENDO UN CAPITALE ANNUALE CONOSCIUTO, CON O SENZA CAPITALE INIZIALE A UN TASSO DI RIV CONOSCIUTO CHE MONTANTE AVRO' TRA X ANNI?",null,null,null,null,null,null,null,null,null,null,null,null,null,null,null,"INVESTENDO UN CAPITALE ANNUALE CONOSCIUTO, CON O SENZA CAPITALE INIZIALE A UN TASSO DI RIV CONOSCIUTO CHE MONTANTE AVRO' TRA X ANNI?",null,null,null,null,null,null,null,null,null,null,null,null,null,null,null,"INVESTENDO UN CAPITALE ANNUALE CONOSCIUTO, CON O SENZA CAPITALE INIZIALE A UN TASSO DI RIV CONOSCIUTO CHE MONTANTE AVRO' TRA X ANNI?",null,null,null,null,null,null,null,null,null,null,null,null,null,null,null,"INVESTENDO UN CAPITALE ANNUALE CONOSCIUTO, CON O SENZA CAPITALE INIZIALE A UN TASSO DI RIV CONOSCIUTO CHE MONTANTE AVRO' TRA X ANNI?",null,null,null,null,null,null,null,null,null,null,null,null,null,null,null,"INVESTENDO UN CAPITALE ANNUALE CONOSCIUTO, CON O SENZA CAPITALE INIZIALE A UN TASSO DI RIV CONOSCIUTO CHE MONTANTE AVRO' TRA X ANNI?",null,null,null,null,null,null,null,null,null,null,null,null,null,null,null,"INVESTENDO UN CAPITALE ANNUALE CONOSCIUTO, CON O SENZA CAPITALE INIZIALE A UN TASSO DI RIV CONOSCIUTO CHE MONTANTE AVRO' TRA X ANNI?",null,null,null,null,null,null,null,null,null,null,null,null,null,null,null,"INVESTENDO UN CAPITALE ANNUALE CONOSCIUTO, CON O SENZA CAPITALE INIZIALE A UN TASSO DI RIV CONOSCIUTO CHE MONTANTE AVRO' TRA X ANNI?",null,null,null,null,null,null,null,null,null,null,null,null,null,null,null,"INVESTENDO UN CAPITALE ANNUALE CONOSCIUTO, CON O SENZA CAPITALE INIZIALE A UN TASSO DI RIV CONOSCIUTO CHE MONTANTE AVRO' TRA X ANNI?",null,null,null,null,null,null,null,null,null,null,null,null,null,null,null,"INVESTENDO UN CAPITALE ANNUALE CONOSCIUTO, CON O SENZA CAPITALE INIZIALE A UN TASSO DI RIV CONOSCIUTO CHE MONTANTE AVRO' TRA X ANNI?",null,null,null,null,null,null,null,null,null,null,null,null,null,null,null,"INVESTENDO UN CAPITALE ANNUALE CONOSCIUTO, CON O SENZA CAPITALE INIZIALE A UN TASSO DI RIV CONOSCIUTO CHE MONTANTE AVRO' TRA X ANNI?",null,null,null,null,null,null,null,null,null,null,null,null,null,null,null,"INVESTENDO UN CAPITALE ANNUALE CONOSCIUTO, CON O SENZA CAPITALE INIZIALE A UN TASSO DI RIV CONOSCIUTO CHE MONTANTE AVRO' TRA X ANNI?",null,null,null,null,null,null,null,null,null,null,null,null,null,null,null,"INVESTENDO UN CAPITALE ANNUALE CONOSCIUTO, CON O SENZA CAPITALE INIZIALE A UN TASSO DI RIV CONOSCIUTO CHE MONTANTE AVRO' TRA X ANNI?",null,null,null,null,null,null,null,null,null,null,null,null,null,null,null,"INVESTENDO UN CAPITALE ANNUALE CONOSCIUTO, CON O SENZA CAPITALE INIZIALE A UN TASSO DI RIV CONOSCIUTO CHE MONTANTE AVRO' TRA X ANNI?",null,null,null,null,null,null,null,null,null,null,null,null,null,null,null,"INVESTENDO UN CAPITALE ANNUALE CONOSCIUTO, CON O SENZA CAPITALE INIZIALE A UN TASSO DI RIV CONOSCIUTO CHE MONTANTE AVRO' TRA X ANNI?",null,null,null,null,null,null,null,null,null,null,null,null,null,null,null,"INVESTENDO UN CAPITALE ANNUALE CONOSCIUTO, CON O SENZA CAPITALE INIZIALE A UN TASSO DI RIV CONOSCIUTO CHE MONTANTE AVRO' TRA X ANNI?",null,null,null,null,null,null,null,null,null,null,null,null,null,null,null,"INVESTENDO UN CAPITALE ANNUALE CONOSCIUTO, CON O SENZA CAPITALE INIZIALE A UN TASSO DI RIV CONOSCIUTO CHE MONTANTE AVRO' TRA X ANNI?",null,null,null,null,null,null,null,null,null,null,null,null,null,null,null,"INVESTENDO UN CAPITALE ANNUALE CONOSCIUTO, CON O SENZA CAPITALE INIZIALE A UN TASSO DI RIV CONOSCIUTO CHE MONTANTE AVRO' TRA X ANNI?",null,null,null,null,null,null,null,null,null,null,null,null,null,null,null,"INVESTENDO UN CAPITALE ANNUALE CONOSCIUTO, CON O SENZA CAPITALE INIZIALE A UN TASSO DI RIV CONOSCIUTO CHE MONTANTE AVRO' TRA X ANNI?",null,null,null,null,null,null,null,null,null,null,null,null,null,null,null,"INVESTENDO UN CAPITALE ANNUALE CONOSCIUTO, CON O SENZA CAPITALE INIZIALE A UN TASSO DI RIV CONOSCIUTO CHE MONTANTE AVRO' TRA X ANNI?",null,null,null,null,null,null,null,null,null,null,null,null,null,null,null,"INVESTENDO UN CAPITALE ANNUALE CONOSCIUTO, CON O SENZA CAPITALE INIZIALE A UN TASSO DI RIV CONOSCIUTO CHE MONTANTE AVRO' TRA X ANNI?",null,null,null,null,null,null,null,null,null,null,null,null,null,null,null,"INVESTENDO UN CAPITALE ANNUALE CONOSCIUTO, CON O SENZA CAPITALE INIZIALE A UN TASSO DI RIV CONOSCIUTO CHE MONTANTE AVRO' TRA X ANNI?",null,null,null,null,null,null,null,null,null,null,null,null,null,null,null,"INVESTENDO UN CAPITALE ANNUALE CONOSCIUTO, CON O SENZA CAPITALE INIZIALE A UN TASSO DI RIV CONOSCIUTO CHE MONTANTE AVRO' TRA X ANNI?",null,null,null,null,null,null,null,null,null,null,null,null,null,null,null,"INVESTENDO UN CAPITALE ANNUALE CONOSCIUTO, CON O SENZA CAPITALE INIZIALE A UN TASSO DI RIV CONOSCIUTO CHE MONTANTE AVRO' TRA X ANNI?",null,null,null,null,null,null,null,null,null,null,null,null,null,null,null,"INVESTENDO UN CAPITALE ANNUALE CONOSCIUTO, CON O SENZA CAPITALE INIZIALE A UN TASSO DI RIV CONOSCIUTO CHE MONTANTE AVRO' TRA X ANNI?",null,null,null,null,null,null,null,null,null,null,null,null,null,null,null,"INVESTENDO UN CAPITALE ANNUALE CONOSCIUTO, CON O SENZA CAPITALE INIZIALE A UN TASSO DI RIV CONOSCIUTO CHE MONTANTE AVRO' TRA X ANNI?",null,null,null,null,null,null,null,null,null,null,null,null,null,null,null,"INVESTENDO UN CAPITALE ANNUALE CONOSCIUTO, CON O SENZA CAPITALE INIZIALE A UN TASSO DI RIV CONOSCIUTO CHE MONTANTE AVRO' TRA X ANNI?",null,null,null,null,null,null,null,null,null,null,null,null,null,null,null,"INVESTENDO UN CAPITALE ANNUALE CONOSCIUTO, CON O SENZA CAPITALE INIZIALE A UN TASSO DI RIV CONOSCIUTO CHE MONTANTE AVRO' TRA X ANNI?",null,null,null,null,null,null,null,null,null,null,null,null,null,null,null,"INVESTENDO UN CAPITALE ANNUALE CONOSCIUTO, CON O SENZA CAPITALE INIZIALE A UN TASSO DI RIV CONOSCIUTO CHE MONTANTE AVRO' TRA X ANNI?",null,null,null,null,null,null,null,null,null,null,null,null,null,null,null,"INVESTENDO UN CAPITALE ANNUALE CONOSCIUTO, CON O SENZA CAPITALE INIZIALE A UN TASSO DI RIV CONOSCIUTO CHE MONTANTE AVRO' TRA X ANNI?",null,null,null,null,null,null,null,null,null,null,null,null,null,null,null,"INVESTENDO UN CAPITALE ANNUALE CONOSCIUTO, CON O SENZA CAPITALE INIZIALE A UN TASSO DI RIV CONOSCIUTO CHE MONTANTE AVRO' TRA X ANNI?",null,null,null,null,null,null,null,null,null,null,null,null,null,null,null,"INVESTENDO UN CAPITALE ANNUALE CONOSCIUTO, CON O SENZA CAPITALE INIZIALE A UN TASSO DI RIV CONOSCIUTO CHE MONTANTE AVRO' TRA X ANNI?",null,null,null,null,null,null,null,null,null,null,null,null,null,null,null,"INVESTENDO UN CAPITALE ANNUALE CONOSCIUTO, CON O SENZA CAPITALE INIZIALE A UN TASSO DI RIV CONOSCIUTO CHE MONTANTE AVRO' TRA X ANNI?",null,null,null,null,null,null,null,null,null,null,null,null,null,null,null,"INVESTENDO UN CAPITALE ANNUALE CONOSCIUTO, CON O SENZA CAPITALE INIZIALE A UN TASSO DI RIV CONOSCIUTO CHE MONTANTE AVRO' TRA X ANNI?",null,null,null,null,null,null,null,null,null,null,null,null,null,null,null,"INVESTENDO UN CAPITALE ANNUALE CONOSCIUTO, CON O SENZA CAPITALE INIZIALE A UN TASSO DI RIV CONOSCIUTO CHE MONTANTE AVRO' TRA X ANNI?",null,null,null,null,null,null,null,null,null,null,null,null,null,null,null,"INVESTENDO UN CAPITALE ANNUALE CONOSCIUTO, CON O SENZA CAPITALE INIZIALE A UN TASSO DI RIV CONOSCIUTO CHE MONTANTE AVRO' TRA X ANNI?",null,null,null,null,null,null,null,null,null,null,null,null,null,null,null,"INVESTENDO UN CAPITALE ANNUALE CONOSCIUTO, CON O SENZA CAPITALE INIZIALE A UN TASSO DI RIV CONOSCIUTO CHE MONTANTE AVRO' TRA X ANNI?",null,null,null,null,null,null,null,null,null,null,null,null,null,null,null,"INVESTENDO UN CAPITALE ANNUALE CONOSCIUTO, CON O SENZA CAPITALE INIZIALE A UN TASSO DI RIV CONOSCIUTO CHE MONTANTE AVRO' TRA X ANNI?",null,null,null,null,null,null,null,null,null,null,null,null,null,null,null,"INVESTENDO UN CAPITALE ANNUALE CONOSCIUTO, CON O SENZA CAPITALE INIZIALE A UN TASSO DI RIV CONOSCIUTO CHE MONTANTE AVRO' TRA X ANNI?",null,null,null,null,null,null,null,null,null,null,null,null,null,null,null,"INVESTENDO UN CAPITALE ANNUALE CONOSCIUTO, CON O SENZA CAPITALE INIZIALE A UN TASSO DI RIV CONOSCIUTO CHE MONTANTE AVRO' TRA X ANNI?",null,null,null,null,null,null,null,null,null,null,null,null,null,null,null,"INVESTENDO UN CAPITALE ANNUALE CONOSCIUTO, CON O SENZA CAPITALE INIZIALE A UN TASSO DI RIV CONOSCIUTO CHE MONTANTE AVRO' TRA X ANNI?",null,null,null,null,null,null,null,null,null,null,null,null,null,null,null,"INVESTENDO UN CAPITALE ANNUALE CONOSCIUTO, CON O SENZA CAPITALE INIZIALE A UN TASSO DI RIV CONOSCIUTO CHE MONTANTE AVRO' TRA X ANNI?",null,null,null,null,null,null,null,null,null,null,null,null,null,null,null,"INVESTENDO UN CAPITALE ANNUALE CONOSCIUTO, CON O SENZA CAPITALE INIZIALE A UN TASSO DI RIV CONOSCIUTO CHE MONTANTE AVRO' TRA X ANNI?",null,null,null,null,null,null,null,null,null,null,null,null,null,null,null,"INVESTENDO UN CAPITALE ANNUALE CONOSCIUTO, CON O SENZA CAPITALE INIZIALE A UN TASSO DI RIV CONOSCIUTO CHE MONTANTE AVRO' TRA X ANNI?",null,null,null,null,null,null,null,null,null,null,null,null,null,null,null,"INVESTENDO UN CAPITALE ANNUALE CONOSCIUTO, CON O SENZA CAPITALE INIZIALE A UN TASSO DI RIV CONOSCIUTO CHE MONTANTE AVRO' TRA X ANNI?",null,null,null,null,null,null,null,null,null,null,null,null,null,null,null,"INVESTENDO UN CAPITALE ANNUALE CONOSCIUTO, CON O SENZA CAPITALE INIZIALE A UN TASSO DI RIV CONOSCIUTO CHE MONTANTE AVRO' TRA X ANNI?",null,null,null,null,null,null,null,null,null,null,null,null,null,null,null,"INVESTENDO UN CAPITALE ANNUALE CONOSCIUTO, CON O SENZA CAPITALE INIZIALE A UN TASSO DI RIV CONOSCIUTO CHE MONTANTE AVRO' TRA X ANNI?",null,null,null,null,null,null,null,null,null,null,null,null,null,null,null,"INVESTENDO UN CAPITALE ANNUALE CONOSCIUTO, CON O SENZA CAPITALE INIZIALE A UN TASSO DI RIV CONOSCIUTO CHE MONTANTE AVRO' TRA X ANNI?",null,null,null,null,null,null,null,null,null,null,null,null,null,null,null,"INVESTENDO UN CAPITALE ANNUALE CONOSCIUTO, CON O SENZA CAPITALE INIZIALE A UN TASSO DI RIV CONOSCIUTO CHE MONTANTE AVRO' TRA X ANNI?",null,null,null,null,null,null,null,null,null,null,null,null,null,null,null,"INVESTENDO UN CAPITALE ANNUALE CONOSCIUTO, CON O SENZA CAPITALE INIZIALE A UN TASSO DI RIV CONOSCIUTO CHE MONTANTE AVRO' TRA X ANNI?",null,null,null,null,null,null,null,null,null,null,null,null,null,null,null,"INVESTENDO UN CAPITALE ANNUALE CONOSCIUTO, CON O SENZA CAPITALE INIZIALE A UN TASSO DI RIV CONOSCIUTO CHE MONTANTE AVRO' TRA X ANNI?",null,null,null,null,null,null,null,null,null,null,null,null,null,null,null,"INVESTENDO UN CAPITALE ANNUALE CONOSCIUTO, CON O SENZA CAPITALE INIZIALE A UN TASSO DI RIV CONOSCIUTO CHE MONTANTE AVRO' TRA X ANNI?",null,null,null,null,null,null,null,null,null,null,null,null,null,null,null,"INVESTENDO UN CAPITALE ANNUALE CONOSCIUTO, CON O SENZA CAPITALE INIZIALE A UN TASSO DI RIV CONOSCIUTO CHE MONTANTE AVRO' TRA X ANNI?",null,null,null,null,null,null,null,null,null,null,null,null,null,null,null,"INVESTENDO UN CAPITALE ANNUALE CONOSCIUTO, CON O SENZA CAPITALE INIZIALE A UN TASSO DI RIV CONOSCIUTO CHE MONTANTE AVRO' TRA X ANNI?",null,null,null,null,null,null,null,null,null,null,null,null,null,null,null,"INVESTENDO UN CAPITALE ANNUALE CONOSCIUTO, CON O SENZA CAPITALE INIZIALE A UN TASSO DI RIV CONOSCIUTO CHE MONTANTE AVRO' TRA X ANNI?",null,null,null,null,null,null,null,null,null,null,null,null,null,null,null,"INVESTENDO UN CAPITALE ANNUALE CONOSCIUTO, CON O SENZA CAPITALE INIZIALE A UN TASSO DI RIV CONOSCIUTO CHE MONTANTE AVRO' TRA X ANNI?",null,null,null,null,null,null,null,null,null,null,null,null,null,null,null,"INVESTENDO UN CAPITALE ANNUALE CONOSCIUTO, CON O SENZA CAPITALE INIZIALE A UN TASSO DI RIV CONOSCIUTO CHE MONTANTE AVRO' TRA X ANNI?",null,null,null,null,null,null,null,null,null,null,null,null,null,null,null,"INVESTENDO UN CAPITALE ANNUALE CONOSCIUTO, CON O SENZA CAPITALE INIZIALE A UN TASSO DI RIV CONOSCIUTO CHE MONTANTE AVRO' TRA X ANNI?",null,null,null,null,null,null,null,null,null,null,null,null,null,null,null,"INVESTENDO UN CAPITALE ANNUALE CONOSCIUTO, CON O SENZA CAPITALE INIZIALE A UN TASSO DI RIV CONOSCIUTO CHE MONTANTE AVRO' TRA X ANNI?",null,null,null,null,null,null,null,null,null,null,null,null,null,null,null,"INVESTENDO UN CAPITALE ANNUALE CONOSCIUTO, CON O SENZA CAPITALE INIZIALE A UN TASSO DI RIV CONOSCIUTO CHE MONTANTE AVRO' TRA X ANNI?",null,null,null,null,null,null,null,null,null,null,null,null,null,null,null,"INVESTENDO UN CAPITALE ANNUALE CONOSCIUTO, CON O SENZA CAPITALE INIZIALE A UN TASSO DI RIV CONOSCIUTO CHE MONTANTE AVRO' TRA X ANNI?",null,null,null,null,null,null,null,null,null,null,null,null,null,null,null,"INVESTENDO UN CAPITALE ANNUALE CONOSCIUTO, CON O SENZA CAPITALE INIZIALE A UN TASSO DI RIV CONOSCIUTO CHE MONTANTE AVRO' TRA X ANNI?",null,null,null,null,null,null,null,null,null,null,null,null,null,null,null,"INVESTENDO UN CAPITALE ANNUALE CONOSCIUTO, CON O SENZA CAPITALE INIZIALE A UN TASSO DI RIV CONOSCIUTO CHE MONTANTE AVRO' TRA X ANNI?",null,null,null,null,null,null,null,null,null,null,null,null,null,null,null,"INVESTENDO UN CAPITALE ANNUALE CONOSCIUTO, CON O SENZA CAPITALE INIZIALE A UN TASSO DI RIV CONOSCIUTO CHE MONTANTE AVRO' TRA X ANNI?",null,null,null,null,null,null,null,null,null,null,null,null,null,null,null,"INVESTENDO UN CAPITALE ANNUALE CONOSCIUTO, CON O SENZA CAPITALE INIZIALE A UN TASSO DI RIV CONOSCIUTO CHE MONTANTE AVRO' TRA X ANNI?",null,null,null,null,null,null,null,null,null,null,null,null,null,null,null,"INVESTENDO UN CAPITALE ANNUALE CONOSCIUTO, CON O SENZA CAPITALE INIZIALE A UN TASSO DI RIV CONOSCIUTO CHE MONTANTE AVRO' TRA X ANNI?",null,null,null,null,null,null,null,null,null,null,null,null,null,null,null,"INVESTENDO UN CAPITALE ANNUALE CONOSCIUTO, CON O SENZA CAPITALE INIZIALE A UN TASSO DI RIV CONOSCIUTO CHE MONTANTE AVRO' TRA X ANNI?",null,null,null,null,null,null,null,null,null,null,null,null,null,null,null,"INVESTENDO UN CAPITALE ANNUALE CONOSCIUTO, CON O SENZA CAPITALE INIZIALE A UN TASSO DI RIV CONOSCIUTO CHE MONTANTE AVRO' TRA X ANNI?",null,null,null,null,null,null,null,null,null,null,null,null,null,null,null,"INVESTENDO UN CAPITALE ANNUALE CONOSCIUTO, CON O SENZA CAPITALE INIZIALE A UN TASSO DI RIV CONOSCIUTO CHE MONTANTE AVRO' TRA X ANNI?",null,null,null,null,null,null,null,null,null,null,null,null,null,null,null,"INVESTENDO UN CAPITALE ANNUALE CONOSCIUTO, CON O SENZA CAPITALE INIZIALE A UN TASSO DI RIV CONOSCIUTO CHE MONTANTE AVRO' TRA X ANNI?",null,null,null,null,null,null,null,null,null,null,null,null,null,null,null,"INVESTENDO UN CAPITALE ANNUALE CONOSCIUTO, CON O SENZA CAPITALE INIZIALE A UN TASSO DI RIV CONOSCIUTO CHE MONTANTE AVRO' TRA X ANNI?",null,null,null,null,null,null,null,null,null,null,null,null,null,null,null,"INVESTENDO UN CAPITALE ANNUALE CONOSCIUTO, CON O SENZA CAPITALE INIZIALE A UN TASSO DI RIV CONOSCIUTO CHE MONTANTE AVRO' TRA X ANNI?",null,null,null,null,null,null,null,null,null,null,null,null,null,null,null,"INVESTENDO UN CAPITALE ANNUALE CONOSCIUTO, CON O SENZA CAPITALE INIZIALE A UN TASSO DI RIV CONOSCIUTO CHE MONTANTE AVRO' TRA X ANNI?",null,null,null,null,null,null,null,null,null,null,null,null,null,null,null,"INVESTENDO UN CAPITALE ANNUALE CONOSCIUTO, CON O SENZA CAPITALE INIZIALE A UN TASSO DI RIV CONOSCIUTO CHE MONTANTE AVRO' TRA X ANNI?",null,null,null,null,null,null,null,null,null,null,null,null,null,null,null,"INVESTENDO UN CAPITALE ANNUALE CONOSCIUTO, CON O SENZA CAPITALE INIZIALE A UN TASSO DI RIV CONOSCIUTO CHE MONTANTE AVRO' TRA X ANNI?",null,null,null,null,null,null,null,null,null,null,null,null,null,null,null,"INVESTENDO UN CAPITALE ANNUALE CONOSCIUTO, CON O SENZA CAPITALE INIZIALE A UN TASSO DI RIV CONOSCIUTO CHE MONTANTE AVRO' TRA X ANNI?",null,null,null,null,null,null,null,null,null,null,null,null,null,null,null,"INVESTENDO UN CAPITALE ANNUALE CONOSCIUTO, CON O SENZA CAPITALE INIZIALE A UN TASSO DI RIV CONOSCIUTO CHE MONTANTE AVRO' TRA X ANNI?",null,null,null,null,null,null,null,null,null,null,null,null,null,null,null,"INVESTENDO UN CAPITALE ANNUALE CONOSCIUTO, CON O SENZA CAPITALE INIZIALE A UN TASSO DI RIV CONOSCIUTO CHE MONTANTE AVRO' TRA X ANNI?",null,null,null,null,null,null,null,null,null,null,null,null,null,null,null,"INVESTENDO UN CAPITALE ANNUALE CONOSCIUTO, CON O SENZA CAPITALE INIZIALE A UN TASSO DI RIV CONOSCIUTO CHE MONTANTE AVRO' TRA X ANNI?",null,null,null,null,null,null,null,null,null,null,null,null,null,null,null,"INVESTENDO UN CAPITALE ANNUALE CONOSCIUTO, CON O SENZA CAPITALE INIZIALE A UN TASSO DI RIV CONOSCIUTO CHE MONTANTE AVRO' TRA X ANNI?",null,null,null,null,null,null,null,null,null,null,null,null,null,null,null,"INVESTENDO UN CAPITALE ANNUALE CONOSCIUTO, CON O SENZA CAPITALE INIZIALE A UN TASSO DI RIV CONOSCIUTO CHE MONTANTE AVRO' TRA X ANNI?",null,null,null,null,null,null,null,null,null,null,null,null,null,null,null,"INVESTENDO UN CAPITALE ANNUALE CONOSCIUTO, CON O SENZA CAPITALE INIZIALE A UN TASSO DI RIV CONOSCIUTO CHE MONTANTE AVRO' TRA X ANNI?"]
[]
[]
[]
["Avvertenza: I risultati di calcolo sono basati su procedure che utilizzano dati stimati dall'aderente e pertanto potrebbero non trovare conferma nel corso del rapporto. Quindi la posizione"]
["individuale maturata e la prestazione pensionistica corrispondente risulteranno differenti da quelle riportate nel progetto esemplificativo individuale"]
[]
[null,null,null,null,null,null,null,"PROGETTO ESEMPLIFICATIVO INDIVIDUALE"]
[]
[]
[null,null,null,null,null,null,null,"CALCOLO RENDITA VITALIZIA"]
[]
[null,null,null,null,"PROPRIETA' INTELLETTUALE E REALIZZAZIONE DI GIUSEPPE NICOLETTI - E' VIETATA LA RIPRODUZIONE E/O COMMERCIALIZZAZIONE ANCHE PARZIALE "]

{"sheet":"TFR","index":1,"n_rows":23,"n_cols":16,"rows_kept":23,"cut":false,"hidden":false,"merged":[[22,2,22,15],[18,16,18,19],[18,8,18,10],[2,4,2,11],[15,2,15,6],[10,11,10,13],[9,12,9,14],[10,14,10,15],[5,2,5,6],[7,2,7,6],[9,2,9,6],[10,2,10,6],[12,2,12,6],[13,2,13,6]]}
[]
[]
[null,null,null,null,"CONVIENE INVESTIRE IL TFR IN UN FONDO O LASCIARLO IN AZIENDA?"]
[]
[]
[null,null,"RETRIBUZIONE ANNUALE INIZIALE",null,null,null,null,30000]
[]
[null,null,"% INCREMENTO ANNUO RETRIBUZIONE",null,null,null,null,2,"la percentuale inserita può essere modificata secondo stime individuali"]
[null,null,null,null,null,null,null,null,null,null,"ANNI"]
[null,null,"ANNO INIZIO INVESTIMENTO TFR NEL FONDO ",null,null,null,null,2007,null,null,{"$f":"+H11-H10+1","v":28},null,"TASSAZIONE"]
[null,null,"ANNO FINE INVESTIMENTO NEL FONDO",null,null,null,null,2034,null,null,null,"RISCATTO",null,null,"PENSIONAMENTO"]
[null,null,null,null,null,null,null,null,"O/W RIV","SOLO TFR",null,"FONDO","AZIENDA",null,"FONDO","AZIENDA"]
[null,null,"TFR YTD NEL FONDO",null,null,null,null,{"$f":"VLOOKUP(H11,CALCOLI1!$H$29:$U$59,5)","v":130056.76679766283},{"$f":"VLOOKUP(H11,CALCOLI1!$H$29:$U$59,14)","v":47720.743889448713},{"$f":"+H13-I13","v":82336.022908214116},null,0.23,{"$f":"+CALCOLI1!Q69/100","v":0.2563181964298954},null,{"$f":"VLOOKUP(K10,CALCOLI1!$H$72:$J$113,3)/100","v":0.1109999999999999},{"$f":"+M13","v":0.2563181964298954}]
[null,null,"TFR YTD IN AZIENDA",null,null,null,null,{"$f":"VLOOKUP(H11,CALCOLI1!$H$29:$U$59,4)","v":123085.37404791496},{"$f":"VLOOKUP(H11,CALCOLI1!$H$29:$U$59,13)","v":40749.351139700797},{"$f":"+H14-I14","v":82336.02290821416}]
[]
[null,null,"DELTA FONDO - AZIENDA",null,null,null,null,{"$f":"+H13-H14","v":6971.3927497478726},null,null,null,{"$f":"+M13-L13","v":2.6318196429895385E-2},null,null,{"$f":"+P13-O13","v":0.14531819642989549}]
[]
[]
[null,null,null,"<===== campi modificabili"]
[null,null,null,"<===== risultato",null,null,null,null,"<===== modifica facoltativa"]
[]
["ATTENZIONE: LE PERCENTUALI DI RIVALUTAZIONE DOPO IL 2013 SONO STIMATE CON INFLAZIONE CHE SI INCREMENTA DEL 2% ALL'ANNO E FONDO CHE SI MANTIENE STABILE AL 4% ANNUO"]
[null,null,"PROPRIETA' INTELLETTUALE E REALIZZAZIONE DI GIUSEPPE NICOLETTI - E' VIETATA LA RIPRODUZIONE E/O COMMERCIALIZZAZIONE ANCHE PARZIALE "]

{"sheet":"TCM","index":2,"n_rows":28,"n_cols":17,"rows_kept":28,"cut":false,"hidden":false,"merged":[[27,3,27,16],[24,10,24,12],[22,2,22,4],[18,2,18,17],[20,2,20,4],[21,2,21,4],[23,2,23,4],[20,10,20,12],[21,10,21,12],[22,10,22,12],[23,10,23,12],[4,2,4,4],[5,2,5,4],[6,2,6,4],[10,2,10,4],[11,2,11,4],[12,16,12,19],[8,16,8,19],[10,16,10,19],[15,16,15,19],[13,2,13,4]]}
[]
[]
[null,null,"TRA QUANTO TEMPO INVESTENDO UN CAPITALE NOTO A UN TASSO ANNUO DI RENDIMENTO NOTO POTRO' AVERE IL MONTANTE CHE MI SERVE?"]
[]
[null,null,"CAPITALE INVESTITO",null,null,5000,null,"anni","mesi","giorni"]
[null,null,"MONTANTE DESIDERATO",null,null,20000,null,{"$f":"+CALCOLI!H8","v":35},{"$f":"+CALCOLI!I8","v":4},{"$f":"+CALCOLI!J8","v":4}]
[null,null,"TASSO ANNUO RENDIMENTO",null,null,4]
[]
[null,null,"QUANTO CAPITALE DEVO INVESTIRE PER OTTENERE TRA X ANNI UN MONTANTE DESIDERATO?",null,null,null,null,null,null,null,null,null,null,null,null,null,"<===== dati modificabili"]
[]
[null,null,"MONTANTE DESIDERATO",null,null,556000,null,null,null,null,null,null,null,null,null,null,"<===== dati fissi"]
[null,null,"TASSO ANNUO RENDIMENTO",null,null,3]
[null,null,"PERIODO INVESTIMENTO ANNI",null,null,6,null,null,null,null,null,null,null,null,null,null,"<===== risultato"]
[null,null,"CAPITALE DA INVESTIRE",null,null,{"$f":"+CALCOLI!M8","v":465641.2467161119}]
[]
[null,null,null,null,null,null,null,null,null,null,null,null,null,null,null,null,"<===== modifica facoltativa"]
[]
[]
[null,null,"INVESTENDO UN CAPITALE ANNUALE CONOSCIUTO, CON O SENZA CAPITALE INIZIALE A UN TASSO DI RIV CONOSCIUTO CHE MONTANTE AVRO' TRA X ANNI?"]
[]
[null,null,"EVENTUALE CAPITALE INIZIALE",null,null,409019.76,null,null,null,{"$f":"IF(F26=0,0,VLOOKUP(F26,CALCOLI1!$L$74:$U$123,5))","v":808339.15466819739},"MONTANTE FINALE"]
[null,null,"VERSAMENTO ANNUO",null,null,50000,null,null,null,{"$f":"IF(F26=0,0,VLOOKUP(F26,CALCOLI1!$L$74:$V$123,11))","v":99319.394668197288},"O/W RIVALUTAZIONE"]
[null,null,"INCREM VERSAMENTO ANNUO",null,null,0,"(*)",null,null,{"$f":"IF(F26=0,0,VLOOKUP(F26,CALCOLI1!$L$74:$W$123,12))","v":709019.76},"CAPITALE INVESTITO"]
[null,null,"TASSO ANNUO RENDIMENTO",null,null,3,null,null,null,0.05,"% CARICAMENTO"]
[null,null,"INCREMENTO ANNUO RIV",null,null,1,null,null,null,0.4,"% NON RETROC. SU RIV."]
[null,null,"ANNI INVESTIMENTO",null,null,6,null,null,null,"(*) la percentuale inserita può essere modificata secondo stime personali"]
[]
[null,null,null,"PROPRIETA' INTELLETTUALE E REALIZZAZIONE DI GIUSEPPE NICOLETTI - E' VIETATA LA RIPRODUZIONE E/O COMMERCIALIZZAZIONE ANCHE PARZIALE "]

{"sheet":"M&R","index":3,"n_rows":25,"n_cols":18,"rows_kept":25,"cut":false,"hidden":false,"merged":[[24,1,24,14],[13,6,13,7],[13,9,13,10],[7,9,7,10],[5,17,5,19],[19,15,19,18],[20,15,20,18],[21,15,21,18],[18,15,18,18],[15,10,15,11],[16,10,16,11],[1,1,1,3],[5,6,5,7],[5,9,5,10],[5,12,5,13],[11,17,11,19],[3,1,3,11],[11,6,11,7],[7,6,7,7]]}
[]
[]
[]
[null,"PROGETTO ESEMPLIFICATIVO PERSONALIZZATO: STIMA DELLA PENSIONE COMPLEMENTARE ",null,null,null,null,null,null,null,null,null,null,"ETA' MINIMA 51 ANNI=========>",null,null,null,{"$f":"+CALCOLI1!S3","v":66},"< === età"]
[]
[null,"SESSO",null,"M","(M o F)",null,"ANNO DI NASCITA",null,1953,"ANNO INIZIO VERSAMENTI",null,1986,"ANNO FINE VERSAMENTI",null,2019,null,{"$f":"IF(O6-L6>0,O6-L6,0)","v":33},"< === anni versamenti"]
[]
[null,"RETRIBUZIONE ANNUALE",null,100000,null,null,"% INCR. RETRIB. ANNUA ",null,1,"TFR ANNUALE",null,{"$f":"+CALCOLI1!E11","v":7407.4074074074078},"% TFR ACCANTONATO",null,100,null,null,"<== campi modificabili"]
[]
[null,"CODICE AZIENDA",null,1,"(**)",null,"QUALIFICA CONTRATTUALE",null,null,"CONTR VOLONTARIO INIZIO €",null,20000,null,null,null,null,null,"<== modifica facoltativa"]
[]
[null,"% RIV FONDO",null,3,"(°)",null,"% CARICAMENTO",null,0.05,"% SU RIV CON OVER PERF PER ASS",null,{"$f":"0.4+CALCOLI1!AT5","v":0.45},null,null,null,null,null,"<===== dati fissi"]
[]
[null,"CONTRIBUTI YTD",null,{"$f":"+CALCOLI1!E22","v":406743.32288322883},null,null,"TFR YTD",null,{"$f":"+CALCOLI1!E23","v":285039.39589869929},"TOT YTD CON RIV",null,{"$f":"+CALCOLI1!E24","v":824925.6902391226},"SOLO RIVALUTAZIONE",null,{"$f":"+CALCOLI1!E25","v":133142.97145719448},null,null,"<===== risultato"]
[null,"ULTIMA RETRIB PERCEPITA",null,{"$f":"+CALCOLI1!U7","v":190936.64881743491}]
[]
[]
[]
[null,"(**) 1=IBM/IBM SERV FIN/TOSHIBA/ACG/MODIS/HCL/BP2I/SEM; 2=LENOVO+ GLOBAL TEC;"]
[null,"(*) valore calcolato su superstite di età < di 10 anni a quella dell'aderente "]
[null,"(^) tasso di sostituzione calcolato sull'ultima retribuzione lorda percepita"]
[null,"(°) percentuale modificabile in funzione del comparto da 1% a 4%"]
[]
[]
[null,"PROPRIETA' INTELLETTUALE E REALIZZAZIONE DI GIUSEPPE NICOLETTI - E' VIETATA LA RIPRODUZIONE E/O COMMERCIALIZZAZIONE ANCHE PARZIALE "]

{"sheet":"CALCOLI1","index":4,"n_rows":123,"n_cols":46,"rows_kept":123,"cut":false,"hidden":true,"merged":[[7,7,7,8],[61,7,61,9],[11,23,11,24],[11,26,11,27]]}
[]
[]
[null,null,"DETERMINAZIONE DELLA RENDITA IMMEDIATA, REVERSIBILE, CERTA PER 5 E 10 ANNI, CONTROASSICURATA CASO MORTE  ",null,null,null,null,null,null,null,null,null,null,null,null,null,null,null,{"$f":"IF($E$7-$E$5>0,$E$7-$E$5,0)","v":66},null,{"$f":"IF($E$4=\"M\",VLOOKUP($S$3,$X$13:$Y$102,2),VLOOKUP($S$3,$AA$13:$AB$100,2))","v":0},null,null,null,null,null,null,null,null,null,null,null,null,null,null,null,null,null,null,null,null,null,"calcolo over performance per M&R"]
[null,null,"SESSO",null,{"$f":"+'M&R'!D6","v":"M"},null,null,null,null,null,null,null,null,null,null,null,"RENDITA IMMEDIATA",null,null,null,"RETRIBUZIONE","TASSO SOST"]
[null,null,"ANNO DI NASCITA",null,{"$f":"IF('M&R'!I6>0,'M&R'!I6,0)","v":1953},null,null,null,null,null,null,null,null,null,null,null,"ETA' ALLA PENSIONE",null,{"$f":"IF($E$7-$E$5>0,$E$7-$E$5+U3,0)","v":66},null,null,null,null,null,null,"RENDITA","VALORE","TASSO SOST.(^)",null,null,null,null,null,null,null,null,null,null,null,null,null,null,{"$f":"+'M&R'!D12","v":3},{"$f":"IF(AQ5>2.5,AQ5-2.5,0)","v":0.5},{"$f":"+AR5*10","v":5},{"$f":"+AS5*0.01","v":0.05}]
[null,null,"ANNO INIZIO VERSAMENTI",null,{"$f":"IF('M&R'!L6>0,'M&R'!L6,0)","v":1986},null,null,null,null,null,null,null,null,null,null,null,"PENSIONE COEFF",null,null,{"$f":"IF($E$4=\"M\",VLOOKUP($S$5,CALCOLI!$F$16:$H$36,2),VLOOKUP($S$5,CALCOLI!$F$16:$H$36,3))","v":4.6899999999999997E-2},null,null,null,null,null,"ORDINARIA",{"$f":"+T7","v":38689.014872214844},{"$f":"+V7","v":0.20262749509764127}]
[null,null,"ANNO FINE VERSAMENTI",null,{"$f":"IF('M&R'!O6>0,'M&R'!O6,0)","v":2019},null,null,{"$f":"+E7-E6","v":33},null,null,null,null,null,null,null,null,"VALORE PENSIONE ANNUA",null,null,{"$f":"+E24*T6","v":38689.014872214844},{"$f":"IF($S$5>0,VLOOKUP($S$5,CALCOLI!$A$41:$J$110,10),0)","v":190936.64881743491},{"$f":"+T7/U7","v":0.20262749509764127},null,null,{"$f":"+AA6*73.53%","v":28448.032635539577},"REVERSIBILE",{"$f":"+Y7","v":28448.032635539577},{"$f":"+V11","v":0.14899199714529562}]
[null,null,null,null,null,null,null,"% INCR RETR ANNUALE",null,null,null,"% RIV FONDO",null,"% CARIC","% SU RIV",null,"RENDITA REVERSIBILE",null,null,null,null,null,null,null,null,"AL SUPERSTITE *",{"$f":"+U11","v":17580.81631037618},{"$f":"+W11","v":9.207669883839939E-2}]
[null,null,"RETRIBUZIONE ANNUALE",null,{"$f":"+'M&R'!D8","v":100000},null,null,{"$f":"+'M&R'!I8","v":1},{"$f":"IF(E9>46031,46031,E9)","v":46031},{"$f":"IF(I9<46031,0,E9-I9)","v":53969},null,{"$f":"+'M&R'!D12","v":3},null,{"$f":"+'M&R'!I12","v":0.05},{"$f":"+'M&R'!L12","v":0.45},null,"ETA' ALLA PENSIONE",null,{"$f":"+S5","v":66},null,"AL SUPERSTITE",null,null,null,{"$f":"+T15*99.29%","v":38217.74637434091},"CERTA 5 ANNI",{"$f":"+Y9","v":38217.74637434091},{"$f":"+V15","v":0.20015930210906241}]
[null,null,"% INCREMENTO RETRIB",null,null,null,null,null,2,7,null,null,null,null,null,null,"PENSIONE COEFF",null,null,{"$f":"IF($E$4=\"M\",VLOOKUP($S$5,CALCOLI!$Z$5:$AB$25,2),VLOOKUP($S$5,CALCOLI!$Z$5:AJ$25,3))","v":3.5520000000000003E-2},null,null,null,null,{"$f":"+T19*97.11%","v":36665.675910703765},"CERTA 10 ANNI",{"$f":"+Y10","v":36665.675910703765},{"$f":"+V19","v":0.19203058259266845}]
[null,null,"TFR ANNUALE",null,{"$f":"+E9/13.5","v":7407.4074074074078},null,null,null,{"$f":"+I9*I10%","v":920.62},{"$f":"+J9*J10%","v":3777.8300000000004},{"$f":"+I11+J11","v":4698.4500000000007},null,null,null,null,null,"VALORE PENSIONE ANNUA",null,null,{"$f":"+E24*T10","v":29301.360517293637},{"$f":"+T11*60%","v":17580.81631037618},{"$f":"+Y7/U7","v":0.14899199714529562},{"$f":"+U11/U7","v":9.207669883839939E-2},null,{"$f":"+T23*85.56%","v":26735.947211138311},"CONTROASSICURATA",{"$f":"+Y11","v":26735.947211138311},{"$f":"+V23","v":0.14002522499859119}]
[null,null,"% TFR ACCANTONATO",null,{"$f":"+'M&R'!O8","v":100},null,null,null,null,null,{"$f":"+K11/E9%","v":4.6984500000000011},null,null,null,"CTR DIR","CTR AZ","RENDITA CERTA 5 ANNI",null,null,null,null,null,null,"maschi",null,null,"femmine"]
[null,null,"TFR ACCANTONATO",null,{"$f":"+E11*E12%","v":7407.4074074074078},null,null,null,null,null,null,null,null,null,null,null,"ETA' ALLA PENSIONE",null,{"$f":"+S9","v":66},null,null,null,null,0,-2,null,0,-2]
[null,null,"% CONTR DIP AL FONDO",null,{"$f":"+O19","v":4.5011608450000002},null,null,null,0,null,63000,{"$f":"+K14-I14","v":63000},{"$f":"IF(E9>L14,L14,E9)","v":63000},{"$f":"+E9-M14","v":37000},{"$f":"+M14*3.25%","v":2047.5},{"$f":"+M14*2.89%","v":1820.7},"PENSIONE COEFF",null,null,{"$f":"IF($E$4=\"M\",VLOOKUP($S$5,CALCOLI!$J$16:$L$36,2),VLOOKUP($S$5,CALCOLI!$J$16:$L$36,3))","v":4.666E-2},null,null,null,{"$f":"1+X13","v":1},-2,null,{"$f":"1+AA13","v":1},-2]
[null,null,"%CONTR AZ AL FONDO",null,{"$f":"+P19","v":3.6617897750000004},null,null,null,63000.01,null,76411.460000000006,{"$f":"+K15-I15","v":13411.450000000004},{"$f":"IF(N14>=L15,L15,N14)","v":13411.450000000004},{"$f":"+N14-M15","v":23588.549999999996},{"$f":"+M15*5.95%","v":797.98127500000032},{"$f":"+M15*4.46%","v":598.15067000000022},"VALORE PENSIONE ANNUA",null,null,{"$f":"+E24*T14","v":38491.03270655746},null,{"$f":"+Y9/U7","v":0.20015930210906241},null,{"$f":"1+X14","v":2},-2,null,{"$f":"1+AA14","v":2},-2]
[null,null,"CONTRIBUTO DIPENDENTE",null,{"$f":"+O18","v":4501.1608450000003},null,null,null,76411.47,null,87458.9,11047.429999999993,{"$f":"IF(N15>=L16,L16,N15)","v":11047.429999999993},{"$f":"+N15-M16","v":12541.120000000003},{"$f":"+M16*6.7%","v":740.17780999999957},{"$f":"+M16*5.03%","v":555.6857289999997},"RENDITA CERTA 10 ANNI",null,null,null,null,null,null,3,-2,null,3,-2]
[null,null,"CONTRIBUTO AZIENDA",null,{"$f":"+P18","v":3661.7897750000002},null,null,null,87458.91,null,999999,912540.09,{"$f":"+N16","v":12541.120000000003},null,{"$f":"+M17*7.3%","v":915.5017600000001},{"$f":"+M17*5.48%","v":687.25337600000012},"ETA' ALLA PENSIONE",null,{"$f":"+S13","v":66},null,null,null,null,4,-2,null,4,-2]
[null,null,"IMPORTO CONTR VOL",null,null,null,null,null,null,null,null,null,null,null,{"$f":"SUM(O14:O17)","v":4501.1608450000003},{"$f":"SUM(P14:P17)","v":3661.7897750000002},"PENSIONE COEFF",null,null,{"$f":"IF($E$4=\"M\",VLOOKUP($S$5,CALCOLI!$N$16:$P$36,2),VLOOKUP($S$5,CALCOLI!$N$16:$P$36,3))","v":4.5769999999999998E-2},null,null,null,5,-2,null,5,-2]
[null,null,"TOTALE",null,{"$f":"+E13+E16+E17+E18","v":15570.358027407408},null,null,null,null,null,null,"ALIQUOTA MEDIA IBM TOSHIBA",null,null,{"$f":"+O18/E9%","v":4.5011608450000002},{"$f":"+P18/E9%","v":3.6617897750000004},"VALORE PENSIONE ANNUA",null,null,{"$f":"+E24*T18","v":37756.848842244639},null,{"$f":"+Y10/U7","v":0.19203058259266845},null,6,-2,null,6,-2]
[null,null,"VERSAMENTO INIZIALE",null,{"$f":"+'M&R'!L10*99%","v":19800},null,null,null,null,null,null,null,null,null,null,null,"RENDITA CONTRASSICURATA",null,null,null,null,null,null,7,-2,null,7,-2]
[null,null,null,null,null,null,null,null,null,null,null,null,null,null,null,null,"ETA' ALLA PENSIONE",null,{"$f":"+S17","v":66},null,null,null,null,8,-2,null,8,-2]
[null,null,"VERSAMENTI YTD",null,{"$f":"IF(H7>0,VLOOKUP(H7,CALCOLI!$A$41:$I$110,9),0)","v":406743.32288322883},null,null,null,null,null,null,null,null,null,null,null,"PENSIONE COEFF",null,null,{"$f":"IF($E$4=\"M\",VLOOKUP($S$5,CALCOLI!$R$16:$T$36,2),VLOOKUP($S$5,CALCOLI!$R$16:$T$36,3))","v":3.7879999999999997E-2},null,null,null,9,-2,null,9,-2]
[null,null,"TFR YTD",null,{"$f":"IF(H7>0,VLOOKUP(H7,CALCOLI!$A$41:$H$110,6),0)","v":285039.39589869929},null,null,null,null,null,null,null,null,null,null,null,"VALORE PENSIONE ANNUA",null,null,{"$f":"+E24*T22","v":31248.185146257962},null,{"$f":"+Y11/U7","v":0.14002522499859119},null,10,-2,null,10,-2]
[null,null,"TOT YTD CON RIV",null,{"$f":"IF(H7>0,VLOOKUP(H7,CALCOLI!$A$41:$H$110,8),0)","v":824925.6902391226},null,null,null,null,null,null,null,null,null,null,null,null,null,null,null,null,null,null,11,-2,null,11,-2]
[null,null,"SOLO RIV",null,{"$f":"+E24-E23-E22","v":133142.97145719448},null,null,null,null,null,null,{"$f":"+TFR!H8+100","v":102},null,null,null,null,null,null,null,null,null,null,null,12,-2,null,12,-2]
[null,null,null,null,null,null,null,null,{"$f":"+TFR!H6","v":30000},null,null,null,null,null,null,null,null,null,null,null,null,null,null,13,-2,null,13,-2]
[null,null,"RETRIBUZIONE","IN","ANNI",null,null,"ANNI","RETR ANNUALE","TFR","TFRYTD ISTAT","TFRYTD FONDO","CAP+RIV","RIV ISTAT","RIV FONDO",null,"RIV ISTAT","RIV TFR",null,"ytd riv istat","ytd riv fondo",null,null,14,-2,null,14,-2]
[null,null,{"$f":"IF(D28<>0,0,$I$26)","v":30000},{"$f":"+TFR!$H$10-E28","v":0},2007,null,null,null,{"$f":"+C28","v":30000},{"$f":"+I28/13.5","v":2222.2222222222222},{"$f":"+J28","v":2222.2222222222222},null,null,null,null,null,null,null,null,null,null,null,null,15,-2,null,15,-2]
[null,null,{"$f":"IF(D29<>0,0,$I$26)","v":0},{"$f":"+TFR!$H$10-E29","v":-1},2008,null,null,2008,{"$f":"IF(I28=0,C29,+I28*$L$25/100)","v":30600},{"$f":"+I29/13.5","v":2266.6666666666665},{"$f":"+J29+K28+Q29","v":4556.2222222222217},{"$f":"+K28+J29+R29","v":4585.7777777777774},null,3.03,4.3600000000000003,null,{"$f":"+K28*N29%","v":67.333333333333329},{"$f":"+K28*O29%","v":96.888888888888886},null,{"$f":"+Q29","v":67.333333333333329},{"$f":"+R29","v":96.888888888888886},null,null,16,-2,null,16,-2]
[null,null,{"$f":"IF(D30<>0,0,$I$26)","v":0},{"$f":"+TFR!$H$10-E30","v":-2},2009,null,null,2009,{"$f":"IF(I29=0,C30,+I29*$L$25/100)","v":31212},2312,6969.3703555555549,{"$f":"+L29+J30+R30","v":7092.2147555555548},null,2.2200000000000002,4.24,null,101.14813333333332,{"$f":"+L29*O30%","v":194.43697777777777},null,{"$f":"+Q30+T29","v":168.48146666666665},{"$f":"+R30+U29","v":291.32586666666668},null,null,17,-2,null,17,-2]
[null,null,{"$f":"IF(D31<>0,0,$I$26)","v":0},{"$f":"+TFR!$H$10-E31","v":-3},2010,null,null,2010,{"$f":"IF(I30=0,C31,+I30*$L$25/100)","v":31836.240000000002},2358.2400000000002,9531.8129069733332,{"$f":"+L30+J31+R31","v":9719.9589162666653},null,2.93,3.8,null,204.20255141777778,{"$f":"+L30*O31%","v":269.50416071111107},null,{"$f":"+Q31+T30","v":372.68401808444446},{"$f":"+R31+U30","v":560.8300273777777},null,null,18,-2,null,18,-2]
[null,null,0,{"$f":"+TFR!$H$10-E32","v":-4},2011,null,null,2011,32472.964800000002,2405.4048000000003,12307.052047763898,{"$f":"+L31+J32+R32","v":12515.134068808959},null,3.88,4.01,null,369.83434079056536,{"$f":"+L31*O32%","v":389.77035254229327},null,742.51835887500988,950.60037992007096,null,null,19,-2,null,19,-2]
[null,null,0,{"$f":"+TFR!$H$10-E33","v":-5},2012,null,null,2012,33122.424096000002,2453.5128960000002,15166.697661340108,{"$f":"+L32+J33+R33","v":15447.976599644342},null,3.3,3.83,null,406.13271757620868,{"$f":"+L32*O33%","v":479.3296348353831},null,1148.6510764512186,1429.9300147554541,null,null,20,-2,null,20,-2]
[null,null,0,{"$f":"+TFR!$H$10-E34","v":-6},2013,null,null,2013,33784.872577920003,2502.5831539200003,17960.481410357836,{"$f":"+L33+J34+R34","v":18554.575638610437},null,1.92,3.91,null,291.20059509773006,{"$f":"+L33*O34%","v":604.01588504609379},null,1439.8516715489486,2033.945899801548,null,null,21,-2,null,21,-2]
[null,null,0,{"$f":"+TFR!$H$10-E35","v":-7},2014,null,null,2014,34460.570029478404,2552.6348169984003,{"$f":"+J35+K34+Q35","v":20820.240459473356},{"$f":"+L34+J35+R35","v":21830.838905514644},null,{"$f":"0.21+1.5","v":1.71},3.9,null,{"$f":"+K34*N35%","v":307.12423211711899},{"$f":"+L34*O35%","v":723.62844990580709},null,1746.9759036660676,2757.5743497073549,null,null,22,-2,null,22,-2]
[null,null,0,{"$f":"+TFR!$H$10-E36","v":-8},{"$f":"+E35+1","v":2015},null,null,{"$f":"+H35+1","v":2015},35149.781430067967,2603.6875133383678,{"$f":"+J36+K35+Q36","v":23840.332782001191},25187.690361093268,null,2,{"$f":"4-0.55","v":3.45},null,416.40480918946713,753.16394224025521,null,2163.3807128555345,3510.7382919476104,null,null,23,-2,null,23,-2]
[null,null,0,{"$f":"+TFR!$H$10-E37","v":-9},{"$f":"+E36+1","v":2016},null,null,{"$f":"+H36+1","v":2016},35852.77705866933,2655.7612636051354,27068.262032374354,28712.426942156118,null,2.4,{"$f":"4-0.55","v":3.45},null,572.16798676802864,868.97531745771778,null,2735.5486996235632,4379.7136094053285,null,null,24,-2,null,24,-2]
[null,null,0,{"$f":"+TFR!$H$10-E38","v":-10},2017,null,null,2017,36569.832599842717,2708.8764888772384,30535.049858158076,32411.882160537742,null,2.8,3.45,null,757.91133690648178,990.57872950438616,null,3493.4600365300448,5370.292338909715,null,null,25,-2,null,25,-2]
[null,null,0,{"$f":"+TFR!$H$10-E39","v":-11},2018,null,null,2018,37301.22925183957,2763.0540186547828,34275.225472273916,36293.146113731076,null,3.2,3.45,null,977.1215954610584,1118.2099345385523,null,4470.5816319911028,6488.5022734482673,null,null,26,-2,null,26,-2]
[null,null,0,{"$f":"+TFR!$H$10-E40","v":-12},2019,null,null,2019,38047.253836876356,2818.3150990278782,38190.347786414561,40363.574753682682,null,3.2,3.45,null,1096.8072151127653,1252.1135409237222,null,5567.3888471038681,7740.6158143719895,null,null,27,-2,null,27,-2]
[null,null,0,{"$f":"+TFR!$H$10-E41","v":-13},2020,null,null,2020,38808.198913613887,2874.6814010084363,42287.120316588262,44630.799483693168,null,3.2,3.45,null,1222.091129165266,1392.5433290020526,null,6789.4799762691346,9133.1591433740414,null,null,28,-2,null,28,-2]
[null,null,0,{"$f":"+TFR!$H$10-E42","v":-14},2021,null,null,2021,39584.362891886165,2932.175029028605,46572.483195747693,49102.737094909193,null,3.2,3.45,null,1353.1878501308245,1539.7625821874144,null,8142.6678263999593,10672.921725561457,null,null,29,-2,null,29,-2]
[null,null,0,{"$f":"+TFR!$H$10-E43","v":-15},2022,null,null,2022,40376.050149723887,2990.8185296091769,51053.621187620796,53787.600054292736,null,3.2,3.45,null,1490.3194622639262,1694.0444297743672,null,9632.9872886638859,12366.966155335824,null,null,30,-2,null,30,-2]
[null,null,0,{"$f":"+TFR!$H$10-E44","v":-16},2023,null,null,2023,41183.571152718367,3050.6349002013603,55737.971965826022,58693.907156367197,null,3.2,3.45,null,1633.7158780038656,1855.6722018730995,null,11266.703166667752,14222.638357208923,null,null,31,-2,null,31,-2]
[null,null,0,{"$f":"+TFR!$H$10-E45","v":-17},2024,null,null,2024,42007.242575772732,3111.6475982053876,60633.234666937846,63830.494551467251,null,3.2,3.45,null,1783.6151029064326,2024.9397968946685,null,13050.318269574185,16247.578154103592,null,null,32,-2,null,32,-2]
[null,null,0,{"$f":"+TFR!$H$10-E46","v":-18},2025,null,null,2025,42847.387427288195,3173.880550169496,65747.378726449359,69206.527163662366,null,3.2,3.45,null,1940.263509342011,2202.1520620256201,null,14990.581778916196,18449.730216129214,null,null,33,-2,null,33,-2]
[null,null,0,{"$f":"+TFR!$H$10-E47","v":-19},2026,null,null,2026,43704.335175833963,3237.358161172886,71088.653006868626,74831.5105119816,null,3.2,3.45,null,2103.9161192463794,2387.6251871463519,null,17094.497898162575,20837.355403275564,null,null,34,-2,null,34,-2]
[null,null,0,{"$f":"+TFR!$H$10-E48","v":-20},2027,null,null,2027,44578.421879350644,3302.1053243963438,76665.595227484766,80715.302949041303,null,3.2,3.45,null,2274.836896219796,2581.6871126633655,null,19369.334794382372,23419.042515938931,null,null,35,-2,null,35,-2]
[null,null,0,{"$f":"+TFR!$H$10-E49","v":-21},2028,null,null,2028,45469.990316937656,3368.1474308842708,82487.041705648546,86868.128331667496,null,3.2,3.45,null,2453.2990472795127,2784.677951741925,null,21822.633841661886,26203.720467680854,null,null,36,-2,null,36,-2]
[null,null,0,{"$f":"+TFR!$H$10-E50","v":-22},2029,null,null,2029,46379.390123276411,3435.5103795019563,88562.137419731254,93300.589138611977,null,3.2,3.45,null,2639.5853345807536,2996.950427442529,null,24462.219176242637,29200.670895123381,null,null,37,-2,null,37,-2]
[null,null,0,{"$f":"+TFR!$H$10-E51","v":-23},2030,null,null,2030,47306.977925741943,3504.2205870919956,94900.346404254655,100023.68005098609,null,3.2,3.45,null,2833.9883974314002,3218.8703252821133,null,27296.207573674037,32419.541220405496,null,null,38,-2,null,38,-2]
[null,null,0,{"$f":"+TFR!$H$10-E52","v":-24},2031,null,null,2031,48253.117484256785,3574.3049988338357,101511.46248802464,107048.80201157894,null,3.2,3.45,null,3036.8110849361492,3450.8169617590206,null,30333.018658610185,35870.358182164513,null,null,39,-2,null,39,-2]
[null,null,0,{"$f":"+TFR!$H$10-E53","v":-25},2032,null,null,2032,49218.179833941926,3645.7910988105132,108405.62038645195,114387.77677978892,null,3.2,3.45,null,3248.3667996167887,3693.1836693994737,null,33581.385458226971,39563.54185156399,null,null,40,-2,null,40,-2]
[null,null,0,{"$f":"+TFR!$H$10-E54","v":-26},2033,null,null,2033,50202.543430620768,3718.7069207867235,115593.30715960513,122052.86199947837,null,3.2,3.45,null,3468.9798523664626,3946.3782989027181,null,37050.365310593435,43509.920150466707,null,null,41,-2,null,41,-2]
[null,null,0,{"$f":"+TFR!$H$10-E55","v":-27},2034,null,null,2034,51206.594299233184,3793.0810592024582,123085.37404791496,130056.76679766283,null,3.2,3.45,null,3698.9858291073642,4210.8237389820042,null,40749.351139700797,47720.743889448713,null,null,42,-2,null,42,-2]
[null,null,0,{"$f":"+TFR!$H$10-E56","v":-28},2035,null,null,2035,52230.726185217842,3868.9426803865067,130893.04869783475,138412.6679325687,null,3.2,3.45,null,3938.7319695332785,4486.9584545193684,null,44688.083109234074,52207.702343968078,null,null,43,-2,null,43,-2]
[null,null,0,{"$f":"+TFR!$H$10-E57","v":-29},2036,null,null,2036,53275.340708922195,3946.3215339942367,139027.9477901597,147134.22651023653,null,3.2,3.45,null,4188.5775583307122,4775.237043673621,null,48876.660667564785,56982.939387641702,null,null,44,-2,null,44,-2]
[null,null,0,{"$f":"+TFR!$H$10-E58","v":-30},2037,null,null,2037,54340.847523100638,4025.2479646741212,147502.09008411891,156235.6052895138,null,3.2,3.45,null,4448.8943292851109,5076.1308146031606,null,53325.554996849896,62059.07020224486,null,null,45,-2,null,45,-2]
[null,null,0,{"$f":"+TFR!$H$10-E59","v":-31},2038,null,null,2038,55427.664473562647,4105.7529239676032,156327.90989077833,165731.48659596965,null,3.2,{"$f":"4-0.55","v":3.45},null,4720.0668826918054,5390.1283824882266,null,58045.621879541701,67449.198584733094,null,null,46,-2,null,46,-1]
[null,null,null,null,null,null,null,null,null,null,null,null,null,null,null,null,null,null,null,null,null,null,null,47,-2,null,47,-1]
[null,null,null,null,null,null,null,null,null,null,null,null,"ANNI","TFR","RR",null,null,null,null,null,null,null,null,48,-1,null,48,-1]
[null,null,null,null,null,null,null,"SCAGLIONI",null,null,"ALIQUOTE","RESIDUI",null,null,null,null,"IMPOSTE",null,null,null,null,null,null,49,-1,null,49,-1]
[null,null,null,null,null,null,null,0,26000,26000,23,{"$f":"IF(O63>I63,I63,O63)","v":26000},{"$f":"+TFR!K10","v":28},{"$f":"+TFR!J13","v":82336.022908214116},{"$f":"+N63*144/(M63*12)","v":35286.866960663196},null,{"$f":"+L63*K63%","v":5980},null,null,null,null,null,null,50,-1,null,50,-1]
[null,null,null,null,null,null,null,26000.01,{"$f":"+J64-H64","v":28999.99},55000,33,{"$f":"IF(O64>I64,I64,O64)","v":9286.8669606631956},null,null,{"$f":"IF(O63>L63,O63-L63,0)","v":9286.8669606631956},null,{"$f":"+L64*K64%","v":3064.6660970188545},null,null,null,null,null,null,51,-1,null,51,-1]
[null,null,null,null,null,null,null,55000.01,{"$f":"+J65-H65","v":44999.99},100000,39,{"$f":"IF(O65>I65,I65,O65)","v":0},null,null,{"$f":"IF(O64>L64,O64-L64,0)","v":0},null,{"$f":"+L65*K65%","v":0},null,null,null,null,null,null,52,-1,null,52,-1]
[null,null,null,null,null,null,null,100000.01,{"$f":"+J66-H66","v":899998.99},999999,43,{"$f":"IF(O66>I66,I66,O66)","v":0},null,null,{"$f":"IF(O65>L65,O65-L65,0)","v":0},null,{"$f":"+L66*K66%","v":0},null,null,null,null,null,null,53,-1,null,53,-1]
[null,null,null,null,null,null,null,null,null,null,null,null,null,null,null,null,{"$f":"SUM(Q63:Q66)","v":9044.666097018855},null,null,null,null,null,null,54,-1,null,54,-1]
[null,null,null,null,null,null,null,null,null,null,null,null,null,null,null,null,null,null,null,null,null,null,null,55,-1,null,55,-1]
[null,null,null,null,null,null,null,null,null,null,null,null,null,null,"% MEDIA",null,{"$f":"+Q67/O63*100","v":25.631819642989541},null,null,null,null,null,null,56,-1,null,56,0]
[null,null,null,null,null,null,null,null,"TASSAZIONE FONDO PER PENSIONAMENTO",null,null,null,null,null,null,null,null,null,null,null,null,null,null,57,-1,null,57,0]
[null,null,null,null,null,null,null,null,null,null,null,null,null,null,null,null,null,null,null,null,null,null,null,58,0,null,58,0]
[null,null,null,null,null,null,null,1,null,15,null,null,null,null,null,4000,{"$f":"+P72*99%","v":3960},null,null,null,null,null,null,59,0,null,59,0]
[null,null,null,null,null,null,null,{"$f":"1+H72","v":2},null,15,null,"ANNI","EVENTUALE CAPITALE INIZIALE","VERSAMENTO ANNUALE","INCREMENTO ANNUALE DEL VERSAMENTO","MONTANTE ANNUALE","RIVALUTAZIONE ANNUALE","EVENTUALE INCREMENTO RIVALUTAZIONE ANNUALE",null,"VERSAMENTO INCREMENTATO","RIVALUTAZIONE",null,null,60,0,null,60,0]
[null,null,null,null,null,null,null,{"$f":"1+H73","v":3},null,15,null,1,{"$f":"+TCM!F21","v":409019.76},{"$f":"+TCM!F22","v":50000},{"$f":"+TCM!F23/100","v":0},{"$f":"((+M74+N74)+U74)","v":470834.92862239998},{"$f":"+TCM!F24/100-TCM!J25/100","v":2.5999999999999999E-2},{"$f":"+TCM!F25/100","v":0.01},null,{"$f":"N74+N74*O74","v":50000},{"$f":"(N74+M74)*99%*Q74","v":11815.168622399999},null,{"$f":"+M74+N74","v":459019.76},61,0,null,61,0]
[null,null,null,null,null,null,null,4,null,15,null,{"$f":"+L74+1","v":2},null,{"$f":"+T74","v":50000},null,{"$f":"+P74+U75+N75","v":534512.05384802422},{"$f":"Q74+Q74*$R$74","v":2.6259999999999999E-2},null,null,{"$f":"N75+N75*$O$74","v":50000},{"$f":"(N75+M75+P74)*Q75","v":13677.125225624222},{"$f":"+U75+U74","v":25492.293848024223},{"$f":"+M75+N75+W74","v":509019.76},62,0,null,62,0]
[null,null,null,null,null,null,null,5,null,15,null,{"$f":"+L75+1","v":3},null,{"$f":"+T75","v":50000},null,{"$f":"+P75+U76+N76","v":600014.83324741386},{"$f":"Q75+Q75*$R$74","v":2.65226E-2},null,null,{"$f":"N76+N76*$O$74","v":50000},{"$f":"(N76+M76+P75)*Q76","v":15502.779399389607},{"$f":"+U76+V75","v":40995.073247413828},{"$f":"+M76+N76+W75","v":559019.76},63,0,null,63,0]
[null,null,null,null,null,null,null,6,null,15,null,4,null,50000,null,667427.3174978646,2.6787826000000001E-2,null,null,50000,17412.48425045074,{"$f":"+U77+V76","v":58407.557497864567},609019.76,64,0,null,64,0]
[null,null,null,null,null,null,null,7,null,15,null,5,null,50000,null,736837.818828132,2.7055704260000001E-2,null,null,50000,{"$f":"N78*Q78+M78*Q78+P77*Q78","v":19410.501330267347},77818.058828131907,659019.76,65,0,null,65,0]
[null,null,null,null,null,null,null,8,null,15,null,6,null,50000,null,808339.15466819739,2.7326261302600002E-2,null,null,50000,21501.335840065378,99319.394668197288,709019.76,{"$f":"1+X78","v":66},0,null,{"$f":"1+AA78","v":66},0]
[null,null,null,null,null,null,null,9,null,15,null,7,null,50000,null,882028.90669518046,2.7599523915626003E-2,null,null,50000,23689.752026983118,123009.1466951804,759019.76,67,0,null,67,0]
[null,null,null,null,null,null,null,10,null,15,null,8,null,50000,null,958009.69633657276,2.7875519154782261E-2,null,null,50000,25980.789641392272,148989.93633657269,809019.76,68,0,null,68,0]
[null,null,null,null,null,null,null,11,null,15,null,9,null,50000,null,1036389.4778709935,2.8154274346330083E-2,null,null,50000,28379.781534420745,177369.71787099342,859019.76,69,0,null,69,1]
[null,null,null,null,null,null,null,12,null,15,null,10,null,50000,null,1117281.8503520093,2.8435817089793383E-2,null,null,50000,30892.372481015707,208262.09035200914,909019.76,70,0,null,70,1]
[null,null,null,null,null,null,null,13,null,15,null,11,null,50000,null,1200806.3896727432,2.8720175260691316E-2,null,null,50000,33524.539320733762,241786.62967274291,959019.76,71,1,null,71,1]
[null,null,null,null,null,null,null,14,null,15,null,12,null,50000,null,1287089.002188623,2.9007377013298228E-2,null,null,50000,36282.612515879679,278069.24218862259,1009019.76,72,1,null,72,1]
[null,null,null,null,null,null,null,15,null,15,null,13,null,50000,null,1376262.3014233112,2.9297450783431211E-2,null,null,50000,39173.299234688333,317242.54142331093,1059019.76,73,1,null,73,1]
[null,null,null,null,null,null,null,16,null,{"$f":"+J86-0.3","v":14.7},null,14,null,50000,null,1468466.0094993261,2.9590425291265522E-2,null,null,50000,42203.708076014918,359446.24949932587,1109019.76,74,1,null,74,1]
[null,null,null,null,null,null,null,17,null,{"$f":"+J87-0.3","v":14.399999999999999},null,15,null,50000,null,1563847.3850608561,2.9886329544178178E-2,null,null,50000,45381.375561530047,404827.62506085593,1159019.76,75,1,null,75,1]
[null,null,null,null,null,null,null,18,null,14.099999999999998,null,16,null,50000,null,1662561.6795926346,3.018519283961996E-2,null,null,50000,48714.294531778352,453541.91959263431,1209019.76,76,1,null,76,1]
[null,null,null,null,null,null,null,19,null,13.799999999999997,null,17,null,50000,null,1764772.6241863642,3.0487044768016159E-2,null,null,50000,52210.944593729597,505752.86418636388,1259019.76,77,1,null,77,1]
[null,null,null,null,null,null,null,20,null,13.499999999999996,null,18,null,50000,null,1870652.9489660775,3.0791915215696321E-2,null,null,50000,55880.32477971325,561633.18896607717,1309019.76,78,1,null,78,2]
[null,null,null,null,null,null,null,21,null,13.199999999999996,null,19,null,50000,null,1980384.9375570514,3.1099834367853286E-2,null,null,50000,59731.988590973982,621365.17755705118,1359019.76,79,1,null,79,2]
[null,null,null,null,null,null,null,22,null,12.899999999999995,null,20,null,50000,null,2094161.0191706698,3.1410832711531819E-2,null,null,50000,63776.081613618524,685141.25917066971,1409019.76,80,2,null,80,2]
[null,null,null,null,null,null,null,23,null,12.599999999999994,null,21,null,50000,null,2212184.4010812249,3.1724941038647141E-2,null,null,50000,68023.381910555065,753164.64108122478,1459019.76,81,2,null,81,2]
[null,null,null,null,null,null,null,24,null,12.299999999999994,null,22,null,50000,null,2334669.7444915026,3.2042190449033614E-2,null,null,50000,72485.343410277652,825649.9844915024,1509019.76,82,2,null,82,2]
[null,null,null,null,null,null,null,25,null,11.999999999999993,null,23,null,50000,null,2461843.887023658,3.2362612353523952E-2,null,null,50000,77174.142532155514,902824.1270236579,1559019.76,83,2,null,83,2]
[null,null,null,null,null,null,null,26,null,11.699999999999992,null,24,null,50000,null,2593946.6153320568,3.268623847705919E-2,null,null,50000,82102.728308398611,984926.85533205653,1609019.76,84,2,null,84,2]
[null,null,null,null,null,null,null,27,null,11.399999999999991,null,25,null,50000,null,2731231.4916173075,3.3013100861829785E-2,null,null,50000,87284.876285250677,1072211.7316173073,1659019.76,85,2,null,85,2]
[null,null,null,null,null,null,null,28,null,11.099999999999991,null,26,null,50000,null,2873966.7381276954,3.3343231870448083E-2,null,null,50000,92735.246510388068,1164946.9781276954,1709019.76,86,2,null,86,2]
[null,null,null,null,null,null,null,29,null,10.79999999999999,null,27,null,50000,null,3022436.1840678737,3.3676664189152564E-2,null,null,50000,98469.445940178193,1263416.4240678735,1759019.76,87,2,null,87,2]
[null,null,null,null,null,null,null,30,null,10.499999999999989,null,28,null,50000,null,3176940.2796974634,3.4013430831044092E-2,null,null,50000,104504.09562958968,1367920.5196974631,1809019.76,88,2]
[null,null,null,null,null,null,null,31,null,10.199999999999989,null,29,null,50000,null,3337797.1827968573,3.435356513935453E-2,null,null,50000,110856.90309939373,1478777.4227968568,1859019.76,89,2]
[null,null,null,null,null,null,null,32,null,9.8999999999999879,null,30,null,50000,null,3505343.9231069721,3.4697100790748073E-2,null,null,50000,117546.74031011492,1596324.1631069719,1909019.76]
[null,null,null,null,null,null,null,33,null,9.5999999999999872,null,31,null,50000,null,3679937.6508172466,3.5044071798655554E-2,null,null,50000,124593.72771027444,1720917.8908172464,1959019.76]
[null,null,null,null,null,null,null,34,null,9.2999999999999865,null,32,null,50000,null,3861956.9756853925,3.5394512516642107E-2,null,null,50000,132019.32486814569,1852937.215685392,2009019.76]
[null,null,null,null,null,null,null,35,null,8.9999999999999858,null,33,null,50000,null,4051803.4039272591,3.5748457641808527E-2,null,null,50000,139846.42824186667,1992783.6439272587,2059019.76]
[null,null,null,null,null,null,null,36,null,9,null,34,null,50000,null,4249902.8806199823,3.6105942218226612E-2,null,null,50000,148099.47669272288,2140883.1206199815,2109019.7599999998]
[null,null,null,null,null,null,null,37,null,9,null,35,null,50000,null,4456707.4460211499,3.6467001640408878E-2,null,null,50000,156804.56540116775,2297687.6860211492,2159019.7599999998]
[null,null,null,null,null,null,null,38,null,9,null,36,null,50000,null,4672697.0149263153,3.6831671656812968E-2,null,null,50000,165989.56890516516,2463677.2549263141,2209019.7599999998]
[null,null,null,null,null,null,null,39,null,9,null,37,null,50000,null,4898381.2889725761,3.71999883733811E-2,null,null,50000,175684.27404626057,2639361.5289725745,2259019.7599999998]
[null,null,null,null,null,null,null,40,null,9,null,38,null,50000,null,5134301.8126535807,3.7571988257114913E-2,null,null,50000,185920.52368100479,2825282.0526535795,2309019.7599999998]
[null,null,null,null,null,null,null,41,null,9,null,39,null,50000,null,5381034.1847482044,3.7947708139686065E-2,null,null,50000,196732.37209462351,3022014.4247482028,2359019.7599999998]
[null,null,null,null,null,null,null,42,null,9,null,40,null,50000,null,5639190.4378890824,3.8327185221082923E-2,null,null,50000,208156.25314087752,3230170.6778890803,2409019.7599999998]
[null,null,null,null,null,null,null,null,null,null,null,41,null,50000,null,5909421.600116781,3.871045707329375E-2,null,null,50000,220231.16222769857,3450401.8401167789,2459019.7599999998]
[null,null,null,null,null,null,null,null,null,null,null,42,null,50000,null,6192420.4534900906,3.9097561644026689E-2,null,null,50000,232998.85337331,3683400.6934900889,2509019.7599999998]
[null,null,null,null,null,null,null,null,null,null,null,43,null,50000,null,6488924.5061632348,3.9488537260466958E-2,null,null,50000,246504.05267314447,3929904.7461632332,2559019.7599999998]
[null,null,null,null,null,null,null,null,null,null,null,44,null,50000,null,6799719.1958082924,3.9883422633071625E-2,null,null,50000,260794.68964505746,4190699.4358082907,2609019.7599999998]
[null,null,null,null,null,null,null,null,null,null,null,45,null,50000,null,7125641.3438686207,4.0282256859402343E-2,null,null,50000,275922.1480603285,4466621.5838686191,2659019.7599999998]
[null,null,null,null,null,null,null,null,null,null,null,46,null,50000,null,7467582.88189073,4.0685079427996367E-2,null,null,50000,291941.53802210942,4758563.1218907284,2709019.76]
[null,null,null,null,null,null,null,null,null,null,null,47,null,50000,null,7826494.8731135633,4.1091930222276328E-2,null,null,50000,308911.99122283288,5067475.1131135616,2759019.76]
[null,null,null,null,null,null,null,null,null,null,null,48,null,50000,null,8203391.8546128841,4.1502849524499091E-2,null,null,50000,326896.98149932083,5394372.0946128825,2809019.76]
[null,null,null,null,null,null,null,null,null,null,null,49,null,50000,null,8599356.5276236963,4.191787801974408E-2,null,null,50000,345964.67301081226,5740336.7676236946,2859019.76]
[null,null,null,null,null,null,null,null,null,null,null,50,null,50000,null,9015544.8262166455,4.2337056799941521E-2,null,null,50000,366188.2985929494,6106525.0662166439,2909019.76]

{"sheet":"CALCOLI","index":5,"n_rows":113,"n_cols":56,"rows_kept":113,"cut":false,"hidden":true,"merged":[[1,24,1,29],[11,4,11,8],[11,21,11,23],[0,14,0,16],[0,17,0,19],[11,13,11,15],[11,17,11,19],[37,2,37,5],[5,10,5,11],[6,10,6,11],[3,10,3,11],[4,10,4,11],[7,2,7,3],[8,2,8,3],[11,9,11,11],[34,2,34,3]]}
[]
[null,null,null,null,null,null,null,null,null,null,null,null,null,null,null,null,null,null,null,null,null,null,null,null,"RENDITA REVERSIBILE SU ASSICURATO DI PARI ETA' E SESSO DIVERSO"]
[null,null,null,null,null,null,null,null,null,null,null,null,null,null,null,null,null,null,null,null,null,null,null,null,null,"Età","Maschi","Femmine"]
[null,null,"capitale iniziale",null,{"$f":"+TCM!F5","v":5000},null,{"$f":"+F8*F9","v":1.0255092110509951E-2},null,null,null,"capitale iniziale",null,{"$f":"+M8","v":465641.2467161119}]
[null,null,"montante desiderato",null,{"$f":"+TCM!F6","v":20000},null,null,null,{"$f":"+G8-H8","v":0.34597537025939573},{"$f":"+I6-I8","v":0.15170444311274878},"montante desiderato",null,{"$f":"+TCM!F11","v":556000},null,null,null,null,null,null,null,null,null,null,null,null,50,2.274E-2,2.274E-2]
[null,null,"% per int composto annuo",null,{"$f":"+TCM!F7","v":4},null,null,null,{"$f":"+I5*12","v":4.1517044431127488},{"$f":"+J5*30","v":4.5511332933824633},"interesse composto annuo",null,{"$f":"+TCM!F12","v":3},null,null,null,null,null,null,null,null,null,null,null,null,{"$f":"1+Z5","v":51},2.3269999999999999E-2,2.3269999999999999E-2]
[null,null,null,null,null,"log","periodo","anni","mesi","giorni","anni da oggi",null,{"$f":"+TCM!F13","v":6},null,null,null,null,null,null,null,null,null,null,null,null,{"$f":"1+Z6","v":52},2.383E-2,2.383E-2]
[null,null,"numeratore",null,{"$f":"IF(E5=0,0,E5/E4)","v":4},{"$f":"IF(E8=0,0,+LOG(E8))","v":0.6020599913279624},{"$f":"IF(G4=0,0,+F8/F9)","v":35.345975370259396},{"$f":"INT(G8)","v":35},{"$f":"INT(I6)","v":4},{"$f":"INT(J6)","v":4},null,null,{"$f":"+M5*(1+M6/100)^-M7","v":465641.2467161119},null,null,null,null,null,null,null,null,null,null,null,null,53,2.4410000000000001E-2,2.4410000000000001E-2]
[null,null,"denominatore",null,{"$f":"1+E6/100","v":1.04},{"$f":"+LOG(E9)","v":1.703333929878037E-2},null,null,null,null,null,null,null,null,null,null,null,null,null,null,null,null,null,null,null,54,2.5010000000000001E-2,2.5010000000000001E-2]
[null,null,null,null,null,null,null,null,null,null,null,null,null,null,null,null,null,null,null,null,null,null,null,null,null,55,2.5649999999999999E-2,2.5649999999999999E-2]
[null,null,null,null,null,null,null,null,null,null,null,null,null,null,null,null,null,null,null,null,null,null,null,null,null,56,2.632E-2,2.632E-2]
[null,null,null,null,"RENDITA VITALIZIA IMMEDIATA A PREMIO UNICO",null,null,null,null,"RENDITA VITALIZIA CERTA 5 ANNI",null,null,null,"RENDITA VITALIZIA CERTA 10 ANNI",null,null,null,"RENDITA CONTROASSICURATA",null,null,null,"RENDITA CON RADDOPPIO TLC",null,null,null,57,2.7029999999999998E-2,2.7029999999999998E-2]
[null,null,null,null,null,null,null,null,null,null,null,null,null,null,null,null,null,null,null,null,null,null,null,null,null,58,2.7779999999999999E-2,2.7779999999999999E-2]
[null,null,null,null,null,"Età","Maschi","Femmine",null,"Età","Maschi","Femmine",null,"Età","Maschi","Femmine",null,"Età","Maschi","Femmine",null,"Età","Maschi","Femmine",null,59,2.8559999999999999E-2,2.8559999999999999E-2]
[null,null,null,null,null,null,null,null,null,null,null,null,null,null,null,null,null,null,null,null,null,null,null,null,null,60,2.9389999999999999E-2,2.9389999999999999E-2]
[null,null,null,null,null,50,2.7609999999999999E-2,2.487E-2,null,50,2.759E-2,2.486E-2,null,50,2.7539999999999999E-2,2.4830000000000001E-2,null,50,2.6800000000000001E-2,2.5239999999999999E-2,null,50,2.6280000000000001E-2,2.317E-2,null,61,3.0269999999999998E-2,3.0269999999999998E-2]
[null,null,null,null,null,{"$f":"1+F16","v":51},2.836E-2,2.5489999999999999E-2,null,{"$f":"1+J16","v":51},2.385E-2,2.547E-2,null,{"$f":"1+N16","v":51},2.8289999999999999E-2,2.5440000000000001E-2,null,{"$f":"1+R16","v":51},2.7310000000000001E-2,2.571E-2,null,{"$f":"1+V16","v":51},2.6970000000000001E-2,2.3709999999999998E-2,null,62,3.1199999999999999E-2,3.1199999999999999E-2]
[null,null,null,null,null,{"$f":"1+F17","v":52},2.9159999999999998E-2,2.613E-2,null,{"$f":"1+J17","v":52},2.9139999999999999E-2,2.6120000000000001E-2,null,{"$f":"1+N17","v":52},2.9069999999999999E-2,2.6079999999999999E-2,null,{"$f":"1+R17","v":52},2.7830000000000001E-2,2.6179999999999998E-2,null,{"$f":"1+V17","v":52},2.7689999999999999E-2,2.426E-2,null,63,3.218E-2,3.218E-2]
[null,null,null,null,null,53,0.03,2.681E-2,null,53,2.998E-2,2.6790000000000001E-2,null,53,2.9899999999999999E-2,2.6749999999999999E-2,null,53,2.8369999999999999E-2,2.6669999999999999E-2,null,53,2.845E-2,2.4850000000000001E-2,null,64,3.3230000000000003E-2,3.3230000000000003E-2]
[null,null,null,null,null,54,3.0890000000000001E-2,2.7519999999999999E-2,null,54,3.0859999999999999E-2,2.75E-2,null,54,3.0769999999999999E-2,2.7459999999999998E-2,null,54,2.8930000000000001E-2,2.7189999999999999E-2,null,54,2.9239999999999999E-2,2.546E-2,null,65,3.4340000000000002E-2,3.4340000000000002E-2]
[null,null,null,null,null,55,3.1829999999999997E-2,2.827E-2,null,55,3.1800000000000002E-2,2.8250000000000001E-2,null,55,3.168E-2,2.8199999999999999E-2,null,55,2.9530000000000001E-2,2.7720000000000002E-2,null,55,3.0079999999999999E-2,2.6100000000000002E-2,null,66,3.5520000000000003E-2,3.5520000000000003E-2]
[null,null,null,null,null,56,3.2820000000000002E-2,2.9059999999999999E-2,null,56,3.2779999999999997E-2,2.904E-2,null,56,3.2640000000000002E-2,2.8979999999999999E-2,null,56,3.0130000000000001E-2,2.827E-2,null,56,3.0970000000000001E-2,2.6769999999999999E-2,null,67,3.6769999999999997E-2,3.6769999999999997E-2]
[null,null,null,null,null,57,3.3869999999999997E-2,2.989E-2,null,57,3.3820000000000003E-2,2.9870000000000001E-2,null,57,3.3660000000000002E-2,2.98E-2,null,57,3.0769999999999999E-2,2.8850000000000001E-2,null,57,3.1899999999999998E-2,2.7480000000000001E-2,null,68,3.8120000000000001E-2,3.8120000000000001E-2]
[null,null,null,null,null,58,3.4979999999999997E-2,3.0769999999999999E-2,null,58,3.4930000000000003E-2,3.075E-2,null,58,3.4729999999999997E-2,3.066E-2,null,58,3.143E-2,2.945E-2,null,58,3.2890000000000003E-2,2.8230000000000002E-2,null,69,3.9550000000000002E-2,3.9550000000000002E-2]
[null,null,null,null,null,59,3.6170000000000001E-2,3.1710000000000002E-2,null,59,3.61E-2,3.168E-2,null,59,3.5869999999999999E-2,3.1579999999999997E-2,null,59,3.2120000000000003E-2,3.007E-2,null,59,3.3939999999999998E-2,2.9010000000000001E-2,null,70,4.1090000000000002E-2,4.1090000000000002E-2]
[null,null,null,null,null,60,3.7429999999999998E-2,3.27E-2,null,60,3.7350000000000001E-2,3.2669999999999998E-2,null,60,3.7069999999999999E-2,3.2550000000000003E-2,null,60,3.2829999999999998E-2,3.0720000000000001E-2,null,60,3.5049999999999998E-2,2.9839999999999998E-2]
[null,null,null,null,null,61,3.8769999999999999E-2,3.3750000000000002E-2,null,61,3.8679999999999999E-2,3.3709999999999997E-2,null,61,3.8330000000000003E-2,3.3570000000000003E-2,null,61,3.3590000000000002E-2,3.141E-2,null,61,3.6229999999999998E-2,3.0720000000000001E-2,null,null,null,null,"IBM","toshiba",null,null,null,"k314","dip","az",null,null,null,null,null,100000,{"$f":"+AP27*4%","v":4000},{"$f":"+AP27*4%","v":4000}]
[null,null,null,null,null,62,4.0189999999999997E-2,3.4869999999999998E-2,null,62,4.0079999999999998E-2,3.4819999999999997E-2,null,62,3.9660000000000001E-2,3.465E-2,null,62,3.4369999999999998E-2,3.2120000000000003E-2,null,62,3.7479999999999999E-2,3.1649999999999998E-2,null,null,null,null,null,null,null,null,null,null,null,null,null,null,null,null,null,200000,{"$f":"+AP28*4%","v":8000},{"$f":"+AP28*5.5%","v":11000}]
[null,null,null,null,null,63,4.1709999999999997E-2,3.6049999999999999E-2,null,63,4.1570000000000003E-2,3.5999999999999997E-2,null,63,4.1070000000000002E-2,3.5799999999999998E-2,null,63,3.5189999999999999E-2,3.2849999999999997E-2,null,63,3.8800000000000001E-2,3.2629999999999999E-2,null,null,null,0,63000,3.25,2.89,null,0,100000,4,4]
[null,null,null,null,null,64,4.3319999999999997E-2,3.7319999999999999E-2,null,64,4.3159999999999997E-2,3.7249999999999998E-2,null,64,4.2549999999999998E-2,3.7010000000000001E-2,null,64,3.6049999999999999E-2,3.363E-2,null,64,4.02E-2,3.3660000000000002E-2,null,null,{"$f":"+AC30-AB30","v":13411.450000000004},63000.01,76411.460000000006,5.95,4.46,{"$f":"+AH30-AG30","v":1899999.99},100000.01,2000000,4,5.5]
[null,null,null,null,null,65,4.505E-2,3.866E-2,null,65,4.4850000000000001E-2,3.8580000000000003E-2,null,65,4.4119999999999999E-2,3.8300000000000001E-2,null,65,3.6949999999999997E-2,3.4439999999999998E-2,null,65,4.1680000000000002E-2,3.4759999999999999E-2,null,null,{"$f":"+AC31-AB31","v":11047.429999999993},76411.47,87458.9,6.7,5.03]
[null,null,null,null,null,66,4.6899999999999997E-2,4.0090000000000001E-2,null,66,4.666E-2,0.04,null,66,4.5769999999999998E-2,3.9660000000000001E-2,null,66,3.7879999999999997E-2,3.5279999999999999E-2,null,66,4.3270000000000003E-2,3.5920000000000001E-2,null,null,{"$f":"+AC32-AB32","v":11047.429999999993},76411.47,87458.9,6.7,5.03,null,null,"lenovo"]
[null,null,null,null,null,67,4.8869999999999997E-2,4.163E-2,null,67,4.8579999999999998E-2,4.1520000000000001E-2,null,67,4.752E-2,4.1110000000000001E-2,null,67,3.8879999999999998E-2,3.6179999999999997E-2,null,67,4.4949999999999997E-2,3.7159999999999999E-2,null,null,{"$f":"+AC33-AB33","v":1912541.09},87458.91,2000000,7.3,5.48,null,0,150000,4,4]
[null,null,null,null,null,68,5.0990000000000001E-2,4.3270000000000003E-2,null,68,5.0630000000000001E-2,4.3139999999999998E-2,null,68,4.9360000000000001E-2,4.2659999999999997E-2,null,68,3.9910000000000001E-2,3.7130000000000003E-2,null,68,4.6739999999999997E-2,3.848E-2,null,null,null,null,null,null,null,{"$f":"+AH34-AG34","v":1849999.99},150000.01,2000000,4,5.48]
[null,{"$f":"+'M&R'!D10","v":1},"CODICE AZIENDA",null,null,69,5.3260000000000002E-2,4.5039999999999997E-2,null,69,5.2819999999999999E-2,4.4880000000000003E-2,null,69,5.1290000000000002E-2,4.4299999999999999E-2,null,69,4.0989999999999999E-2,3.8089999999999999E-2,null,69,4.8649999999999999E-2,3.9879999999999999E-2]
[null,null,null,null,null,70,5.57E-2,4.6940000000000003E-2,null,70,5.5169999999999997E-2,4.6739999999999997E-2,null,70,5.3310000000000003E-2,4.6039999999999998E-2,null,70,4.215E-2,3.9120000000000002E-2,null,70,5.0700000000000002E-2,4.138E-2]
[null,null,null,null,null,null,null,null,null,null,null,null,null,null,null,null,null,null,null,null,null,null,null,null,null,null,null,null,null,null,null,null,null,null,null,null,null,"IBM/TOSHIBA/ACG"]
[null,{"$f":"+CALCOLI1!H7","v":33},"NETTO CARICAMENTO",null,null,null,null,null,null,null,null,null,null,null,null,null,null,null,null,null,null,null,null,null,null,null,null,null,null,null,null,null,null,null,null,null,null,null,null,null,null,"k314","k314","k314",null,"K314","K314","K314",null,"lenovo","lenovo","lenovo",null,"lenovo","lenovo","lenovo"]
[null,"CONTR IN","VERS DIP","VERS AZ","VERS VOL","TFR","TOTALE C","TOT VER+TFR+RIV",null,"RETRIB",{"$f":"+CALCOLI1!H8","v":"% INCR RETR ANNUALE"},null,"RIV YTD",{"$f":"+CALCOLI1!L8","v":"% RIV FONDO"},"RIV FONDO","% DIP","% AZ","% TFR","TFR",null,"VERS DIP","VERS AZ","TFR","VER VOL","TOTALE C","TOT VER+TFR",null,null,null,null,null,null,null,null,null,null,null,"contr dir","contr az","totale",null,null,null,null,null,"contr dir","contr az","totale",null,null,null,null,null,"contr dir","contr az","totale"]
[null,null,null,null,null,null,null,null,null,null,null,null,null,"NETTO 0,4%"]
[1,{"$f":"+CALCOLI1!E20*99.95%","v":19790.100000000002},{"$f":"IF($B$35=1,AL41*99.95%,IF($B$35=2,BB41*99.95%,AT41*99.95%))","v":5238.7179856725006},{"$f":"IF($B$35=1,AM41*99.95%,IF($B$35=2,BC41*99.95%,AU41*99.95%))","v":4215.3667662479993},{"$f":"+CALCOLI1!E18","v":0},{"$f":"+CALCOLI1!E13*99%","v":7333.3333333333339},{"$f":"+B41+C41+D41","v":29244.184751920504},{"$f":"+G41+F41+O41","v":37528.533555470436},{"$f":"+G41","v":29244.184751920504},{"$f":"+CALCOLI1!E9","v":100000},{"$f":"+CALCOLI1!H9+100","v":101},null,{"$f":"+O41","v":951.01547021659997},{"$f":"+CALCOLI1!L9-0.4","v":2.6},{"$f":"+(G41+F41)*$N$41/100","v":951.01547021659997},{"$f":"+CALCOLI1!E14","v":4.5011608450000002},{"$f":"+CALCOLI1!E15","v":3.6617897750000004},{"$f":"+CALCOLI1!E12","v":100},{"$f":"+J41/13.5","v":7407.4074074074078},null,null,null,null,null,null,null,null,{"$f":"+J41","v":100000},{"$f":"IF(AB41>=$AC$29,$AC$29,AB41)","v":63000},{"$f":"+AB41-AC41","v":37000},{"$f":"IF(AD41>=$AA$30,$AA$30,AD41)","v":13411.450000000004},{"$f":"+AD41-AE41","v":23588.549999999996},{"$f":"IF(AF41>=$AA$31,$AA$31,AF41)","v":11047.429999999993},{"$f":"+AF41-AG41","v":12541.120000000003},{"$f":"IF(AH41>=$AA$32,$AA$32,AH41)","v":11047.429999999993},{"$f":"IF(AH41>=$AA$33,$AA$33,AH41)","v":12541.120000000003},null,{"$f":"+((AC41*$AD$29)+(AE41*$AD$30)+(AG41*$AD$31)+(AI41*$AD$32)+(AJ41*$AD$33))/100","v":5241.3386550000005},{"$f":"+((AC41*$AE$29)+(AE41*$AE$30)+(AG41*$AE$31)+(AI41*$AE$32)+(AJ41*$AE$33))/100","v":4217.4755039999991},{"$f":"+AL41+AM41","v":9458.8141589999996},null,{"$f":"+AB41","v":100000},{"$f":"IF(AP41>=$AH$29,$AH$29,AP41)","v":100000},{"$f":"+AP41-AQ41","v":0},null,{"$f":"+AP41*$AI$29%","v":4000},{"$f":"+(AQ41*$AJ$29/100)+AR41*$AJ$30/100","v":4000},{"$f":"+AT41+AU41","v":8000},null,{"$f":"+J41","v":100000},{"$f":"IF(AX41>=$AH$33,$AH$33,AX41)","v":100000},{"$f":"+AX41-AY41","v":0},null,{"$f":"+AX41*$AI$33%","v":4000},{"$f":"+(AY41*$AJ$33%)+(AZ41*$AJ$34%)","v":4000},{"$f":"+BB41+BC41","v":8000}]
[{"$f":"1+A41","v":2},null,{"$f":"IF($B$35=1,AL42*99.95%,IF($B$35=2,BB42*99.95%,AT42*99.95%))","v":5311.6814856724995},{"$f":"IF($B$35=1,AM42*99.95%,IF($B$35=2,BC42*99.95%,AU42*99.95%))","v":4270.1393662479995},{"$f":"+E41+X42","v":0},{"$f":"+F41+W42","v":14740},{"$f":"+B42+C42+D42","v":9581.8208519205},{"$f":"+I42+F42+M42","v":55174.114818433169},{"$f":"+I41+G42","v":38826.005603841004},{"$f":"+J41*$K$41/100","v":101000},null,null,{"$f":"+M41+O42","v":1608.1092145921646},null,{"$f":"+(G42+F42+O41)*$N$41/100","v":657.0937443755646},null,null,null,{"$f":"+J42/13.5","v":7481.4814814814818},null,{"$f":"+J42*$P$41/100*99%","v":4500.7107289155001},{"$f":"+J42*$Q$41*99%/100","v":3661.4235960225005},{"$f":"+J42/13.5*$R$41/100*99%","v":7406.666666666667},null,{"$f":"+U42+V42+X42","v":8162.1343249380006},{"$f":"+Y42+W42","v":15568.800991604669},null,{"$f":"+J42","v":101000},{"$f":"IF(AB42>=$AC$29,$AC$29,AB42)","v":63000},{"$f":"+AB42-AC42","v":38000},{"$f":"IF(AD42>=$AA$30,$AA$30,AD42)","v":13411.450000000004},{"$f":"+AD42-AE42","v":24588.549999999996},{"$f":"IF(AF42>=$AA$31,$AA$31,AF42)","v":11047.429999999993},{"$f":"+AF42-AG42","v":13541.120000000003},{"$f":"IF(AH42>=$AA$32,$AA$32,AH42)","v":11047.429999999993},{"$f":"IF(AH42>=$AA$33,$AA$33,AH42)","v":13541.120000000003},null,{"$f":"+((AC42*$AD$29)+(AE42*$AD$30)+(AG42*$AD$31)+(AI42*$AD$32)+(AJ42*$AD$33))/100","v":5314.3386549999996},{"$f":"+((AC42*$AE$29)+(AE42*$AE$30)+(AG42*$AE$31)+(AI42*$AE$32)+(AJ42*$AE$33))/100","v":4272.2755039999993},{"$f":"+AL42+AM42","v":9586.6141589999988},null,{"$f":"+AB42","v":101000},{"$f":"IF(AP42>=$AH$29,$AH$29,AP42)","v":100000},{"$f":"+AP42-AQ42","v":1000},null,{"$f":"+AP42*$AI$29%","v":4040},{"$f":"+(AQ42*$AJ$29/100)+AR42*$AJ$30/100","v":4055},{"$f":"+AT42+AU42","v":8095},null,{"$f":"+J42","v":101000},{"$f":"IF(AX42>=$AH$33,$AH$33,AX42)","v":101000},{"$f":"+AX42-AY42","v":0},null,{"$f":"+AX42*$AI$33%","v":4040},{"$f":"+(AY42*$AJ$33%)+(AZ42*$AJ$34%)","v":4040},{"$f":"+BB42+BC42","v":8080}]
[{"$f":"1+A42","v":3},null,5385.3746206724991,4325.4596922479996,{"$f":"+E42+X43","v":0},{"$f":"+F42+W43","v":22220.733333333334},9710.8343129204986,{"$f":"+I43+F43+M43","v":73212.98766084337},{"$f":"+I42+G43","v":48536.839916761499},{"$f":"+J42*$K$41/100","v":102010},null,null,{"$f":"+M42+O43","v":2455.414410748529},null,{"$f":"+(G43+F43+O42)*$N$41/100","v":847.30519615636445},null,null,null,7556.2962962962965,null,{"$f":"+J43*$P$41/100*99%","v":4545.7178362046552},{"$f":"+J43*$Q$41*99%/100","v":3698.0378319827259},{"$f":"+J43/13.5*$R$41/100*99%","v":7480.7333333333336},null,{"$f":"+U43+V43+X43","v":8243.7556681873812},{"$f":"+Y43+W43","v":15724.489001520715},null,102010,63000,39010,13411.450000000004,25598.549999999996,11047.429999999993,14551.120000000003,11047.429999999993,14551.120000000003,null,5388.0686549999991,4327.6235039999992,9715.6921589999984,null,102010,100000,2010,null,4080.4,4110.55,8190.9500000000007,null,102010,102010,0,null,4080.4,4080.4,8160.8]
[4,null,5459.8046870225007,4381.333221508,0,29776.274000000001,9841.1379085305016,91661.748880762389,58377.977825292,103030.1,null,null,3507.4970554703873,null,1052.0826447218583,null,null,null,7631.8592592592595,null,4591.175014566702,3735.0182103025522,7555.5406666666668,null,8326.1932248692538,15881.733891535921,null,103030.1,63000,40030.100000000006,13411.450000000004,26618.65,11047.429999999993,15571.220000000008,11047.429999999993,15571.220000000008,null,5462.5359550000003,4383.5249839999997,9846.0609389999991,null,103030.1,100000,3030.1000000000058,null,4121.2040000000006,4166.6555000000008,8287.8595000000023,null,103030.1,103030.1,0,null,4121.2040000000006,4121.2040000000006,8242.4080000000013]
[5,null,5534.9790540360009,4437.7654860606008,0,37407.370073333339,9972.7445400966026,110524.82662290428,68350.722365388603,104060.40100000001,null,null,4766.7341841823345,null,1259.2371287119468,null,null,null,7708.1778518518531,null,4637.0867647123696,3772.3683924055786,7631.0960733333341,null,8409.4551571179472,16040.551230451281,null,104060.40100000001,63000,41060.401000000013,13411.450000000004,27648.951000000008,11047.429999999993,16601.521000000015,11047.429999999993,16601.521000000015,null,5537.7479280000007,4439.9854788000002,9977.7334068000018,null,104060.40100000001,100000,4060.4010000000126,null,4162.416040000001,4223.3220550000005,8385.7380950000006,null,104060.40100000001,104060.40100000001,0,null,4162.416040000001,4162.416040000001,8324.832080000002]
[6,null,5610.9051647196366,4494.7620732587275,0,45114.777107400005,10105.667237978363,129806.37261327564,78456.389603366959,105101.00501000002,null,null,6235.2059025086828,null,1468.4717183263483,null,null,null,7785.2596303703722,null,4683.4576323594938,3810.0920763296344,7707.4070340666685,null,8493.5497086891282,16200.956742755796,null,105101.00501000002,63000,42101.005010000023,13411.450000000004,28689.555010000018,11047.429999999993,17642.125010000025,11047.429999999993,17642.125010000025,null,5613.7120207300013,4497.0105785480009,10110.722599278002,null,105101.00501000002,100000,5101.0050100000226,null,4204.0402004000007,4280.5552755500012,8484.5954759500019,null,105101.00501000002,105101.00501000002,0,null,4204.0402004000007,4204.0402004000007,8408.0804008000014]
[7,null,5687.5905365101089,4552.3286263288337,0,52899.258211807341,10239.919162838942,149510.5717569392,88696.308766205897,106152.01506010002,null,null,7915.0047789259716,null,1679.7988764172885,null,null,null,7863.1122266740758,null,4730.2922086830886,3848.1929970929314,7784.4811044073349,null,8578.4852057760199,16362.966310183354,null,106152.01506010002,63000,43152.01506010002,13411.450000000004,29740.565060100016,11047.429999999993,18693.135060100023,11047.429999999993,18693.135060100023,null,5690.435754387302,4554.6059292934806,10245.041683680782,null,106152.01506010002,100000,6152.0150601000205,null,4246.0806024040012,4338.3608283055009,8584.441430709503,null,106152.01506010002,106152.01506010002,0,null,4246.0806024040012,4246.0806024040012,8492.1612048080024]
[8,null,5765.0427620184846,4610.4708449296431,0,60761.58412725875,10375.513606948127,169641.65059121497,99071.82237315402,107213.53521070103,null,null,9808.2440908021999,null,1893.2393118762286,null,null,null,7941.7433489408168,null,4777.5951307699197,3886.6749270638602,7862.3259154514089,null,8664.270057833779,16526.595973285188,null,107213.53521070103,63000,44213.535210701026,13411.450000000004,30802.085210701021,11047.429999999993,19754.655210701028,11047.429999999993,19754.655210701028,null,5767.9267253811749,4612.777233546416,10380.703958927592,null,107213.53521070103,100000,7213.5352107010258,null,4288.541408428041,4396.7444365885567,8685.2858450165986,null,107213.53521070103,107213.53521070103,0,null,4288.541408428041,4288.541408428041,8577.082816856082]
[9,null,5843.2695097819433,4669.1944857164581,0,68702.533301864663,10512.463995498401,190203.87791315949,109584.28636865242,108285.67056280802,null,null,11917.058242642423,null,2108.8141518402217,null,null,null,8021.1607824302237,null,4825.3710820776187,3925.5416763344983,7940.9491746059202,null,8750.9127584121161,16691.861933018037,null,108285.67056280802,63000,45285.670562808024,13411.450000000004,31874.220562808019,11047.429999999993,20826.790562808026,11047.429999999993,20826.790562808026,null,5846.1926060849855,4671.530250841879,10517.722856926865,null,108285.67056280802,100000,8285.6705628080235,null,4331.4268225123215,4455.7118809544409,8787.1387034667623,null,108285.67056280802,108285.67056280802,0,null,4331.4268225123215,4331.4268225123215,8662.8536450246429]
[10,null,5922.2785250230372,4728.5053629111426,0,76722.891968216645,10650.78388793418,211201.56520765342,120235.07025658659,109368.5272684361,null,null,14243.602982850191,null,2326.5447402077675,null,null,null,8101.3723902545253,null,4873.6247928983939,3964.7970930978436,8020.35866635198,null,8838.4218859962384,16858.780552348217,null,109368.5272684361,63000,46368.527268436097,13411.450000000004,32957.077268436093,11047.429999999993,21909.6472684361,11047.429999999993,21909.6472684361,null,5925.2411455958345,4730.8707983102977,10656.111943906133,null,109368.5272684361,100000,9368.5272684360971,null,4374.7410907374442,4515.2689997639854,8890.0100905014297,null,109368.5272684361,109368.5272684361,0,null,4374.7410907374442,4374.7410907374442,8749.4821814748884]
[11,null,6002.0776304165429,4788.4093488777735,0,84823.454221232139,10790.486979294317,232639.06707442235,131025.55723588091,110462.21254112046,null,null,16790.055617309281,null,2546.4526344590904,null,null,null,8182.3861141570715,null,4922.3610408273771,4004.4450640288223,8100.5622530155006,null,8926.8061048561995,17027.368357871699,null,110462.21254112046,63000,47462.212541120462,13411.450000000004,34050.762541120457,11047.429999999993,23003.332541120464,11047.429999999993,23003.332541120464,null,6005.0801705017939,4790.8047512534004,10795.884921755194,null,110462.21254112046,100000,10462.212541120462,null,4418.4885016448188,4575.4216897616252,8993.9101914064449,null,110462.21254112046,110462.21254112046,0,null,4418.4885016448188,4418.4885016448188,8836.9770032896377]
[12,null,6082.6747268639838,4848.9123747040721,0,93005.0220967778,10931.587101568057,254520.78165918897,141957.14433744896,111566.83466653166,null,null,19558.61522496221,null,2768.5596076529287,null,null,null,8264.2099752986414,null,4971.584651235652,4044.4895146691101,8181.5678755456547,null,9016.0741659047617,17197.642041450417,null,111566.83466653166,63000,48566.834666531664,13411.450000000004,35155.38466653166,11047.429999999993,24107.954666531667,11047.429999999993,24107.954666531667,null,6085.7175856568119,4851.3380437259348,10937.055629382747,null,111566.83466653166,100000,11566.834666531664,null,4462.6733866612667,4636.1759066592413,9098.8492933205089,null,111566.83466653166,111566.83466653166,0,null,4462.6733866612667,4462.6733866612667,8925.3467733225334]
[13,null,6164.0777942758987,4910.0204307886324,0,101268.40565107891,11074.098225064532,276851.15108913335,153031.24256251351,112682.50301319698,null,null,22551.502875540915,null,2992.8876505787061,null,null,null,8346.8520750516291,null,5021.3004977480077,4084.9344098158012,8263.3835543011119,null,9106.2349075638085,17369.61846186492,null,112682.50301319698,63000,49682.503013196983,13411.450000000004,36271.053013196979,11047.429999999993,25223.623013196986,11047.429999999993,25223.623013196986,null,6167.1613749633798,4912.4766691231935,11079.638044086572,null,112682.50301319698,100000,12682.503013196983,null,4507.3001205278797,4697.5376657258339,9204.8377862537127,null,112682.50301319698,112682.50301319698,0,null,4507.3001205278797,4507.3001205278797,9014.6002410557594]
[14,null,6246.2948923619315,4971.7395674340387,0,109614.42304092304,11218.03445979597,299634.66191270715,164249.27702230948,113809.32804332895,null,null,25770.961849474654,null,3219.4589739337407,null,null,null,8430.3205958021445,null,5071.5135027254883,4125.7837539139591,8346.0173898441226,null,9197.2972566394474,17543.31464648357,null,113809.32804332895,63000,50809.328043328947,13411.450000000004,37397.878043328943,11047.429999999993,26350.44804332895,11047.429999999993,26350.44804332895,null,6249.4196021630123,4974.2266807744254,11223.646282937438,null,113809.32804332895,100000,13809.328043328947,null,4552.3731217331579,4759.5130423830924,9311.8861641162512,null,113809.32804332895,113809.32804332895,0,null,4552.3731217331579,4552.3731217331579,9104.7462434663157]
[15,null,6329.3341614288256,5034.0758954458988,0,118043.9006046656,11363.410056874724,322875.84554384684,175612.68707918422,114947.42132376223,null,null,29219.257859996978,null,3448.296010522326,null,null,null,8514.6238017601645,null,5122.2286377527425,4167.0415914530986,8429.4775637425628,null,9289.270229205842,17718.747792948405,null,114947.42132376223,63000,51947.421323762232,13411.450000000004,38535.971323762227,11047.429999999993,27488.541323762234,11047.429999999993,27488.541323762234,null,6332.5004116346427,5036.5941925421694,11369.094604176811,null,114947.42132376223,100000,14947.421323762232,null,4597.8968529504891,4822.108172806923,9420.0050257574112,null,114947.42132376223,114947.42132376223,0,null,4597.8968529504891,4597.8968529504891,9195.7937059009782]
[16,null,6413.2038231863899,5097.0355867378785,0,126557.6729440456,11510.239409924268,346579.27871062787,187122.9264891085,116096.89553699986,null,null,32898.679277473777,null,3679.4214174767972,null,null,null,8599.770039777768,null,5173.4509241302703,4208.7120073676297,8513.7723393799897,null,9382.1629314979,17895.93527087789,null,116096.89553699986,63000,53096.895536999858,13411.450000000004,39685.445536999854,11047.429999999993,28638.015536999861,11047.429999999993,28638.015536999861,null,6416.4120292009902,5099.5853794275918,11515.997408628582,null,116096.89553699986,100000,16096.895536999858,null,4643.8758214799946,4885.3292545349923,9529.2050760149868,null,116096.89553699986,116096.89553699986,0,null,4643.8758214799946,4643.8758214799946,9287.7516429599891]
[17,null,6497.9121815615281,5160.6248749427778,0,135156.58300681939,11658.537056504305,370749.58390840684,198781.46354561282,117257.86449236986,null,null,36811.537355974593,null,3912.858078500813,null,null,null,8685.7677401755445,null,5225.1854333715728,4250.7991274413062,8598.9100627737898,null,9475.984560812878,18074.894623586668,null,117257.86449236986,63000,54257.864492369859,13411.450000000004,40846.414492369855,11047.429999999993,29798.984492369862,11047.429999999993,29798.984492369862,null,6501.1627629429995,5163.2064781818681,11664.369241124867,null,117257.86449236986,100000,17257.864492369859,null,4690.3145796947947,4949.1825470803424,9639.4971267751371,null,117257.86449236986,117257.86449236986,0,null,4690.3145796947947,4690.3145796947947,9380.6291593895894]
[18,null,6583.4676235204188,5224.8500560297243,0,143841.48217022093,11808.317679550142,395391.42985749355,210589.78122516297,118430.44313729355,null,null,40960.166462109664,null,4148.6291061350694,null,null,null,8772.6254175772992,null,5277.4372877052892,4293.3071187157193,8684.8991634015256,null,9570.7444064210085,18255.643569822532,null,118430.44313729355,63000,55430.443137293551,13411.450000000004,42018.993137293546,11047.429999999993,30971.563137293553,11047.429999999993,30971.563137293553,null,6586.7610040224299,5227.4637879236861,11814.224791946115,null,118430.44313729355,100000,18430.443137293551,null,4737.2177254917424,5013.6743725511451,9750.8920980428884,null,118430.44313729355,118430.44313729355,0,null,4737.2177254917424,4737.2177254917424,9474.4354509834848]
[19,null,6669.8786198988973,5289.717488927542,0,152613.23032525647,11959.596108826439,420509.53196540114,222549.3773339894,119614.74756866648,null,null,45346.924306155328,null,4386.7578440456673,null,null,null,8860.3516717530729,null,5330.2116605823421,4336.2401899028755,8771.7481550355424,null,9666.4518504852167,18438.200005520761,null,119614.74756866648,63000,56614.747568666484,13411.450000000004,43203.297568666479,11047.429999999993,32155.867568666486,11047.429999999993,32155.867568666486,null,6673.2152275126537,5292.363670762923,11965.578898275577,null,119614.74756866648,100000,19614.747568666484,null,4784.5899027466594,5078.8111162766563,9863.4010190233166,null,119614.74756866648,119614.74756866648,0,null,4784.5899027466594,4784.5899027466594,9569.1798054933188]
[20,null,6757.1537262411612,5355.2335961543367,0,161472.69596184237,12112.387322395498,446108.65279371798,234661.76465638488,120810.89504435315,null,null,49974.192175490702,null,4627.2678693353719,null,null,null,8948.9551884706034,null,5383.5137771881655,4379.6025918019041,8859.4656365858973,null,9763.1163689900695,18622.582005575969,null,120810.89504435315,63000,57810.89504435315,13411.450000000004,44399.445044353146,11047.429999999993,33352.015044353153,11047.429999999993,33352.015044353153,null,6760.5339932377801,5357.9125524305518,12118.446545668332,null,120810.89504435315,100000,20810.89504435315,null,4832.435801774126,5144.599227439423,9977.0350292135481,null,120810.89504435315,120810.89504435315,0,null,4832.435801774126,4832.435801774126,9664.8716035482521]
[21,null,6845.3015836468476,5421.4048644534014,0,170420.75625479413,12266.706448100249,472193.60252964799,246928.47110448513,122019.00399479669,null,null,54844.375170368672,null,4870.1829948779741,null,null,null,9038.4447403553095,null,5437.3489149600473,4423.398617719924,8948.0602929517554,null,9860.7475326799722,18808.807825631728,null,122019.00399479669,63000,59019.003994796687,13411.450000000004,45607.553994796683,11047.429999999993,34560.12399479669,11047.429999999993,34560.12399479669,null,6848.7259466201576,5424.1169229148582,12272.842869535016,null,122019.00399479669,100000,22019.003994796687,null,4880.7601597918674,5211.0452197138175,10091.805379505684,null,122019.00399479669,122019.00399479669,0,null,4880.7601597918674,4880.7601597918674,9761.5203195837348]
[22,null,6934.3309196265909,5488.2378454354539,0,179458.29715067541,12422.568765062046,498769.23946226726,259351.03986954718,123239.19403474465,null,null,59959.902442044673,null,5115.5272716760019,null,null,null,9128.8291877588636,null,5491.722404109647,4467.6326038971229,9037.540895881275,null,9959.3550080067689,18996.895903888042,null,123239.19403474465,63000,60239.194034744651,13411.450000000004,46827.744034744646,11047.429999999993,35780.314034744653,11047.429999999993,35780.314034744653,null,6937.7998195363589,5490.9833371040058,12428.783156640366,null,123239.19403474465,100000,23239.194034744651,null,4929.567761389786,5278.1556719109558,10207.723433300742,null,123239.19403474465,123239.19403474465,0,null,4929.567761389786,4929.567761389786,9859.1355227795721]
[23,null,7024.2505489661316,5555.7391562273287,0,188586.21345551551,12579.98970519346,525840.47046354285,271931.02957474062,124471.58597509209,null,null,65323.22743328668,null,5363.3249912420088,null,null,null,9220.1174796364521,null,5546.6396281507432,4512.3089299360945,9127.9163048400878,null,10058.948558086839,19186.864862926926,null,124471.58597509209,63000,61471.585975092094,13411.450000000004,48060.135975092089,11047.429999999993,37012.705975092096,11047.429999999993,37012.705975092096,null,7027.7644311817221,5558.5184154350463,12586.282846616768,null,124471.58597509209,100000,24471.585975092094,null,4978.8634390036841,5345.937228630065,10324.80066763375,null,124471.58597509209,124471.58597509209,0,null,4978.8634390036841,4978.8634390036841,9957.7268780073682]
[24,null,7115.0693745990684,5623.9154801271216,0,197805.408923404,12738.98485472619,553412.25147416117,284670.0144294668,125716.30183484301,null,null,70936.828121290353,null,5613.6006880036766,null,null,null,9312.3186544328146,null,5602.1060244322507,4557.4320192354544,9219.1954678884867,null,10159.538043667704,19378.733511556191,null,125716.30183484301,63000,62716.301834843005,13411.450000000004,49304.851834843001,11047.429999999993,38257.421834843008,11047.429999999993,38257.421834843008,null,7118.6286889435396,5626.7288445493959,12745.357533492936,null,125716.30183484301,100000,25716.301834843005,null,5028.6520733937205,5414.3966009163651,10443.048674310085,null,125716.30183484301,125716.30183484301,0,null,5028.6520733937205,5028.6520733937205,10057.304146787441]
[25,null,7206.7963884883338,5692.7735672659137,0,207116.79634597138,12899.569955754247,581489.58799421578,297569.58438522107,126973.46485319143,null,null,76803.207263023316,null,5866.3791417329621,null,null,null,9405.4418409771424,null,5658.1270846765719,4603.0063394278086,9311.3874225673717,null,10261.133424104381,19572.520846671752,null,126973.46485319143,63000,63973.464853191428,13411.450000000004,50562.014853191424,11047.429999999993,39514.584853191431,11047.429999999993,39514.584853191431,null,7210.4015892829748,5695.6213779548907,12906.022967237866,null,126973.46485319143,100000,26973.464853191428,null,5078.9385941276569,5483.5405669255288,10562.479161053187,null,126973.46485319143,126973.46485319143,0,null,5078.9385941276569,5078.9385941276569,10157.877188255314]
[26,null,7299.4406725164918,5762.3202352760909,0,216521.29764276443,13061.760907792583,610077.53557880095,310631.34529301367,128243.19950172334,null,null,82924.89264302286,null,6121.6853799995397,null,null,null,9499.496259386915,null,5714.7083555233385,4649.0364028220874,9404.5012967930452,null,10363.744758345427,19768.246055138472,null,128243.19950172334,63000,65243.199501723342,13411.450000000004,51831.749501723338,11047.429999999993,40784.319501723345,11047.429999999993,40784.319501723345,null,7303.092218625804,5765.2028366944378,13068.295055320243,null,128243.19950172334,100000,28243.199501723342,null,5129.7279800689339,5553.3759725947839,10683.103952663718,null,128243.19950172334,128243.19950172334,0,null,5129.7279800689339,5129.7279800689339,10259.455960137868]
[27,null,7393.0113993849309,5832.562369966372,0,226019.84395252541,13225.573769351304,639181.20033856202,323856.91906236496,129525.63149674058,null,null,89304.437323671649,null,6379.5446806487826,null,null,null,9594.4912219807829,null,5771.8554390785712,4695.5267668503084,9498.5463097609754,null,10467.38220592888,19965.928515689855,null,129525.63149674058,63000,66525.631496740578,13411.450000000004,53114.181496740573,11047.429999999993,42066.75149674058,11047.429999999993,42066.75149674058,null,7396.7097542620613,5835.4801100213826,13232.189864283444,null,129525.63149674058,100000,29525.631496740578,null,5181.0252598696234,5623.9097323207316,10804.934992190356,null,129525.63149674058,129525.63149674058,0,null,5181.0252598696234,5181.0252598696234,10362.050519739247]
[28,null,7487.5178335220562,5903.5069260035571,0,235613.37572538399,13391.024759525613,668805.73944525083,337247.94382189057,130820.88781170799,null,null,95944.419897976171,null,6639.9825743045185,null,null,null,9690.4361342005923,null,5829.5739934693584,4742.4820345188109,9593.5317728585869,null,10572.056027988168,20165.587800846755,null,130820.88781170799,63000,67820.887811707988,13411.450000000004,54409.437811707983,11047.429999999993,43362.00781170799,11047.429999999993,43362.00781170799,null,7491.2634652546831,5906.4601560815972,13397.723621336281,null,130820.88781170799,100000,30820.887811707988,null,5232.8355124683194,5695.1488296439393,10927.984342112259,null,130820.88781170799,130820.88781170799,0,null,5232.8355124683194,5232.8355124683194,10465.671024936639]
[29,null,7582.9693320005508,5975.1609276011122,0,245302.84281597115,13558.130259601663,698956.36164233636,350806.07408149226,132129.09668982506,null,null,102847.44474487298,null,6903.0248468968111,null,null,null,9787.3404955425976,null,5887.8697334040507,4789.9068548639989,9689.4670905871717,null,10677.776588268051,20367.243678855222,null,132129.09668982506,63000,69129.096689825063,13411.450000000004,55717.646689825058,11047.429999999993,44670.216689825065,11047.429999999993,44670.216689825065,null,7586.7627133572287,5978.1500026024132,13564.912715959643,null,132129.09668982506,100000,32129.096689825063,null,5285.1638675930026,5767.1003179403788,11052.264185533382,null,132129.09668982506,132129.09668982506,0,null,5285.1638675930026,5285.1638675930026,10570.327735186005]
[30,null,7679.3753454638327,6047.531469214643,0,255089.2045774642,13726.906814678476,729638.32776072284,364532.98089617072,133450.38765672332,null,null,110016.14228708801,null,7168.6975422150272,null,null,null,9885.2139004980236,null,5946.7484307380919,4837.8059234126395,9786.3617614930426,null,10784.554354150732,20570.916115643777,null,133450.38765672332,63000,70450.387656723324,13411.450000000004,57038.937656723319,11047.429999999993,45991.507656723326,11047.429999999993,45991.507656723326,null,7683.2169539408023,6050.5567475884372,13733.77370152924,null,133450.38765672332,100000,33450.387656723324,null,5338.0155062689328,5839.7713211197824,11177.786827388714,null,133450.38765672332,133450.38765672332,0,null,5338.0155062689328,5338.0155062689328,10676.031012537866]
[31,null,7776.7454190617455,6120.6257162443098,0,264973.42995657219,13897.371135306055,760856.95123962336,378430.3520314768,134784.89153329056,null,null,117453.16925157444,null,7437.0269644864256,null,null,null,9984.0660395030045,null,6006.2159150454736,4886.1839826467658,9884.2253791079747,null,10892.399897692239,20776.625276800216,null,134784.89153329056,63000,71784.89153329056,13411.450000000004,58373.441533290556,11047.429999999993,47326.011533290563,11047.429999999993,47326.011533290563,null,7780.6357369302104,6123.687560024322,13904.323296954532,null,134784.89153329056,100000,34784.89153329056,null,5391.3956613316223,5913.169034330981,11304.564695662604,null,134784.89153329056,134784.89153329056,0,null,5391.3956613316223,5391.3956613316223,10782.791322663245]
[32,null,7875.0891933956391,6194.4509057442719,0,274956.49758947123,14069.540099139911,792617.5986526428,392499.8921306167,136132.74044862346,null,null,125161.20893255498,null,7708.0396809805361,null,null,null,10083.906699898034,null,6066.2780741959268,4935.0458224732338,9983.0676328990539,null,11001.323896669161,20984.391529568216,null,136132.74044862346,63000,73132.740448623459,13411.450000000004,59721.290448623455,11047.429999999993,48673.860448623462,11047.429999999993,48673.860448623462,null,7879.0287077495132,6197.5496805845642,14076.578388334077,null,136132.74044862346,100000,36132.740448623459,null,5445.3096179449385,5987.3007246742909,11432.610342619229,null,136132.74044862346,136132.74044862346,0,null,5445.3096179449385,5445.3096179449385,10890.619235889877]
[33,null,7974.416405472869,6269.0143471392357,0,285039.39589869929,14243.430752612105,824925.6902391226,406743.32288322883,137494.06785310968,null,null,133142.97145719457,null,7981.7625246395919,null,null,null,10184.745766897013,null,6126.9408549378868,4984.3962806979653,10082.898309228043,null,11111.337135635851,21194.235444863894,null,137494.06785310968,63000,74494.067853109678,13411.450000000004,61082.617853109674,11047.429999999993,50035.187853109681,11047.429999999993,50035.187853109681,null,7978.4056082770066,6272.1504223504107,14250.556030627416,null,137494.06785310968,100000,37494.067853109678,null,5499.7627141243875,6062.1737319210324,11561.93644604542,null,137494.06785310968,137494.06785310968,0,null,5499.7627141243875,5499.7627141243875,10999.525428248775]
[34,null,8074.7368896708722,6344.3234229481477,0,295223.12319101964,14419.06031261902,857786.70044079726,421162.38319584785,138869.00853164078,null,null,141401.19405392979,null,8258.2225967352351,null,null,null,10286.593224565984,null,6188.2102634872654,5034.2402435049453,10183.727292320324,null,11222.450506992211,21406.177799312536,null,138869.00853164078,63000,75869.008531640779,13411.450000000004,62457.558531640774,11047.429999999993,51410.128531640781,11047.429999999993,51410.128531640781,null,8078.7762778097767,6347.4971715339143,14426.273449343691,null,138869.00853164078,100000,38869.008531640779,null,5554.7603412656308,6137.7954692402436,11692.555810505874,null,138869.00853164078,138869.00853164078,0,null,5554.7603412656308,5554.7603412656308,11109.520682531262]
[35,null,8176.0605787108552,6420.3855895151501,0,305508.68775626319,14596.446168226004,891206.1584438188,435758.82936407387,140257.69861695718,null,null,149938.64132348163,null,8537.4472695518361,null,null,null,10389.459156811643,null,6250.0923661221368,5084.5826459399941,10285.564565243527,null,11334.675012062131,21620.239577305656,null,140257.69861695718,63000,77257.698616957176,13411.450000000004,63846.248616957171,11047.429999999993,52798.818616957178,11047.429999999993,52798.818616957178,null,8180.1506540378741,6423.5973882092539,14603.748042247127,null,140257.69861695718,100000,40257.698616957176,null,5610.3079446782867,6214.1734239326452,11824.481368610932,null,140257.69861695718,140257.69861695718,0,null,5610.3079446782867,5610.3079446782867,11220.615889356573]
[36,null,8278.3975046412397,6497.2083777478219,0,315897.10796715913,14775.605882389062,925189.64872620022,450534.43524646293,141660.27560312676,null,null,158758.10551257821,null,8819.4641890966013,null,null,null,10493.353748379761,null,6312.5932897833591,5135.4284723993942,10388.420210895965,null,11448.021762182754,21836.441973078719,null,141660.27560312676,63000,78660.275603126764,13411.450000000004,65248.825603126759,11047.429999999993,54201.395603126766,11047.429999999993,54201.395603126766,null,8282.5387740282531,6500.4586070513469,14782.9973810796,null,141660.27560312676,100000,41660.275603126764,null,5666.411024125071,6291.3151581719721,11957.726182297043,null,141660.27560312676,141660.27560312676,0,null,5666.411024125071,5666.411024125071,11332.822048250142]
[37,null,8381.757799830928,6574.7993938628179,0,326389.41238016402,14956.557193693745,959742.81161073572,465490.9924401567,143076.87835915803,null,null,167862.40679041503,null,9104.3012778368138,null,null,null,10598.287285863558,null,6375.719222681194,5186.7827571233884,10492.304413004924,null,11562.501979804583,22054.806392809507,null,143076.87835915803,63000,80076.878359158029,13411.450000000004,66665.428359158017,11047.429999999993,55617.998359158024,11047.429999999993,55617.998359158024,null,8385.9507752185364,6578.0884380818588,14964.039213300395,null,143076.87835915803,100000,43076.878359158029,null,5723.0751343663214,6369.2283097536911,12092.303444120013,null,143076.87835915803,143076.87835915803,0,null,5723.0751343663214,5723.0751343663214,11446.150268732643]
[38,null,8486.1516979725111,6653.1663201389674,0,336986.63983729901,15139.318018111479,994871.34382344666,480630.31045826816,144507.64714274963,null,null,177254.39352787947,null,9391.9867374644309,null,null,null,10704.270158722195,null,6439.4764149080056,5238.6505846946229,10597.22745713497,null,11678.126999602628,22275.354456737598,null,144507.64714274963,63000,81507.647142749629,13411.450000000004,68096.197142749617,11047.429999999993,57048.767142749624,11047.429999999993,57048.767142749624,null,8490.3968964207215,6656.4945674226783,15146.8914638434,null,144507.64714274963,100000,44507.647142749629,null,5780.305885709985,6447.9205928512292,12228.226478561213,null,144507.64714274963,144507.64714274963,0,null,5780.305885709985,5780.305885709985,11560.61177141997]
[39,null,8591.5895350955107,6732.3169156778768,0,347689.8395690053,15323.906450773387,1030580.9990576146,495954.21690904157,145952.72361417711,null,null,186936.94257956778,null,9682.5490516883219,null,null,null,10811.312860309416,null,6503.8711790570851,5291.0370905415693,10703.199731706321,null,11794.908269598654,22498.108001304976,null,145952.72361417711,63000,82952.723614177114,13411.450000000004,69541.273614177102,11047.429999999993,58493.843614177109,11047.429999999993,58493.843614177109,null,8595.8874788349276,6735.6847580569047,15331.572236891832,null,145952.72361417711,100000,45952.723614177114,null,5838.108944567085,6527.3997987797411,12365.508743346825,null,145952.72361417711,145952.72361417711,0,null,5838.108944567085,5838.108944567085,11676.21788913417]
[40,null,8698.081750589743,6812.2590171721758,0,358500.07129802869,15510.340767761918,1066877.5885434544,511464.5576768035,147412.2508503189,null,null,196912.95956862223,null,9976.016989054453,null,null,null,10919.425988912511,null,6568.9098908476572,5343.9474614469855,10810.231729023388,null,11912.857352294643,22723.08908131803,null,147412.2508503189,63000,84412.250850318902,13411.450000000004,71000.80085031889,11047.429999999993,59953.370850318897,11047.429999999993,59953.370850318897,null,8702.4329670732786,6815.666850597474,15518.099817670753,null,147412.2508503189,100000,47412.250850318902,null,5896.490034012756,6607.6737967675399,12504.163830780297,null,147412.2508503189,147412.2508503189,0,null,5896.490034012756,5896.490034012756,11792.980068025512]
[41,null,8805.6388882389147,6893.0005396814186,0,369418.40534434229,15698.639427920334,1103766.9816234824,527163.19710472377,148886.37335882208,null,null,207185.37917441648,null,10272.419605794244,null,null,null,11028.620248801635,null,6634.5989897561331,5397.3869360614544,10918.334046313619,null,12031.985925817587,22950.319972131205,null,148886.37335882208,63000,85886.373358822078,13411.450000000004,72474.923358822067,11047.429999999993,61427.493358822074,11047.429999999993,61427.493358822074,null,8810.0439101940119,6896.4487640634497,15706.492674257461,null,148886.37335882208,100000,48886.373358822078,null,5955.4549343528834,6688.7505347352144,12644.205469088098,null,148886.37335882208,148886.37335882208,0,null,5955.4549343528834,5955.4549343528834,11910.909868705767]
[42,null,8914.2715972645783,6974.5494774157523,0,380445.92273111903,15888.821074680331,1141255.1063336409,543052.01817940408,150375.2370924103,null,null,217757.1654231179,null,10571.786248701434,null,null,null,11138.906451289651,null,6700.9449796536937,5451.3608054220704,11027.517386776755,null,12152.305785075765,23179.82317185252,null,150375.2370924103,63000,87375.237092410302,13411.450000000004,73963.78709241029,11047.429999999993,62916.357092410297,11047.429999999993,62916.357092410297,null,8918.7309627459508,6978.0384966640841,15896.769459410036,null,150375.2370924103,100000,50375.237092410302,null,6015.0094836964117,6770.6380400825665,12785.647523778978,null,150375.2370924103,150000,375.23709241030156,null,6015.0094836964117,6020.562992664085,12035.572476360496]
[43,null,9023.9906333804993,7056.9139045274305,0,391583.71529176354,16080.904537907929,1179347.9499902311,559132.922717312,151878.98946333441,null,null,228631.3119811556,null,10874.146558037695,null,null,null,11250.295515802549,null,6767.9544294502321,5505.8744134762892,11137.792560644522,null,12273.828842926521,23411.621403571044,null,151878.98946333441,63000,88878.989463334408,13411.450000000004,75467.539463334397,11047.429999999993,64420.109463334404,11047.429999999993,64420.109463334404,null,9028.5048858234113,7060.4441265907253,16088.949012414138,null,151878.98946333441,100000,51878.989463334408,null,6075.1595785333766,6853.3444204833922,12928.503999016768,null,151878.98946333441,150000,1878.9894633344084,null,6075.1595785333766,6102.9686225907253,12178.128201124102]
[44,null,9134.806859857581,7140.1019759102237,0,402832.88577801449,16274.908835767805,1218051.5597827171,575407.83155307977,153397.77935796775,null,null,239810.84245162291,null,11179.53047046732,null,null,null,11362.798470960573,null,6835.6339737447342,5560.9331576110526,11249.170486250967,null,12396.567131355787,23645.737617606756,null,153397.77935796775,63000,90397.779357967753,13411.450000000004,76986.329357967741,11047.429999999993,65938.899357967748,11047.429999999993,65938.899357967748,null,9139.3765481316459,7143.6738128166317,16283.050360948277,null,153397.77935796775,100000,53397.779357967753,null,6135.9111743187104,6936.8778646882256,13072.789039006937,null,153397.77935796775,150000,3397.7793579677527,null,6135.9111743187104,6186.1983088166326,12322.109483135344]
[45,null,9246.7312485994298,7224.1219280068462,0,414194.54796912795,16470.853176606277,1257372.0433724581,591878.68472968601,154931.75715154744,null,null,251298.81067364416,null,11487.968222021242,null,null,null,11476.42645567018,null,6903.9903134821825,5616.5424891871644,11361.662191113479,null,12520.532802669346,23882.194993782825,null,154931.75715154744,63000,91931.757151547441,13411.450000000004,78520.307151547429,11047.429999999993,67472.877151547436,11047.429999999993,67472.877151547436,null,9251.3569270629614,7227.7357959047986,16479.092722967762,null,154931.75715154744,100000,54931.757151547441,null,6197.2702860618974,7021.2466433351092,13218.516929397007,null,154931.75715154744,150000,4931.757151547441,null,6197.2702860618974,6270.2602919047995,12467.530577966696]
[46,null,9359.7748812287009,7308.9820796244358,0,425669.82678215258,16668.756960853138,1297315.5694974265,608547.44169053913,156481.07472306292,null,null,263098.30102473486,null,11799.490351090701,null,null,null,11591.190720226883,null,6973.0302166170031,5672.7079140790365,11475.278813024614,null,12645.73813069604,24121.016943720653,null,156481.07472306292,63000,93481.07472306292,13411.450000000004,80069.624723062909,11047.429999999993,69022.194723062916,11047.429999999993,69022.194723062916,null,9364.4571097835924,7312.6383988238476,16677.095508607439,null,156481.07472306292,100000,56481.07472306292,null,6259.2429889225168,7106.4591097684606,13365.702098690977,null,156481.07472306292,150000,6481.0747230629204,null,6259.2429889225168,6355.1628948238476,12614.405883746364]
[47,null,9473.9489501842636,7394.6908327582005,0,437259.85838330747,16868.639782942464,1337888.3685829747,625416.08147348161,158045.88547029355,null,null,275212.4287261857,null,12114.127701450856,null,null,null,11707.102627429153,null,7042.7605187831741,5729.4349932198265,11590.03160115486,null,12772.195512003,24362.22711315786,null,158045.88547029355,63000,95045.88547029355,13411.450000000004,81634.435470293538,11047.429999999993,70587.005470293545,11047.429999999993,70587.005470293545,null,9478.6882943314286,7398.3900277720859,16877.078322103516,null,158045.88547029355,100000,58045.88547029355,null,6321.8354188117419,7192.5237008661452,13514.359119677887,null,158045.88547029355,150000,8045.8854702935496,null,6321.8354188117419,6440.9145237720868,12762.749942583829]
[48,null,9589.2647598293806,7481.2566734233033,0,448965.79030047386,17070.521433252685,1379096.7333587087,642486.60290673433,159626.34432499649,null,null,287644.34015150031,null,12431.911425314611,null,null,null,11824.173653703443,null,7113.1881239710056,5786.7293431520238,11705.931917166408,null,12899.917467123028,24605.849384289439,null,159626.34432499649,63000,96626.344324996491,13411.450000000004,83214.89432499648,11047.429999999993,72167.464324996487,11047.429999999993,72167.464324996487,null,9594.0617907247433,7484.9991730098081,17079.060963734551,null,159626.34432499649,100000,59626.344324996491,null,6385.0537729998596,7279.4489378748076,13664.502710874667,null,159626.34432499649,150000,9626.3443249964912,null,6385.0537729998596,6527.5236690098081,12912.577442009668]
[49,null,9705.7337275709506,7568.6881724950563,0,460788.78153681196,17274.421900066009,1420947.0194815295,659761.0248068003,161222.60776824647,null,null,300397.21313791734,null,12752.872986417007,null,null,null,11942.41539024048,null,7184.3200052107159,5844.5966365835457,11822.991236338075,null,13028.916641794262,24851.907878132337,null,161222.60776824647,63000,98222.607768246467,13411.450000000004,84811.157768246456,11047.429999999993,73763.727768246463,11047.429999999993,73763.727768246463,null,9710.5890220819911,7572.4744096999057,17283.063431781899,null,161222.60776824647,100000,61222.607768246467,null,6448.9043107298585,7367.2434272535556,13816.147737983414,null,161222.60776824647,150000,11222.607768246467,null,6448.9043107298585,6614.9989056999066,13063.903216429764]
[50,null,9823.3673849899351,7656.993986557527,0,472730.00268551341,17480.361371547464,1463445.6461649088,677241.38617834775,162834.83384592892,null,null,313474.25730104774,null,13077.044163130426,null,null,null,12061.839544142884,null,7256.1632052628229,5903.042602949381,11941.221148701454,null,13159.205808212204,25100.42695691366,null,162834.83384592892,63000,99834.833845928923,13411.450000000004,86423.383845928911,11047.429999999993,75375.953845928918,11047.429999999993,75375.953845928918,null,9828.2815257528109,7660.8243987569049,17489.105924509717,null,162834.83384592892,100000,62834.833845928923,null,6513.3933538371566,7455.9158615260912,13969.309215363248,null,162834.83384592892,150000,12834.833845928923,null,6513.3933538371566,6703.3488947569049,13216.742248594062]
[51,null,9942.1773789831095,7746.1828587606215,0,484790.63604570186,17688.360237743731,1506599.096814452,694929.74641609145,164463.18218438822,null,null,326878.71435265872,null,13404.457051610974,null,null,null,12182.457939584312,null,7328.7248373154516,5962.0730289788753,12060.633360188467,null,13290.797866294328,25351.431226482797,null,164463.18218438822,63000,101463.18218438822,13411.450000000004,88051.732184388209,11047.429999999993,77004.302184388216,11047.429999999993,77004.302184388216,null,9947.1509544603396,7750.0578877044736,17697.208842164815,null,164463.18218438822,100000,64463.182184388221,null,6578.5272873755293,7545.4750201413526,14124.002307516883,null,164463.18218438822,150000,14463.182184388221,null,6578.5272873755293,6792.5823837044745,13371.109671080005]
[52,null,10062.175472916217,7836.2636196857484,0,496971.87573949224,17898.439092601966,1550413.9196698207,712828.18550869345,166107.8140062321,null,null,340613.85842163506,null,13735.144068976335,null,null,null,12304.282518980155,null,7402.012085688606,6021.6937592686627,12181.239693790356,null,13423.705844957269,25604.945538747626,null,166107.8140062321,63000,103107.8140062321,13411.450000000004,89696.364006232092,11047.429999999993,78648.934006232099,11047.429999999993,78648.934006232099,null,10067.209077454943,7840.1837115415183,17907.392788996462,null,166107.8140062321,100000,66107.814006232104,null,6644.3125602492846,7635.9297703427656,14280.242330592049,null,166107.8140062321,150000,16107.814006232104,null,6644.3125602492846,6882.7082075415192,13527.020767790804]
[53,null,10183.373547788655,7927.2451882201267,0,509274.92783022049,18110.618736008782,1594896.7284530732,730938.80424470222,167768.89214629444,null,null,354682.99637815042,null,14069.137956515346,null,null,null,12427.325344169958,null,7476.032206545493,6081.9106968613505,12303.052090728257,null,13557.942903406843,25860.994994135101,null,167768.89214629444,63000,104768.89214629444,13411.450000000004,91357.44214629443,11047.429999999993,80310.012146294437,11047.429999999993,80310.012146294437,null,10188.467781679494,7931.210793616935,18119.678575296428,null,167768.89214629444,100000,67768.892146294442,null,6710.7556858517783,7727.2890680461942,14438.044753897972,null,167768.89214629444,150000,17768.892146294442,null,6710.7556858517783,6973.7352896169359,13684.490975468714]
[54,null,10305.783603409816,8019.1365724398484,0,521701.01044185605,18324.920175849664,1640054.2030234882,749263.72442055191,169446.58106775739,null,null,369089.46816108015,null,14406.471782929746,null,null,null,12551.598597611659,null,7550.7925286109485,6142.729803829965,12426.082611635542,null,13693.522332440913,26119.604944076455,null,169446.58106775739,63000,106446.58106775739,13411.450000000004,93035.131067757378,11047.429999999993,81987.701067757385,11047.429999999993,81987.701067757385,null,10310.939072946288,8023.1481465131046,18334.087219459394,null,169446.58106775739,100000,69446.58106775739,null,6777.8632427102957,7819.5619587266556,14597.425201436952,null,169446.58106775739,150000,19446.58106775739,null,6777.8632427102957,7065.6726425131055,13843.535885223402]
[55,null,10429.417759587192,8111.9468705017671,0,534251.35387960798,18541.36463008896,1685893.0900389373,767805.08905064082,171141.04687843498,null,null,383836.64710868843,null,14747.178947608292,null,null,null,12677.114583587776,null,7626.3004538970581,6204.1571018682653,12550.343437751899,null,13830.457555765322,26380.800993517223,null,171141.04687843498,63000,108141.04687843498,13411.450000000004,94729.596878434968,11047.429999999993,83682.166878434975,11047.429999999993,83682.166878434975,null,10434.635077125753,8116.0048729382361,18550.639950063989,null,171141.04687843498,100000,71141.04687843498,null,6845.6418751373994,7912.7575783139237,14758.399453451322,null,171141.04687843498,150000,21141.04687843498,null,6845.6418751373994,7158.529368938237,14004.171244075636]
[56,null,10554.288257326336,8205.6852715443038,0,546927.20075173734,18759.97352887064,1732420.2036238709,786565.06257951143,172852.45734721932,null,null,398927.94029262208,null,15091.293183933625,null,null,null,12803.885729423653,null,7702.5634584360287,6266.198672886947,12675.846872129418,null,13968.762131322976,26644.609003452395,null,172852.45734721932,63000,109852.45734721932,13411.450000000004,96441.007347219303,11047.429999999993,85393.57734721931,11047.429999999993,85393.57734721931,null,10559.568041347009,8209.7901666276175,18769.358207974627,null,172852.45734721932,100000,72852.457347219315,null,6914.0982938887728,8006.8851540970627,14920.983447985836,null,172852.45734721932,150000,22852.457347219315,null,6914.0982938887728,7252.3146626276184,14166.412956516391]
[57,null,10680.407460042874,8300.3610565972667,0,559729.806092588,18980.768516640142,1779642.426043984,805545.83109615161,174580.9819206915,null,null,414366.78885524429,null,15438.848562622208,null,null,null,12931.924586717889,null,7779.5890930203886,6328.8606596158152,12802.60534085071,null,14108.449752636203,26911.055093486913,null,174580.9819206915,63000,111580.9819206915,13411.450000000004,98169.531920691486,11047.429999999993,87122.101920691493,11047.429999999993,87122.101920691493,null,10685.750335210478,8304.513313253894,18990.263648464374,null,174580.9819206915,100000,74580.981920691498,null,6983.2392768276604,8101.9540056380329,15085.193282465694,null,174580.9819206915,150000,24580.981920691498,null,6983.2392768276604,7347.037809253894,14330.277086081554]
[58,null,10807.787854786577,8395.9835995007579,0,572660.43748684716,19203.771454287336,1827566.708387628,824749.60255043895,176326.79173989838,null,null,430156.66835034196,null,15789.879495097675,null,null,null,13061.243832585065,null,7857.384983950592,6392.1492662119726,12930.631394259213,null,14249.534250162564,27180.165644421777,null,176326.79173989838,63000,113326.79173989838,13411.450000000004,99915.341739898373,11047.429999999993,88867.91173989838,11047.429999999993,88867.91173989838,null,10813.194452012582,8400.1836913464304,19213.378143359012,null,176326.79173989838,100000,76326.791739898385,null,7053.0716695959354,8197.9735456944109,15251.045215290345,null,176326.79173989838,150000,26326.791739898385,null,7053.0716695959354,7442.7081873464313,14495.779856942367]
[59,null,10936.442053477715,8492.562367833285,0,585720.37519504898,19429.004421311001,1876200.0712540387,844178.60697174992,178090.05965729736,null,null,446301.08908723987,null,16144.4207368979,null,null,null,13191.856270910916,null,7935.9588337900959,6456.0707588740925,13059.937708201805,null,14392.029592664188,27451.967300865996,null,178090.05965729736,63000,115090.05965729736,13411.450000000004,101678.60965729735,11047.429999999993,90631.179657297354,11047.429999999993,90631.179657297354,null,10941.913009982705,8496.8107732198951,19438.7237832026,null,178090.05965729736,100000,78090.059657297359,null,7123.6023862918946,8294.9532811513545,15418.555667443248,null,178090.05965729736,150000,28090.059657297359,null,7123.6023862918946,7539.3352692198951,14662.937655511789]
[60,null,11066.382794155768,8590.1069238491382,0,598910.91228033276,19656.489718004908,1925549.6054484437,863835.09668975486,179870.96025387035,null,null,462803.59647835599,null,16502.507391116127,null,null,null,13323.774833620026,null,8015.3184221279971,6520.6314664628344,13190.537085283826,null,14535.949888590832,27726.486973874657,null,179870.96025387035,63000,116870.96025387035,13411.450000000004,103459.51025387034,11047.429999999993,92412.080253870343,11047.429999999993,92412.080253870343,null,11071.918753532535,8594.4041259120931,19666.322879444626,null,179870.96025387035,100000,79870.960253870348,null,7194.8384101548145,8392.9028139628681,15587.741224117683,null,179870.96025387035,150000,29870.960253870348,null,7194.8384101548145,7636.928621912095,14831.767032066909]
[61,null,11197.622942240603,8688.6269254251511,0,612233.35473646945,19886.249867665756,1975622.4726841226,883721.34655742068,181669.66985640905,null,null,479667.77139023255,null,16864.174911876536,null,null,null,13457.012581956225,null,8095.471606349277,6585.8377811274622,13322.442456136663,null,14681.30938747674,28003.751843613405,null,181669.66985640905,63000,118669.66985640905,13411.450000000004,105258.21985640904,11047.429999999993,94210.789856409043,11047.429999999993,94210.789856409043,null,11203.224554517861,8692.9734121312158,19896.197966649077,null,181669.66985640905,100000,81669.669856409047,null,7266.7867942563616,8491.8318421024978,15758.61863635886,null,181669.66985640905,150000,31669.669856409047,null,7266.7867942563616,7735.4979081312158,15002.284702387577]
[62,null,11330.175491806282,8788.132127016921,0,625689.02161716751,20118.307618823201,2026425.9062914886,903839.65417624393,183486.36655497312,null,null,496897.23049807712,null,17229.459107844552,null,null,null,13591.582707775788,null,8176.4263224127699,6651.6961589387347,13455.666880698029,null,14828.122481351504,28283.789362049531,null,183486.36655497312,63000,120486.36655497312,13411.450000000004,107074.91655497311,11047.429999999993,96027.486554973118,11047.429999999993,96027.486554973118,null,11335.843413513037,8792.5283912125269,20128.371804725564,null,183486.36655497312,100000,83486.366554973123,null,7339.4546621989248,8591.7501605235211,15931.204822722446,null,183486.36655497312,150000,33486.366554973123,null,7339.4546621989248,7835.0528872125269,15174.507549411452]
[63,null,11464.053566867618,8888.632380624611,0,639279.24516667251,20352.685947492231,2077967.211934258,924192.34012373618,185321.23022052285,null,null,514495.62664384936,null,17598.396145772243,null,null,null,13727.498534853545,null,8258.1905856368976,6718.213120528123,13590.22354950501,null,14976.40370616502,28566.627255670028,null,185321.23022052285,63000,122321.23022052285,13411.450000000004,108909.78022052284,11047.429999999993,97862.350220522843,11047.429999999993,97862.350220522843,null,11469.788461098167,8893.0789200846521,20362.867381182819,null,185321.23022052285,100000,85321.230220522848,null,7412.8492088209141,8692.667662128757,16105.516870949672,null,185321.23022052285,150000,35321.230220522848,null,7412.8492088209141,7935.6034160846521,15348.452624905567]
[64,null,11599.270422679567,8990.1376367683752,0,653005.37095167255,20589.408059447942,2130253.768332785,944781.74818318407,187174.44252272806,null,null,532466.64919792861,null,17971.022554079209,null,null,null,13864.773520202078,null,8340.7724914932642,6785.3952517334037,13726.125785000057,null,15126.167743226668,28852.293528226724,null,187174.44252272806,63000,124174.44252272806,13411.450000000004,110762.99252272805,11047.429999999993,99715.562522728054,11047.429999999993,99715.562522728054,null,11605.072959159146,8994.6349542454973,20599.707913404643,null,187174.44252272806,100000,87174.442522728059,null,7486.9777009091222,8794.5943387500429,16281.572039659164,null,187174.44252272806,150000,37174.442522728059,null,7486.9777009091222,8037.1594502454973,15524.13715115462]
[65,null,11735.839447049641,9092.6579454735765,0,666868.75799452257,20828.497392523219,2183293.0279946276,965610.24557570729,189046.18694795534,null,null,550814.02442439785,null,18347.375226469248,null,null,null,14003.421255404099,null,8424.1802164081982,6853.2492042507383,13863.387042850058,null,15277.429420658937,29140.816463508992,null,189046.18694795534,63000,126046.18694795534,13411.450000000004,112634.73694795533,11047.429999999993,101587.30694795534,11047.429999999993,101587.30694795534,null,11741.71030220074,9097.2065487479504,20838.916850948692,null,189046.18694795534,100000,89046.186947955342,null,7561.8474779182143,8897.5402821375428,16459.387760055757,null,189046.18694795534,150000,39046.186947955342,null,7561.8474779182143,8139.7310447479522,15701.578522666166]
[66,null,{"$f":"IF($B$35=1,AL106*99.95%,IF($B$35=2,BB106*99.95%,AT106*99.95%))","v":11873.77416166341},{"$f":"IF($B$35=1,AM106*99.95%,IF($B$35=2,BC106*99.95%,AU106*99.95%))","v":9196.203457265834},0,680870.77890780114,{"$f":"+B106+C106+D106","v":21069.977618929246},2237092.5179524189,986680.22319463652,190936.64881743491,null,null,569541.51584998099,null,18727.49142558319,null,null,null,{"$f":"+J106/13.5","v":14143.455467958142},null,8508.4220185722806,6921.7816962932457,14002.02091327856,null,15430.203714865525,29432.224628144086,null,{"$f":"+J106","v":190936.64881743491},{"$f":"IF(AB106>=$AC$29,$AC$29,AB106)","v":63000},{"$f":"+AB106-AC106","v":127936.64881743491},{"$f":"IF(AD106>=$AA$30,$AA$30,AD106)","v":13411.450000000004},{"$f":"+AD106-AE106","v":114525.1988174349},{"$f":"IF(AF106>=$AA$31,$AA$31,AF106)","v":11047.429999999993},{"$f":"+AF106-AG106","v":103477.7688174349},{"$f":"IF(AH106>=$AA$32,$AA$32,AH106)","v":11047.429999999993},{"$f":"IF(AH106>=$AA$33,$AA$33,AH106)","v":103477.7688174349},null,{"$f":"+((AC106*$AD$29)+(AE106*$AD$30)+(AG106*$AD$31)+(AI106*$AD$32)+(AJ106*$AD$33))/100","v":11879.714018672747},{"$f":"+((AC106*$AE$29)+(AE106*$AE$30)+(AG106*$AE$31)+(AI106*$AE$32)+(AJ106*$AE$33))/100","v":9200.8038591954319},{"$f":"+AL106+AM106","v":21080.51787786818},null,{"$f":"+AB106","v":190936.64881743491},{"$f":"IF(AP106>=$AH$29,$AH$29,AP106)","v":100000},{"$f":"+AP106-AQ106","v":90936.648817434907},null,{"$f":"+AP106*$AI$29%","v":7637.4659526973965},{"$f":"+(AQ106*$AJ$29/100)+AR106*$AJ$30/100","v":9001.5156849589202},{"$f":"+AT106+AU106","v":16638.981637656318},null,{"$f":"+J106","v":190936.64881743491},{"$f":"IF(AX106>=$AH$33,$AH$33,AX106)","v":150000},{"$f":"+AX106-AY106","v":40936.648817434907},null,{"$f":"+AX106*$AI$33%","v":7637.4659526973965},{"$f":"+(AY106*$AJ$33%)+(AZ106*$AJ$34%)","v":8243.3283551954337},{"$f":"+BB106+BC106","v":15880.794307892829}]
[{"$f":"1+A106","v":67},null,12013.088223423323,9300.784424176014,{"$f":"+E106+X107","v":0},{"$f":"+F106+W107","v":695012.82003021252},21313.872647599339,{"$f":"+I107+F107+M107","v":2291659.8405091176},{"$f":"+I106+G107","v":1007994.0958422358},{"$f":"+J106*$K$41/100","v":192846.01530560927},null,null,{"$f":"+M106+O107","v":588652.92463666922},null,{"$f":"+(G107+F107+O106)*$N$41/100","v":19111.408786688269},null,null,null,14284.890022637723,null,{"$f":"+J107*$P$41/100*99%","v":8593.5062387580037},{"$f":"+J107*$Q$41*99%/100","v":6990.999513256178},{"$f":"+J107/13.5*$R$41/100*99%","v":14142.041122411345},null,{"$f":"+U107+V107+X107","v":15584.505752014182},{"$f":"+Y107+W107","v":29726.546874425527},null,192846.01530560927,63000,129846.01530560927,13411.450000000004,116434.56530560926,11047.429999999993,105387.13530560926,11047.429999999993,105387.13530560926,null,12019.097772309477,9305.437142747387,21324.534915056865,null,192846.01530560927,100000,92846.015305609268,null,7713.8406122243705,9106.5308418085096,16820.37145403288,null,192846.01530560927,150000,42846.015305609268,null,7713.8406122243705,8347.961638747387,16061.802250971758]
[68,null,12153.79542580083,9406.4112007552958,0,709296.28156384802,21560.206626556126,2347002.6739907134,1029554.302468792,194774.47545866537,null,null,608152.08995807357,null,19499.165321404402,null,null,null,14427.738922864102,null,8679.4413011455854,7060.9095083887396,14283.461533635464,null,15740.350809534324,30023.81234316979,null,194774.47545866537,63000,131774.47545866537,13411.450000000004,118363.02545866536,11047.429999999993,107315.59545866537,11047.429999999993,107315.59545866537,null,12159.875363482572,9411.1167591348621,21570.992122617434,null,194774.47545866537,100000,94774.475458665373,null,7790.9790183466148,9212.5961502265964,17003.57516857321,null,194774.47545866537,150000,44774.475458665373,null,7790.9790183466148,8453.6412551348621,16244.620273481476]
[69,null,12295.909700202112,9513.0942451003666,0,723722.5777128198,21809.00394530248,2403128.7735064556,1051363.3064140945,196722.220213252,null,null,628042.88937954127,null,19890.799421467691,null,null,null,14572.016312092741,null,8766.2357141570392,7131.5186034726266,14426.296148971813,null,15897.754317629666,30324.050466601479,null,196722.220213252,63000,133722.220213252,13411.450000000004,120310.77021325199,11047.429999999993,109263.340213252,11047.429999999993,109263.340213252,null,12302.060730567395,9517.853171686209,21819.913902253604,null,196722.220213252,100000,96722.220213252003,null,7868.8888085300805,9319.7221117288609,17188.610920258943,null,196722.220213252,150000,46722.220213252003,null,7868.8888085300805,8560.3776676862108,16429.266476216289]
[70,null,12439.44511734741,9620.8441198888922,0,738293.1368232813,22060.289237236302,2460045.9717166852,1073423.5956513309,198689.44241538455,null,null,648329.23924207292,null,20286.349862531617,null,null,null,14717.736475213671,null,8853.8980712986104,7202.8337895073546,14570.559110461534,null,16056.731860805965,30627.290971267499,null,198689.44241538455,63000,135689.44241538455,13411.450000000004,122277.99241538453,11047.429999999993,111230.56241538454,11047.429999999993,111230.56241538454,null,12445.66795132307,9625.6569483630738,22071.324899686144,null,198689.44241538455,100000,98689.442415384547,null,7947.5776966153817,9427.9193328461515,17375.497029461534,null,198689.44241538455,150000,48689.442415384547,null,7947.5776966153817,8668.1814443630738,16615.759140978455]
[]
[null,null,null,null,null,null,null,null,null,null,null,null,null,null,null,null,null,null,{"$f":"SUM(S41:S111)","v":745750.64325583971},null,{"$f":"SUM(U42:U111)","v":444172.63230960956},361343.85313799285,{"$f":"SUM(W42:W111)","v":730959.80348994792},null,{"$f":"SUM(Y42:Y111)","v":805516.48544760235},{"$f":"SUM(Z42:Z111)","v":1536476.2889375505}]
[null,null,null,null,null,null,null,null,null,null,null,null,null,null,null,null,null,null,null,null,null,{"$f":"+V112+U112","v":805516.48544760235},null,null,null,{"$f":"+V113+W112","v":1536476.2889375503}]

{"sheet":"CALCOLO PENSIONE","index":6,"n_rows":99,"n_cols":16,"rows_kept":99,"cut":false,"hidden":true,"merged":[[26,8,26,9],[2,5,2,11],[15,8,15,9],[4,5,4,6],[4,8,4,9],[6,8,6,9],[7,8,7,9],[8,8,8,9],[25,8,25,9],[22,8,22,9],[23,8,23,9],[24,8,24,9],[8,3,8,4],[8,6,8,7],[2,13,2,19],[21,14,21,16],[20,8,20,9],[21,8,21,9],[32,8,32,9],[9,8,9,9],[28,8,28,9],[29,8,29,9],[30,8,30,9],[31,8,31,9],[10,8,10,9],[11,8,11,9],[12,8,12,9],[13,8,13,9],[14,8,14,9],[27,8,27,9],[16,8,16,9],[17,8,17,9],[18,8,18,9],[19,8,19,9]]}
[]
[]
[null,null,null,"VECCHIO ISCR",{"$f":"+'RENDITE VITALIZIE'!H12","v":0}]
[null,null,null,"SESSO",{"$f":"+'RENDITE VITALIZIE'!H10","v":"M"},{"$f":"IF($E$4=\"M\",VLOOKUP($E$5,$D$10:$E$99,2),VLOOKUP($E$5,$G$10:$H$97,2))","v":0},null,null,null,null,null,null,null,null,null,{"$f":"IF(E3=\"SI\",122,100)","v":100}]
[null,null,null,"ETA'",{"$f":"+'RENDITE VITALIZIE'!H6","v":66},null,null,null,null,null,{"$f":"+E7*L5","v":14070},{"$f":"IF($E$4=\"M\",VLOOKUP($E$6,CALCOLI!$F$16:$H$36,2),VLOOKUP($E$6,CALCOLI!$F$16:$H$36,3))","v":4.6899999999999997E-2},"IMMEDIATA",null,null,{"$f":"+K5*P4%","v":14070}]
[null,null,null,"ETA' CORRETTA",{"$f":"+E5+F4","v":66}]
[null,null,null,"MONTANTE",{"$f":"+'RENDITE VITALIZIE'!H8","v":300000},null,null,null,null,null,{"$f":"+E7*L7","v":13998},{"$f":"IF($E$4=\"M\",VLOOKUP($E$6,CALCOLI!$J$16:$L$36,2),VLOOKUP($E$6,CALCOLI!$J$16:$L$36,3))","v":4.666E-2},"CERTA 5 ANNI",null,null,{"$f":"+K7","v":13998}]
[]
[null,null,null,"MASCHI",null,null,"femmine",null,null,null,{"$f":"+E7*L9","v":13731},{"$f":"IF($E$4=\"M\",VLOOKUP($E$6,CALCOLI!$N$16:$P$36,2),VLOOKUP($E$6,CALCOLI!$N$16:$P$36,3))","v":4.5769999999999998E-2},"CERTA 10 ANNI",null,null,{"$f":"+K9","v":13731}]
[null,null,null,0,-2,null,0,-2]
[null,null,null,{"$f":"1+D10","v":1},-2,null,{"$f":"1+G10","v":1},-2,null,null,{"$f":"+E7*L11","v":11364},{"$f":"IF($E$4=\"M\",VLOOKUP($E$6,CALCOLI!$R$16:$T$36,2),VLOOKUP($E$6,CALCOLI!$R$16:$T$36,3))","v":3.7879999999999997E-2},"CONTRASS TT 0,50%",null,null,{"$f":"+K11","v":11364}]
[null,null,null,{"$f":"1+D11","v":2},-2,null,{"$f":"1+G11","v":2},-2]
[null,null,null,3,-2,null,3,-2,null,null,{"$f":"+E7*L13","v":10656},{"$f":"IF($E$4=\"M\",VLOOKUP($E$6,CALCOLI!$Z$5:$AB$25,2),VLOOKUP($E$6,CALCOLI!$Z$5:$AB$25,3))","v":3.5520000000000003E-2},"REVERSIBILE",null,null,{"$f":"+K13","v":10656}]
[null,null,null,4,-2,null,4,-2]
[null,null,null,5,-2,null,5,-2]
[null,null,null,6,-2,null,6,-2]
[null,null,null,7,-2,null,7,-2]
[null,null,null,8,-2,null,8,-2]
[null,null,null,9,-2,null,9,-2]
[null,null,null,10,-2,null,10,-2]
[null,null,null,11,-2,null,11,-2]
[null,null,null,12,-2,null,12,-2]
[null,null,null,13,-2,null,13,-2]
[null,null,null,14,-2,null,14,-2]
[null,null,null,15,-2,null,15,-2]
[null,null,null,16,-2,null,16,-2]
[null,null,null,17,-2,null,17,-2]
[null,null,null,18,-2,null,18,-2]
[null,null,null,19,-2,null,19,-2]
[null,null,null,20,-2,null,20,-2]
[null,null,null,21,-2,null,21,-2]
[null,null,null,22,-2,null,22,-2]
[null,null,null,23,-2,null,23,-2]
[null,null,null,24,-2,null,24,-2]
[null,null,null,25,-2,null,25,-2]
[null,null,null,26,-2,null,26,-2]
[null,null,null,27,-2,null,27,-2]
[null,null,null,28,-2,null,28,-2]
[null,null,null,29,-2,null,29,-2]
[null,null,null,30,-2,null,30,-2]
[null,null,null,31,-2,null,31,-2]
[null,null,null,32,-2,null,32,-2]
[null,null,null,33,-2,null,33,-2]
[null,null,null,34,-2,null,34,-2]
[null,null,null,35,-2,null,35,-2]
[null,null,null,36,-2,null,36,-2]
[null,null,null,37,-2,null,37,-2]
[null,null,null,38,-2,null,38,-2]
[null,null,null,39,-2,null,39,-2]
[null,null,null,40,-2,null,40,-2]
[null,null,null,41,-2,null,41,-2]
[null,null,null,42,-2,null,42,-2]
[null,null,null,43,-2,null,43,-2]
[null,null,null,44,-2,null,44,-2]
[null,null,null,45,-2,null,45,-2]
[null,null,null,46,-2,null,46,-2]
[null,null,null,47,-1,null,47,-1]
[null,null,null,48,-1,null,48,-1]
[null,null,null,49,-1,null,49,-1]
[null,null,null,50,-1,null,50,-1]
[null,null,null,51,-1,null,51,-1]
[null,null,null,52,-1,null,52,-1]
[null,null,null,53,-1,null,53,-1]
[null,null,null,54,-1,null,54,-1]
[null,null,null,55,-1,null,55,0]
[null,null,null,56,-1,null,56,0]
[null,null,null,57,0,null,57,0]
[null,null,null,58,0,null,58,0]
[null,null,null,59,0,null,59,0]
[null,null,null,60,0,null,60,0]
[null,null,null,61,0,null,61,0]
[null,null,null,62,0,null,62,0]
[null,null,null,63,0,null,63,0]
[null,null,null,64,0,null,64,0]
[null,null,null,65,0,null,65,0]
[null,null,null,{"$f":"1+D75","v":66},0,null,{"$f":"1+G75","v":66},0]
[null,null,null,67,0,null,67,0]
[null,null,null,68,0,null,68,1]
[null,null,null,69,0,null,69,1]
[null,null,null,70,1,null,70,1]
[null,null,null,71,1,null,71,1]
[null,null,null,72,1,null,72,1]
[null,null,null,73,1,null,73,1]
[null,null,null,74,1,null,74,1]
[null,null,null,75,1,null,75,1]
[null,null,null,76,1,null,76,1]
[null,null,null,77,1,null,77,2]
[null,null,null,78,1,null,78,2]
[null,null,null,79,2,null,79,2]
[null,null,null,80,2,null,80,2]
[null,null,null,81,2,null,81,2]
[null,null,null,82,2,null,82,2]
[null,null,null,83,2,null,83,2]
[null,null,null,84,2,null,84,2]
[null,null,null,85,2,null,85,2]
[null,null,null,86,2,null,86,2]
[null,null,null,87,2,null,87,2]
[null,null,null,88,2]
[null,null,null,89,2]

{"sheet":"RENDITE VITALIZIE","index":7,"n_rows":23,"n_cols":10,"rows_kept":23,"cut":false,"hidden":false,"merged":[[3,12,3,13],[3,15,3,16],[22,4,22,17]]}
[]
[]
[null,null,null,null,null,null,null,null,null,"CALCOLO RENDITA VITALIZIA"]
[]
[]
[null,null,"ETA' AL MOMENTO DELLA RISCOSSIONE MINIMO 50",null,null,null,null,66]
[]
[null,null,"VALORE MONTANTE DA DESTINARE ALLA RENDITA",null,null,null,null,300000]
[]
[null,null,"SESSO",null,null,null,null,"M"]
[]
[]
[]
[]
[]
[]
[]
[]
[]
[]
[]
[]
[null,null,null,null,"PROPRIETA' INTELLETTUALE E REALIZZAZIONE DI GIUSEPPE NICOLETTI - E' VIETATA LA RIPRODUZIONE E/O COMMERCIALIZZAZIONE ANCHE PARZIALE "]